Workbook

Sheet index
A2: 令和4年度下水道事業比較経営診断表
B4: 都道府県名 | K4: 処理区域内人口別区分 | L4: 政令市等 | O4: 処理区域内人口 （人） | Q4: 1944358
B5: 団体名 | K5: 有収水量密度別区分 | L5: 政令市等 | O5: 有収水量密度 （千㎥/ｈa) | Q5: 8.2
B6: 事業名 | K6: 供用開始後年数別区分 | L6: 政令市等 | O6: 供用開始後年数 (年） | Q6: 62
A8: 項 目 | E8: 団 体 | G8: 類型平均 | H8: 全国平均 | I8: 類型内 順 位 | J8: 項 目 | M8: 団 体 | O8: 類型平均 | P8: 全国平均 | Q8: 類型内 順 位
E9: R3年度 | F9: R4年度 | H9: (公共) | M9: R3年度 | N9: R4年度 | P9: (公共)
A10: 事業の概要 | J10: 財政状態の健全性
A11: 事業別普及率 | D11: ％ | E11: 99.3 | F11: 99.3 | G11: － | H11: 80.4 | I11: － | J11: 総収支比率 | L11: ％ | M11: 105.6 | N11: 101.2 | O11: 104.5 | P11: 107.4 | Q11: 18/21
A12: 進捗率 | D12: ％ | E12: 104.8 | F12: 105.5 | G12: 103.2 | H12: 96.7 | I12: － | J12: 経常収支比率 | L12: ％ | M12: 105.6 | N12: 101.2 | O12: 104.5 | P12: 105.4 | Q12: 18/21
A13: 一般家庭用使用料 （1ヶ月20㎥あたり） | D13: 円／月 | E13: 1371 | F13: 1371 | G13: 2238 | H13: 2881 | I13: － | J13: 事業別資金不足比率 | L13: ％ | M13: 0 | N13: 0 | O13: 0 | P13: 30.7 | Q13: 1/21
A14: 処理区域内人口密度 | D14: 人／ha | E14: 79 | F14: 79 | G14: 99 | H14: 60 | I14: － | J14: 利子負担率 | L14: ％ | M14: 1 | N14: 0.9 | O14: 1.1 | P14: 1.3 | Q14: 4/21
A15: 施設の効率性 | J15: 自己資本構成比率 | L15: ％ | M15: 57.4 | N15: 57.1 | O15: 64.6 | P15: 63.7 | Q15: 13/21
A16: 施設利用率 | D16: ％ | E16: 65.2 | F16: 67.1 | G16: 59 | H16: 61 | I16: 6/21 | J16: 固定資産対長期資本比率 | L16: ％ | M16: 101.6 | N16: 101.7 | O16: 101.4 | P16: 101.2 | Q16: 12/21
A17: 有収率 | D17: ％ | E17: 73.4 | F17: 71.8 | G17: 79.8 | H17: 81.2 | I17: 17/21 | J17: 処理区域内人口１人あたりの 企業債（地方債）現在高 | L17: 千円／人 | M17: 120 | N17: 120 | O17: 168 | P17: 177 | Q17: 3/21
A18: 水洗化率 | D18: ％ | E18: 100 | F18: 100 | G18: 99.2 | H18: 95.8 | I18: 1/21
A19: 経営の効率性
A20: 使用料単価 | D20: 円／㎥ | E20: 88.96 | F20: 90.98 | G20: 126.75 | H20: 134.81 | I20: 20/21
A21: 汚水処理原価 | D21: 円／㎥ | E21: 93.63 | F21: 103.08 | G21: 126.89 | H21: 138.09 | I21: 2/21
A22: 汚水処理原価(分流式下水道 等に要する経費控除前） | D22: 円／㎥ | E22: 93.63 | F22: 103.08 | G22: 128.39 | H22: 158.68 | I22: 2/21
A23: 汚水処理原価 （維持管理費） | D23: 円／㎥ | E23: 53.26 | F23: 60.22 | G23: 65.84 | H23: 76.92 | I23: 9/21
A24: 汚水処理原価 （資本費） | D24: 円／㎥ | E24: 40.37 | F24: 42.86 | G24: 61.06 | H24: 61.16 | I24: 2/21
A25: 経費回収率 | D25: ％ | E25: 95 | F25: 88.3 | G25: 99.9 | H25: 97.6 | I25: 21/21
A26: 経費回収率(分流式下水道 等に要する経費控除前） | D26: ％ | E26: 95 | F26: 88.3 | G26: 98.7 | H26: 85 | I26: 18/21
A27: 経費回収率 （維持管理費） | D27: ％ | E27: 167 | F27: 151.1 | G27: 192.5 | H27: 175.2 | I27: 20/21
A28: 処理区域内人口1人あたり の管理運営費(汚水分） | D28: 円／人 | E28: 9826 | F28: 10630 | G28: 14306 | H28: 14714 | I28: 1/21
A29: 処理区域内人口1人あたり の維持管理費（汚水分） | D29: 円／人 | E29: 5589 | F29: 6210 | G29: 7422 | H29: 8197 | I29: 8/21
A30: 処理区域内人口1人あたり の資本費（汚水分） | D30: 円／人 | E30: 4237 | F30: 4420 | G30: 6883 | H30: 6517 | I30: 1/21
A31: 職員１人あたりの 処理区域内人口 | D31: 人／人 | E31: 3822 | F31: 3820 | G31: 3865 | H31: 3979 | I31: 12/21
A32: 職員給与費対営業収益比率 | D32: ％ | E32: 7.6 | F32: 7.6 | G32: 6 | H32: 6.3 | I32: 15/21
A34: 経 営 状 況
A35: 収 益 的 収 支 | J35: 資 本 的 収 支
A36: 項 目 | E36: R3年度 | F36: R4年度 | G36: 増減額 | H36: 増減率（％） | J36: 項 目 | M36: R3年度 | N36: R4年度 | O36: 増減額 | P36: 増減率（％）
A37: 収 入 | D37: 百万円 | E37: 47413 | F37: 47335 | G37: -78 | H37: -0.1647829302 | J37: 収 入 | L37: 百万円 | M37: 22151 | N37: 20817 | O37: -1334 | P37: -6.408224048
B38: 下水道使用料 | D38: 百万円 | E38: 18163 | F38: 18242 | G38: 79 | H38: 0.4330665497 | K38: 企業債（非適：地方債） | L38: 百万円 | M38: 15800 | N38: 15873 | O38: 73 | P38: 0.4599004599
B39: 繰入金 | D39: 百万円 | E39: 18076 | F39: 17878 | G39: -198 | H39: -1.107506432 | K39: 繰入金 | L39: 百万円 | M39: 278 | N39: 161 | O39: -117 | P39: -72.67080745
A40: 支 出 | D40: 百万円 | E40: 44905 | F40: 46786 | G40: 1881 | H40: 4.020433463 | J40: 支 出 | L40: 百万円 | M40: 38654 | N40: 36869 | O40: -1785 | P40: -4.84146573
B41: 支払利息 | D41: 百万円 | E41: 2444 | F41: 2208 | G41: -236 | H41: -10.6884058 | K41: 建設改良費 | L41: 百万円 | M41: 21858 | N41: 20976 | O41: -882 | P41: -4.204805492
B42: 減価償却費 | D42: 百万円 | E42: 24309 | F42: 24788 | G42: 479 | H42: 1.932386639 | K42: 元金償還金 | L42: 百万円 | M42: 16785 | N42: 15857 | O42: -928 | P42: -5.852304976
B43: 職員給与費 | D43: 百万円 | E43: 2744 | F43: 2738 | G43: -6 | H43: -0.219138057 | J43: 収 支 差 引 | L43: 百万円 | M43: -16503 | N43: -16051 | O43: 452 | P43: -2.816023924
A44: 収 支 差 引 | D44: 百万円 | E44: 2508 | F44: 548 | G44: -1960 | H44: -357.6642336 | J44: 純 損 益 （非適：収支再差引） | L44: 百万円 | M44: 2508 | N44: 548 | O44: -1960 | P44: -357.6642336
A46: ※「類型内順位」については
A47: の場合であれば指標の数値の高い方から、
A48: の場合であれば指標の数値が低い方から数えた順位となる
F49: 団体 | G49: 類型平均 | H49: 全国平均
F50: =+IF(IF(G17<>0,F17/G17,0)>0.6,IF(IF(G17<>0,F17/G17)<1.5,IF(G17<>0,F17/G17),1.5),0.6) -> 0.8997493734 | G50: =+IF(IF(G17<>0,G17/G17,0)>0.6,IF(IF(G17<>0,G17/G17,0)<1.5,IF(G17<>0,G17/G17,0),1.5),0.6) -> 1 | H50: =+IF(IF(G17<>0,H17/G17,0)>0.6,IF(IF(G17<>0,H17/G17,0)<1.5,IF(G17<>0,H17/G17,0),1.5),0.6) -> 1.01754386
F51: =+IF(IF(G25<>0,F25/G25,0)>0.6,IF(IF(G25<>0,F25/G25,0)<1.5,IF(G25<>0,F25/G25,0),1.5),0.6) -> 0.8838838839 | G51: =+IF(IF(G25<>0,G25/G25,0)>0.6,IF(IF(G25<>0,G25/G25,0)<1.5,IF(G25<>0,G25/G25,0),1.5),0.6) -> 1 | H51: =+IF(IF(G25<>0,H25/G25,0)>0.6,IF(IF(G25<>0,H25/G25,0)<1.5,IF(G25<>0,H25/G25,0),1.5),0.6) -> 0.976976977
F52: =+IF(IF(G26<>0,F26/G26,0)>0.6,IF(IF(G26<>0,F26/G26,0)<1.5,IF(G26<>0,F26/G26,0),1.5),0.6) -> 0.8946301925 | G52: =+IF(IF(G26<>0,G26/G26,0)>0.6,IF(IF(G26<>0,G26/G26,0)<1.5,IF(G26<>0,G26/G26,0),1.5),0.6) -> 1 | H52: =+IF(IF(G26<>0,H26/G26,0)>0.6,IF(IF(G26<>0,H26/G26,0)<1.5,IF(G26<>0,H26/G26,0),1.5),0.6) -> 0.861195542
F53: =+IF(IF(G22<>0,G22/F22,0)>0.6,IF(IF(G22<>0,G22/F22,0)<1.5,IF(G22<>0,G22/F22,0),1.5),0.6) -> 1.245537447 | G53: =+IF(IF(G22<>0,G22/G22,0)>0.6,IF(IF(G22<>0,G22/G22,0)<1.5,IF(G22<>0,G22/G22,0),1.5),0.6) -> 1 | H53: =+IF(IF(G22<>0,G22/H22,0)>0.6,IF(IF(G22<>0,G22/H22,0)<1.5,IF(G22<>0,G22/H22,0),1.5),0.6) -> 0.8091126796
F54: =+IF(IF(G18<>0,F18/G18,0)>0.6,IF(IF(G18<>0,F18/G18,0)<1.5,IF(G18<>0,F18/G18,0),1.5),0.6) -> 1.008064516 | G54: =+IF(IF(G18<>0,G18/G18,0)>0.6,IF(IF(G18<>0,G18/G18,0)<1.5,IF(G18<>0,G18/G18,0),1.5),0.6) -> 1 | H54: =+IF(IF(G18<>0,H18/G18,0)>0.6,IF(IF(G18<>0,H18/G18,0)<1.5,IF(G18<>0,H18/G18,0),1.5),0.6) -> 0.9657258065

Sheet R4収支
A1: 決算年度 | B1: 業務コード | C1: 業種コード | D1: 事業コード | E1: 並び順 | F1: 事業区分 | G1: 団体コード | H1: 都道府県 | I1: 団体名 | J1: 収入 | K1: 料金収入 | L1: 繰入金 | M1: 支出 | N1: 支払利息 | O1: 減価償却費 | P1: 職員給与費 | Q1: 収支差引 | R1: 収入 | S1: 地方債 | T1: 繰入金 | U1: 支出 | V1: 建設改良費 | W1: 元金償還金 | X1: 収支差引 | Y1: 収支再差引
A2: 2022 | B2: 46 | C2: 17 | D2: 1 | E2: 1 | F2: 公共 | G2: 011002 | H2: 北海道 | I2: 札幌市 | J2: =IF(千円単!J2="","",ROUND(千円単!J2/1000,0)) -> 47335 | K2: =IF(千円単!K2="","",ROUND(千円単!K2/1000,0)) -> 18242 | L2: =IF(千円単!L2="","",ROUND(千円単!L2/1000,0)) -> 17878 | M2: =IF(千円単!M2="","",ROUND(千円単!M2/1000,0)) -> 46786 | N2: =IF(千円単!N2="","",ROUND(千円単!N2/1000,0)) -> 2208 | O2: =IF(千円単!O2="","",ROUND(千円単!O2/1000,0)) -> 24788 | P2: =IF(千円単!P2="","",ROUND(千円単!P2/1000,0)) -> 2738 | Q2: =IF(千円単!Q2="","",ROUND(千円単!Q2/1000,0)) -> 548 | R2: =IF(千円単!R2="","",ROUND(千円単!R2/1000,0)) -> 20817 | S2: =IF(千円単!S2="","",ROUND(千円単!S2/1000,0)) -> 15873 | T2: =IF(千円単!T2="","",ROUND(千円単!T2/1000,0)) -> 161 | U2: =IF(千円単!U2="","",ROUND(千円単!U2/1000,0)) -> 36869 | V2: =IF(千円単!V2="","",ROUND(千円単!V2/1000,0)) -> 20976 | W2: =IF(千円単!W2="","",ROUND(千円単!W2/1000,0)) -> 15857 | X2: =IF(千円単!X2="","",ROUND(千円単!X2/1000,0)) -> -16051 | Y2: =IF(千円単!Y2="","",ROUND(千円単!Y2/1000,0)) -> 548
A3: 2022 | B3: 46 | C3: 17 | D3: 1 | E3: 2 | F3: 公共 | G3: 012025 | H3: 北海道 | I3: 函館市 | J3: =IF(千円単!J3="","",ROUND(千円単!J3/1000,0)) -> 7528 | K3: =IF(千円単!K3="","",ROUND(千円単!K3/1000,0)) -> 4019 | L3: =IF(千円単!L3="","",ROUND(千円単!L3/1000,0)) -> 1177 | M3: =IF(千円単!M3="","",ROUND(千円単!M3/1000,0)) -> 6289 | N3: =IF(千円単!N3="","",ROUND(千円単!N3/1000,0)) -> 544 | O3: =IF(千円単!O3="","",ROUND(千円単!O3/1000,0)) -> 3490 | P3: =IF(千円単!P3="","",ROUND(千円単!P3/1000,0)) -> 350 | Q3: =IF(千円単!Q3="","",ROUND(千円単!Q3/1000,0)) -> 1239 | R3: =IF(千円単!R3="","",ROUND(千円単!R3/1000,0)) -> 3702 | S3: =IF(千円単!S3="","",ROUND(千円単!S3/1000,0)) -> 2273 | T3: =IF(千円単!T3="","",ROUND(千円単!T3/1000,0)) -> 861 | U3: =IF(千円単!U3="","",ROUND(千円単!U3/1000,0)) -> 6377 | V3: =IF(千円単!V3="","",ROUND(千円単!V3/1000,0)) -> 2154 | W3: =IF(千円単!W3="","",ROUND(千円単!W3/1000,0)) -> 4217 | X3: =IF(千円単!X3="","",ROUND(千円単!X3/1000,0)) -> -2676 | Y3: =IF(千円単!Y3="","",ROUND(千円単!Y3/1000,0)) -> 1239
A4: 2022 | B4: 46 | C4: 17 | D4: 1 | E4: 3 | F4: 公共 | G4: 012033 | H4: 北海道 | I4: 小樽市 | J4: =IF(千円単!J4="","",ROUND(千円単!J4/1000,0)) -> 3364 | K4: =IF(千円単!K4="","",ROUND(千円単!K4/1000,0)) -> 1760 | L4: =IF(千円単!L4="","",ROUND(千円単!L4/1000,0)) -> 693 | M4: =IF(千円単!M4="","",ROUND(千円単!M4/1000,0)) -> 3316 | N4: =IF(千円単!N4="","",ROUND(千円単!N4/1000,0)) -> 95 | O4: =IF(千円単!O4="","",ROUND(千円単!O4/1000,0)) -> 1864 | P4: =IF(千円単!P4="","",ROUND(千円単!P4/1000,0)) -> 93 | Q4: =IF(千円単!Q4="","",ROUND(千円単!Q4/1000,0)) -> 48 | R4: =IF(千円単!R4="","",ROUND(千円単!R4/1000,0)) -> 2023 | S4: =IF(千円単!S4="","",ROUND(千円単!S4/1000,0)) -> 785 | T4: =IF(千円単!T4="","",ROUND(千円単!T4/1000,0)) -> 297 | U4: =IF(千円単!U4="","",ROUND(千円単!U4/1000,0)) -> 3148 | V4: =IF(千円単!V4="","",ROUND(千円単!V4/1000,0)) -> 1466 | W4: =IF(千円単!W4="","",ROUND(千円単!W4/1000,0)) -> 1682 | X4: =IF(千円単!X4="","",ROUND(千円単!X4/1000,0)) -> -1125 | Y4: =IF(千円単!Y4="","",ROUND(千円単!Y4/1000,0)) -> 48
A5: 2022 | B5: 46 | C5: 17 | D5: 1 | E5: 4 | F5: 公共 | G5: 012041 | H5: 北海道 | I5: 旭川市 | J5: =IF(千円単!J5="","",ROUND(千円単!J5/1000,0)) -> 8420 | K5: =IF(千円単!K5="","",ROUND(千円単!K5/1000,0)) -> 5302 | L5: =IF(千円単!L5="","",ROUND(千円単!L5/1000,0)) -> 993 | M5: =IF(千円単!M5="","",ROUND(千円単!M5/1000,0)) -> 7970 | N5: =IF(千円単!N5="","",ROUND(千円単!N5/1000,0)) -> 301 | O5: =IF(千円単!O5="","",ROUND(千円単!O5/1000,0)) -> 4564 | P5: =IF(千円単!P5="","",ROUND(千円単!P5/1000,0)) -> 403 | Q5: =IF(千円単!Q5="","",ROUND(千円単!Q5/1000,0)) -> 450 | R5: =IF(千円単!R5="","",ROUND(千円単!R5/1000,0)) -> 3558 | S5: =IF(千円単!S5="","",ROUND(千円単!S5/1000,0)) -> 2040 | T5: =IF(千円単!T5="","",ROUND(千円単!T5/1000,0)) -> 141 | U5: =IF(千円単!U5="","",ROUND(千円単!U5/1000,0)) -> 6553 | V5: =IF(千円単!V5="","",ROUND(千円単!V5/1000,0)) -> 2950 | W5: =IF(千円単!W5="","",ROUND(千円単!W5/1000,0)) -> 3602 | X5: =IF(千円単!X5="","",ROUND(千円単!X5/1000,0)) -> -2994 | Y5: =IF(千円単!Y5="","",ROUND(千円単!Y5/1000,0)) -> 450
A6: 2022 | B6: 46 | C6: 17 | D6: 1 | E6: 5 | F6: 公共 | G6: 012050 | H6: 北海道 | I6: 室蘭市 | J6: =IF(千円単!J6="","",ROUND(千円単!J6/1000,0)) -> 2819 | K6: =IF(千円単!K6="","",ROUND(千円単!K6/1000,0)) -> 1354 | L6: =IF(千円単!L6="","",ROUND(千円単!L6/1000,0)) -> 753 | M6: =IF(千円単!M6="","",ROUND(千円単!M6/1000,0)) -> 2461 | N6: =IF(千円単!N6="","",ROUND(千円単!N6/1000,0)) -> 154 | O6: =IF(千円単!O6="","",ROUND(千円単!O6/1000,0)) -> 1309 | P6: =IF(千円単!P6="","",ROUND(千円単!P6/1000,0)) -> 105 | Q6: =IF(千円単!Q6="","",ROUND(千円単!Q6/1000,0)) -> 359 | R6: =IF(千円単!R6="","",ROUND(千円単!R6/1000,0)) -> 928 | S6: =IF(千円単!S6="","",ROUND(千円単!S6/1000,0)) -> 485 | T6: =IF(千円単!T6="","",ROUND(千円単!T6/1000,0)) -> 107 | U6: =IF(千円単!U6="","",ROUND(千円単!U6/1000,0)) -> 1933 | V6: =IF(千円単!V6="","",ROUND(千円単!V6/1000,0)) -> 867 | W6: =IF(千円単!W6="","",ROUND(千円単!W6/1000,0)) -> 1064 | X6: =IF(千円単!X6="","",ROUND(千円単!X6/1000,0)) -> -1006 | Y6: =IF(千円単!Y6="","",ROUND(千円単!Y6/1000,0)) -> 359
A7: 2022 | B7: 46 | C7: 17 | D7: 1 | E7: 6 | F7: 公共 | G7: 012068 | H7: 北海道 | I7: 釧路市 | J7: =IF(千円単!J7="","",ROUND(千円単!J7/1000,0)) -> 6368 | K7: =IF(千円単!K7="","",ROUND(千円単!K7/1000,0)) -> 3034 | L7: =IF(千円単!L7="","",ROUND(千円単!L7/1000,0)) -> 1157 | M7: =IF(千円単!M7="","",ROUND(千円単!M7/1000,0)) -> 5599 | N7: =IF(千円単!N7="","",ROUND(千円単!N7/1000,0)) -> 254 | O7: =IF(千円単!O7="","",ROUND(千円単!O7/1000,0)) -> 2967 | P7: =IF(千円単!P7="","",ROUND(千円単!P7/1000,0)) -> 211 | Q7: =IF(千円単!Q7="","",ROUND(千円単!Q7/1000,0)) -> 769 | R7: =IF(千円単!R7="","",ROUND(千円単!R7/1000,0)) -> 1514 | S7: =IF(千円単!S7="","",ROUND(千円単!S7/1000,0)) -> 729 | T7: =IF(千円単!T7="","",ROUND(千円単!T7/1000,0)) -> 342 | U7: =IF(千円単!U7="","",ROUND(千円単!U7/1000,0)) -> 3373 | V7: =IF(千円単!V7="","",ROUND(千円単!V7/1000,0)) -> 1393 | W7: =IF(千円単!W7="","",ROUND(千円単!W7/1000,0)) -> 1976 | X7: =IF(千円単!X7="","",ROUND(千円単!X7/1000,0)) -> -1859 | Y7: =IF(千円単!Y7="","",ROUND(千円単!Y7/1000,0)) -> 769
A8: 2022 | B8: 46 | C8: 17 | D8: 1 | E8: 7 | F8: 公共 | G8: 012076 | H8: 北海道 | I8: 帯広市 | J8: =IF(千円単!J8="","",ROUND(千円単!J8/1000,0)) -> 4642 | K8: =IF(千円単!K8="","",ROUND(千円単!K8/1000,0)) -> 2584 | L8: =IF(千円単!L8="","",ROUND(千円単!L8/1000,0)) -> 974 | M8: =IF(千円単!M8="","",ROUND(千円単!M8/1000,0)) -> 4110 | N8: =IF(千円単!N8="","",ROUND(千円単!N8/1000,0)) -> 246 | O8: =IF(千円単!O8="","",ROUND(千円単!O8/1000,0)) -> 2237 | P8: =IF(千円単!P8="","",ROUND(千円単!P8/1000,0)) -> 101 | Q8: =IF(千円単!Q8="","",ROUND(千円単!Q8/1000,0)) -> 532 | R8: =IF(千円単!R8="","",ROUND(千円単!R8/1000,0)) -> 1246 | S8: =IF(千円単!S8="","",ROUND(千円単!S8/1000,0)) -> 484 | T8: =IF(千円単!T8="","",ROUND(千円単!T8/1000,0)) -> 5 | U8: =IF(千円単!U8="","",ROUND(千円単!U8/1000,0)) -> 3174 | V8: =IF(千円単!V8="","",ROUND(千円単!V8/1000,0)) -> 1403 | W8: =IF(千円単!W8="","",ROUND(千円単!W8/1000,0)) -> 1770 | X8: =IF(千円単!X8="","",ROUND(千円単!X8/1000,0)) -> -1928 | Y8: =IF(千円単!Y8="","",ROUND(千円単!Y8/1000,0)) -> 532
A9: 2022 | B9: 46 | C9: 17 | D9: 1 | E9: 8 | F9: 公共 | G9: 012084 | H9: 北海道 | I9: 北見市 | J9: =IF(千円単!J9="","",ROUND(千円単!J9/1000,0)) -> 4054 | K9: =IF(千円単!K9="","",ROUND(千円単!K9/1000,0)) -> 1654 | L9: =IF(千円単!L9="","",ROUND(千円単!L9/1000,0)) -> 1020 | M9: =IF(千円単!M9="","",ROUND(千円単!M9/1000,0)) -> 3771 | N9: =IF(千円単!N9="","",ROUND(千円単!N9/1000,0)) -> 317 | O9: =IF(千円単!O9="","",ROUND(千円単!O9/1000,0)) -> 2398 | P9: =IF(千円単!P9="","",ROUND(千円単!P9/1000,0)) -> 187 | Q9: =IF(千円単!Q9="","",ROUND(千円単!Q9/1000,0)) -> 283 | R9: =IF(千円単!R9="","",ROUND(千円単!R9/1000,0)) -> 2035 | S9: =IF(千円単!S9="","",ROUND(千円単!S9/1000,0)) -> 1063 | T9: =IF(千円単!T9="","",ROUND(千円単!T9/1000,0)) -> 431 | U9: =IF(千円単!U9="","",ROUND(千円単!U9/1000,0)) -> 3624 | V9: =IF(千円単!V9="","",ROUND(千円単!V9/1000,0)) -> 1598 | W9: =IF(千円単!W9="","",ROUND(千円単!W9/1000,0)) -> 2024 | X9: =IF(千円単!X9="","",ROUND(千円単!X9/1000,0)) -> -1589 | Y9: =IF(千円単!Y9="","",ROUND(千円単!Y9/1000,0)) -> 283
A10: 2022 | B10: 46 | C10: 17 | D10: 1 | E10: 9 | F10: 公共 | G10: 012106 | H10: 北海道 | I10: 岩見沢市 | J10: =IF(千円単!J10="","",ROUND(千円単!J10/1000,0)) -> 2652 | K10: =IF(千円単!K10="","",ROUND(千円単!K10/1000,0)) -> 1124 | L10: =IF(千円単!L10="","",ROUND(千円単!L10/1000,0)) -> 586 | M10: =IF(千円単!M10="","",ROUND(千円単!M10/1000,0)) -> 2366 | N10: =IF(千円単!N10="","",ROUND(千円単!N10/1000,0)) -> 95 | O10: =IF(千円単!O10="","",ROUND(千円単!O10/1000,0)) -> 1315 | P10: =IF(千円単!P10="","",ROUND(千円単!P10/1000,0)) -> 38 | Q10: =IF(千円単!Q10="","",ROUND(千円単!Q10/1000,0)) -> 286 | R10: =IF(千円単!R10="","",ROUND(千円単!R10/1000,0)) -> 491 | S10: =IF(千円単!S10="","",ROUND(千円単!S10/1000,0)) -> 165 | T10: =IF(千円単!T10="","",ROUND(千円単!T10/1000,0)) -> 144 | U10: =IF(千円単!U10="","",ROUND(千円単!U10/1000,0)) -> 1146 | V10: =IF(千円単!V10="","",ROUND(千円単!V10/1000,0)) -> 389 | W10: =IF(千円単!W10="","",ROUND(千円単!W10/1000,0)) -> 756 | X10: =IF(千円単!X10="","",ROUND(千円単!X10/1000,0)) -> -655 | Y10: =IF(千円単!Y10="","",ROUND(千円単!Y10/1000,0)) -> 286
A11: 2022 | B11: 46 | C11: 17 | D11: 1 | E11: 10 | F11: 公共 | G11: 012114 | H11: 北海道 | I11: 網走市 | J11: =IF(千円単!J11="","",ROUND(千円単!J11/1000,0)) -> 1323 | K11: =IF(千円単!K11="","",ROUND(千円単!K11/1000,0)) -> 603 | L11: =IF(千円単!L11="","",ROUND(千円単!L11/1000,0)) -> 273 | M11: =IF(千円単!M11="","",ROUND(千円単!M11/1000,0)) -> 1247 | N11: =IF(千円単!N11="","",ROUND(千円単!N11/1000,0)) -> 67 | O11: =IF(千円単!O11="","",ROUND(千円単!O11/1000,0)) -> 820 | P11: =IF(千円単!P11="","",ROUND(千円単!P11/1000,0)) -> 25 | Q11: =IF(千円単!Q11="","",ROUND(千円単!Q11/1000,0)) -> 76 | R11: =IF(千円単!R11="","",ROUND(千円単!R11/1000,0)) -> 327 | S11: =IF(千円単!S11="","",ROUND(千円単!S11/1000,0)) -> 190 | T11: =IF(千円単!T11="","",ROUND(千円単!T11/1000,0)) -> 0 | U11: =IF(千円単!U11="","",ROUND(千円単!U11/1000,0)) -> 716 | V11: =IF(千円単!V11="","",ROUND(千円単!V11/1000,0)) -> 317 | W11: =IF(千円単!W11="","",ROUND(千円単!W11/1000,0)) -> 400 | X11: =IF(千円単!X11="","",ROUND(千円単!X11/1000,0)) -> -390 | Y11: =IF(千円単!Y11="","",ROUND(千円単!Y11/1000,0)) -> 76
A12: 2022 | B12: 46 | C12: 17 | D12: 1 | E12: 11 | F12: 公共 | G12: 012131 | H12: 北海道 | I12: 苫小牧市 | J12: =IF(千円単!J12="","",ROUND(千円単!J12/1000,0)) -> 5078 | K12: =IF(千円単!K12="","",ROUND(千円単!K12/1000,0)) -> 2306 | L12: =IF(千円単!L12="","",ROUND(千円単!L12/1000,0)) -> 1055 | M12: =IF(千円単!M12="","",ROUND(千円単!M12/1000,0)) -> 4562 | N12: =IF(千円単!N12="","",ROUND(千円単!N12/1000,0)) -> 408 | O12: =IF(千円単!O12="","",ROUND(千円単!O12/1000,0)) -> 2757 | P12: =IF(千円単!P12="","",ROUND(千円単!P12/1000,0)) -> 136 | Q12: =IF(千円単!Q12="","",ROUND(千円単!Q12/1000,0)) -> 516 | R12: =IF(千円単!R12="","",ROUND(千円単!R12/1000,0)) -> 2022 | S12: =IF(千円単!S12="","",ROUND(千円単!S12/1000,0)) -> 1340 | T12: =IF(千円単!T12="","",ROUND(千円単!T12/1000,0)) -> 242 | U12: =IF(千円単!U12="","",ROUND(千円単!U12/1000,0)) -> 3826 | V12: =IF(千円単!V12="","",ROUND(千円単!V12/1000,0)) -> 1778 | W12: =IF(千円単!W12="","",ROUND(千円単!W12/1000,0)) -> 2048 | X12: =IF(千円単!X12="","",ROUND(千円単!X12/1000,0)) -> -1804 | Y12: =IF(千円単!Y12="","",ROUND(千円単!Y12/1000,0)) -> 516
A13: 2022 | B13: 46 | C13: 17 | D13: 1 | E13: 12 | F13: 公共 | G13: 012149 | H13: 北海道 | I13: 稚内市 | J13: =IF(千円単!J13="","",ROUND(千円単!J13/1000,0)) -> 1074 | K13: =IF(千円単!K13="","",ROUND(千円単!K13/1000,0)) -> 443 | L13: =IF(千円単!L13="","",ROUND(千円単!L13/1000,0)) -> 380 | M13: =IF(千円単!M13="","",ROUND(千円単!M13/1000,0)) -> 1045 | N13: =IF(千円単!N13="","",ROUND(千円単!N13/1000,0)) -> 76 | O13: =IF(千円単!O13="","",ROUND(千円単!O13/1000,0)) -> 597 | P13: =IF(千円単!P13="","",ROUND(千円単!P13/1000,0)) -> 22 | Q13: =IF(千円単!Q13="","",ROUND(千円単!Q13/1000,0)) -> 29 | R13: =IF(千円単!R13="","",ROUND(千円単!R13/1000,0)) -> 383 | S13: =IF(千円単!S13="","",ROUND(千円単!S13/1000,0)) -> 218 | T13: =IF(千円単!T13="","",ROUND(千円単!T13/1000,0)) -> 99 | U13: =IF(千円単!U13="","",ROUND(千円単!U13/1000,0)) -> 852 | V13: =IF(千円単!V13="","",ROUND(千円単!V13/1000,0)) -> 183 | W13: =IF(千円単!W13="","",ROUND(千円単!W13/1000,0)) -> 669 | X13: =IF(千円単!X13="","",ROUND(千円単!X13/1000,0)) -> -469 | Y13: =IF(千円単!Y13="","",ROUND(千円単!Y13/1000,0)) -> 29
A14: 2022 | B14: 46 | C14: 17 | D14: 1 | E14: 13 | F14: 公共 | G14: 012173 | H14: 北海道 | I14: 江別市 | J14: =IF(千円単!J14="","",ROUND(千円単!J14/1000,0)) -> 3367 | K14: =IF(千円単!K14="","",ROUND(千円単!K14/1000,0)) -> 1254 | L14: =IF(千円単!L14="","",ROUND(千円単!L14/1000,0)) -> 825 | M14: =IF(千円単!M14="","",ROUND(千円単!M14/1000,0)) -> 3295 | N14: =IF(千円単!N14="","",ROUND(千円単!N14/1000,0)) -> 118 | O14: =IF(千円単!O14="","",ROUND(千円単!O14/1000,0)) -> 2083 | P14: =IF(千円単!P14="","",ROUND(千円単!P14/1000,0)) -> 131 | Q14: =IF(千円単!Q14="","",ROUND(千円単!Q14/1000,0)) -> 72 | R14: =IF(千円単!R14="","",ROUND(千円単!R14/1000,0)) -> 568 | S14: =IF(千円単!S14="","",ROUND(千円単!S14/1000,0)) -> 349 | T14: =IF(千円単!T14="","",ROUND(千円単!T14/1000,0)) -> 11 | U14: =IF(千円単!U14="","",ROUND(千円単!U14/1000,0)) -> 1587 | V14: =IF(千円単!V14="","",ROUND(千円単!V14/1000,0)) -> 694 | W14: =IF(千円単!W14="","",ROUND(千円単!W14/1000,0)) -> 891 | X14: =IF(千円単!X14="","",ROUND(千円単!X14/1000,0)) -> -1019 | Y14: =IF(千円単!Y14="","",ROUND(千円単!Y14/1000,0)) -> 72
A15: 2022 | B15: 46 | C15: 17 | D15: 1 | E15: 14 | F15: 公共 | G15: 012181 | H15: 北海道 | I15: 赤平市 | J15: =IF(千円単!J15="","",ROUND(千円単!J15/1000,0)) -> 612 | K15: =IF(千円単!K15="","",ROUND(千円単!K15/1000,0)) -> 152 | L15: =IF(千円単!L15="","",ROUND(千円単!L15/1000,0)) -> 309 | M15: =IF(千円単!M15="","",ROUND(千円単!M15/1000,0)) -> 458 | N15: =IF(千円単!N15="","",ROUND(千円単!N15/1000,0)) -> 28 | O15: =IF(千円単!O15="","",ROUND(千円単!O15/1000,0)) -> 264 | P15: =IF(千円単!P15="","",ROUND(千円単!P15/1000,0)) -> 26 | Q15: =IF(千円単!Q15="","",ROUND(千円単!Q15/1000,0)) -> 154 | R15: =IF(千円単!R15="","",ROUND(千円単!R15/1000,0)) -> 92 | S15: =IF(千円単!S15="","",ROUND(千円単!S15/1000,0)) -> 63 | T15: =IF(千円単!T15="","",ROUND(千円単!T15/1000,0)) -> 14 | U15: =IF(千円単!U15="","",ROUND(千円単!U15/1000,0)) -> 348 | V15: =IF(千円単!V15="","",ROUND(千円単!V15/1000,0)) -> 46 | W15: =IF(千円単!W15="","",ROUND(千円単!W15/1000,0)) -> 302 | X15: =IF(千円単!X15="","",ROUND(千円単!X15/1000,0)) -> -256 | Y15: =IF(千円単!Y15="","",ROUND(千円単!Y15/1000,0)) -> 154
A16: 2022 | B16: 46 | C16: 17 | D16: 1 | E16: 15 | F16: 公共 | G16: 012190 | H16: 北海道 | I16: 紋別市 | J16: =IF(千円単!J16="","",ROUND(千円単!J16/1000,0)) -> 1218 | K16: =IF(千円単!K16="","",ROUND(千円単!K16/1000,0)) -> 407 | L16: =IF(千円単!L16="","",ROUND(千円単!L16/1000,0)) -> 515 | M16: =IF(千円単!M16="","",ROUND(千円単!M16/1000,0)) -> 1037 | N16: =IF(千円単!N16="","",ROUND(千円単!N16/1000,0)) -> 70 | O16: =IF(千円単!O16="","",ROUND(千円単!O16/1000,0)) -> 603 | P16: =IF(千円単!P16="","",ROUND(千円単!P16/1000,0)) -> 45 | Q16: =IF(千円単!Q16="","",ROUND(千円単!Q16/1000,0)) -> 181 | R16: =IF(千円単!R16="","",ROUND(千円単!R16/1000,0)) -> 390 | S16: =IF(千円単!S16="","",ROUND(千円単!S16/1000,0)) -> 312 | T16: =IF(千円単!T16="","",ROUND(千円単!T16/1000,0)) -> 29 | U16: =IF(千円単!U16="","",ROUND(千円単!U16/1000,0)) -> 952 | V16: =IF(千円単!V16="","",ROUND(千円単!V16/1000,0)) -> 242 | W16: =IF(千円単!W16="","",ROUND(千円単!W16/1000,0)) -> 710 | X16: =IF(千円単!X16="","",ROUND(千円単!X16/1000,0)) -> -562 | Y16: =IF(千円単!Y16="","",ROUND(千円単!Y16/1000,0)) -> 181
A17: 2022 | B17: 46 | C17: 17 | D17: 1 | E17: 16 | F17: 公共 | G17: 012211 | H17: 北海道 | I17: 名寄市 | J17: =IF(千円単!J17="","",ROUND(千円単!J17/1000,0)) -> 1097 | K17: =IF(千円単!K17="","",ROUND(千円単!K17/1000,0)) -> 319 | L17: =IF(千円単!L17="","",ROUND(千円単!L17/1000,0)) -> 413 | M17: =IF(千円単!M17="","",ROUND(千円単!M17/1000,0)) -> 1068 | N17: =IF(千円単!N17="","",ROUND(千円単!N17/1000,0)) -> 51 | O17: =IF(千円単!O17="","",ROUND(千円単!O17/1000,0)) -> 721 | P17: =IF(千円単!P17="","",ROUND(千円単!P17/1000,0)) -> 108 | Q17: =IF(千円単!Q17="","",ROUND(千円単!Q17/1000,0)) -> 29 | R17: =IF(千円単!R17="","",ROUND(千円単!R17/1000,0)) -> 380 | S17: =IF(千円単!S17="","",ROUND(千円単!S17/1000,0)) -> 189 | T17: =IF(千円単!T17="","",ROUND(千円単!T17/1000,0)) -> 40 | U17: =IF(千円単!U17="","",ROUND(千円単!U17/1000,0)) -> 770 | V17: =IF(千円単!V17="","",ROUND(千円単!V17/1000,0)) -> 377 | W17: =IF(千円単!W17="","",ROUND(千円単!W17/1000,0)) -> 393 | X17: =IF(千円単!X17="","",ROUND(千円単!X17/1000,0)) -> -391 | Y17: =IF(千円単!Y17="","",ROUND(千円単!Y17/1000,0)) -> 29
A18: 2022 | B18: 46 | C18: 17 | D18: 1 | E18: 17 | F18: 公共 | G18: 012220 | H18: 北海道 | I18: 三笠市 | J18: =IF(千円単!J18="","",ROUND(千円単!J18/1000,0)) -> 549 | K18: =IF(千円単!K18="","",ROUND(千円単!K18/1000,0)) -> 186 | L18: =IF(千円単!L18="","",ROUND(千円単!L18/1000,0)) -> 194 | M18: =IF(千円単!M18="","",ROUND(千円単!M18/1000,0)) -> 507 | N18: =IF(千円単!N18="","",ROUND(千円単!N18/1000,0)) -> 31 | O18: =IF(千円単!O18="","",ROUND(千円単!O18/1000,0)) -> 368 | P18: =IF(千円単!P18="","",ROUND(千円単!P18/1000,0)) -> 12 | Q18: =IF(千円単!Q18="","",ROUND(千円単!Q18/1000,0)) -> 43 | R18: =IF(千円単!R18="","",ROUND(千円単!R18/1000,0)) -> 104 | S18: =IF(千円単!S18="","",ROUND(千円単!S18/1000,0)) -> 39 | T18: =IF(千円単!T18="","",ROUND(千円単!T18/1000,0)) -> 0 | U18: =IF(千円単!U18="","",ROUND(千円単!U18/1000,0)) -> 347 | V18: =IF(千円単!V18="","",ROUND(千円単!V18/1000,0)) -> 63 | W18: =IF(千円単!W18="","",ROUND(千円単!W18/1000,0)) -> 284 | X18: =IF(千円単!X18="","",ROUND(千円単!X18/1000,0)) -> -244 | Y18: =IF(千円単!Y18="","",ROUND(千円単!Y18/1000,0)) -> 43
A19: 2022 | B19: 46 | C19: 17 | D19: 1 | E19: 18 | F19: 公共 | G19: 012238 | H19: 北海道 | I19: 根室市 | J19: =IF(千円単!J19="","",ROUND(千円単!J19/1000,0)) -> 766 | K19: =IF(千円単!K19="","",ROUND(千円単!K19/1000,0)) -> 410 | L19: =IF(千円単!L19="","",ROUND(千円単!L19/1000,0)) -> 106 | M19: =IF(千円単!M19="","",ROUND(千円単!M19/1000,0)) -> 841 | N19: =IF(千円単!N19="","",ROUND(千円単!N19/1000,0)) -> 21 | O19: =IF(千円単!O19="","",ROUND(千円単!O19/1000,0)) -> 458 | P19: =IF(千円単!P19="","",ROUND(千円単!P19/1000,0)) -> 35 | Q19: =IF(千円単!Q19="","",ROUND(千円単!Q19/1000,0)) -> -75 | R19: =IF(千円単!R19="","",ROUND(千円単!R19/1000,0)) -> 1176 | S19: =IF(千円単!S19="","",ROUND(千円単!S19/1000,0)) -> 506 | T19: =IF(千円単!T19="","",ROUND(千円単!T19/1000,0)) -> 73 | U19: =IF(千円単!U19="","",ROUND(千円単!U19/1000,0)) -> 1364 | V19: =IF(千円単!V19="","",ROUND(千円単!V19/1000,0)) -> 1167 | W19: =IF(千円単!W19="","",ROUND(千円単!W19/1000,0)) -> 196 | X19: =IF(千円単!X19="","",ROUND(千円単!X19/1000,0)) -> -188 | Y19: =IF(千円単!Y19="","",ROUND(千円単!Y19/1000,0)) -> -75
A20: 2022 | B20: 46 | C20: 17 | D20: 1 | E20: 19 | F20: 公共 | G20: 012246 | H20: 北海道 | I20: 千歳市 | J20: =IF(千円単!J20="","",ROUND(千円単!J20/1000,0)) -> 3296 | K20: =IF(千円単!K20="","",ROUND(千円単!K20/1000,0)) -> 1387 | L20: =IF(千円単!L20="","",ROUND(千円単!L20/1000,0)) -> 816 | M20: =IF(千円単!M20="","",ROUND(千円単!M20/1000,0)) -> 3198 | N20: =IF(千円単!N20="","",ROUND(千円単!N20/1000,0)) -> 131 | O20: =IF(千円単!O20="","",ROUND(千円単!O20/1000,0)) -> 1808 | P20: =IF(千円単!P20="","",ROUND(千円単!P20/1000,0)) -> 130 | Q20: =IF(千円単!Q20="","",ROUND(千円単!Q20/1000,0)) -> 98 | R20: =IF(千円単!R20="","",ROUND(千円単!R20/1000,0)) -> 1040 | S20: =IF(千円単!S20="","",ROUND(千円単!S20/1000,0)) -> 943 | T20: =IF(千円単!T20="","",ROUND(千円単!T20/1000,0)) -> 15 | U20: =IF(千円単!U20="","",ROUND(千円単!U20/1000,0)) -> 1967 | V20: =IF(千円単!V20="","",ROUND(千円単!V20/1000,0)) -> 1283 | W20: =IF(千円単!W20="","",ROUND(千円単!W20/1000,0)) -> 662 | X20: =IF(千円単!X20="","",ROUND(千円単!X20/1000,0)) -> -927 | Y20: =IF(千円単!Y20="","",ROUND(千円単!Y20/1000,0)) -> 98
A21: 2022 | B21: 46 | C21: 17 | D21: 1 | E21: 20 | F21: 公共 | G21: 012254 | H21: 北海道 | I21: 滝川市 | J21: =IF(千円単!J21="","",ROUND(千円単!J21/1000,0)) -> 1227 | K21: =IF(千円単!K21="","",ROUND(千円単!K21/1000,0)) -> 679 | L21: =IF(千円単!L21="","",ROUND(千円単!L21/1000,0)) -> 223 | M21: =IF(千円単!M21="","",ROUND(千円単!M21/1000,0)) -> 1169 | N21: =IF(千円単!N21="","",ROUND(千円単!N21/1000,0)) -> 59 | O21: =IF(千円単!O21="","",ROUND(千円単!O21/1000,0)) -> 825 | P21: =IF(千円単!P21="","",ROUND(千円単!P21/1000,0)) -> 16 | Q21: =IF(千円単!Q21="","",ROUND(千円単!Q21/1000,0)) -> 58 | R21: =IF(千円単!R21="","",ROUND(千円単!R21/1000,0)) -> 530 | S21: =IF(千円単!S21="","",ROUND(千円単!S21/1000,0)) -> 216 | T21: =IF(千円単!T21="","",ROUND(千円単!T21/1000,0)) -> 211 | U21: =IF(千円単!U21="","",ROUND(千円単!U21/1000,0)) -> 981 | V21: =IF(千円単!V21="","",ROUND(千円単!V21/1000,0)) -> 356 | W21: =IF(千円単!W21="","",ROUND(千円単!W21/1000,0)) -> 625 | X21: =IF(千円単!X21="","",ROUND(千円単!X21/1000,0)) -> -451 | Y21: =IF(千円単!Y21="","",ROUND(千円単!Y21/1000,0)) -> 58
A22: 2022 | B22: 46 | C22: 17 | D22: 1 | E22: 21 | F22: 公共 | G22: 012262 | H22: 北海道 | I22: 砂川市 | J22: =IF(千円単!J22="","",ROUND(千円単!J22/1000,0)) -> 712 | K22: =IF(千円単!K22="","",ROUND(千円単!K22/1000,0)) -> 319 | L22: =IF(千円単!L22="","",ROUND(千円単!L22/1000,0)) -> 237 | M22: =IF(千円単!M22="","",ROUND(千円単!M22/1000,0)) -> 487 | N22: =IF(千円単!N22="","",ROUND(千円単!N22/1000,0)) -> 27 | O22: =IF(千円単!O22="","",ROUND(千円単!O22/1000,0)) -> 336 | P22: =IF(千円単!P22="","",ROUND(千円単!P22/1000,0)) -> 19 | Q22: =IF(千円単!Q22="","",ROUND(千円単!Q22/1000,0)) -> 225 | R22: =IF(千円単!R22="","",ROUND(千円単!R22/1000,0)) -> 41 | S22: =IF(千円単!S22="","",ROUND(千円単!S22/1000,0)) -> 27 | T22: =IF(千円単!T22="","",ROUND(千円単!T22/1000,0)) -> 0 | U22: =IF(千円単!U22="","",ROUND(千円単!U22/1000,0)) -> 396 | V22: =IF(千円単!V22="","",ROUND(千円単!V22/1000,0)) -> 29 | W22: =IF(千円単!W22="","",ROUND(千円単!W22/1000,0)) -> 367 | X22: =IF(千円単!X22="","",ROUND(千円単!X22/1000,0)) -> -355 | Y22: =IF(千円単!Y22="","",ROUND(千円単!Y22/1000,0)) -> 225
A23: 2022 | B23: 46 | C23: 17 | D23: 1 | E23: 22 | F23: 公共 | G23: 012297 | H23: 北海道 | I23: 富良野市 | J23: =IF(千円単!J23="","",ROUND(千円単!J23/1000,0)) -> 656 | K23: =IF(千円単!K23="","",ROUND(千円単!K23/1000,0)) -> 248 | L23: =IF(千円単!L23="","",ROUND(千円単!L23/1000,0)) -> 218 | M23: =IF(千円単!M23="","",ROUND(千円単!M23/1000,0)) -> 622 | N23: =IF(千円単!N23="","",ROUND(千円単!N23/1000,0)) -> 21 | O23: =IF(千円単!O23="","",ROUND(千円単!O23/1000,0)) -> 342 | P23: =IF(千円単!P23="","",ROUND(千円単!P23/1000,0)) -> 43 | Q23: =IF(千円単!Q23="","",ROUND(千円単!Q23/1000,0)) -> 34 | R23: =IF(千円単!R23="","",ROUND(千円単!R23/1000,0)) -> 115 | S23: =IF(千円単!S23="","",ROUND(千円単!S23/1000,0)) -> 86 | T23: =IF(千円単!T23="","",ROUND(千円単!T23/1000,0)) -> 0 | U23: =IF(千円単!U23="","",ROUND(千円単!U23/1000,0)) -> 321 | V23: =IF(千円単!V23="","",ROUND(千円単!V23/1000,0)) -> 21 | W23: =IF(千円単!W23="","",ROUND(千円単!W23/1000,0)) -> 300 | X23: =IF(千円単!X23="","",ROUND(千円単!X23/1000,0)) -> -206 | Y23: =IF(千円単!Y23="","",ROUND(千円単!Y23/1000,0)) -> 34
A24: 2022 | B24: 46 | C24: 17 | D24: 1 | E24: 23 | F24: 公共 | G24: 012301 | H24: 北海道 | I24: 登別市 | J24: =IF(千円単!J24="","",ROUND(千円単!J24/1000,0)) -> 1649 | K24: =IF(千円単!K24="","",ROUND(千円単!K24/1000,0)) -> 648 | L24: =IF(千円単!L24="","",ROUND(千円単!L24/1000,0)) -> 581 | M24: =IF(千円単!M24="","",ROUND(千円単!M24/1000,0)) -> 1565 | N24: =IF(千円単!N24="","",ROUND(千円単!N24/1000,0)) -> 218 | O24: =IF(千円単!O24="","",ROUND(千円単!O24/1000,0)) -> 938 | P24: =IF(千円単!P24="","",ROUND(千円単!P24/1000,0)) -> 50 | Q24: =IF(千円単!Q24="","",ROUND(千円単!Q24/1000,0)) -> 85 | R24: =IF(千円単!R24="","",ROUND(千円単!R24/1000,0)) -> 709 | S24: =IF(千円単!S24="","",ROUND(千円単!S24/1000,0)) -> 494 | T24: =IF(千円単!T24="","",ROUND(千円単!T24/1000,0)) -> 151 | U24: =IF(千円単!U24="","",ROUND(千円単!U24/1000,0)) -> 1462 | V24: =IF(千円単!V24="","",ROUND(千円単!V24/1000,0)) -> 222 | W24: =IF(千円単!W24="","",ROUND(千円単!W24/1000,0)) -> 1240 | X24: =IF(千円単!X24="","",ROUND(千円単!X24/1000,0)) -> -753 | Y24: =IF(千円単!Y24="","",ROUND(千円単!Y24/1000,0)) -> 85
A25: 2022 | B25: 46 | C25: 17 | D25: 1 | E25: 24 | F25: 公共 | G25: 012319 | H25: 北海道 | I25: 恵庭市 | J25: =IF(千円単!J25="","",ROUND(千円単!J25/1000,0)) -> 2623 | K25: =IF(千円単!K25="","",ROUND(千円単!K25/1000,0)) -> 1005 | L25: =IF(千円単!L25="","",ROUND(千円単!L25/1000,0)) -> 612 | M25: =IF(千円単!M25="","",ROUND(千円単!M25/1000,0)) -> 2484 | N25: =IF(千円単!N25="","",ROUND(千円単!N25/1000,0)) -> 133 | O25: =IF(千円単!O25="","",ROUND(千円単!O25/1000,0)) -> 1536 | P25: =IF(千円単!P25="","",ROUND(千円単!P25/1000,0)) -> 58 | Q25: =IF(千円単!Q25="","",ROUND(千円単!Q25/1000,0)) -> 139 | R25: =IF(千円単!R25="","",ROUND(千円単!R25/1000,0)) -> 1072 | S25: =IF(千円単!S25="","",ROUND(千円単!S25/1000,0)) -> 659 | T25: =IF(千円単!T25="","",ROUND(千円単!T25/1000,0)) -> 105 | U25: =IF(千円単!U25="","",ROUND(千円単!U25/1000,0)) -> 1883 | V25: =IF(千円単!V25="","",ROUND(千円単!V25/1000,0)) -> 964 | W25: =IF(千円単!W25="","",ROUND(千円単!W25/1000,0)) -> 919 | X25: =IF(千円単!X25="","",ROUND(千円単!X25/1000,0)) -> -811 | Y25: =IF(千円単!Y25="","",ROUND(千円単!Y25/1000,0)) -> 139
A26: 2022 | B26: 46 | C26: 17 | D26: 1 | E26: 25 | F26: 公共 | G26: 012335 | H26: 北海道 | I26: 伊達市 | J26: =IF(千円単!J26="","",ROUND(千円単!J26/1000,0)) -> 953 | K26: =IF(千円単!K26="","",ROUND(千円単!K26/1000,0)) -> 577 | L26: =IF(千円単!L26="","",ROUND(千円単!L26/1000,0)) -> 75 | M26: =IF(千円単!M26="","",ROUND(千円単!M26/1000,0)) -> 953 | N26: =IF(千円単!N26="","",ROUND(千円単!N26/1000,0)) -> 59 | O26: =IF(千円単!O26="","",ROUND(千円単!O26/1000,0)) -> 557 | P26: =IF(千円単!P26="","",ROUND(千円単!P26/1000,0)) -> 52 | Q26: =IF(千円単!Q26="","",ROUND(千円単!Q26/1000,0)) -> 0 | R26: =IF(千円単!R26="","",ROUND(千円単!R26/1000,0)) -> 384 | S26: =IF(千円単!S26="","",ROUND(千円単!S26/1000,0)) -> 108 | T26: =IF(千円単!T26="","",ROUND(千円単!T26/1000,0)) -> 0 | U26: =IF(千円単!U26="","",ROUND(千円単!U26/1000,0)) -> 719 | V26: =IF(千円単!V26="","",ROUND(千円単!V26/1000,0)) -> 168 | W26: =IF(千円単!W26="","",ROUND(千円単!W26/1000,0)) -> 551 | X26: =IF(千円単!X26="","",ROUND(千円単!X26/1000,0)) -> -335 | Y26: =IF(千円単!Y26="","",ROUND(千円単!Y26/1000,0)) -> 0
A27: 2022 | B27: 46 | C27: 17 | D27: 1 | E27: 26 | F27: 公共 | G27: 012343 | H27: 北海道 | I27: 北広島市 | J27: =IF(千円単!J27="","",ROUND(千円単!J27/1000,0)) -> 2147 | K27: =IF(千円単!K27="","",ROUND(千円単!K27/1000,0)) -> 723 | L27: =IF(千円単!L27="","",ROUND(千円単!L27/1000,0)) -> 509 | M27: =IF(千円単!M27="","",ROUND(千円単!M27/1000,0)) -> 2008 | N27: =IF(千円単!N27="","",ROUND(千円単!N27/1000,0)) -> 83 | O27: =IF(千円単!O27="","",ROUND(千円単!O27/1000,0)) -> 1210 | P27: =IF(千円単!P27="","",ROUND(千円単!P27/1000,0)) -> 60 | Q27: =IF(千円単!Q27="","",ROUND(千円単!Q27/1000,0)) -> 139 | R27: =IF(千円単!R27="","",ROUND(千円単!R27/1000,0)) -> 772 | S27: =IF(千円単!S27="","",ROUND(千円単!S27/1000,0)) -> 505 | T27: =IF(千円単!T27="","",ROUND(千円単!T27/1000,0)) -> 0 | U27: =IF(千円単!U27="","",ROUND(千円単!U27/1000,0)) -> 1474 | V27: =IF(千円単!V27="","",ROUND(千円単!V27/1000,0)) -> 867 | W27: =IF(千円単!W27="","",ROUND(千円単!W27/1000,0)) -> 602 | X27: =IF(千円単!X27="","",ROUND(千円単!X27/1000,0)) -> -702 | Y27: =IF(千円単!Y27="","",ROUND(千円単!Y27/1000,0)) -> 139
A28: 2022 | B28: 46 | C28: 17 | D28: 1 | E28: 27 | F28: 公共 | G28: 012351 | H28: 北海道 | I28: 石狩市 | J28: =IF(千円単!J28="","",ROUND(千円単!J28/1000,0)) -> 1277 | K28: =IF(千円単!K28="","",ROUND(千円単!K28/1000,0)) -> 598 | L28: =IF(千円単!L28="","",ROUND(千円単!L28/1000,0)) -> 365 | M28: =IF(千円単!M28="","",ROUND(千円単!M28/1000,0)) -> 1252 | N28: =IF(千円単!N28="","",ROUND(千円単!N28/1000,0)) -> 99 | O28: =IF(千円単!O28="","",ROUND(千円単!O28/1000,0)) -> 798 | P28: =IF(千円単!P28="","",ROUND(千円単!P28/1000,0)) -> 65 | Q28: =IF(千円単!Q28="","",ROUND(千円単!Q28/1000,0)) -> 25 | R28: =IF(千円単!R28="","",ROUND(千円単!R28/1000,0)) -> 605 | S28: =IF(千円単!S28="","",ROUND(千円単!S28/1000,0)) -> 314 | T28: =IF(千円単!T28="","",ROUND(千円単!T28/1000,0)) -> 93 | U28: =IF(千円単!U28="","",ROUND(千円単!U28/1000,0)) -> 1131 | V28: =IF(千円単!V28="","",ROUND(千円単!V28/1000,0)) -> 441 | W28: =IF(千円単!W28="","",ROUND(千円単!W28/1000,0)) -> 690 | X28: =IF(千円単!X28="","",ROUND(千円単!X28/1000,0)) -> -525 | Y28: =IF(千円単!Y28="","",ROUND(千円単!Y28/1000,0)) -> 25
A29: 2022 | B29: 46 | C29: 17 | D29: 1 | E29: 28 | F29: 公共 | G29: 012360 | H29: 北海道 | I29: 北斗市 | J29: =IF(千円単!J29="","",ROUND(千円単!J29/1000,0)) -> 962 | K29: =IF(千円単!K29="","",ROUND(千円単!K29/1000,0)) -> 567 | L29: =IF(千円単!L29="","",ROUND(千円単!L29/1000,0)) -> 97 | M29: =IF(千円単!M29="","",ROUND(千円単!M29/1000,0)) -> 908 | N29: =IF(千円単!N29="","",ROUND(千円単!N29/1000,0)) -> 73 | O29: =IF(千円単!O29="","",ROUND(千円単!O29/1000,0)) -> 568 | P29: =IF(千円単!P29="","",ROUND(千円単!P29/1000,0)) -> 31 | Q29: =IF(千円単!Q29="","",ROUND(千円単!Q29/1000,0)) -> 54 | R29: =IF(千円単!R29="","",ROUND(千円単!R29/1000,0)) -> 368 | S29: =IF(千円単!S29="","",ROUND(千円単!S29/1000,0)) -> 71 | T29: =IF(千円単!T29="","",ROUND(千円単!T29/1000,0)) -> 0 | U29: =IF(千円単!U29="","",ROUND(千円単!U29/1000,0)) -> 685 | V29: =IF(千円単!V29="","",ROUND(千円単!V29/1000,0)) -> 213 | W29: =IF(千円単!W29="","",ROUND(千円単!W29/1000,0)) -> 471 | X29: =IF(千円単!X29="","",ROUND(千円単!X29/1000,0)) -> -316 | Y29: =IF(千円単!Y29="","",ROUND(千円単!Y29/1000,0)) -> 54
A30: 2022 | B30: 46 | C30: 17 | D30: 1 | E30: 29 | F30: 公共 | G30: 013374 | H30: 北海道 | I30: 七飯町 | J30: =IF(千円単!J30="","",ROUND(千円単!J30/1000,0)) -> 476 | K30: =IF(千円単!K30="","",ROUND(千円単!K30/1000,0)) -> 357 | L30: =IF(千円単!L30="","",ROUND(千円単!L30/1000,0)) -> 5 | M30: =IF(千円単!M30="","",ROUND(千円単!M30/1000,0)) -> 476 | N30: =IF(千円単!N30="","",ROUND(千円単!N30/1000,0)) -> 36 | O30: =IF(千円単!O30="","",ROUND(千円単!O30/1000,0)) -> 268 | P30: =IF(千円単!P30="","",ROUND(千円単!P30/1000,0)) -> 21 | Q30: =IF(千円単!Q30="","",ROUND(千円単!Q30/1000,0)) -> 0 | R30: =IF(千円単!R30="","",ROUND(千円単!R30/1000,0)) -> 168 | S30: =IF(千円単!S30="","",ROUND(千円単!S30/1000,0)) -> 31 | T30: =IF(千円単!T30="","",ROUND(千円単!T30/1000,0)) -> 0 | U30: =IF(千円単!U30="","",ROUND(千円単!U30/1000,0)) -> 321 | V30: =IF(千円単!V30="","",ROUND(千円単!V30/1000,0)) -> 16 | W30: =IF(千円単!W30="","",ROUND(千円単!W30/1000,0)) -> 305 | X30: =IF(千円単!X30="","",ROUND(千円単!X30/1000,0)) -> -153 | Y30: =IF(千円単!Y30="","",ROUND(千円単!Y30/1000,0)) -> 0
A31: 2022 | B31: 46 | C31: 17 | D31: 1 | E31: 30 | F31: 公共 | G31: 013455 | H31: 北海道 | I31: 森町 | J31: =IF(千円単!J31="","",ROUND(千円単!J31/1000,0)) -> 422 | K31: =IF(千円単!K31="","",ROUND(千円単!K31/1000,0)) -> 89 | L31: =IF(千円単!L31="","",ROUND(千円単!L31/1000,0)) -> 203 | M31: =IF(千円単!M31="","",ROUND(千円単!M31/1000,0)) -> 417 | N31: =IF(千円単!N31="","",ROUND(千円単!N31/1000,0)) -> 51 | O31: =IF(千円単!O31="","",ROUND(千円単!O31/1000,0)) -> 250 | P31: =IF(千円単!P31="","",ROUND(千円単!P31/1000,0)) -> 7 | Q31: =IF(千円単!Q31="","",ROUND(千円単!Q31/1000,0)) -> 5 | R31: =IF(千円単!R31="","",ROUND(千円単!R31/1000,0)) -> 139 | S31: =IF(千円単!S31="","",ROUND(千円単!S31/1000,0)) -> 5 | T31: =IF(千円単!T31="","",ROUND(千円単!T31/1000,0)) -> 0 | U31: =IF(千円単!U31="","",ROUND(千円単!U31/1000,0)) -> 261 | V31: =IF(千円単!V31="","",ROUND(千円単!V31/1000,0)) -> 22 | W31: =IF(千円単!W31="","",ROUND(千円単!W31/1000,0)) -> 238 | X31: =IF(千円単!X31="","",ROUND(千円単!X31/1000,0)) -> -122 | Y31: =IF(千円単!Y31="","",ROUND(千円単!Y31/1000,0)) -> 5
A32: 2022 | B32: 46 | C32: 17 | D32: 1 | E32: 31 | F32: 公共 | G32: 014028 | H32: 北海道 | I32: 岩内町 | J32: =IF(千円単!J32="","",ROUND(千円単!J32/1000,0)) -> 604 | K32: =IF(千円単!K32="","",ROUND(千円単!K32/1000,0)) -> 69 | L32: =IF(千円単!L32="","",ROUND(千円単!L32/1000,0)) -> 223 | M32: =IF(千円単!M32="","",ROUND(千円単!M32/1000,0)) -> 604 | N32: =IF(千円単!N32="","",ROUND(千円単!N32/1000,0)) -> 46 | O32: =IF(千円単!O32="","",ROUND(千円単!O32/1000,0)) -> 364 | P32: =IF(千円単!P32="","",ROUND(千円単!P32/1000,0)) -> 4 | Q32: =IF(千円単!Q32="","",ROUND(千円単!Q32/1000,0)) -> 0 | R32: =IF(千円単!R32="","",ROUND(千円単!R32/1000,0)) -> 426 | S32: =IF(千円単!S32="","",ROUND(千円単!S32/1000,0)) -> 171 | T32: =IF(千円単!T32="","",ROUND(千円単!T32/1000,0)) -> 0 | U32: =IF(千円単!U32="","",ROUND(千円単!U32/1000,0)) -> 606 | V32: =IF(千円単!V32="","",ROUND(千円単!V32/1000,0)) -> 216 | W32: =IF(千円単!W32="","",ROUND(千円単!W32/1000,0)) -> 390 | X32: =IF(千円単!X32="","",ROUND(千円単!X32/1000,0)) -> -180 | Y32: =IF(千円単!Y32="","",ROUND(千円単!Y32/1000,0)) -> 0
A33: 2022 | B33: 46 | C33: 17 | D33: 1 | E33: 32 | F33: 公共 | G33: 014290 | H33: 北海道 | I33: 栗山町 | J33: =IF(千円単!J33="","",ROUND(千円単!J33/1000,0)) -> 518 | K33: =IF(千円単!K33="","",ROUND(千円単!K33/1000,0)) -> 171 | L33: =IF(千円単!L33="","",ROUND(千円単!L33/1000,0)) -> 210 | M33: =IF(千円単!M33="","",ROUND(千円単!M33/1000,0)) -> 412 | N33: =IF(千円単!N33="","",ROUND(千円単!N33/1000,0)) -> 13 | O33: =IF(千円単!O33="","",ROUND(千円単!O33/1000,0)) -> 268 | P33: =IF(千円単!P33="","",ROUND(千円単!P33/1000,0)) -> 9 | Q33: =IF(千円単!Q33="","",ROUND(千円単!Q33/1000,0)) -> 106 | R33: =IF(千円単!R33="","",ROUND(千円単!R33/1000,0)) -> 126 | S33: =IF(千円単!S33="","",ROUND(千円単!S33/1000,0)) -> 49 | T33: =IF(千円単!T33="","",ROUND(千円単!T33/1000,0)) -> 30 | U33: =IF(千円単!U33="","",ROUND(千円単!U33/1000,0)) -> 394 | V33: =IF(千円単!V33="","",ROUND(千円単!V33/1000,0)) -> 99 | W33: =IF(千円単!W33="","",ROUND(千円単!W33/1000,0)) -> 296 | X33: =IF(千円単!X33="","",ROUND(千円単!X33/1000,0)) -> -268 | Y33: =IF(千円単!Y33="","",ROUND(千円単!Y33/1000,0)) -> 106
A34: 2022 | B34: 46 | C34: 17 | D34: 1 | E34: 33 | F34: 公共 | G34: 014524 | H34: 北海道 | I34: 鷹栖町 | J34: =IF(千円単!J34="","",ROUND(千円単!J34/1000,0)) -> 207 | K34: =IF(千円単!K34="","",ROUND(千円単!K34/1000,0)) -> 63 | L34: =IF(千円単!L34="","",ROUND(千円単!L34/1000,0)) -> 55 | M34: =IF(千円単!M34="","",ROUND(千円単!M34/1000,0)) -> 184 | N34: =IF(千円単!N34="","",ROUND(千円単!N34/1000,0)) -> 7 | O34: =IF(千円単!O34="","",ROUND(千円単!O34/1000,0)) -> 105 | P34: =IF(千円単!P34="","",ROUND(千円単!P34/1000,0)) -> 0 | Q34: =IF(千円単!Q34="","",ROUND(千円単!Q34/1000,0)) -> 23 | R34: =IF(千円単!R34="","",ROUND(千円単!R34/1000,0)) -> 64 | S34: =IF(千円単!S34="","",ROUND(千円単!S34/1000,0)) -> 0 | T34: =IF(千円単!T34="","",ROUND(千円単!T34/1000,0)) -> 17 | U34: =IF(千円単!U34="","",ROUND(千円単!U34/1000,0)) -> 98 | V34: =IF(千円単!V34="","",ROUND(千円単!V34/1000,0)) -> 35 | W34: =IF(千円単!W34="","",ROUND(千円単!W34/1000,0)) -> 63 | X34: =IF(千円単!X34="","",ROUND(千円単!X34/1000,0)) -> -34 | Y34: =IF(千円単!Y34="","",ROUND(千円単!Y34/1000,0)) -> 23
A35: 2022 | B35: 46 | C35: 17 | D35: 1 | E35: 34 | F35: 公共 | G35: 014532 | H35: 北海道 | I35: 東神楽町 | J35: =IF(千円単!J35="","",ROUND(千円単!J35/1000,0)) -> 303 | K35: =IF(千円単!K35="","",ROUND(千円単!K35/1000,0)) -> 105 | L35: =IF(千円単!L35="","",ROUND(千円単!L35/1000,0)) -> 72 | M35: =IF(千円単!M35="","",ROUND(千円単!M35/1000,0)) -> 251 | N35: =IF(千円単!N35="","",ROUND(千円単!N35/1000,0)) -> 9 | O35: =IF(千円単!O35="","",ROUND(千円単!O35/1000,0)) -> 133 | P35: =IF(千円単!P35="","",ROUND(千円単!P35/1000,0)) -> 16 | Q35: =IF(千円単!Q35="","",ROUND(千円単!Q35/1000,0)) -> 51 | R35: =IF(千円単!R35="","",ROUND(千円単!R35/1000,0)) -> 77 | S35: =IF(千円単!S35="","",ROUND(千円単!S35/1000,0)) -> 32 | T35: =IF(千円単!T35="","",ROUND(千円単!T35/1000,0)) -> 36 | U35: =IF(千円単!U35="","",ROUND(千円単!U35/1000,0)) -> 155 | V35: =IF(千円単!V35="","",ROUND(千円単!V35/1000,0)) -> 46 | W35: =IF(千円単!W35="","",ROUND(千円単!W35/1000,0)) -> 108 | X35: =IF(千円単!X35="","",ROUND(千円単!X35/1000,0)) -> -78 | Y35: =IF(千円単!Y35="","",ROUND(千円単!Y35/1000,0)) -> 51
A36: 2022 | B36: 46 | C36: 17 | D36: 1 | E36: 35 | F36: 公共 | G36: 014818 | H36: 北海道 | I36: 増毛町 | J36: =IF(千円単!J36="","",ROUND(千円単!J36/1000,0)) -> 136 | K36: =IF(千円単!K36="","",ROUND(千円単!K36/1000,0)) -> 32 | L36: =IF(千円単!L36="","",ROUND(千円単!L36/1000,0)) -> 50 | M36: =IF(千円単!M36="","",ROUND(千円単!M36/1000,0)) -> 133 | N36: =IF(千円単!N36="","",ROUND(千円単!N36/1000,0)) -> 9 | O36: =IF(千円単!O36="","",ROUND(千円単!O36/1000,0)) -> 90 | P36: =IF(千円単!P36="","",ROUND(千円単!P36/1000,0)) -> 9 | Q36: =IF(千円単!Q36="","",ROUND(千円単!Q36/1000,0)) -> 2 | R36: =IF(千円単!R36="","",ROUND(千円単!R36/1000,0)) -> 103 | S36: =IF(千円単!S36="","",ROUND(千円単!S36/1000,0)) -> 46 | T36: =IF(千円単!T36="","",ROUND(千円単!T36/1000,0)) -> 12 | U36: =IF(千円単!U36="","",ROUND(千円単!U36/1000,0)) -> 147 | V36: =IF(千円単!V36="","",ROUND(千円単!V36/1000,0)) -> 31 | W36: =IF(千円単!W36="","",ROUND(千円単!W36/1000,0)) -> 116 | X36: =IF(千円単!X36="","",ROUND(千円単!X36/1000,0)) -> -44 | Y36: =IF(千円単!Y36="","",ROUND(千円単!Y36/1000,0)) -> 2
A37: 2022 | B37: 46 | C37: 17 | D37: 1 | E37: 36 | F37: 公共 | G37: 015148 | H37: 北海道 | I37: 枝幸町 | J37: =IF(千円単!J37="","",ROUND(千円単!J37/1000,0)) -> 258 | K37: =IF(千円単!K37="","",ROUND(千円単!K37/1000,0)) -> 63 | L37: =IF(千円単!L37="","",ROUND(千円単!L37/1000,0)) -> 120 | M37: =IF(千円単!M37="","",ROUND(千円単!M37/1000,0)) -> 253 | N37: =IF(千円単!N37="","",ROUND(千円単!N37/1000,0)) -> 7 | O37: =IF(千円単!O37="","",ROUND(千円単!O37/1000,0)) -> 163 | P37: =IF(千円単!P37="","",ROUND(千円単!P37/1000,0)) -> 8 | Q37: =IF(千円単!Q37="","",ROUND(千円単!Q37/1000,0)) -> 5 | R37: =IF(千円単!R37="","",ROUND(千円単!R37/1000,0)) -> 27 | S37: =IF(千円単!S37="","",ROUND(千円単!S37/1000,0)) -> 5 | T37: =IF(千円単!T37="","",ROUND(千円単!T37/1000,0)) -> 16 | U37: =IF(千円単!U37="","",ROUND(千円単!U37/1000,0)) -> 111 | V37: =IF(千円単!V37="","",ROUND(千円単!V37/1000,0)) -> 19 | W37: =IF(千円単!W37="","",ROUND(千円単!W37/1000,0)) -> 92 | X37: =IF(千円単!X37="","",ROUND(千円単!X37/1000,0)) -> -84 | Y37: =IF(千円単!Y37="","",ROUND(千円単!Y37/1000,0)) -> 5
A38: 2022 | B38: 46 | C38: 17 | D38: 1 | E38: 37 | F38: 公共 | G38: 015555 | H38: 北海道 | I38: 遠軽町 | J38: =IF(千円単!J38="","",ROUND(千円単!J38/1000,0)) -> 767 | K38: =IF(千円単!K38="","",ROUND(千円単!K38/1000,0)) -> 229 | L38: =IF(千円単!L38="","",ROUND(千円単!L38/1000,0)) -> 326 | M38: =IF(千円単!M38="","",ROUND(千円単!M38/1000,0)) -> 728 | N38: =IF(千円単!N38="","",ROUND(千円単!N38/1000,0)) -> 41 | O38: =IF(千円単!O38="","",ROUND(千円単!O38/1000,0)) -> 422 | P38: =IF(千円単!P38="","",ROUND(千円単!P38/1000,0)) -> 34 | Q38: =IF(千円単!Q38="","",ROUND(千円単!Q38/1000,0)) -> 39 | R38: =IF(千円単!R38="","",ROUND(千円単!R38/1000,0)) -> 328 | S38: =IF(千円単!S38="","",ROUND(千円単!S38/1000,0)) -> 145 | T38: =IF(千円単!T38="","",ROUND(千円単!T38/1000,0)) -> 43 | U38: =IF(千円単!U38="","",ROUND(千円単!U38/1000,0)) -> 667 | V38: =IF(千円単!V38="","",ROUND(千円単!V38/1000,0)) -> 292 | W38: =IF(千円単!W38="","",ROUND(千円単!W38/1000,0)) -> 375 | X38: =IF(千円単!X38="","",ROUND(千円単!X38/1000,0)) -> -340 | Y38: =IF(千円単!Y38="","",ROUND(千円単!Y38/1000,0)) -> 39
A39: 2022 | B39: 46 | C39: 17 | D39: 1 | E39: 38 | F39: 公共 | G39: 015784 | H39: 北海道 | I39: 白老町 | J39: =IF(千円単!J39="","",ROUND(千円単!J39/1000,0)) -> 1032 | K39: =IF(千円単!K39="","",ROUND(千円単!K39/1000,0)) -> 349 | L39: =IF(千円単!L39="","",ROUND(千円単!L39/1000,0)) -> 334 | M39: =IF(千円単!M39="","",ROUND(千円単!M39/1000,0)) -> 946 | N39: =IF(千円単!N39="","",ROUND(千円単!N39/1000,0)) -> 65 | O39: =IF(千円単!O39="","",ROUND(千円単!O39/1000,0)) -> 590 | P39: =IF(千円単!P39="","",ROUND(千円単!P39/1000,0)) -> 19 | Q39: =IF(千円単!Q39="","",ROUND(千円単!Q39/1000,0)) -> 86 | R39: =IF(千円単!R39="","",ROUND(千円単!R39/1000,0)) -> 372 | S39: =IF(千円単!S39="","",ROUND(千円単!S39/1000,0)) -> 51 | T39: =IF(千円単!T39="","",ROUND(千円単!T39/1000,0)) -> 265 | U39: =IF(千円単!U39="","",ROUND(千円単!U39/1000,0)) -> 691 | V39: =IF(千円単!V39="","",ROUND(千円単!V39/1000,0)) -> 136 | W39: =IF(千円単!W39="","",ROUND(千円単!W39/1000,0)) -> 553 | X39: =IF(千円単!X39="","",ROUND(千円単!X39/1000,0)) -> -319 | Y39: =IF(千円単!Y39="","",ROUND(千円単!Y39/1000,0)) -> 86
A40: 2022 | B40: 46 | C40: 17 | D40: 1 | E40: 39 | F40: 公共 | G40: 015865 | H40: 北海道 | I40: むかわ町 | J40: =IF(千円単!J40="","",ROUND(千円単!J40/1000,0)) -> 193 | K40: =IF(千円単!K40="","",ROUND(千円単!K40/1000,0)) -> 56 | L40: =IF(千円単!L40="","",ROUND(千円単!L40/1000,0)) -> 66 | M40: =IF(千円単!M40="","",ROUND(千円単!M40/1000,0)) -> 191 | N40: =IF(千円単!N40="","",ROUND(千円単!N40/1000,0)) -> 14 | O40: =IF(千円単!O40="","",ROUND(千円単!O40/1000,0)) -> 120 | P40: =IF(千円単!P40="","",ROUND(千円単!P40/1000,0)) -> 9 | Q40: =IF(千円単!Q40="","",ROUND(千円単!Q40/1000,0)) -> 1 | R40: =IF(千円単!R40="","",ROUND(千円単!R40/1000,0)) -> 175 | S40: =IF(千円単!S40="","",ROUND(千円単!S40/1000,0)) -> 98 | T40: =IF(千円単!T40="","",ROUND(千円単!T40/1000,0)) -> 0 | U40: =IF(千円単!U40="","",ROUND(千円単!U40/1000,0)) -> 155 | V40: =IF(千円単!V40="","",ROUND(千円単!V40/1000,0)) -> 0 | W40: =IF(千円単!W40="","",ROUND(千円単!W40/1000,0)) -> 144 | X40: =IF(千円単!X40="","",ROUND(千円単!X40/1000,0)) -> 19 | Y40: =IF(千円単!Y40="","",ROUND(千円単!Y40/1000,0)) -> 1
A41: 2022 | B41: 46 | C41: 17 | D41: 1 | E41: 40 | F41: 公共 | G41: 016101 | H41: 北海道 | I41: 新ひだか町 | J41: =IF(千円単!J41="","",ROUND(千円単!J41/1000,0)) -> 966 | K41: =IF(千円単!K41="","",ROUND(千円単!K41/1000,0)) -> 301 | L41: =IF(千円単!L41="","",ROUND(千円単!L41/1000,0)) -> 354 | M41: =IF(千円単!M41="","",ROUND(千円単!M41/1000,0)) -> 723 | N41: =IF(千円単!N41="","",ROUND(千円単!N41/1000,0)) -> 42 | O41: =IF(千円単!O41="","",ROUND(千円単!O41/1000,0)) -> 421 | P41: =IF(千円単!P41="","",ROUND(千円単!P41/1000,0)) -> 21 | Q41: =IF(千円単!Q41="","",ROUND(千円単!Q41/1000,0)) -> 242 | R41: =IF(千円単!R41="","",ROUND(千円単!R41/1000,0)) -> 82 | S41: =IF(千円単!S41="","",ROUND(千円単!S41/1000,0)) -> 32 | T41: =IF(千円単!T41="","",ROUND(千円単!T41/1000,0)) -> 13 | U41: =IF(千円単!U41="","",ROUND(千円単!U41/1000,0)) -> 497 | V41: =IF(千円単!V41="","",ROUND(千円単!V41/1000,0)) -> 79 | W41: =IF(千円単!W41="","",ROUND(千円単!W41/1000,0)) -> 418 | X41: =IF(千円単!X41="","",ROUND(千円単!X41/1000,0)) -> -415 | Y41: =IF(千円単!Y41="","",ROUND(千円単!Y41/1000,0)) -> 242
A42: 2022 | B42: 46 | C42: 17 | D42: 1 | E42: 41 | F42: 公共 | G42: 016314 | H42: 北海道 | I42: 音更町 | J42: =IF(千円単!J42="","",ROUND(千円単!J42/1000,0)) -> 1083 | K42: =IF(千円単!K42="","",ROUND(千円単!K42/1000,0)) -> 580 | L42: =IF(千円単!L42="","",ROUND(千円単!L42/1000,0)) -> 251 | M42: =IF(千円単!M42="","",ROUND(千円単!M42/1000,0)) -> 905 | N42: =IF(千円単!N42="","",ROUND(千円単!N42/1000,0)) -> 71 | O42: =IF(千円単!O42="","",ROUND(千円単!O42/1000,0)) -> 553 | P42: =IF(千円単!P42="","",ROUND(千円単!P42/1000,0)) -> 7 | Q42: =IF(千円単!Q42="","",ROUND(千円単!Q42/1000,0)) -> 179 | R42: =IF(千円単!R42="","",ROUND(千円単!R42/1000,0)) -> 487 | S42: =IF(千円単!S42="","",ROUND(千円単!S42/1000,0)) -> 262 | T42: =IF(千円単!T42="","",ROUND(千円単!T42/1000,0)) -> 76 | U42: =IF(千円単!U42="","",ROUND(千円単!U42/1000,0)) -> 1006 | V42: =IF(千円単!V42="","",ROUND(千円単!V42/1000,0)) -> 391 | W42: =IF(千円単!W42="","",ROUND(千円単!W42/1000,0)) -> 615 | X42: =IF(千円単!X42="","",ROUND(千円単!X42/1000,0)) -> -519 | Y42: =IF(千円単!Y42="","",ROUND(千円単!Y42/1000,0)) -> 179
A43: 2022 | B43: 46 | C43: 17 | D43: 1 | E43: 42 | F43: 公共 | G43: 016365 | H43: 北海道 | I43: 清水町 | J43: =IF(千円単!J43="","",ROUND(千円単!J43/1000,0)) -> 215 | K43: =IF(千円単!K43="","",ROUND(千円単!K43/1000,0)) -> 86 | L43: =IF(千円単!L43="","",ROUND(千円単!L43/1000,0)) -> 75 | M43: =IF(千円単!M43="","",ROUND(千円単!M43/1000,0)) -> 209 | N43: =IF(千円単!N43="","",ROUND(千円単!N43/1000,0)) -> 2 | O43: =IF(千円単!O43="","",ROUND(千円単!O43/1000,0)) -> 122 | P43: =IF(千円単!P43="","",ROUND(千円単!P43/1000,0)) -> 13 | Q43: =IF(千円単!Q43="","",ROUND(千円単!Q43/1000,0)) -> 6 | R43: =IF(千円単!R43="","",ROUND(千円単!R43/1000,0)) -> 207 | S43: =IF(千円単!S43="","",ROUND(千円単!S43/1000,0)) -> 90 | T43: =IF(千円単!T43="","",ROUND(千円単!T43/1000,0)) -> 1 | U43: =IF(千円単!U43="","",ROUND(千円単!U43/1000,0)) -> 222 | V43: =IF(千円単!V43="","",ROUND(千円単!V43/1000,0)) -> 201 | W43: =IF(千円単!W43="","",ROUND(千円単!W43/1000,0)) -> 21 | X43: =IF(千円単!X43="","",ROUND(千円単!X43/1000,0)) -> -15 | Y43: =IF(千円単!Y43="","",ROUND(千円単!Y43/1000,0)) -> 6
A44: 2022 | B44: 46 | C44: 17 | D44: 1 | E44: 43 | F44: 公共 | G44: 016373 | H44: 北海道 | I44: 芽室町 | J44: =IF(千円単!J44="","",ROUND(千円単!J44/1000,0)) -> 598 | K44: =IF(千円単!K44="","",ROUND(千円単!K44/1000,0)) -> 386 | L44: =IF(千円単!L44="","",ROUND(千円単!L44/1000,0)) -> 70 | M44: =IF(千円単!M44="","",ROUND(千円単!M44/1000,0)) -> 611 | N44: =IF(千円単!N44="","",ROUND(千円単!N44/1000,0)) -> 18 | O44: =IF(千円単!O44="","",ROUND(千円単!O44/1000,0)) -> 364 | P44: =IF(千円単!P44="","",ROUND(千円単!P44/1000,0)) -> 21 | Q44: =IF(千円単!Q44="","",ROUND(千円単!Q44/1000,0)) -> -13 | R44: =IF(千円単!R44="","",ROUND(千円単!R44/1000,0)) -> 203 | S44: =IF(千円単!S44="","",ROUND(千円単!S44/1000,0)) -> 112 | T44: =IF(千円単!T44="","",ROUND(千円単!T44/1000,0)) -> 0 | U44: =IF(千円単!U44="","",ROUND(千円単!U44/1000,0)) -> 300 | V44: =IF(千円単!V44="","",ROUND(千円単!V44/1000,0)) -> 138 | W44: =IF(千円単!W44="","",ROUND(千円単!W44/1000,0)) -> 162 | X44: =IF(千円単!X44="","",ROUND(千円単!X44/1000,0)) -> -97 | Y44: =IF(千円単!Y44="","",ROUND(千円単!Y44/1000,0)) -> -13
A45: 2022 | B45: 46 | C45: 17 | D45: 1 | E45: 44 | F45: 公共 | G45: 016411 | H45: 北海道 | I45: 大樹町 | J45: =IF(千円単!J45="","",ROUND(千円単!J45/1000,0)) -> 284 | K45: =IF(千円単!K45="","",ROUND(千円単!K45/1000,0)) -> 58 | L45: =IF(千円単!L45="","",ROUND(千円単!L45/1000,0)) -> 154 | M45: =IF(千円単!M45="","",ROUND(千円単!M45/1000,0)) -> 258 | N45: =IF(千円単!N45="","",ROUND(千円単!N45/1000,0)) -> 12 | O45: =IF(千円単!O45="","",ROUND(千円単!O45/1000,0)) -> 152 | P45: =IF(千円単!P45="","",ROUND(千円単!P45/1000,0)) -> 6 | Q45: =IF(千円単!Q45="","",ROUND(千円単!Q45/1000,0)) -> 26 | R45: =IF(千円単!R45="","",ROUND(千円単!R45/1000,0)) -> 17 | S45: =IF(千円単!S45="","",ROUND(千円単!S45/1000,0)) -> 5 | T45: =IF(千円単!T45="","",ROUND(千円単!T45/1000,0)) -> 1 | U45: =IF(千円単!U45="","",ROUND(千円単!U45/1000,0)) -> 124 | V45: =IF(千円単!V45="","",ROUND(千円単!V45/1000,0)) -> 32 | W45: =IF(千円単!W45="","",ROUND(千円単!W45/1000,0)) -> 91 | X45: =IF(千円単!X45="","",ROUND(千円単!X45/1000,0)) -> -106 | Y45: =IF(千円単!Y45="","",ROUND(千円単!Y45/1000,0)) -> 26
A46: 2022 | B46: 46 | C46: 17 | D46: 1 | E46: 45 | F46: 公共 | G46: 016446 | H46: 北海道 | I46: 池田町 | J46: =IF(千円単!J46="","",ROUND(千円単!J46/1000,0)) -> 339 | K46: =IF(千円単!K46="","",ROUND(千円単!K46/1000,0)) -> 94 | L46: =IF(千円単!L46="","",ROUND(千円単!L46/1000,0)) -> 121 | M46: =IF(千円単!M46="","",ROUND(千円単!M46/1000,0)) -> 313 | N46: =IF(千円単!N46="","",ROUND(千円単!N46/1000,0)) -> 10 | O46: =IF(千円単!O46="","",ROUND(千円単!O46/1000,0)) -> 200 | P46: =IF(千円単!P46="","",ROUND(千円単!P46/1000,0)) -> 29 | Q46: =IF(千円単!Q46="","",ROUND(千円単!Q46/1000,0)) -> 26 | R46: =IF(千円単!R46="","",ROUND(千円単!R46/1000,0)) -> 70 | S46: =IF(千円単!S46="","",ROUND(千円単!S46/1000,0)) -> 12 | T46: =IF(千円単!T46="","",ROUND(千円単!T46/1000,0)) -> 1 | U46: =IF(千円単!U46="","",ROUND(千円単!U46/1000,0)) -> 178 | V46: =IF(千円単!V46="","",ROUND(千円単!V46/1000,0)) -> 27 | W46: =IF(千円単!W46="","",ROUND(千円単!W46/1000,0)) -> 151 | X46: =IF(千円単!X46="","",ROUND(千円単!X46/1000,0)) -> -108 | Y46: =IF(千円単!Y46="","",ROUND(千円単!Y46/1000,0)) -> 26
A47: 2022 | B47: 46 | C47: 17 | D47: 1 | E47: 46 | F47: 公共 | G47: 022012 | H47: 青森県 | I47: 青森市 | J47: =IF(千円単!J47="","",ROUND(千円単!J47/1000,0)) -> 8071 | K47: =IF(千円単!K47="","",ROUND(千円単!K47/1000,0)) -> 3899 | L47: =IF(千円単!L47="","",ROUND(千円単!L47/1000,0)) -> 1328 | M47: =IF(千円単!M47="","",ROUND(千円単!M47/1000,0)) -> 7497 | N47: =IF(千円単!N47="","",ROUND(千円単!N47/1000,0)) -> 724 | O47: =IF(千円単!O47="","",ROUND(千円単!O47/1000,0)) -> 4828 | P47: =IF(千円単!P47="","",ROUND(千円単!P47/1000,0)) -> 475 | Q47: =IF(千円単!Q47="","",ROUND(千円単!Q47/1000,0)) -> 574 | R47: =IF(千円単!R47="","",ROUND(千円単!R47/1000,0)) -> 4915 | S47: =IF(千円単!S47="","",ROUND(千円単!S47/1000,0)) -> 3613 | T47: =IF(千円単!T47="","",ROUND(千円単!T47/1000,0)) -> 945 | U47: =IF(千円単!U47="","",ROUND(千円単!U47/1000,0)) -> 8247 | V47: =IF(千円単!V47="","",ROUND(千円単!V47/1000,0)) -> 1014 | W47: =IF(千円単!W47="","",ROUND(千円単!W47/1000,0)) -> 7233 | X47: =IF(千円単!X47="","",ROUND(千円単!X47/1000,0)) -> -3332 | Y47: =IF(千円単!Y47="","",ROUND(千円単!Y47/1000,0)) -> 574
A48: 2022 | B48: 46 | C48: 17 | D48: 1 | E48: 47 | F48: 公共 | G48: 022021 | H48: 青森県 | I48: 弘前市 | J48: =IF(千円単!J48="","",ROUND(千円単!J48/1000,0)) -> 4494 | K48: =IF(千円単!K48="","",ROUND(千円単!K48/1000,0)) -> 2648 | L48: =IF(千円単!L48="","",ROUND(千円単!L48/1000,0)) -> 1108 | M48: =IF(千円単!M48="","",ROUND(千円単!M48/1000,0)) -> 4022 | N48: =IF(千円単!N48="","",ROUND(千円単!N48/1000,0)) -> 313 | O48: =IF(千円単!O48="","",ROUND(千円単!O48/1000,0)) -> 1983 | P48: =IF(千円単!P48="","",ROUND(千円単!P48/1000,0)) -> 209 | Q48: =IF(千円単!Q48="","",ROUND(千円単!Q48/1000,0)) -> 472 | R48: =IF(千円単!R48="","",ROUND(千円単!R48/1000,0)) -> 1631 | S48: =IF(千円単!S48="","",ROUND(千円単!S48/1000,0)) -> 1120 | T48: =IF(千円単!T48="","",ROUND(千円単!T48/1000,0)) -> 0 | U48: =IF(千円単!U48="","",ROUND(千円単!U48/1000,0)) -> 3620 | V48: =IF(千円単!V48="","",ROUND(千円単!V48/1000,0)) -> 761 | W48: =IF(千円単!W48="","",ROUND(千円単!W48/1000,0)) -> 2860 | X48: =IF(千円単!X48="","",ROUND(千円単!X48/1000,0)) -> -1990 | Y48: =IF(千円単!Y48="","",ROUND(千円単!Y48/1000,0)) -> 472
A49: 2022 | B49: 46 | C49: 17 | D49: 1 | E49: 48 | F49: 公共 | G49: 022039 | H49: 青森県 | I49: 八戸市 | J49: =IF(千円単!J49="","",ROUND(千円単!J49/1000,0)) -> 6624 | K49: =IF(千円単!K49="","",ROUND(千円単!K49/1000,0)) -> 2412 | L49: =IF(千円単!L49="","",ROUND(千円単!L49/1000,0)) -> 1857 | M49: =IF(千円単!M49="","",ROUND(千円単!M49/1000,0)) -> 6439 | N49: =IF(千円単!N49="","",ROUND(千円単!N49/1000,0)) -> 269 | O49: =IF(千円単!O49="","",ROUND(千円単!O49/1000,0)) -> 4432 | P49: =IF(千円単!P49="","",ROUND(千円単!P49/1000,0)) -> 211 | Q49: =IF(千円単!Q49="","",ROUND(千円単!Q49/1000,0)) -> 185 | R49: =IF(千円単!R49="","",ROUND(千円単!R49/1000,0)) -> 6548 | S49: =IF(千円単!S49="","",ROUND(千円単!S49/1000,0)) -> 4168 | T49: =IF(千円単!T49="","",ROUND(千円単!T49/1000,0)) -> 170 | U49: =IF(千円単!U49="","",ROUND(千円単!U49/1000,0)) -> 9086 | V49: =IF(千円単!V49="","",ROUND(千円単!V49/1000,0)) -> 4966 | W49: =IF(千円単!W49="","",ROUND(千円単!W49/1000,0)) -> 4121 | X49: =IF(千円単!X49="","",ROUND(千円単!X49/1000,0)) -> -2538 | Y49: =IF(千円単!Y49="","",ROUND(千円単!Y49/1000,0)) -> 185
A50: 2022 | B50: 46 | C50: 17 | D50: 1 | E50: 49 | F50: 公共 | G50: 022047 | H50: 青森県 | I50: 黒石市 | J50: =IF(千円単!J50="","",ROUND(千円単!J50/1000,0)) -> 660 | K50: =IF(千円単!K50="","",ROUND(千円単!K50/1000,0)) -> 325 | L50: =IF(千円単!L50="","",ROUND(千円単!L50/1000,0)) -> 6 | M50: =IF(千円単!M50="","",ROUND(千円単!M50/1000,0)) -> 574 | N50: =IF(千円単!N50="","",ROUND(千円単!N50/1000,0)) -> 52 | O50: =IF(千円単!O50="","",ROUND(千円単!O50/1000,0)) -> 310 | P50: =IF(千円単!P50="","",ROUND(千円単!P50/1000,0)) -> 23 | Q50: =IF(千円単!Q50="","",ROUND(千円単!Q50/1000,0)) -> 86 | R50: =IF(千円単!R50="","",ROUND(千円単!R50/1000,0)) -> 635 | S50: =IF(千円単!S50="","",ROUND(千円単!S50/1000,0)) -> 255 | T50: =IF(千円単!T50="","",ROUND(千円単!T50/1000,0)) -> 344 | U50: =IF(千円単!U50="","",ROUND(千円単!U50/1000,0)) -> 723 | V50: =IF(千円単!V50="","",ROUND(千円単!V50/1000,0)) -> 101 | W50: =IF(千円単!W50="","",ROUND(千円単!W50/1000,0)) -> 622 | X50: =IF(千円単!X50="","",ROUND(千円単!X50/1000,0)) -> -88 | Y50: =IF(千円単!Y50="","",ROUND(千円単!Y50/1000,0)) -> 86
A51: 2022 | B51: 46 | C51: 17 | D51: 1 | E51: 50 | F51: 公共 | G51: 022055 | H51: 青森県 | I51: 五所川原市 | J51: =IF(千円単!J51="","",ROUND(千円単!J51/1000,0)) -> 690 | K51: =IF(千円単!K51="","",ROUND(千円単!K51/1000,0)) -> 346 | L51: =IF(千円単!L51="","",ROUND(千円単!L51/1000,0)) -> 60 | M51: =IF(千円単!M51="","",ROUND(千円単!M51/1000,0)) -> 830 | N51: =IF(千円単!N51="","",ROUND(千円単!N51/1000,0)) -> 54 | O51: =IF(千円単!O51="","",ROUND(千円単!O51/1000,0)) -> 452 | P51: =IF(千円単!P51="","",ROUND(千円単!P51/1000,0)) -> 26 | Q51: =IF(千円単!Q51="","",ROUND(千円単!Q51/1000,0)) -> -140 | R51: =IF(千円単!R51="","",ROUND(千円単!R51/1000,0)) -> 435 | S51: =IF(千円単!S51="","",ROUND(千円単!S51/1000,0)) -> 117 | T51: =IF(千円単!T51="","",ROUND(千円単!T51/1000,0)) -> 0 | U51: =IF(千円単!U51="","",ROUND(千円単!U51/1000,0)) -> 547 | V51: =IF(千円単!V51="","",ROUND(千円単!V51/1000,0)) -> 70 | W51: =IF(千円単!W51="","",ROUND(千円単!W51/1000,0)) -> 477 | X51: =IF(千円単!X51="","",ROUND(千円単!X51/1000,0)) -> -112 | Y51: =IF(千円単!Y51="","",ROUND(千円単!Y51/1000,0)) -> -140
A52: 2022 | B52: 46 | C52: 17 | D52: 1 | E52: 51 | F52: 公共 | G52: 022063 | H52: 青森県 | I52: 十和田市 | J52: =IF(千円単!J52="","",ROUND(千円単!J52/1000,0)) -> 1667 | K52: =IF(千円単!K52="","",ROUND(千円単!K52/1000,0)) -> 835 | L52: =IF(千円単!L52="","",ROUND(千円単!L52/1000,0)) -> 398 | M52: =IF(千円単!M52="","",ROUND(千円単!M52/1000,0)) -> 1550 | N52: =IF(千円単!N52="","",ROUND(千円単!N52/1000,0)) -> 148 | O52: =IF(千円単!O52="","",ROUND(千円単!O52/1000,0)) -> 935 | P52: =IF(千円単!P52="","",ROUND(千円単!P52/1000,0)) -> 69 | Q52: =IF(千円単!Q52="","",ROUND(千円単!Q52/1000,0)) -> 117 | R52: =IF(千円単!R52="","",ROUND(千円単!R52/1000,0)) -> 985 | S52: =IF(千円単!S52="","",ROUND(千円単!S52/1000,0)) -> 672 | T52: =IF(千円単!T52="","",ROUND(千円単!T52/1000,0)) -> 143 | U52: =IF(千円単!U52="","",ROUND(千円単!U52/1000,0)) -> 1662 | V52: =IF(千円単!V52="","",ROUND(千円単!V52/1000,0)) -> 486 | W52: =IF(千円単!W52="","",ROUND(千円単!W52/1000,0)) -> 1176 | X52: =IF(千円単!X52="","",ROUND(千円単!X52/1000,0)) -> -676 | Y52: =IF(千円単!Y52="","",ROUND(千円単!Y52/1000,0)) -> 117
A53: 2022 | B53: 46 | C53: 17 | D53: 1 | E53: 52 | F53: 公共 | G53: 022071 | H53: 青森県 | I53: 三沢市 | J53: =IF(千円単!J53="","",ROUND(千円単!J53/1000,0)) -> 1137 | K53: =IF(千円単!K53="","",ROUND(千円単!K53/1000,0)) -> 410 | L53: =IF(千円単!L53="","",ROUND(千円単!L53/1000,0)) -> 322 | M53: =IF(千円単!M53="","",ROUND(千円単!M53/1000,0)) -> 1050 | N53: =IF(千円単!N53="","",ROUND(千円単!N53/1000,0)) -> 104 | O53: =IF(千円単!O53="","",ROUND(千円単!O53/1000,0)) -> 679 | P53: =IF(千円単!P53="","",ROUND(千円単!P53/1000,0)) -> 40 | Q53: =IF(千円単!Q53="","",ROUND(千円単!Q53/1000,0)) -> 88 | R53: =IF(千円単!R53="","",ROUND(千円単!R53/1000,0)) -> 943 | S53: =IF(千円単!S53="","",ROUND(千円単!S53/1000,0)) -> 589 | T53: =IF(千円単!T53="","",ROUND(千円単!T53/1000,0)) -> 109 | U53: =IF(千円単!U53="","",ROUND(千円単!U53/1000,0)) -> 1331 | V53: =IF(千円単!V53="","",ROUND(千円単!V53/1000,0)) -> 437 | W53: =IF(千円単!W53="","",ROUND(千円単!W53/1000,0)) -> 895 | X53: =IF(千円単!X53="","",ROUND(千円単!X53/1000,0)) -> -389 | Y53: =IF(千円単!Y53="","",ROUND(千円単!Y53/1000,0)) -> 88
A54: 2022 | B54: 46 | C54: 17 | D54: 1 | E54: 53 | F54: 公共 | G54: 022080 | H54: 青森県 | I54: むつ市 | J54: =IF(千円単!J54="","",ROUND(千円単!J54/1000,0)) -> 740 | K54: =IF(千円単!K54="","",ROUND(千円単!K54/1000,0)) -> 95 | L54: =IF(千円単!L54="","",ROUND(千円単!L54/1000,0)) -> 384 | M54: =IF(千円単!M54="","",ROUND(千円単!M54/1000,0)) -> 679 | N54: =IF(千円単!N54="","",ROUND(千円単!N54/1000,0)) -> 93 | O54: =IF(千円単!O54="","",ROUND(千円単!O54/1000,0)) -> 427 | P54: =IF(千円単!P54="","",ROUND(千円単!P54/1000,0)) -> 38 | Q54: =IF(千円単!Q54="","",ROUND(千円単!Q54/1000,0)) -> 61 | R54: =IF(千円単!R54="","",ROUND(千円単!R54/1000,0)) -> 1208 | S54: =IF(千円単!S54="","",ROUND(千円単!S54/1000,0)) -> 731 | T54: =IF(千円単!T54="","",ROUND(千円単!T54/1000,0)) -> 142 | U54: =IF(千円単!U54="","",ROUND(千円単!U54/1000,0)) -> 1294 | V54: =IF(千円単!V54="","",ROUND(千円単!V54/1000,0)) -> 744 | W54: =IF(千円単!W54="","",ROUND(千円単!W54/1000,0)) -> 550 | X54: =IF(千円単!X54="","",ROUND(千円単!X54/1000,0)) -> -86 | Y54: =IF(千円単!Y54="","",ROUND(千円単!Y54/1000,0)) -> 61
A55: 2022 | B55: 46 | C55: 17 | D55: 1 | E55: 54 | F55: 公共 | G55: 022098 | H55: 青森県 | I55: つがる市 | J55: =IF(千円単!J55="","",ROUND(千円単!J55/1000,0)) -> 410 | K55: =IF(千円単!K55="","",ROUND(千円単!K55/1000,0)) -> 75 | L55: =IF(千円単!L55="","",ROUND(千円単!L55/1000,0)) -> 213 | M55: =IF(千円単!M55="","",ROUND(千円単!M55/1000,0)) -> 381 | N55: =IF(千円単!N55="","",ROUND(千円単!N55/1000,0)) -> 45 | O55: =IF(千円単!O55="","",ROUND(千円単!O55/1000,0)) -> 270 | P55: =IF(千円単!P55="","",ROUND(千円単!P55/1000,0)) -> 12 | Q55: =IF(千円単!Q55="","",ROUND(千円単!Q55/1000,0)) -> 29 | R55: =IF(千円単!R55="","",ROUND(千円単!R55/1000,0)) -> 506 | S55: =IF(千円単!S55="","",ROUND(千円単!S55/1000,0)) -> 237 | T55: =IF(千円単!T55="","",ROUND(千円単!T55/1000,0)) -> 20 | U55: =IF(千円単!U55="","",ROUND(千円単!U55/1000,0)) -> 631 | V55: =IF(千円単!V55="","",ROUND(千円単!V55/1000,0)) -> 371 | W55: =IF(千円単!W55="","",ROUND(千円単!W55/1000,0)) -> 260 | X55: =IF(千円単!X55="","",ROUND(千円単!X55/1000,0)) -> -125 | Y55: =IF(千円単!Y55="","",ROUND(千円単!Y55/1000,0)) -> 29
A56: 2022 | B56: 46 | C56: 17 | D56: 1 | E56: 55 | F56: 公共 | G56: 022101 | H56: 青森県 | I56: 平川市 | J56: =IF(千円単!J56="","",ROUND(千円単!J56/1000,0)) -> 532 | K56: =IF(千円単!K56="","",ROUND(千円単!K56/1000,0)) -> 307 | L56: =IF(千円単!L56="","",ROUND(千円単!L56/1000,0)) -> 95 | M56: =IF(千円単!M56="","",ROUND(千円単!M56/1000,0)) -> 577 | N56: =IF(千円単!N56="","",ROUND(千円単!N56/1000,0)) -> 51 | O56: =IF(千円単!O56="","",ROUND(千円単!O56/1000,0)) -> 330 | P56: =IF(千円単!P56="","",ROUND(千円単!P56/1000,0)) -> 20 | Q56: =IF(千円単!Q56="","",ROUND(千円単!Q56/1000,0)) -> -44 | R56: =IF(千円単!R56="","",ROUND(千円単!R56/1000,0)) -> 267 | S56: =IF(千円単!S56="","",ROUND(千円単!S56/1000,0)) -> 74 | T56: =IF(千円単!T56="","",ROUND(千円単!T56/1000,0)) -> 0 | U56: =IF(千円単!U56="","",ROUND(千円単!U56/1000,0)) -> 430 | V56: =IF(千円単!V56="","",ROUND(千円単!V56/1000,0)) -> 62 | W56: =IF(千円単!W56="","",ROUND(千円単!W56/1000,0)) -> 369 | X56: =IF(千円単!X56="","",ROUND(千円単!X56/1000,0)) -> -164 | Y56: =IF(千円単!Y56="","",ROUND(千円単!Y56/1000,0)) -> -44
A57: 2022 | B57: 46 | C57: 17 | D57: 1 | E57: 56 | F57: 公共 | G57: 023612 | H57: 青森県 | I57: 藤崎町 | J57: =IF(千円単!J57="","",ROUND(千円単!J57/1000,0)) -> 237 | K57: =IF(千円単!K57="","",ROUND(千円単!K57/1000,0)) -> 86 | L57: =IF(千円単!L57="","",ROUND(千円単!L57/1000,0)) -> 75 | M57: =IF(千円単!M57="","",ROUND(千円単!M57/1000,0)) -> 233 | N57: =IF(千円単!N57="","",ROUND(千円単!N57/1000,0)) -> 23 | O57: =IF(千円単!O57="","",ROUND(千円単!O57/1000,0)) -> 161 | P57: =IF(千円単!P57="","",ROUND(千円単!P57/1000,0)) -> 0 | Q57: =IF(千円単!Q57="","",ROUND(千円単!Q57/1000,0)) -> 4 | R57: =IF(千円単!R57="","",ROUND(千円単!R57/1000,0)) -> 264 | S57: =IF(千円単!S57="","",ROUND(千円単!S57/1000,0)) -> 135 | T57: =IF(千円単!T57="","",ROUND(千円単!T57/1000,0)) -> 0 | U57: =IF(千円単!U57="","",ROUND(千円単!U57/1000,0)) -> 367 | V57: =IF(千円単!V57="","",ROUND(千円単!V57/1000,0)) -> 160 | W57: =IF(千円単!W57="","",ROUND(千円単!W57/1000,0)) -> 208 | X57: =IF(千円単!X57="","",ROUND(千円単!X57/1000,0)) -> -103 | Y57: =IF(千円単!Y57="","",ROUND(千円単!Y57/1000,0)) -> 4
A58: 2022 | B58: 46 | C58: 17 | D58: 1 | E58: 57 | F58: 公共 | G58: 023671 | H58: 青森県 | I58: 田舎館村 | J58: =IF(千円単!J58="","",ROUND(千円単!J58/1000,0)) -> 288 | K58: =IF(千円単!K58="","",ROUND(千円単!K58/1000,0)) -> 90 | L58: =IF(千円単!L58="","",ROUND(千円単!L58/1000,0)) -> 81 | M58: =IF(千円単!M58="","",ROUND(千円単!M58/1000,0)) -> 220 | N58: =IF(千円単!N58="","",ROUND(千円単!N58/1000,0)) -> 26 | O58: =IF(千円単!O58="","",ROUND(千円単!O58/1000,0)) -> 126 | P58: =IF(千円単!P58="","",ROUND(千円単!P58/1000,0)) -> 8 | Q58: =IF(千円単!Q58="","",ROUND(千円単!Q58/1000,0)) -> 68 | R58: =IF(千円単!R58="","",ROUND(千円単!R58/1000,0)) -> 107 | S58: =IF(千円単!S58="","",ROUND(千円単!S58/1000,0)) -> 48 | T58: =IF(千円単!T58="","",ROUND(千円単!T58/1000,0)) -> 56 | U58: =IF(千円単!U58="","",ROUND(千円単!U58/1000,0)) -> 214 | V58: =IF(千円単!V58="","",ROUND(千円単!V58/1000,0)) -> 11 | W58: =IF(千円単!W58="","",ROUND(千円単!W58/1000,0)) -> 203 | X58: =IF(千円単!X58="","",ROUND(千円単!X58/1000,0)) -> -107 | Y58: =IF(千円単!Y58="","",ROUND(千円単!Y58/1000,0)) -> 68
A59: 2022 | B59: 46 | C59: 17 | D59: 1 | E59: 58 | F59: 公共 | G59: 023817 | H59: 青森県 | I59: 板柳町 | J59: =IF(千円単!J59="","",ROUND(千円単!J59/1000,0)) -> 341 | K59: =IF(千円単!K59="","",ROUND(千円単!K59/1000,0)) -> 82 | L59: =IF(千円単!L59="","",ROUND(千円単!L59/1000,0)) -> 89 | M59: =IF(千円単!M59="","",ROUND(千円単!M59/1000,0)) -> 300 | N59: =IF(千円単!N59="","",ROUND(千円単!N59/1000,0)) -> 44 | O59: =IF(千円単!O59="","",ROUND(千円単!O59/1000,0)) -> 175 | P59: =IF(千円単!P59="","",ROUND(千円単!P59/1000,0)) -> 9 | Q59: =IF(千円単!Q59="","",ROUND(千円単!Q59/1000,0)) -> 40 | R59: =IF(千円単!R59="","",ROUND(千円単!R59/1000,0)) -> 627 | S59: =IF(千円単!S59="","",ROUND(千円単!S59/1000,0)) -> 339 | T59: =IF(千円単!T59="","",ROUND(千円単!T59/1000,0)) -> 97 | U59: =IF(千円単!U59="","",ROUND(千円単!U59/1000,0)) -> 694 | V59: =IF(千円単!V59="","",ROUND(千円単!V59/1000,0)) -> 438 | W59: =IF(千円単!W59="","",ROUND(千円単!W59/1000,0)) -> 256 | X59: =IF(千円単!X59="","",ROUND(千円単!X59/1000,0)) -> -66 | Y59: =IF(千円単!Y59="","",ROUND(千円単!Y59/1000,0)) -> 40
A60: 2022 | B60: 46 | C60: 17 | D60: 1 | E60: 59 | F60: 公共 | G60: 023841 | H60: 青森県 | I60: 鶴田町 | J60: =IF(千円単!J60="","",ROUND(千円単!J60/1000,0)) -> 387 | K60: =IF(千円単!K60="","",ROUND(千円単!K60/1000,0)) -> 56 | L60: =IF(千円単!L60="","",ROUND(千円単!L60/1000,0)) -> 228 | M60: =IF(千円単!M60="","",ROUND(千円単!M60/1000,0)) -> 286 | N60: =IF(千円単!N60="","",ROUND(千円単!N60/1000,0)) -> 40 | O60: =IF(千円単!O60="","",ROUND(千円単!O60/1000,0)) -> 190 | P60: =IF(千円単!P60="","",ROUND(千円単!P60/1000,0)) -> 15 | Q60: =IF(千円単!Q60="","",ROUND(千円単!Q60/1000,0)) -> 102 | R60: =IF(千円単!R60="","",ROUND(千円単!R60/1000,0)) -> 6 | S60: =IF(千円単!S60="","",ROUND(千円単!S60/1000,0)) -> 0 | T60: =IF(千円単!T60="","",ROUND(千円単!T60/1000,0)) -> 5 | U60: =IF(千円単!U60="","",ROUND(千円単!U60/1000,0)) -> 221 | V60: =IF(千円単!V60="","",ROUND(千円単!V60/1000,0)) -> 1 | W60: =IF(千円単!W60="","",ROUND(千円単!W60/1000,0)) -> 220 | X60: =IF(千円単!X60="","",ROUND(千円単!X60/1000,0)) -> -215 | Y60: =IF(千円単!Y60="","",ROUND(千円単!Y60/1000,0)) -> 102
A61: 2022 | B61: 46 | C61: 17 | D61: 1 | E61: 60 | F61: 公共 | G61: 024112 | H61: 青森県 | I61: 六ケ所村 | J61: =IF(千円単!J61="","",ROUND(千円単!J61/1000,0)) -> 501 | K61: =IF(千円単!K61="","",ROUND(千円単!K61/1000,0)) -> 54 | L61: =IF(千円単!L61="","",ROUND(千円単!L61/1000,0)) -> 289 | M61: =IF(千円単!M61="","",ROUND(千円単!M61/1000,0)) -> 498 | N61: =IF(千円単!N61="","",ROUND(千円単!N61/1000,0)) -> 59 | O61: =IF(千円単!O61="","",ROUND(千円単!O61/1000,0)) -> 291 | P61: =IF(千円単!P61="","",ROUND(千円単!P61/1000,0)) -> 26 | Q61: =IF(千円単!Q61="","",ROUND(千円単!Q61/1000,0)) -> 3 | R61: =IF(千円単!R61="","",ROUND(千円単!R61/1000,0)) -> 144 | S61: =IF(千円単!S61="","",ROUND(千円単!S61/1000,0)) -> 0 | T61: =IF(千円単!T61="","",ROUND(千円単!T61/1000,0)) -> 0 | U61: =IF(千円単!U61="","",ROUND(千円単!U61/1000,0)) -> 364 | V61: =IF(千円単!V61="","",ROUND(千円単!V61/1000,0)) -> 116 | W61: =IF(千円単!W61="","",ROUND(千円単!W61/1000,0)) -> 248 | X61: =IF(千円単!X61="","",ROUND(千円単!X61/1000,0)) -> -219 | Y61: =IF(千円単!Y61="","",ROUND(千円単!Y61/1000,0)) -> 3
A62: 2022 | B62: 46 | C62: 17 | D62: 1 | E62: 61 | F62: 公共 | G62: 032018 | H62: 岩手県 | I62: 盛岡市 | J62: =IF(千円単!J62="","",ROUND(千円単!J62/1000,0)) -> 7898 | K62: =IF(千円単!K62="","",ROUND(千円単!K62/1000,0)) -> 4108 | L62: =IF(千円単!L62="","",ROUND(千円単!L62/1000,0)) -> 2790 | M62: =IF(千円単!M62="","",ROUND(千円単!M62/1000,0)) -> 7737 | N62: =IF(千円単!N62="","",ROUND(千円単!N62/1000,0)) -> 481 | O62: =IF(千円単!O62="","",ROUND(千円単!O62/1000,0)) -> 4150 | P62: =IF(千円単!P62="","",ROUND(千円単!P62/1000,0)) -> 348 | Q62: =IF(千円単!Q62="","",ROUND(千円単!Q62/1000,0)) -> 161 | R62: =IF(千円単!R62="","",ROUND(千円単!R62/1000,0)) -> 2536 | S62: =IF(千円単!S62="","",ROUND(千円単!S62/1000,0)) -> 1349 | T62: =IF(千円単!T62="","",ROUND(千円単!T62/1000,0)) -> 380 | U62: =IF(千円単!U62="","",ROUND(千円単!U62/1000,0)) -> 5473 | V62: =IF(千円単!V62="","",ROUND(千円単!V62/1000,0)) -> 2602 | W62: =IF(千円単!W62="","",ROUND(千円単!W62/1000,0)) -> 2862 | X62: =IF(千円単!X62="","",ROUND(千円単!X62/1000,0)) -> -2936 | Y62: =IF(千円単!Y62="","",ROUND(千円単!Y62/1000,0)) -> 161
A63: 2022 | B63: 46 | C63: 17 | D63: 1 | E63: 62 | F63: 公共 | G63: 032026 | H63: 岩手県 | I63: 宮古市 | J63: =IF(千円単!J63="","",ROUND(千円単!J63/1000,0)) -> 1331 | K63: =IF(千円単!K63="","",ROUND(千円単!K63/1000,0)) -> 499 | L63: =IF(千円単!L63="","",ROUND(千円単!L63/1000,0)) -> 367 | M63: =IF(千円単!M63="","",ROUND(千円単!M63/1000,0)) -> 1243 | N63: =IF(千円単!N63="","",ROUND(千円単!N63/1000,0)) -> 97 | O63: =IF(千円単!O63="","",ROUND(千円単!O63/1000,0)) -> 799 | P63: =IF(千円単!P63="","",ROUND(千円単!P63/1000,0)) -> 53 | Q63: =IF(千円単!Q63="","",ROUND(千円単!Q63/1000,0)) -> 88 | R63: =IF(千円単!R63="","",ROUND(千円単!R63/1000,0)) -> 631 | S63: =IF(千円単!S63="","",ROUND(千円単!S63/1000,0)) -> 396 | T63: =IF(千円単!T63="","",ROUND(千円単!T63/1000,0)) -> 90 | U63: =IF(千円単!U63="","",ROUND(千円単!U63/1000,0)) -> 1124 | V63: =IF(千円単!V63="","",ROUND(千円単!V63/1000,0)) -> 282 | W63: =IF(千円単!W63="","",ROUND(千円単!W63/1000,0)) -> 842 | X63: =IF(千円単!X63="","",ROUND(千円単!X63/1000,0)) -> -493 | Y63: =IF(千円単!Y63="","",ROUND(千円単!Y63/1000,0)) -> 88
A64: 2022 | B64: 46 | C64: 17 | D64: 1 | E64: 63 | F64: 公共 | G64: 032034 | H64: 岩手県 | I64: 大船渡市 | J64: =IF(千円単!J64="","",ROUND(千円単!J64/1000,0)) -> 1026 | K64: =IF(千円単!K64="","",ROUND(千円単!K64/1000,0)) -> 205 | L64: =IF(千円単!L64="","",ROUND(千円単!L64/1000,0)) -> 346 | M64: =IF(千円単!M64="","",ROUND(千円単!M64/1000,0)) -> 1105 | N64: =IF(千円単!N64="","",ROUND(千円単!N64/1000,0)) -> 112 | O64: =IF(千円単!O64="","",ROUND(千円単!O64/1000,0)) -> 579 | P64: =IF(千円単!P64="","",ROUND(千円単!P64/1000,0)) -> 38 | Q64: =IF(千円単!Q64="","",ROUND(千円単!Q64/1000,0)) -> -79 | R64: =IF(千円単!R64="","",ROUND(千円単!R64/1000,0)) -> 1374 | S64: =IF(千円単!S64="","",ROUND(千円単!S64/1000,0)) -> 653 | T64: =IF(千円単!T64="","",ROUND(千円単!T64/1000,0)) -> 0 | U64: =IF(千円単!U64="","",ROUND(千円単!U64/1000,0)) -> 1550 | V64: =IF(千円単!V64="","",ROUND(千円単!V64/1000,0)) -> 865 | W64: =IF(千円単!W64="","",ROUND(千円単!W64/1000,0)) -> 685 | X64: =IF(千円単!X64="","",ROUND(千円単!X64/1000,0)) -> -176 | Y64: =IF(千円単!Y64="","",ROUND(千円単!Y64/1000,0)) -> -79
A65: 2022 | B65: 46 | C65: 17 | D65: 1 | E65: 64 | F65: 公共 | G65: 032051 | H65: 岩手県 | I65: 花巻市 | J65: =IF(千円単!J65="","",ROUND(千円単!J65/1000,0)) -> 2208 | K65: =IF(千円単!K65="","",ROUND(千円単!K65/1000,0)) -> 757 | L65: =IF(千円単!L65="","",ROUND(千円単!L65/1000,0)) -> 1036 | M65: =IF(千円単!M65="","",ROUND(千円単!M65/1000,0)) -> 2100 | N65: =IF(千円単!N65="","",ROUND(千円単!N65/1000,0)) -> 278 | O65: =IF(千円単!O65="","",ROUND(千円単!O65/1000,0)) -> 1318 | P65: =IF(千円単!P65="","",ROUND(千円単!P65/1000,0)) -> 43 | Q65: =IF(千円単!Q65="","",ROUND(千円単!Q65/1000,0)) -> 107 | R65: =IF(千円単!R65="","",ROUND(千円単!R65/1000,0)) -> 1029 | S65: =IF(千円単!S65="","",ROUND(千円単!S65/1000,0)) -> 719 | T65: =IF(千円単!T65="","",ROUND(千円単!T65/1000,0)) -> 0 | U65: =IF(千円単!U65="","",ROUND(千円単!U65/1000,0)) -> 2024 | V65: =IF(千円単!V65="","",ROUND(千円単!V65/1000,0)) -> 171 | W65: =IF(千円単!W65="","",ROUND(千円単!W65/1000,0)) -> 1853 | X65: =IF(千円単!X65="","",ROUND(千円単!X65/1000,0)) -> -995 | Y65: =IF(千円単!Y65="","",ROUND(千円単!Y65/1000,0)) -> 107
A66: 2022 | B66: 46 | C66: 17 | D66: 1 | E66: 65 | F66: 公共 | G66: 032069 | H66: 岩手県 | I66: 北上市 | J66: =IF(千円単!J66="","",ROUND(千円単!J66/1000,0)) -> 1904 | K66: =IF(千円単!K66="","",ROUND(千円単!K66/1000,0)) -> 1291 | L66: =IF(千円単!L66="","",ROUND(千円単!L66/1000,0)) -> 380 | M66: =IF(千円単!M66="","",ROUND(千円単!M66/1000,0)) -> 1892 | N66: =IF(千円単!N66="","",ROUND(千円単!N66/1000,0)) -> 215 | O66: =IF(千円単!O66="","",ROUND(千円単!O66/1000,0)) -> 952 | P66: =IF(千円単!P66="","",ROUND(千円単!P66/1000,0)) -> 46 | Q66: =IF(千円単!Q66="","",ROUND(千円単!Q66/1000,0)) -> 13 | R66: =IF(千円単!R66="","",ROUND(千円単!R66/1000,0)) -> 1030 | S66: =IF(千円単!S66="","",ROUND(千円単!S66/1000,0)) -> 207 | T66: =IF(千円単!T66="","",ROUND(千円単!T66/1000,0)) -> 0 | U66: =IF(千円単!U66="","",ROUND(千円単!U66/1000,0)) -> 1768 | V66: =IF(千円単!V66="","",ROUND(千円単!V66/1000,0)) -> 191 | W66: =IF(千円単!W66="","",ROUND(千円単!W66/1000,0)) -> 1577 | X66: =IF(千円単!X66="","",ROUND(千円単!X66/1000,0)) -> -738 | Y66: =IF(千円単!Y66="","",ROUND(千円単!Y66/1000,0)) -> 13
A67: 2022 | B67: 46 | C67: 17 | D67: 1 | E67: 66 | F67: 公共 | G67: 032077 | H67: 岩手県 | I67: 久慈市 | J67: =IF(千円単!J67="","",ROUND(千円単!J67/1000,0)) -> 813 | K67: =IF(千円単!K67="","",ROUND(千円単!K67/1000,0)) -> 167 | L67: =IF(千円単!L67="","",ROUND(千円単!L67/1000,0)) -> 339 | M67: =IF(千円単!M67="","",ROUND(千円単!M67/1000,0)) -> 853 | N67: =IF(千円単!N67="","",ROUND(千円単!N67/1000,0)) -> 88 | O67: =IF(千円単!O67="","",ROUND(千円単!O67/1000,0)) -> 519 | P67: =IF(千円単!P67="","",ROUND(千円単!P67/1000,0)) -> 64 | Q67: =IF(千円単!Q67="","",ROUND(千円単!Q67/1000,0)) -> -40 | R67: =IF(千円単!R67="","",ROUND(千円単!R67/1000,0)) -> 1160 | S67: =IF(千円単!S67="","",ROUND(千円単!S67/1000,0)) -> 654 | T67: =IF(千円単!T67="","",ROUND(千円単!T67/1000,0)) -> 0 | U67: =IF(千円単!U67="","",ROUND(千円単!U67/1000,0)) -> 1340 | V67: =IF(千円単!V67="","",ROUND(千円単!V67/1000,0)) -> 968 | W67: =IF(千円単!W67="","",ROUND(千円単!W67/1000,0)) -> 372 | X67: =IF(千円単!X67="","",ROUND(千円単!X67/1000,0)) -> -180 | Y67: =IF(千円単!Y67="","",ROUND(千円単!Y67/1000,0)) -> -40
A68: 2022 | B68: 46 | C68: 17 | D68: 1 | E68: 67 | F68: 公共 | G68: 032085 | H68: 岩手県 | I68: 遠野市 | J68: =IF(千円単!J68="","",ROUND(千円単!J68/1000,0)) -> 505 | K68: =IF(千円単!K68="","",ROUND(千円単!K68/1000,0)) -> 123 | L68: =IF(千円単!L68="","",ROUND(千円単!L68/1000,0)) -> 253 | M68: =IF(千円単!M68="","",ROUND(千円単!M68/1000,0)) -> 507 | N68: =IF(千円単!N68="","",ROUND(千円単!N68/1000,0)) -> 57 | O68: =IF(千円単!O68="","",ROUND(千円単!O68/1000,0)) -> 295 | P68: =IF(千円単!P68="","",ROUND(千円単!P68/1000,0)) -> 23 | Q68: =IF(千円単!Q68="","",ROUND(千円単!Q68/1000,0)) -> -1 | R68: =IF(千円単!R68="","",ROUND(千円単!R68/1000,0)) -> 228 | S68: =IF(千円単!S68="","",ROUND(千円単!S68/1000,0)) -> 5 | T68: =IF(千円単!T68="","",ROUND(千円単!T68/1000,0)) -> 0 | U68: =IF(千円単!U68="","",ROUND(千円単!U68/1000,0)) -> 376 | V68: =IF(千円単!V68="","",ROUND(千円単!V68/1000,0)) -> 8 | W68: =IF(千円単!W68="","",ROUND(千円単!W68/1000,0)) -> 367 | X68: =IF(千円単!X68="","",ROUND(千円単!X68/1000,0)) -> -148 | Y68: =IF(千円単!Y68="","",ROUND(千円単!Y68/1000,0)) -> -1
A69: 2022 | B69: 46 | C69: 17 | D69: 1 | E69: 68 | F69: 公共 | G69: 032093 | H69: 岩手県 | I69: 一関市 | J69: =IF(千円単!J69="","",ROUND(千円単!J69/1000,0)) -> 1815 | K69: =IF(千円単!K69="","",ROUND(千円単!K69/1000,0)) -> 593 | L69: =IF(千円単!L69="","",ROUND(千円単!L69/1000,0)) -> 616 | M69: =IF(千円単!M69="","",ROUND(千円単!M69/1000,0)) -> 1670 | N69: =IF(千円単!N69="","",ROUND(千円単!N69/1000,0)) -> 158 | O69: =IF(千円単!O69="","",ROUND(千円単!O69/1000,0)) -> 965 | P69: =IF(千円単!P69="","",ROUND(千円単!P69/1000,0)) -> 31 | Q69: =IF(千円単!Q69="","",ROUND(千円単!Q69/1000,0)) -> 145 | R69: =IF(千円単!R69="","",ROUND(千円単!R69/1000,0)) -> 1959 | S69: =IF(千円単!S69="","",ROUND(千円単!S69/1000,0)) -> 902 | T69: =IF(千円単!T69="","",ROUND(千円単!T69/1000,0)) -> 165 | U69: =IF(千円単!U69="","",ROUND(千円単!U69/1000,0)) -> 2509 | V69: =IF(千円単!V69="","",ROUND(千円単!V69/1000,0)) -> 1308 | W69: =IF(千円単!W69="","",ROUND(千円単!W69/1000,0)) -> 1201 | X69: =IF(千円単!X69="","",ROUND(千円単!X69/1000,0)) -> -550 | Y69: =IF(千円単!Y69="","",ROUND(千円単!Y69/1000,0)) -> 145
A70: 2022 | B70: 46 | C70: 17 | D70: 1 | E70: 69 | F70: 公共 | G70: 032115 | H70: 岩手県 | I70: 釜石市 | J70: =IF(千円単!J70="","",ROUND(千円単!J70/1000,0)) -> 1368 | K70: =IF(千円単!K70="","",ROUND(千円単!K70/1000,0)) -> 399 | L70: =IF(千円単!L70="","",ROUND(千円単!L70/1000,0)) -> 383 | M70: =IF(千円単!M70="","",ROUND(千円単!M70/1000,0)) -> 1363 | N70: =IF(千円単!N70="","",ROUND(千円単!N70/1000,0)) -> 70 | O70: =IF(千円単!O70="","",ROUND(千円単!O70/1000,0)) -> 850 | P70: =IF(千円単!P70="","",ROUND(千円単!P70/1000,0)) -> 65 | Q70: =IF(千円単!Q70="","",ROUND(千円単!Q70/1000,0)) -> 5 | R70: =IF(千円単!R70="","",ROUND(千円単!R70/1000,0)) -> 476 | S70: =IF(千円単!S70="","",ROUND(千円単!S70/1000,0)) -> 267 | T70: =IF(千円単!T70="","",ROUND(千円単!T70/1000,0)) -> 0 | U70: =IF(千円単!U70="","",ROUND(千円単!U70/1000,0)) -> 750 | V70: =IF(千円単!V70="","",ROUND(千円単!V70/1000,0)) -> 413 | W70: =IF(千円単!W70="","",ROUND(千円単!W70/1000,0)) -> 337 | X70: =IF(千円単!X70="","",ROUND(千円単!X70/1000,0)) -> -274 | Y70: =IF(千円単!Y70="","",ROUND(千円単!Y70/1000,0)) -> 5
A71: 2022 | B71: 46 | C71: 17 | D71: 1 | E71: 70 | F71: 公共 | G71: 032140 | H71: 岩手県 | I71: 八幡平市 | J71: =IF(千円単!J71="","",ROUND(千円単!J71/1000,0)) -> 407 | K71: =IF(千円単!K71="","",ROUND(千円単!K71/1000,0)) -> 71 | L71: =IF(千円単!L71="","",ROUND(千円単!L71/1000,0)) -> 223 | M71: =IF(千円単!M71="","",ROUND(千円単!M71/1000,0)) -> 353 | N71: =IF(千円単!N71="","",ROUND(千円単!N71/1000,0)) -> 49 | O71: =IF(千円単!O71="","",ROUND(千円単!O71/1000,0)) -> 203 | P71: =IF(千円単!P71="","",ROUND(千円単!P71/1000,0)) -> 24 | Q71: =IF(千円単!Q71="","",ROUND(千円単!Q71/1000,0)) -> 54 | R71: =IF(千円単!R71="","",ROUND(千円単!R71/1000,0)) -> 154 | S71: =IF(千円単!S71="","",ROUND(千円単!S71/1000,0)) -> 41 | T71: =IF(千円単!T71="","",ROUND(千円単!T71/1000,0)) -> 5 | U71: =IF(千円単!U71="","",ROUND(千円単!U71/1000,0)) -> 258 | V71: =IF(千円単!V71="","",ROUND(千円単!V71/1000,0)) -> 98 | W71: =IF(千円単!W71="","",ROUND(千円単!W71/1000,0)) -> 159 | X71: =IF(千円単!X71="","",ROUND(千円単!X71/1000,0)) -> -105 | Y71: =IF(千円単!Y71="","",ROUND(千円単!Y71/1000,0)) -> 54
A72: 2022 | B72: 46 | C72: 17 | D72: 1 | E72: 71 | F72: 公共 | G72: 032158 | H72: 岩手県 | I72: 奥州市 | J72: =IF(千円単!J72="","",ROUND(千円単!J72/1000,0)) -> 2031 | K72: =IF(千円単!K72="","",ROUND(千円単!K72/1000,0)) -> 837 | L72: =IF(千円単!L72="","",ROUND(千円単!L72/1000,0)) -> 815 | M72: =IF(千円単!M72="","",ROUND(千円単!M72/1000,0)) -> 2002 | N72: =IF(千円単!N72="","",ROUND(千円単!N72/1000,0)) -> 239 | O72: =IF(千円単!O72="","",ROUND(千円単!O72/1000,0)) -> 1088 | P72: =IF(千円単!P72="","",ROUND(千円単!P72/1000,0)) -> 69 | Q72: =IF(千円単!Q72="","",ROUND(千円単!Q72/1000,0)) -> 29 | R72: =IF(千円単!R72="","",ROUND(千円単!R72/1000,0)) -> 2299 | S72: =IF(千円単!S72="","",ROUND(千円単!S72/1000,0)) -> 1359 | T72: =IF(千円単!T72="","",ROUND(千円単!T72/1000,0)) -> 335 | U72: =IF(千円単!U72="","",ROUND(千円単!U72/1000,0)) -> 3134 | V72: =IF(千円単!V72="","",ROUND(千円単!V72/1000,0)) -> 1518 | W72: =IF(千円単!W72="","",ROUND(千円単!W72/1000,0)) -> 1616 | X72: =IF(千円単!X72="","",ROUND(千円単!X72/1000,0)) -> -836 | Y72: =IF(千円単!Y72="","",ROUND(千円単!Y72/1000,0)) -> 29
A73: 2022 | B73: 46 | C73: 17 | D73: 1 | E73: 72 | F73: 公共 | G73: 032166 | H73: 岩手県 | I73: 滝沢市 | J73: =IF(千円単!J73="","",ROUND(千円単!J73/1000,0)) -> 1117 | K73: =IF(千円単!K73="","",ROUND(千円単!K73/1000,0)) -> 522 | L73: =IF(千円単!L73="","",ROUND(千円単!L73/1000,0)) -> 271 | M73: =IF(千円単!M73="","",ROUND(千円単!M73/1000,0)) -> 981 | N73: =IF(千円単!N73="","",ROUND(千円単!N73/1000,0)) -> 74 | O73: =IF(千円単!O73="","",ROUND(千円単!O73/1000,0)) -> 583 | P73: =IF(千円単!P73="","",ROUND(千円単!P73/1000,0)) -> 29 | Q73: =IF(千円単!Q73="","",ROUND(千円単!Q73/1000,0)) -> 136 | R73: =IF(千円単!R73="","",ROUND(千円単!R73/1000,0)) -> 363 | S73: =IF(千円単!S73="","",ROUND(千円単!S73/1000,0)) -> 202 | T73: =IF(千円単!T73="","",ROUND(千円単!T73/1000,0)) -> 15 | U73: =IF(千円単!U73="","",ROUND(千円単!U73/1000,0)) -> 717 | V73: =IF(千円単!V73="","",ROUND(千円単!V73/1000,0)) -> 354 | W73: =IF(千円単!W73="","",ROUND(千円単!W73/1000,0)) -> 364 | X73: =IF(千円単!X73="","",ROUND(千円単!X73/1000,0)) -> -355 | Y73: =IF(千円単!Y73="","",ROUND(千円単!Y73/1000,0)) -> 136
A74: 2022 | B74: 46 | C74: 17 | D74: 1 | E74: 73 | F74: 公共 | G74: 033014 | H74: 岩手県 | I74: 雫石町 | J74: =IF(千円単!J74="","",ROUND(千円単!J74/1000,0)) -> 448 | K74: =IF(千円単!K74="","",ROUND(千円単!K74/1000,0)) -> 122 | L74: =IF(千円単!L74="","",ROUND(千円単!L74/1000,0)) -> 194 | M74: =IF(千円単!M74="","",ROUND(千円単!M74/1000,0)) -> 447 | N74: =IF(千円単!N74="","",ROUND(千円単!N74/1000,0)) -> 38 | O74: =IF(千円単!O74="","",ROUND(千円単!O74/1000,0)) -> 322 | P74: =IF(千円単!P74="","",ROUND(千円単!P74/1000,0)) -> 6 | Q74: =IF(千円単!Q74="","",ROUND(千円単!Q74/1000,0)) -> 1 | R74: =IF(千円単!R74="","",ROUND(千円単!R74/1000,0)) -> 387 | S74: =IF(千円単!S74="","",ROUND(千円単!S74/1000,0)) -> 218 | T74: =IF(千円単!T74="","",ROUND(千円単!T74/1000,0)) -> 0 | U74: =IF(千円単!U74="","",ROUND(千円単!U74/1000,0)) -> 573 | V74: =IF(千円単!V74="","",ROUND(千円単!V74/1000,0)) -> 208 | W74: =IF(千円単!W74="","",ROUND(千円単!W74/1000,0)) -> 365 | X74: =IF(千円単!X74="","",ROUND(千円単!X74/1000,0)) -> -186 | Y74: =IF(千円単!Y74="","",ROUND(千円単!Y74/1000,0)) -> 1
A75: 2022 | B75: 46 | C75: 17 | D75: 1 | E75: 74 | F75: 公共 | G75: 033031 | H75: 岩手県 | I75: 岩手町 | J75: =IF(千円単!J75="","",ROUND(千円単!J75/1000,0)) -> 243 | K75: =IF(千円単!K75="","",ROUND(千円単!K75/1000,0)) -> 45 | L75: =IF(千円単!L75="","",ROUND(千円単!L75/1000,0)) -> 125 | M75: =IF(千円単!M75="","",ROUND(千円単!M75/1000,0)) -> 234 | N75: =IF(千円単!N75="","",ROUND(千円単!N75/1000,0)) -> 30 | O75: =IF(千円単!O75="","",ROUND(千円単!O75/1000,0)) -> 141 | P75: =IF(千円単!P75="","",ROUND(千円単!P75/1000,0)) -> 14 | Q75: =IF(千円単!Q75="","",ROUND(千円単!Q75/1000,0)) -> 9 | R75: =IF(千円単!R75="","",ROUND(千円単!R75/1000,0)) -> 144 | S75: =IF(千円単!S75="","",ROUND(千円単!S75/1000,0)) -> 94 | T75: =IF(千円単!T75="","",ROUND(千円単!T75/1000,0)) -> 0 | U75: =IF(千円単!U75="","",ROUND(千円単!U75/1000,0)) -> 213 | V75: =IF(千円単!V75="","",ROUND(千円単!V75/1000,0)) -> 52 | W75: =IF(千円単!W75="","",ROUND(千円単!W75/1000,0)) -> 161 | X75: =IF(千円単!X75="","",ROUND(千円単!X75/1000,0)) -> -69 | Y75: =IF(千円単!Y75="","",ROUND(千円単!Y75/1000,0)) -> 9
A76: 2022 | B76: 46 | C76: 17 | D76: 1 | E76: 75 | F76: 公共 | G76: 033219 | H76: 岩手県 | I76: 紫波町 | J76: =IF(千円単!J76="","",ROUND(千円単!J76/1000,0)) -> 721 | K76: =IF(千円単!K76="","",ROUND(千円単!K76/1000,0)) -> 320 | L76: =IF(千円単!L76="","",ROUND(千円単!L76/1000,0)) -> 351 | M76: =IF(千円単!M76="","",ROUND(千円単!M76/1000,0)) -> 748 | N76: =IF(千円単!N76="","",ROUND(千円単!N76/1000,0)) -> 58 | O76: =IF(千円単!O76="","",ROUND(千円単!O76/1000,0)) -> 479 | P76: =IF(千円単!P76="","",ROUND(千円単!P76/1000,0)) -> 29 | Q76: =IF(千円単!Q76="","",ROUND(千円単!Q76/1000,0)) -> -26 | R76: =IF(千円単!R76="","",ROUND(千円単!R76/1000,0)) -> 335 | S76: =IF(千円単!S76="","",ROUND(千円単!S76/1000,0)) -> 168 | T76: =IF(千円単!T76="","",ROUND(千円単!T76/1000,0)) -> 6 | U76: =IF(千円単!U76="","",ROUND(千円単!U76/1000,0)) -> 626 | V76: =IF(千円単!V76="","",ROUND(千円単!V76/1000,0)) -> 356 | W76: =IF(千円単!W76="","",ROUND(千円単!W76/1000,0)) -> 270 | X76: =IF(千円単!X76="","",ROUND(千円単!X76/1000,0)) -> -290 | Y76: =IF(千円単!Y76="","",ROUND(千円単!Y76/1000,0)) -> -26
A77: 2022 | B77: 46 | C77: 17 | D77: 1 | E77: 76 | F77: 公共 | G77: 033227 | H77: 岩手県 | I77: 矢巾町 | J77: =IF(千円単!J77="","",ROUND(千円単!J77/1000,0)) -> 769 | K77: =IF(千円単!K77="","",ROUND(千円単!K77/1000,0)) -> 441 | L77: =IF(千円単!L77="","",ROUND(千円単!L77/1000,0)) -> 106 | M77: =IF(千円単!M77="","",ROUND(千円単!M77/1000,0)) -> 714 | N77: =IF(千円単!N77="","",ROUND(千円単!N77/1000,0)) -> 56 | O77: =IF(千円単!O77="","",ROUND(千円単!O77/1000,0)) -> 400 | P77: =IF(千円単!P77="","",ROUND(千円単!P77/1000,0)) -> 12 | Q77: =IF(千円単!Q77="","",ROUND(千円単!Q77/1000,0)) -> 54 | R77: =IF(千円単!R77="","",ROUND(千円単!R77/1000,0)) -> 152 | S77: =IF(千円単!S77="","",ROUND(千円単!S77/1000,0)) -> 66 | T77: =IF(千円単!T77="","",ROUND(千円単!T77/1000,0)) -> 0 | U77: =IF(千円単!U77="","",ROUND(千円単!U77/1000,0)) -> 358 | V77: =IF(千円単!V77="","",ROUND(千円単!V77/1000,0)) -> 123 | W77: =IF(千円単!W77="","",ROUND(千円単!W77/1000,0)) -> 235 | X77: =IF(千円単!X77="","",ROUND(千円単!X77/1000,0)) -> -206 | Y77: =IF(千円単!Y77="","",ROUND(千円単!Y77/1000,0)) -> 54
A78: 2022 | B78: 46 | C78: 17 | D78: 1 | E78: 77 | F78: 公共 | G78: 033812 | H78: 岩手県 | I78: 金ケ崎町 | J78: =IF(千円単!J78="","",ROUND(千円単!J78/1000,0)) -> 506 | K78: =IF(千円単!K78="","",ROUND(千円単!K78/1000,0)) -> 219 | L78: =IF(千円単!L78="","",ROUND(千円単!L78/1000,0)) -> 196 | M78: =IF(千円単!M78="","",ROUND(千円単!M78/1000,0)) -> 393 | N78: =IF(千円単!N78="","",ROUND(千円単!N78/1000,0)) -> 47 | O78: =IF(千円単!O78="","",ROUND(千円単!O78/1000,0)) -> 206 | P78: =IF(千円単!P78="","",ROUND(千円単!P78/1000,0)) -> 12 | Q78: =IF(千円単!Q78="","",ROUND(千円単!Q78/1000,0)) -> 113 | R78: =IF(千円単!R78="","",ROUND(千円単!R78/1000,0)) -> 181 | S78: =IF(千円単!S78="","",ROUND(千円単!S78/1000,0)) -> 142 | T78: =IF(千円単!T78="","",ROUND(千円単!T78/1000,0)) -> 22 | U78: =IF(千円単!U78="","",ROUND(千円単!U78/1000,0)) -> 406 | V78: =IF(千円単!V78="","",ROUND(千円単!V78/1000,0)) -> 41 | W78: =IF(千円単!W78="","",ROUND(千円単!W78/1000,0)) -> 366 | X78: =IF(千円単!X78="","",ROUND(千円単!X78/1000,0)) -> -225 | Y78: =IF(千円単!Y78="","",ROUND(千円単!Y78/1000,0)) -> 113
A79: 2022 | B79: 46 | C79: 17 | D79: 1 | E79: 78 | F79: 公共 | G79: 034029 | H79: 岩手県 | I79: 平泉町 | J79: =IF(千円単!J79="","",ROUND(千円単!J79/1000,0)) -> 220 | K79: =IF(千円単!K79="","",ROUND(千円単!K79/1000,0)) -> 50 | L79: =IF(千円単!L79="","",ROUND(千円単!L79/1000,0)) -> 106 | M79: =IF(千円単!M79="","",ROUND(千円単!M79/1000,0)) -> 214 | N79: =IF(千円単!N79="","",ROUND(千円単!N79/1000,0)) -> 24 | O79: =IF(千円単!O79="","",ROUND(千円単!O79/1000,0)) -> 132 | P79: =IF(千円単!P79="","",ROUND(千円単!P79/1000,0)) -> 8 | Q79: =IF(千円単!Q79="","",ROUND(千円単!Q79/1000,0)) -> 6 | R79: =IF(千円単!R79="","",ROUND(千円単!R79/1000,0)) -> 90 | S79: =IF(千円単!S79="","",ROUND(千円単!S79/1000,0)) -> 42 | T79: =IF(千円単!T79="","",ROUND(千円単!T79/1000,0)) -> 0 | U79: =IF(千円単!U79="","",ROUND(千円単!U79/1000,0)) -> 161 | V79: =IF(千円単!V79="","",ROUND(千円単!V79/1000,0)) -> 9 | W79: =IF(千円単!W79="","",ROUND(千円単!W79/1000,0)) -> 152 | X79: =IF(千円単!X79="","",ROUND(千円単!X79/1000,0)) -> -71 | Y79: =IF(千円単!Y79="","",ROUND(千円単!Y79/1000,0)) -> 6
A80: 2022 | B80: 46 | C80: 17 | D80: 1 | E80: 79 | F80: 公共 | G80: 034614 | H80: 岩手県 | I80: 大槌町 | J80: =IF(千円単!J80="","",ROUND(千円単!J80/1000,0)) -> 778 | K80: =IF(千円単!K80="","",ROUND(千円単!K80/1000,0)) -> 57 | L80: =IF(千円単!L80="","",ROUND(千円単!L80/1000,0)) -> 267 | M80: =IF(千円単!M80="","",ROUND(千円単!M80/1000,0)) -> 709 | N80: =IF(千円単!N80="","",ROUND(千円単!N80/1000,0)) -> 47 | O80: =IF(千円単!O80="","",ROUND(千円単!O80/1000,0)) -> 549 | P80: =IF(千円単!P80="","",ROUND(千円単!P80/1000,0)) -> 16 | Q80: =IF(千円単!Q80="","",ROUND(千円単!Q80/1000,0)) -> 69 | R80: =IF(千円単!R80="","",ROUND(千円単!R80/1000,0)) -> 352 | S80: =IF(千円単!S80="","",ROUND(千円単!S80/1000,0)) -> 122 | T80: =IF(千円単!T80="","",ROUND(千円単!T80/1000,0)) -> 79 | U80: =IF(千円単!U80="","",ROUND(千円単!U80/1000,0)) -> 473 | V80: =IF(千円単!V80="","",ROUND(千円単!V80/1000,0)) -> 140 | W80: =IF(千円単!W80="","",ROUND(千円単!W80/1000,0)) -> 333 | X80: =IF(千円単!X80="","",ROUND(千円単!X80/1000,0)) -> -121 | Y80: =IF(千円単!Y80="","",ROUND(千円単!Y80/1000,0)) -> 69
A81: 2022 | B81: 46 | C81: 17 | D81: 1 | E81: 80 | F81: 公共 | G81: 041009 | H81: 宮城県 | I81: 仙台市 | J81: =IF(千円単!J81="","",ROUND(千円単!J81/1000,0)) -> 33121 | K81: =IF(千円単!K81="","",ROUND(千円単!K81/1000,0)) -> 15661 | L81: =IF(千円単!L81="","",ROUND(千円単!L81/1000,0)) -> 6138 | M81: =IF(千円単!M81="","",ROUND(千円単!M81/1000,0)) -> 30495 | N81: =IF(千円単!N81="","",ROUND(千円単!N81/1000,0)) -> 1905 | O81: =IF(千円単!O81="","",ROUND(千円単!O81/1000,0)) -> 19713 | P81: =IF(千円単!P81="","",ROUND(千円単!P81/1000,0)) -> 1120 | Q81: =IF(千円単!Q81="","",ROUND(千円単!Q81/1000,0)) -> 2626 | R81: =IF(千円単!R81="","",ROUND(千円単!R81/1000,0)) -> 14595 | S81: =IF(千円単!S81="","",ROUND(千円単!S81/1000,0)) -> 10219 | T81: =IF(千円単!T81="","",ROUND(千円単!T81/1000,0)) -> 303 | U81: =IF(千円単!U81="","",ROUND(千円単!U81/1000,0)) -> 29339 | V81: =IF(千円単!V81="","",ROUND(千円単!V81/1000,0)) -> 12259 | W81: =IF(千円単!W81="","",ROUND(千円単!W81/1000,0)) -> 17080 | X81: =IF(千円単!X81="","",ROUND(千円単!X81/1000,0)) -> -14744 | Y81: =IF(千円単!Y81="","",ROUND(千円単!Y81/1000,0)) -> 2626
A82: 2022 | B82: 46 | C82: 17 | D82: 1 | E82: 81 | F82: 公共 | G82: 042021 | H82: 宮城県 | I82: 石巻市 | J82: =IF(千円単!J82="","",ROUND(千円単!J82/1000,0)) -> 5851 | K82: =IF(千円単!K82="","",ROUND(千円単!K82/1000,0)) -> 1502 | L82: =IF(千円単!L82="","",ROUND(千円単!L82/1000,0)) -> 1816 | M82: =IF(千円単!M82="","",ROUND(千円単!M82/1000,0)) -> 5570 | N82: =IF(千円単!N82="","",ROUND(千円単!N82/1000,0)) -> 346 | O82: =IF(千円単!O82="","",ROUND(千円単!O82/1000,0)) -> 3509 | P82: =IF(千円単!P82="","",ROUND(千円単!P82/1000,0)) -> 141 | Q82: =IF(千円単!Q82="","",ROUND(千円単!Q82/1000,0)) -> 281 | R82: =IF(千円単!R82="","",ROUND(千円単!R82/1000,0)) -> 31064 | S82: =IF(千円単!S82="","",ROUND(千円単!S82/1000,0)) -> 1908 | T82: =IF(千円単!T82="","",ROUND(千円単!T82/1000,0)) -> 26697 | U82: =IF(千円単!U82="","",ROUND(千円単!U82/1000,0)) -> 42388 | V82: =IF(千円単!V82="","",ROUND(千円単!V82/1000,0)) -> 39401 | W82: =IF(千円単!W82="","",ROUND(千円単!W82/1000,0)) -> 2986 | X82: =IF(千円単!X82="","",ROUND(千円単!X82/1000,0)) -> -11324 | Y82: =IF(千円単!Y82="","",ROUND(千円単!Y82/1000,0)) -> 281
A83: 2022 | B83: 46 | C83: 17 | D83: 1 | E83: 82 | F83: 公共 | G83: 042030 | H83: 宮城県 | I83: 塩竈市 | J83: =IF(千円単!J83="","",ROUND(千円単!J83/1000,0)) -> 4150 | K83: =IF(千円単!K83="","",ROUND(千円単!K83/1000,0)) -> 1109 | L83: =IF(千円単!L83="","",ROUND(千円単!L83/1000,0)) -> 1221 | M83: =IF(千円単!M83="","",ROUND(千円単!M83/1000,0)) -> 3624 | N83: =IF(千円単!N83="","",ROUND(千円単!N83/1000,0)) -> 279 | O83: =IF(千円単!O83="","",ROUND(千円単!O83/1000,0)) -> 2705 | P83: =IF(千円単!P83="","",ROUND(千円単!P83/1000,0)) -> 107 | Q83: =IF(千円単!Q83="","",ROUND(千円単!Q83/1000,0)) -> 527 | R83: =IF(千円単!R83="","",ROUND(千円単!R83/1000,0)) -> 2340 | S83: =IF(千円単!S83="","",ROUND(千円単!S83/1000,0)) -> 2012 | T83: =IF(千円単!T83="","",ROUND(千円単!T83/1000,0)) -> 116 | U83: =IF(千円単!U83="","",ROUND(千円単!U83/1000,0)) -> 3693 | V83: =IF(千円単!V83="","",ROUND(千円単!V83/1000,0)) -> 442 | W83: =IF(千円単!W83="","",ROUND(千円単!W83/1000,0)) -> 3251 | X83: =IF(千円単!X83="","",ROUND(千円単!X83/1000,0)) -> -1353 | Y83: =IF(千円単!Y83="","",ROUND(千円単!Y83/1000,0)) -> 527
A84: 2022 | B84: 46 | C84: 17 | D84: 1 | E84: 83 | F84: 公共 | G84: 042056 | H84: 宮城県 | I84: 気仙沼市 | J84: =IF(千円単!J84="","",ROUND(千円単!J84/1000,0)) -> 1608 | K84: =IF(千円単!K84="","",ROUND(千円単!K84/1000,0)) -> 321 | L84: =IF(千円単!L84="","",ROUND(千円単!L84/1000,0)) -> 496 | M84: =IF(千円単!M84="","",ROUND(千円単!M84/1000,0)) -> 1738 | N84: =IF(千円単!N84="","",ROUND(千円単!N84/1000,0)) -> 64 | O84: =IF(千円単!O84="","",ROUND(千円単!O84/1000,0)) -> 1122 | P84: =IF(千円単!P84="","",ROUND(千円単!P84/1000,0)) -> 93 | Q84: =IF(千円単!Q84="","",ROUND(千円単!Q84/1000,0)) -> -131 | R84: =IF(千円単!R84="","",ROUND(千円単!R84/1000,0)) -> 432 | S84: =IF(千円単!S84="","",ROUND(千円単!S84/1000,0)) -> 194 | T84: =IF(千円単!T84="","",ROUND(千円単!T84/1000,0)) -> 0 | U84: =IF(千円単!U84="","",ROUND(千円単!U84/1000,0)) -> 687 | V84: =IF(千円単!V84="","",ROUND(千円単!V84/1000,0)) -> 179 | W84: =IF(千円単!W84="","",ROUND(千円単!W84/1000,0)) -> 508 | X84: =IF(千円単!X84="","",ROUND(千円単!X84/1000,0)) -> -255 | Y84: =IF(千円単!Y84="","",ROUND(千円単!Y84/1000,0)) -> -131
A85: 2022 | B85: 46 | C85: 17 | D85: 1 | E85: 84 | F85: 公共 | G85: 042064 | H85: 宮城県 | I85: 白石市 | J85: =IF(千円単!J85="","",ROUND(千円単!J85/1000,0)) -> 846 | K85: =IF(千円単!K85="","",ROUND(千円単!K85/1000,0)) -> 544 | L85: =IF(千円単!L85="","",ROUND(千円単!L85/1000,0)) -> 44 | M85: =IF(千円単!M85="","",ROUND(千円単!M85/1000,0)) -> 737 | N85: =IF(千円単!N85="","",ROUND(千円単!N85/1000,0)) -> 69 | O85: =IF(千円単!O85="","",ROUND(千円単!O85/1000,0)) -> 486 | P85: =IF(千円単!P85="","",ROUND(千円単!P85/1000,0)) -> 18 | Q85: =IF(千円単!Q85="","",ROUND(千円単!Q85/1000,0)) -> 108 | R85: =IF(千円単!R85="","",ROUND(千円単!R85/1000,0)) -> 377 | S85: =IF(千円単!S85="","",ROUND(千円単!S85/1000,0)) -> 210 | T85: =IF(千円単!T85="","",ROUND(千円単!T85/1000,0)) -> 0 | U85: =IF(千円単!U85="","",ROUND(千円単!U85/1000,0)) -> 727 | V85: =IF(千円単!V85="","",ROUND(千円単!V85/1000,0)) -> 41 | W85: =IF(千円単!W85="","",ROUND(千円単!W85/1000,0)) -> 687 | X85: =IF(千円単!X85="","",ROUND(千円単!X85/1000,0)) -> -350 | Y85: =IF(千円単!Y85="","",ROUND(千円単!Y85/1000,0)) -> 108
A86: 2022 | B86: 46 | C86: 17 | D86: 1 | E86: 85 | F86: 公共 | G86: 042072 | H86: 宮城県 | I86: 名取市 | J86: =IF(千円単!J86="","",ROUND(千円単!J86/1000,0)) -> 2443 | K86: =IF(千円単!K86="","",ROUND(千円単!K86/1000,0)) -> 1311 | L86: =IF(千円単!L86="","",ROUND(千円単!L86/1000,0)) -> 432 | M86: =IF(千円単!M86="","",ROUND(千円単!M86/1000,0)) -> 2443 | N86: =IF(千円単!N86="","",ROUND(千円単!N86/1000,0)) -> 176 | O86: =IF(千円単!O86="","",ROUND(千円単!O86/1000,0)) -> 1563 | P86: =IF(千円単!P86="","",ROUND(千円単!P86/1000,0)) -> 65 | Q86: =IF(千円単!Q86="","",ROUND(千円単!Q86/1000,0)) -> 0 | R86: =IF(千円単!R86="","",ROUND(千円単!R86/1000,0)) -> 601 | S86: =IF(千円単!S86="","",ROUND(千円単!S86/1000,0)) -> 280 | T86: =IF(千円単!T86="","",ROUND(千円単!T86/1000,0)) -> 0 | U86: =IF(千円単!U86="","",ROUND(千円単!U86/1000,0)) -> 1955 | V86: =IF(千円単!V86="","",ROUND(千円単!V86/1000,0)) -> 606 | W86: =IF(千円単!W86="","",ROUND(千円単!W86/1000,0)) -> 1349 | X86: =IF(千円単!X86="","",ROUND(千円単!X86/1000,0)) -> -1354 | Y86: =IF(千円単!Y86="","",ROUND(千円単!Y86/1000,0)) -> 0
A87: 2022 | B87: 46 | C87: 17 | D87: 1 | E87: 86 | F87: 公共 | G87: 042081 | H87: 宮城県 | I87: 角田市 | J87: =IF(千円単!J87="","",ROUND(千円単!J87/1000,0)) -> 849 | K87: =IF(千円単!K87="","",ROUND(千円単!K87/1000,0)) -> 253 | L87: =IF(千円単!L87="","",ROUND(千円単!L87/1000,0)) -> 173 | M87: =IF(千円単!M87="","",ROUND(千円単!M87/1000,0)) -> 818 | N87: =IF(千円単!N87="","",ROUND(千円単!N87/1000,0)) -> 93 | O87: =IF(千円単!O87="","",ROUND(千円単!O87/1000,0)) -> 568 | P87: =IF(千円単!P87="","",ROUND(千円単!P87/1000,0)) -> 42 | Q87: =IF(千円単!Q87="","",ROUND(千円単!Q87/1000,0)) -> 31 | R87: =IF(千円単!R87="","",ROUND(千円単!R87/1000,0)) -> 844 | S87: =IF(千円単!S87="","",ROUND(千円単!S87/1000,0)) -> 348 | T87: =IF(千円単!T87="","",ROUND(千円単!T87/1000,0)) -> 431 | U87: =IF(千円単!U87="","",ROUND(千円単!U87/1000,0)) -> 994 | V87: =IF(千円単!V87="","",ROUND(千円単!V87/1000,0)) -> 194 | W87: =IF(千円単!W87="","",ROUND(千円単!W87/1000,0)) -> 801 | X87: =IF(千円単!X87="","",ROUND(千円単!X87/1000,0)) -> -150 | Y87: =IF(千円単!Y87="","",ROUND(千円単!Y87/1000,0)) -> 31
A88: 2022 | B88: 46 | C88: 17 | D88: 1 | E88: 87 | F88: 公共 | G88: 042099 | H88: 宮城県 | I88: 多賀城市 | J88: =IF(千円単!J88="","",ROUND(千円単!J88/1000,0)) -> 3031 | K88: =IF(千円単!K88="","",ROUND(千円単!K88/1000,0)) -> 759 | L88: =IF(千円単!L88="","",ROUND(千円単!L88/1000,0)) -> 1090 | M88: =IF(千円単!M88="","",ROUND(千円単!M88/1000,0)) -> 2855 | N88: =IF(千円単!N88="","",ROUND(千円単!N88/1000,0)) -> 171 | O88: =IF(千円単!O88="","",ROUND(千円単!O88/1000,0)) -> 1948 | P88: =IF(千円単!P88="","",ROUND(千円単!P88/1000,0)) -> 103 | Q88: =IF(千円単!Q88="","",ROUND(千円単!Q88/1000,0)) -> 176 | R88: =IF(千円単!R88="","",ROUND(千円単!R88/1000,0)) -> 1059 | S88: =IF(千円単!S88="","",ROUND(千円単!S88/1000,0)) -> 615 | T88: =IF(千円単!T88="","",ROUND(千円単!T88/1000,0)) -> 132 | U88: =IF(千円単!U88="","",ROUND(千円単!U88/1000,0)) -> 2043 | V88: =IF(千円単!V88="","",ROUND(千円単!V88/1000,0)) -> 482 | W88: =IF(千円単!W88="","",ROUND(千円単!W88/1000,0)) -> 1560 | X88: =IF(千円単!X88="","",ROUND(千円単!X88/1000,0)) -> -984 | Y88: =IF(千円単!Y88="","",ROUND(千円単!Y88/1000,0)) -> 176
A89: 2022 | B89: 46 | C89: 17 | D89: 1 | E89: 88 | F89: 公共 | G89: 042111 | H89: 宮城県 | I89: 岩沼市 | J89: =IF(千円単!J89="","",ROUND(千円単!J89/1000,0)) -> 1942 | K89: =IF(千円単!K89="","",ROUND(千円単!K89/1000,0)) -> 703 | L89: =IF(千円単!L89="","",ROUND(千円単!L89/1000,0)) -> 242 | M89: =IF(千円単!M89="","",ROUND(千円単!M89/1000,0)) -> 1762 | N89: =IF(千円単!N89="","",ROUND(千円単!N89/1000,0)) -> 70 | O89: =IF(千円単!O89="","",ROUND(千円単!O89/1000,0)) -> 1257 | P89: =IF(千円単!P89="","",ROUND(千円単!P89/1000,0)) -> 31 | Q89: =IF(千円単!Q89="","",ROUND(千円単!Q89/1000,0)) -> 179 | R89: =IF(千円単!R89="","",ROUND(千円単!R89/1000,0)) -> 775 | S89: =IF(千円単!S89="","",ROUND(千円単!S89/1000,0)) -> 390 | T89: =IF(千円単!T89="","",ROUND(千円単!T89/1000,0)) -> 0 | U89: =IF(千円単!U89="","",ROUND(千円単!U89/1000,0)) -> 1056 | V89: =IF(千円単!V89="","",ROUND(千円単!V89/1000,0)) -> 635 | W89: =IF(千円単!W89="","",ROUND(千円単!W89/1000,0)) -> 422 | X89: =IF(千円単!X89="","",ROUND(千円単!X89/1000,0)) -> -281 | Y89: =IF(千円単!Y89="","",ROUND(千円単!Y89/1000,0)) -> 179
A90: 2022 | B90: 46 | C90: 17 | D90: 1 | E90: 89 | F90: 公共 | G90: 042129 | H90: 宮城県 | I90: 登米市 | J90: =IF(千円単!J90="","",ROUND(千円単!J90/1000,0)) -> 1044 | K90: =IF(千円単!K90="","",ROUND(千円単!K90/1000,0)) -> 258 | L90: =IF(千円単!L90="","",ROUND(千円単!L90/1000,0)) -> 424 | M90: =IF(千円単!M90="","",ROUND(千円単!M90/1000,0)) -> 1022 | N90: =IF(千円単!N90="","",ROUND(千円単!N90/1000,0)) -> 117 | O90: =IF(千円単!O90="","",ROUND(千円単!O90/1000,0)) -> 677 | P90: =IF(千円単!P90="","",ROUND(千円単!P90/1000,0)) -> 36 | Q90: =IF(千円単!Q90="","",ROUND(千円単!Q90/1000,0)) -> 22 | R90: =IF(千円単!R90="","",ROUND(千円単!R90/1000,0)) -> 845 | S90: =IF(千円単!S90="","",ROUND(千円単!S90/1000,0)) -> 531 | T90: =IF(千円単!T90="","",ROUND(千円単!T90/1000,0)) -> 0 | U90: =IF(千円単!U90="","",ROUND(千円単!U90/1000,0)) -> 1190 | V90: =IF(千円単!V90="","",ROUND(千円単!V90/1000,0)) -> 392 | W90: =IF(千円単!W90="","",ROUND(千円単!W90/1000,0)) -> 798 | X90: =IF(千円単!X90="","",ROUND(千円単!X90/1000,0)) -> -344 | Y90: =IF(千円単!Y90="","",ROUND(千円単!Y90/1000,0)) -> 22
A91: 2022 | B91: 46 | C91: 17 | D91: 1 | E91: 90 | F91: 公共 | G91: 042137 | H91: 宮城県 | I91: 栗原市 | J91: =IF(千円単!J91="","",ROUND(千円単!J91/1000,0)) -> 583 | K91: =IF(千円単!K91="","",ROUND(千円単!K91/1000,0)) -> 203 | L91: =IF(千円単!L91="","",ROUND(千円単!L91/1000,0)) -> 232 | M91: =IF(千円単!M91="","",ROUND(千円単!M91/1000,0)) -> 590 | N91: =IF(千円単!N91="","",ROUND(千円単!N91/1000,0)) -> 61 | O91: =IF(千円単!O91="","",ROUND(千円単!O91/1000,0)) -> 340 | P91: =IF(千円単!P91="","",ROUND(千円単!P91/1000,0)) -> 34 | Q91: =IF(千円単!Q91="","",ROUND(千円単!Q91/1000,0)) -> -8 | R91: =IF(千円単!R91="","",ROUND(千円単!R91/1000,0)) -> 626 | S91: =IF(千円単!S91="","",ROUND(千円単!S91/1000,0)) -> 401 | T91: =IF(千円単!T91="","",ROUND(千円単!T91/1000,0)) -> 0 | U91: =IF(千円単!U91="","",ROUND(千円単!U91/1000,0)) -> 812 | V91: =IF(千円単!V91="","",ROUND(千円単!V91/1000,0)) -> 152 | W91: =IF(千円単!W91="","",ROUND(千円単!W91/1000,0)) -> 660 | X91: =IF(千円単!X91="","",ROUND(千円単!X91/1000,0)) -> -186 | Y91: =IF(千円単!Y91="","",ROUND(千円単!Y91/1000,0)) -> -8
A92: 2022 | B92: 46 | C92: 17 | D92: 1 | E92: 91 | F92: 公共 | G92: 042145 | H92: 宮城県 | I92: 東松島市 | J92: =IF(千円単!J92="","",ROUND(千円単!J92/1000,0)) -> 2281 | K92: =IF(千円単!K92="","",ROUND(千円単!K92/1000,0)) -> 493 | L92: =IF(千円単!L92="","",ROUND(千円単!L92/1000,0)) -> 666 | M92: =IF(千円単!M92="","",ROUND(千円単!M92/1000,0)) -> 1808 | N92: =IF(千円単!N92="","",ROUND(千円単!N92/1000,0)) -> 121 | O92: =IF(千円単!O92="","",ROUND(千円単!O92/1000,0)) -> 1318 | P92: =IF(千円単!P92="","",ROUND(千円単!P92/1000,0)) -> 26 | Q92: =IF(千円単!Q92="","",ROUND(千円単!Q92/1000,0)) -> 473 | R92: =IF(千円単!R92="","",ROUND(千円単!R92/1000,0)) -> 241 | S92: =IF(千円単!S92="","",ROUND(千円単!S92/1000,0)) -> 86 | T92: =IF(千円単!T92="","",ROUND(千円単!T92/1000,0)) -> 55 | U92: =IF(千円単!U92="","",ROUND(千円単!U92/1000,0)) -> 863 | V92: =IF(千円単!V92="","",ROUND(千円単!V92/1000,0)) -> 212 | W92: =IF(千円単!W92="","",ROUND(千円単!W92/1000,0)) -> 650 | X92: =IF(千円単!X92="","",ROUND(千円単!X92/1000,0)) -> -621 | Y92: =IF(千円単!Y92="","",ROUND(千円単!Y92/1000,0)) -> 473
A93: 2022 | B93: 46 | C93: 17 | D93: 1 | E93: 92 | F93: 公共 | G93: 042153 | H93: 宮城県 | I93: 大崎市 | J93: =IF(千円単!J93="","",ROUND(千円単!J93/1000,0)) -> 2570 | K93: =IF(千円単!K93="","",ROUND(千円単!K93/1000,0)) -> 915 | L93: =IF(千円単!L93="","",ROUND(千円単!L93/1000,0)) -> 828 | M93: =IF(千円単!M93="","",ROUND(千円単!M93/1000,0)) -> 2623 | N93: =IF(千円単!N93="","",ROUND(千円単!N93/1000,0)) -> 255 | O93: =IF(千円単!O93="","",ROUND(千円単!O93/1000,0)) -> 1680 | P93: =IF(千円単!P93="","",ROUND(千円単!P93/1000,0)) -> 61 | Q93: =IF(千円単!Q93="","",ROUND(千円単!Q93/1000,0)) -> -53 | R93: =IF(千円単!R93="","",ROUND(千円単!R93/1000,0)) -> 2497 | S93: =IF(千円単!S93="","",ROUND(千円単!S93/1000,0)) -> 1348 | T93: =IF(千円単!T93="","",ROUND(千円単!T93/1000,0)) -> 198 | U93: =IF(千円単!U93="","",ROUND(千円単!U93/1000,0)) -> 3282 | V93: =IF(千円単!V93="","",ROUND(千円単!V93/1000,0)) -> 1118 | W93: =IF(千円単!W93="","",ROUND(千円単!W93/1000,0)) -> 2164 | X93: =IF(千円単!X93="","",ROUND(千円単!X93/1000,0)) -> -785 | Y93: =IF(千円単!Y93="","",ROUND(千円単!Y93/1000,0)) -> -53
A94: 2022 | B94: 46 | C94: 17 | D94: 1 | E94: 93 | F94: 公共 | G94: 042161 | H94: 宮城県 | I94: 富谷市 | J94: =IF(千円単!J94="","",ROUND(千円単!J94/1000,0)) -> 1084 | K94: =IF(千円単!K94="","",ROUND(千円単!K94/1000,0)) -> 543 | L94: =IF(千円単!L94="","",ROUND(千円単!L94/1000,0)) -> 6 | M94: =IF(千円単!M94="","",ROUND(千円単!M94/1000,0)) -> 1044 | N94: =IF(千円単!N94="","",ROUND(千円単!N94/1000,0)) -> 15 | O94: =IF(千円単!O94="","",ROUND(千円単!O94/1000,0)) -> 585 | P94: =IF(千円単!P94="","",ROUND(千円単!P94/1000,0)) -> 18 | Q94: =IF(千円単!Q94="","",ROUND(千円単!Q94/1000,0)) -> 40 | R94: =IF(千円単!R94="","",ROUND(千円単!R94/1000,0)) -> 240 | S94: =IF(千円単!S94="","",ROUND(千円単!S94/1000,0)) -> 61 | T94: =IF(千円単!T94="","",ROUND(千円単!T94/1000,0)) -> 20 | U94: =IF(千円単!U94="","",ROUND(千円単!U94/1000,0)) -> 337 | V94: =IF(千円単!V94="","",ROUND(千円単!V94/1000,0)) -> 221 | W94: =IF(千円単!W94="","",ROUND(千円単!W94/1000,0)) -> 116 | X94: =IF(千円単!X94="","",ROUND(千円単!X94/1000,0)) -> -97 | Y94: =IF(千円単!Y94="","",ROUND(千円単!Y94/1000,0)) -> 40
A95: 2022 | B95: 46 | C95: 17 | D95: 1 | E95: 94 | F95: 公共 | G95: 043214 | H95: 宮城県 | I95: 大河原町 | J95: =IF(千円単!J95="","",ROUND(千円単!J95/1000,0)) -> 744 | K95: =IF(千円単!K95="","",ROUND(千円単!K95/1000,0)) -> 357 | L95: =IF(千円単!L95="","",ROUND(千円単!L95/1000,0)) -> 170 | M95: =IF(千円単!M95="","",ROUND(千円単!M95/1000,0)) -> 566 | N95: =IF(千円単!N95="","",ROUND(千円単!N95/1000,0)) -> 52 | O95: =IF(千円単!O95="","",ROUND(千円単!O95/1000,0)) -> 356 | P95: =IF(千円単!P95="","",ROUND(千円単!P95/1000,0)) -> 15 | Q95: =IF(千円単!Q95="","",ROUND(千円単!Q95/1000,0)) -> 178 | R95: =IF(千円単!R95="","",ROUND(千円単!R95/1000,0)) -> 406 | S95: =IF(千円単!S95="","",ROUND(千円単!S95/1000,0)) -> 229 | T95: =IF(千円単!T95="","",ROUND(千円単!T95/1000,0)) -> 46 | U95: =IF(千円単!U95="","",ROUND(千円単!U95/1000,0)) -> 684 | V95: =IF(千円単!V95="","",ROUND(千円単!V95/1000,0)) -> 297 | W95: =IF(千円単!W95="","",ROUND(千円単!W95/1000,0)) -> 387 | X95: =IF(千円単!X95="","",ROUND(千円単!X95/1000,0)) -> -278 | Y95: =IF(千円単!Y95="","",ROUND(千円単!Y95/1000,0)) -> 178
A96: 2022 | B96: 46 | C96: 17 | D96: 1 | E96: 95 | F96: 公共 | G96: 043222 | H96: 宮城県 | I96: 村田町 | J96: =IF(千円単!J96="","",ROUND(千円単!J96/1000,0)) -> 274 | K96: =IF(千円単!K96="","",ROUND(千円単!K96/1000,0)) -> 150 | L96: =IF(千円単!L96="","",ROUND(千円単!L96/1000,0)) -> 30 | M96: =IF(千円単!M96="","",ROUND(千円単!M96/1000,0)) -> 261 | N96: =IF(千円単!N96="","",ROUND(千円単!N96/1000,0)) -> 21 | O96: =IF(千円単!O96="","",ROUND(千円単!O96/1000,0)) -> 184 | P96: =IF(千円単!P96="","",ROUND(千円単!P96/1000,0)) -> 10 | Q96: =IF(千円単!Q96="","",ROUND(千円単!Q96/1000,0)) -> 12 | R96: =IF(千円単!R96="","",ROUND(千円単!R96/1000,0)) -> 151 | S96: =IF(千円単!S96="","",ROUND(千円単!S96/1000,0)) -> 47 | T96: =IF(千円単!T96="","",ROUND(千円単!T96/1000,0)) -> 0 | U96: =IF(千円単!U96="","",ROUND(千円単!U96/1000,0)) -> 236 | V96: =IF(千円単!V96="","",ROUND(千円単!V96/1000,0)) -> 30 | W96: =IF(千円単!W96="","",ROUND(千円単!W96/1000,0)) -> 205 | X96: =IF(千円単!X96="","",ROUND(千円単!X96/1000,0)) -> -85 | Y96: =IF(千円単!Y96="","",ROUND(千円単!Y96/1000,0)) -> 12
A97: 2022 | B97: 46 | C97: 17 | D97: 1 | E97: 96 | F97: 公共 | G97: 043231 | H97: 宮城県 | I97: 柴田町 | J97: =IF(千円単!J97="","",ROUND(千円単!J97/1000,0)) -> 1181 | K97: =IF(千円単!K97="","",ROUND(千円単!K97/1000,0)) -> 527 | L97: =IF(千円単!L97="","",ROUND(千円単!L97/1000,0)) -> 185 | M97: =IF(千円単!M97="","",ROUND(千円単!M97/1000,0)) -> 1093 | N97: =IF(千円単!N97="","",ROUND(千円単!N97/1000,0)) -> 84 | O97: =IF(千円単!O97="","",ROUND(千円単!O97/1000,0)) -> 749 | P97: =IF(千円単!P97="","",ROUND(千円単!P97/1000,0)) -> 8 | Q97: =IF(千円単!Q97="","",ROUND(千円単!Q97/1000,0)) -> 88 | R97: =IF(千円単!R97="","",ROUND(千円単!R97/1000,0)) -> 1127 | S97: =IF(千円単!S97="","",ROUND(千円単!S97/1000,0)) -> 411 | T97: =IF(千円単!T97="","",ROUND(千円単!T97/1000,0)) -> 0 | U97: =IF(千円単!U97="","",ROUND(千円単!U97/1000,0)) -> 1411 | V97: =IF(千円単!V97="","",ROUND(千円単!V97/1000,0)) -> 829 | W97: =IF(千円単!W97="","",ROUND(千円単!W97/1000,0)) -> 583 | X97: =IF(千円単!X97="","",ROUND(千円単!X97/1000,0)) -> -284 | Y97: =IF(千円単!Y97="","",ROUND(千円単!Y97/1000,0)) -> 88
A98: 2022 | B98: 46 | C98: 17 | D98: 1 | E98: 97 | F98: 公共 | G98: 043613 | H98: 宮城県 | I98: 亘理町 | J98: =IF(千円単!J98="","",ROUND(千円単!J98/1000,0)) -> 1280 | K98: =IF(千円単!K98="","",ROUND(千円単!K98/1000,0)) -> 420 | L98: =IF(千円単!L98="","",ROUND(千円単!L98/1000,0)) -> 549 | M98: =IF(千円単!M98="","",ROUND(千円単!M98/1000,0)) -> 965 | N98: =IF(千円単!N98="","",ROUND(千円単!N98/1000,0)) -> 97 | O98: =IF(千円単!O98="","",ROUND(千円単!O98/1000,0)) -> 613 | P98: =IF(千円単!P98="","",ROUND(千円単!P98/1000,0)) -> 11 | Q98: =IF(千円単!Q98="","",ROUND(千円単!Q98/1000,0)) -> 316 | R98: =IF(千円単!R98="","",ROUND(千円単!R98/1000,0)) -> 644 | S98: =IF(千円単!S98="","",ROUND(千円単!S98/1000,0)) -> 390 | T98: =IF(千円単!T98="","",ROUND(千円単!T98/1000,0)) -> 72 | U98: =IF(千円単!U98="","",ROUND(千円単!U98/1000,0)) -> 1314 | V98: =IF(千円単!V98="","",ROUND(千円単!V98/1000,0)) -> 578 | W98: =IF(千円単!W98="","",ROUND(千円単!W98/1000,0)) -> 736 | X98: =IF(千円単!X98="","",ROUND(千円単!X98/1000,0)) -> -670 | Y98: =IF(千円単!Y98="","",ROUND(千円単!Y98/1000,0)) -> 316
A99: 2022 | B99: 46 | C99: 17 | D99: 1 | E99: 98 | F99: 公共 | G99: 044067 | H99: 宮城県 | I99: 利府町 | J99: =IF(千円単!J99="","",ROUND(千円単!J99/1000,0)) -> 1326 | K99: =IF(千円単!K99="","",ROUND(千円単!K99/1000,0)) -> 408 | L99: =IF(千円単!L99="","",ROUND(千円単!L99/1000,0)) -> 167 | M99: =IF(千円単!M99="","",ROUND(千円単!M99/1000,0)) -> 1232 | N99: =IF(千円単!N99="","",ROUND(千円単!N99/1000,0)) -> 32 | O99: =IF(千円単!O99="","",ROUND(千円単!O99/1000,0)) -> 846 | P99: =IF(千円単!P99="","",ROUND(千円単!P99/1000,0)) -> 26 | Q99: =IF(千円単!Q99="","",ROUND(千円単!Q99/1000,0)) -> 94 | R99: =IF(千円単!R99="","",ROUND(千円単!R99/1000,0)) -> 463 | S99: =IF(千円単!S99="","",ROUND(千円単!S99/1000,0)) -> 298 | T99: =IF(千円単!T99="","",ROUND(千円単!T99/1000,0)) -> 39 | U99: =IF(千円単!U99="","",ROUND(千円単!U99/1000,0)) -> 596 | V99: =IF(千円単!V99="","",ROUND(千円単!V99/1000,0)) -> 367 | W99: =IF(千円単!W99="","",ROUND(千円単!W99/1000,0)) -> 229 | X99: =IF(千円単!X99="","",ROUND(千円単!X99/1000,0)) -> -133 | Y99: =IF(千円単!Y99="","",ROUND(千円単!Y99/1000,0)) -> 94
A100: 2022 | B100: 46 | C100: 17 | D100: 1 | E100: 99 | F100: 公共 | G100: 044211 | H100: 宮城県 | I100: 大和町 | J100: =IF(千円単!J100="","",ROUND(千円単!J100/1000,0)) -> 862 | K100: =IF(千円単!K100="","",ROUND(千円単!K100/1000,0)) -> 368 | L100: =IF(千円単!L100="","",ROUND(千円単!L100/1000,0)) -> 275 | M100: =IF(千円単!M100="","",ROUND(千円単!M100/1000,0)) -> 724 | N100: =IF(千円単!N100="","",ROUND(千円単!N100/1000,0)) -> 42 | O100: =IF(千円単!O100="","",ROUND(千円単!O100/1000,0)) -> 394 | P100: =IF(千円単!P100="","",ROUND(千円単!P100/1000,0)) -> 20 | Q100: =IF(千円単!Q100="","",ROUND(千円単!Q100/1000,0)) -> 138 | R100: =IF(千円単!R100="","",ROUND(千円単!R100/1000,0)) -> 274 | S100: =IF(千円単!S100="","",ROUND(千円単!S100/1000,0)) -> 168 | T100: =IF(千円単!T100="","",ROUND(千円単!T100/1000,0)) -> 53 | U100: =IF(千円単!U100="","",ROUND(千円単!U100/1000,0)) -> 496 | V100: =IF(千円単!V100="","",ROUND(千円単!V100/1000,0)) -> 156 | W100: =IF(千円単!W100="","",ROUND(千円単!W100/1000,0)) -> 339 | X100: =IF(千円単!X100="","",ROUND(千円単!X100/1000,0)) -> -222 | Y100: =IF(千円単!Y100="","",ROUND(千円単!Y100/1000,0)) -> 138
A101: 2022 | B101: 46 | C101: 17 | D101: 1 | E101: 100 | F101: 公共 | G101: 045012 | H101: 宮城県 | I101: 涌谷町 | J101: =IF(千円単!J101="","",ROUND(千円単!J101/1000,0)) -> 352 | K101: =IF(千円単!K101="","",ROUND(千円単!K101/1000,0)) -> 82 | L101: =IF(千円単!L101="","",ROUND(千円単!L101/1000,0)) -> 145 | M101: =IF(千円単!M101="","",ROUND(千円単!M101/1000,0)) -> 349 | N101: =IF(千円単!N101="","",ROUND(千円単!N101/1000,0)) -> 42 | O101: =IF(千円単!O101="","",ROUND(千円単!O101/1000,0)) -> 210 | P101: =IF(千円単!P101="","",ROUND(千円単!P101/1000,0)) -> 25 | Q101: =IF(千円単!Q101="","",ROUND(千円単!Q101/1000,0)) -> 3 | R101: =IF(千円単!R101="","",ROUND(千円単!R101/1000,0)) -> 228 | S101: =IF(千円単!S101="","",ROUND(千円単!S101/1000,0)) -> 99 | T101: =IF(千円単!T101="","",ROUND(千円単!T101/1000,0)) -> 0 | U101: =IF(千円単!U101="","",ROUND(千円単!U101/1000,0)) -> 335 | V101: =IF(千円単!V101="","",ROUND(千円単!V101/1000,0)) -> 62 | W101: =IF(千円単!W101="","",ROUND(千円単!W101/1000,0)) -> 274 | X101: =IF(千円単!X101="","",ROUND(千円単!X101/1000,0)) -> -107 | Y101: =IF(千円単!Y101="","",ROUND(千円単!Y101/1000,0)) -> 3
A102: 2022 | B102: 46 | C102: 17 | D102: 1 | E102: 101 | F102: 公共 | G102: 045055 | H102: 宮城県 | I102: 美里町 | J102: =IF(千円単!J102="","",ROUND(千円単!J102/1000,0)) -> 458 | K102: =IF(千円単!K102="","",ROUND(千円単!K102/1000,0)) -> 150 | L102: =IF(千円単!L102="","",ROUND(千円単!L102/1000,0)) -> 153 | M102: =IF(千円単!M102="","",ROUND(千円単!M102/1000,0)) -> 444 | N102: =IF(千円単!N102="","",ROUND(千円単!N102/1000,0)) -> 55 | O102: =IF(千円単!O102="","",ROUND(千円単!O102/1000,0)) -> 261 | P102: =IF(千円単!P102="","",ROUND(千円単!P102/1000,0)) -> 15 | Q102: =IF(千円単!Q102="","",ROUND(千円単!Q102/1000,0)) -> 13 | R102: =IF(千円単!R102="","",ROUND(千円単!R102/1000,0)) -> 783 | S102: =IF(千円単!S102="","",ROUND(千円単!S102/1000,0)) -> 460 | T102: =IF(千円単!T102="","",ROUND(千円単!T102/1000,0)) -> 47 | U102: =IF(千円単!U102="","",ROUND(千円単!U102/1000,0)) -> 984 | V102: =IF(千円単!V102="","",ROUND(千円単!V102/1000,0)) -> 629 | W102: =IF(千円単!W102="","",ROUND(千円単!W102/1000,0)) -> 355 | X102: =IF(千円単!X102="","",ROUND(千円単!X102/1000,0)) -> -201 | Y102: =IF(千円単!Y102="","",ROUND(千円単!Y102/1000,0)) -> 13
A103: 2022 | B103: 46 | C103: 17 | D103: 1 | E103: 102 | F103: 公共 | G103: 045811 | H103: 宮城県 | I103: 女川町 | J103: =IF(千円単!J103="","",ROUND(千円単!J103/1000,0)) -> 298 | K103: =IF(千円単!K103="","",ROUND(千円単!K103/1000,0)) -> 117 | L103: =IF(千円単!L103="","",ROUND(千円単!L103/1000,0)) -> 62 | M103: =IF(千円単!M103="","",ROUND(千円単!M103/1000,0)) -> 391 | N103: =IF(千円単!N103="","",ROUND(千円単!N103/1000,0)) -> 39 | O103: =IF(千円単!O103="","",ROUND(千円単!O103/1000,0)) -> 203 | P103: =IF(千円単!P103="","",ROUND(千円単!P103/1000,0)) -> 6 | Q103: =IF(千円単!Q103="","",ROUND(千円単!Q103/1000,0)) -> -93 | R103: =IF(千円単!R103="","",ROUND(千円単!R103/1000,0)) -> 207 | S103: =IF(千円単!S103="","",ROUND(千円単!S103/1000,0)) -> 23 | T103: =IF(千円単!T103="","",ROUND(千円単!T103/1000,0)) -> 176 | U103: =IF(千円単!U103="","",ROUND(千円単!U103/1000,0)) -> 211 | V103: =IF(千円単!V103="","",ROUND(千円単!V103/1000,0)) -> 35 | W103: =IF(千円単!W103="","",ROUND(千円単!W103/1000,0)) -> 176 | X103: =IF(千円単!X103="","",ROUND(千円単!X103/1000,0)) -> -5 | Y103: =IF(千円単!Y103="","",ROUND(千円単!Y103/1000,0)) -> -93
A104: 2022 | B104: 46 | C104: 17 | D104: 1 | E104: 103 | F104: 公共 | G104: 052019 | H104: 秋田県 | I104: 秋田市 | J104: =IF(千円単!J104="","",ROUND(千円単!J104/1000,0)) -> 9845 | K104: =IF(千円単!K104="","",ROUND(千円単!K104/1000,0)) -> 4709 | L104: =IF(千円単!L104="","",ROUND(千円単!L104/1000,0)) -> 3082 | M104: =IF(千円単!M104="","",ROUND(千円単!M104/1000,0)) -> 9196 | N104: =IF(千円単!N104="","",ROUND(千円単!N104/1000,0)) -> 609 | O104: =IF(千円単!O104="","",ROUND(千円単!O104/1000,0)) -> 5171 | P104: =IF(千円単!P104="","",ROUND(千円単!P104/1000,0)) -> 338 | Q104: =IF(千円単!Q104="","",ROUND(千円単!Q104/1000,0)) -> 650 | R104: =IF(千円単!R104="","",ROUND(千円単!R104/1000,0)) -> 4885 | S104: =IF(千円単!S104="","",ROUND(千円単!S104/1000,0)) -> 2957 | T104: =IF(千円単!T104="","",ROUND(千円単!T104/1000,0)) -> 849 | U104: =IF(千円単!U104="","",ROUND(千円単!U104/1000,0)) -> 8849 | V104: =IF(千円単!V104="","",ROUND(千円単!V104/1000,0)) -> 3542 | W104: =IF(千円単!W104="","",ROUND(千円単!W104/1000,0)) -> 5307 | X104: =IF(千円単!X104="","",ROUND(千円単!X104/1000,0)) -> -3963 | Y104: =IF(千円単!Y104="","",ROUND(千円単!Y104/1000,0)) -> 650
A105: 2022 | B105: 46 | C105: 17 | D105: 1 | E105: 104 | F105: 公共 | G105: 052027 | H105: 秋田県 | I105: 能代市 | J105: =IF(千円単!J105="","",ROUND(千円単!J105/1000,0)) -> 1617 | K105: =IF(千円単!K105="","",ROUND(千円単!K105/1000,0)) -> 403 | L105: =IF(千円単!L105="","",ROUND(千円単!L105/1000,0)) -> 829 | M105: =IF(千円単!M105="","",ROUND(千円単!M105/1000,0)) -> 1379 | N105: =IF(千円単!N105="","",ROUND(千円単!N105/1000,0)) -> 131 | O105: =IF(千円単!O105="","",ROUND(千円単!O105/1000,0)) -> 890 | P105: =IF(千円単!P105="","",ROUND(千円単!P105/1000,0)) -> 28 | Q105: =IF(千円単!Q105="","",ROUND(千円単!Q105/1000,0)) -> 238 | R105: =IF(千円単!R105="","",ROUND(千円単!R105/1000,0)) -> 1919 | S105: =IF(千円単!S105="","",ROUND(千円単!S105/1000,0)) -> 1242 | T105: =IF(千円単!T105="","",ROUND(千円単!T105/1000,0)) -> 54 | U105: =IF(千円単!U105="","",ROUND(千円単!U105/1000,0)) -> 2492 | V105: =IF(千円単!V105="","",ROUND(千円単!V105/1000,0)) -> 1487 | W105: =IF(千円単!W105="","",ROUND(千円単!W105/1000,0)) -> 1006 | X105: =IF(千円単!X105="","",ROUND(千円単!X105/1000,0)) -> -573 | Y105: =IF(千円単!Y105="","",ROUND(千円単!Y105/1000,0)) -> 238
A106: 2022 | B106: 46 | C106: 17 | D106: 1 | E106: 105 | F106: 公共 | G106: 052035 | H106: 秋田県 | I106: 横手市 | J106: =IF(千円単!J106="","",ROUND(千円単!J106/1000,0)) -> 1621 | K106: =IF(千円単!K106="","",ROUND(千円単!K106/1000,0)) -> 629 | L106: =IF(千円単!L106="","",ROUND(千円単!L106/1000,0)) -> 699 | M106: =IF(千円単!M106="","",ROUND(千円単!M106/1000,0)) -> 1537 | N106: =IF(千円単!N106="","",ROUND(千円単!N106/1000,0)) -> 153 | O106: =IF(千円単!O106="","",ROUND(千円単!O106/1000,0)) -> 837 | P106: =IF(千円単!P106="","",ROUND(千円単!P106/1000,0)) -> 92 | Q106: =IF(千円単!Q106="","",ROUND(千円単!Q106/1000,0)) -> 84 | R106: =IF(千円単!R106="","",ROUND(千円単!R106/1000,0)) -> 1012 | S106: =IF(千円単!S106="","",ROUND(千円単!S106/1000,0)) -> 566 | T106: =IF(千円単!T106="","",ROUND(千円単!T106/1000,0)) -> 330 | U106: =IF(千円単!U106="","",ROUND(千円単!U106/1000,0)) -> 1671 | V106: =IF(千円単!V106="","",ROUND(千円単!V106/1000,0)) -> 375 | W106: =IF(千円単!W106="","",ROUND(千円単!W106/1000,0)) -> 1296 | X106: =IF(千円単!X106="","",ROUND(千円単!X106/1000,0)) -> -659 | Y106: =IF(千円単!Y106="","",ROUND(千円単!Y106/1000,0)) -> 84
A107: 2022 | B107: 46 | C107: 17 | D107: 1 | E107: 106 | F107: 公共 | G107: 052043 | H107: 秋田県 | I107: 大館市 | J107: =IF(千円単!J107="","",ROUND(千円単!J107/1000,0)) -> 1055 | K107: =IF(千円単!K107="","",ROUND(千円単!K107/1000,0)) -> 491 | L107: =IF(千円単!L107="","",ROUND(千円単!L107/1000,0)) -> 325 | M107: =IF(千円単!M107="","",ROUND(千円単!M107/1000,0)) -> 1178 | N107: =IF(千円単!N107="","",ROUND(千円単!N107/1000,0)) -> 134 | O107: =IF(千円単!O107="","",ROUND(千円単!O107/1000,0)) -> 667 | P107: =IF(千円単!P107="","",ROUND(千円単!P107/1000,0)) -> 37 | Q107: =IF(千円単!Q107="","",ROUND(千円単!Q107/1000,0)) -> -123 | R107: =IF(千円単!R107="","",ROUND(千円単!R107/1000,0)) -> 1729 | S107: =IF(千円単!S107="","",ROUND(千円単!S107/1000,0)) -> 900 | T107: =IF(千円単!T107="","",ROUND(千円単!T107/1000,0)) -> 362 | U107: =IF(千円単!U107="","",ROUND(千円単!U107/1000,0)) -> 2127 | V107: =IF(千円単!V107="","",ROUND(千円単!V107/1000,0)) -> 1059 | W107: =IF(千円単!W107="","",ROUND(千円単!W107/1000,0)) -> 1068 | X107: =IF(千円単!X107="","",ROUND(千円単!X107/1000,0)) -> -397 | Y107: =IF(千円単!Y107="","",ROUND(千円単!Y107/1000,0)) -> -123
A108: 2022 | B108: 46 | C108: 17 | D108: 1 | E108: 107 | F108: 公共 | G108: 052060 | H108: 秋田県 | I108: 男鹿市 | J108: =IF(千円単!J108="","",ROUND(千円単!J108/1000,0)) -> 676 | K108: =IF(千円単!K108="","",ROUND(千円単!K108/1000,0)) -> 196 | L108: =IF(千円単!L108="","",ROUND(千円単!L108/1000,0)) -> 317 | M108: =IF(千円単!M108="","",ROUND(千円単!M108/1000,0)) -> 569 | N108: =IF(千円単!N108="","",ROUND(千円単!N108/1000,0)) -> 84 | O108: =IF(千円単!O108="","",ROUND(千円単!O108/1000,0)) -> 365 | P108: =IF(千円単!P108="","",ROUND(千円単!P108/1000,0)) -> 21 | Q108: =IF(千円単!Q108="","",ROUND(千円単!Q108/1000,0)) -> 107 | R108: =IF(千円単!R108="","",ROUND(千円単!R108/1000,0)) -> 285 | S108: =IF(千円単!S108="","",ROUND(千円単!S108/1000,0)) -> 187 | T108: =IF(千円単!T108="","",ROUND(千円単!T108/1000,0)) -> 90 | U108: =IF(千円単!U108="","",ROUND(千円単!U108/1000,0)) -> 598 | V108: =IF(千円単!V108="","",ROUND(千円単!V108/1000,0)) -> 20 | W108: =IF(千円単!W108="","",ROUND(千円単!W108/1000,0)) -> 578 | X108: =IF(千円単!X108="","",ROUND(千円単!X108/1000,0)) -> -313 | Y108: =IF(千円単!Y108="","",ROUND(千円単!Y108/1000,0)) -> 107
A109: 2022 | B109: 46 | C109: 17 | D109: 1 | E109: 108 | F109: 公共 | G109: 052078 | H109: 秋田県 | I109: 湯沢市 | J109: =IF(千円単!J109="","",ROUND(千円単!J109/1000,0)) -> 701 | K109: =IF(千円単!K109="","",ROUND(千円単!K109/1000,0)) -> 187 | L109: =IF(千円単!L109="","",ROUND(千円単!L109/1000,0)) -> 320 | M109: =IF(千円単!M109="","",ROUND(千円単!M109/1000,0)) -> 671 | N109: =IF(千円単!N109="","",ROUND(千円単!N109/1000,0)) -> 79 | O109: =IF(千円単!O109="","",ROUND(千円単!O109/1000,0)) -> 396 | P109: =IF(千円単!P109="","",ROUND(千円単!P109/1000,0)) -> 16 | Q109: =IF(千円単!Q109="","",ROUND(千円単!Q109/1000,0)) -> 31 | R109: =IF(千円単!R109="","",ROUND(千円単!R109/1000,0)) -> 412 | S109: =IF(千円単!S109="","",ROUND(千円単!S109/1000,0)) -> 194 | T109: =IF(千円単!T109="","",ROUND(千円単!T109/1000,0)) -> 215 | U109: =IF(千円単!U109="","",ROUND(千円単!U109/1000,0)) -> 652 | V109: =IF(千円単!V109="","",ROUND(千円単!V109/1000,0)) -> 13 | W109: =IF(千円単!W109="","",ROUND(千円単!W109/1000,0)) -> 639 | X109: =IF(千円単!X109="","",ROUND(千円単!X109/1000,0)) -> -241 | Y109: =IF(千円単!Y109="","",ROUND(千円単!Y109/1000,0)) -> 31
A110: 2022 | B110: 46 | C110: 17 | D110: 1 | E110: 109 | F110: 公共 | G110: 052094 | H110: 秋田県 | I110: 鹿角市 | J110: =IF(千円単!J110="","",ROUND(千円単!J110/1000,0)) -> 712 | K110: =IF(千円単!K110="","",ROUND(千円単!K110/1000,0)) -> 209 | L110: =IF(千円単!L110="","",ROUND(千円単!L110/1000,0)) -> 359 | M110: =IF(千円単!M110="","",ROUND(千円単!M110/1000,0)) -> 705 | N110: =IF(千円単!N110="","",ROUND(千円単!N110/1000,0)) -> 71 | O110: =IF(千円単!O110="","",ROUND(千円単!O110/1000,0)) -> 355 | P110: =IF(千円単!P110="","",ROUND(千円単!P110/1000,0)) -> 12 | Q110: =IF(千円単!Q110="","",ROUND(千円単!Q110/1000,0)) -> 8 | R110: =IF(千円単!R110="","",ROUND(千円単!R110/1000,0)) -> 390 | S110: =IF(千円単!S110="","",ROUND(千円単!S110/1000,0)) -> 214 | T110: =IF(千円単!T110="","",ROUND(千円単!T110/1000,0)) -> 146 | U110: =IF(千円単!U110="","",ROUND(千円単!U110/1000,0)) -> 607 | V110: =IF(千円単!V110="","",ROUND(千円単!V110/1000,0)) -> 109 | W110: =IF(千円単!W110="","",ROUND(千円単!W110/1000,0)) -> 496 | X110: =IF(千円単!X110="","",ROUND(千円単!X110/1000,0)) -> -216 | Y110: =IF(千円単!Y110="","",ROUND(千円単!Y110/1000,0)) -> 8
A111: 2022 | B111: 46 | C111: 17 | D111: 1 | E111: 110 | F111: 公共 | G111: 052108 | H111: 秋田県 | I111: 由利本荘市 | J111: =IF(千円単!J111="","",ROUND(千円単!J111/1000,0)) -> 1075 | K111: =IF(千円単!K111="","",ROUND(千円単!K111/1000,0)) -> 289 | L111: =IF(千円単!L111="","",ROUND(千円単!L111/1000,0)) -> 529 | M111: =IF(千円単!M111="","",ROUND(千円単!M111/1000,0)) -> 1037 | N111: =IF(千円単!N111="","",ROUND(千円単!N111/1000,0)) -> 118 | O111: =IF(千円単!O111="","",ROUND(千円単!O111/1000,0)) -> 614 | P111: =IF(千円単!P111="","",ROUND(千円単!P111/1000,0)) -> 44 | Q111: =IF(千円単!Q111="","",ROUND(千円単!Q111/1000,0)) -> 39 | R111: =IF(千円単!R111="","",ROUND(千円単!R111/1000,0)) -> 1192 | S111: =IF(千円単!S111="","",ROUND(千円単!S111/1000,0)) -> 507 | T111: =IF(千円単!T111="","",ROUND(千円単!T111/1000,0)) -> 0 | U111: =IF(千円単!U111="","",ROUND(千円単!U111/1000,0)) -> 1521 | V111: =IF(千円単!V111="","",ROUND(千円単!V111/1000,0)) -> 496 | W111: =IF(千円単!W111="","",ROUND(千円単!W111/1000,0)) -> 1025 | X111: =IF(千円単!X111="","",ROUND(千円単!X111/1000,0)) -> -329 | Y111: =IF(千円単!Y111="","",ROUND(千円単!Y111/1000,0)) -> 39
A112: 2022 | B112: 46 | C112: 17 | D112: 1 | E112: 111 | F112: 公共 | G112: 052116 | H112: 秋田県 | I112: 潟上市 | J112: =IF(千円単!J112="","",ROUND(千円単!J112/1000,0)) -> 529 | K112: =IF(千円単!K112="","",ROUND(千円単!K112/1000,0)) -> 266 | L112: =IF(千円単!L112="","",ROUND(千円単!L112/1000,0)) -> 67 | M112: =IF(千円単!M112="","",ROUND(千円単!M112/1000,0)) -> 520 | N112: =IF(千円単!N112="","",ROUND(千円単!N112/1000,0)) -> 35 | O112: =IF(千円単!O112="","",ROUND(千円単!O112/1000,0)) -> 342 | P112: =IF(千円単!P112="","",ROUND(千円単!P112/1000,0)) -> 11 | Q112: =IF(千円単!Q112="","",ROUND(千円単!Q112/1000,0)) -> 9 | R112: =IF(千円単!R112="","",ROUND(千円単!R112/1000,0)) -> 163 | S112: =IF(千円単!S112="","",ROUND(千円単!S112/1000,0)) -> 53 | T112: =IF(千円単!T112="","",ROUND(千円単!T112/1000,0)) -> 110 | U112: =IF(千円単!U112="","",ROUND(千円単!U112/1000,0)) -> 305 | V112: =IF(千円単!V112="","",ROUND(千円単!V112/1000,0)) -> 19 | W112: =IF(千円単!W112="","",ROUND(千円単!W112/1000,0)) -> 287 | X112: =IF(千円単!X112="","",ROUND(千円単!X112/1000,0)) -> -142 | Y112: =IF(千円単!Y112="","",ROUND(千円単!Y112/1000,0)) -> 9
A113: 2022 | B113: 46 | C113: 17 | D113: 1 | E113: 112 | F113: 公共 | G113: 052124 | H113: 秋田県 | I113: 大仙市 | J113: =IF(千円単!J113="","",ROUND(千円単!J113/1000,0)) -> 1274 | K113: =IF(千円単!K113="","",ROUND(千円単!K113/1000,0)) -> 344 | L113: =IF(千円単!L113="","",ROUND(千円単!L113/1000,0)) -> 549 | M113: =IF(千円単!M113="","",ROUND(千円単!M113/1000,0)) -> 1024 | N113: =IF(千円単!N113="","",ROUND(千円単!N113/1000,0)) -> 114 | O113: =IF(千円単!O113="","",ROUND(千円単!O113/1000,0)) -> 526 | P113: =IF(千円単!P113="","",ROUND(千円単!P113/1000,0)) -> 44 | Q113: =IF(千円単!Q113="","",ROUND(千円単!Q113/1000,0)) -> 249 | R113: =IF(千円単!R113="","",ROUND(千円単!R113/1000,0)) -> 489 | S113: =IF(千円単!S113="","",ROUND(千円単!S113/1000,0)) -> 262 | T113: =IF(千円単!T113="","",ROUND(千円単!T113/1000,0)) -> 211 | U113: =IF(千円単!U113="","",ROUND(千円単!U113/1000,0)) -> 852 | V113: =IF(千円単!V113="","",ROUND(千円単!V113/1000,0)) -> 89 | W113: =IF(千円単!W113="","",ROUND(千円単!W113/1000,0)) -> 763 | X113: =IF(千円単!X113="","",ROUND(千円単!X113/1000,0)) -> -364 | Y113: =IF(千円単!Y113="","",ROUND(千円単!Y113/1000,0)) -> 249
A114: 2022 | B114: 46 | C114: 17 | D114: 1 | E114: 113 | F114: 公共 | G114: 052132 | H114: 秋田県 | I114: 北秋田市 | J114: =IF(千円単!J114="","",ROUND(千円単!J114/1000,0)) -> 845 | K114: =IF(千円単!K114="","",ROUND(千円単!K114/1000,0)) -> 245 | L114: =IF(千円単!L114="","",ROUND(千円単!L114/1000,0)) -> 349 | M114: =IF(千円単!M114="","",ROUND(千円単!M114/1000,0)) -> 847 | N114: =IF(千円単!N114="","",ROUND(千円単!N114/1000,0)) -> 80 | O114: =IF(千円単!O114="","",ROUND(千円単!O114/1000,0)) -> 525 | P114: =IF(千円単!P114="","",ROUND(千円単!P114/1000,0)) -> 45 | Q114: =IF(千円単!Q114="","",ROUND(千円単!Q114/1000,0)) -> -2 | R114: =IF(千円単!R114="","",ROUND(千円単!R114/1000,0)) -> 768 | S114: =IF(千円単!S114="","",ROUND(千円単!S114/1000,0)) -> 471 | T114: =IF(千円単!T114="","",ROUND(千円単!T114/1000,0)) -> 38 | U114: =IF(千円単!U114="","",ROUND(千円単!U114/1000,0)) -> 1197 | V114: =IF(千円単!V114="","",ROUND(千円単!V114/1000,0)) -> 509 | W114: =IF(千円単!W114="","",ROUND(千円単!W114/1000,0)) -> 688 | X114: =IF(千円単!X114="","",ROUND(千円単!X114/1000,0)) -> -429 | Y114: =IF(千円単!Y114="","",ROUND(千円単!Y114/1000,0)) -> -2
A115: 2022 | B115: 46 | C115: 17 | D115: 1 | E115: 114 | F115: 公共 | G115: 052159 | H115: 秋田県 | I115: 仙北市 | J115: =IF(千円単!J115="","",ROUND(千円単!J115/1000,0)) -> 479 | K115: =IF(千円単!K115="","",ROUND(千円単!K115/1000,0)) -> 104 | L115: =IF(千円単!L115="","",ROUND(千円単!L115/1000,0)) -> 249 | M115: =IF(千円単!M115="","",ROUND(千円単!M115/1000,0)) -> 504 | N115: =IF(千円単!N115="","",ROUND(千円単!N115/1000,0)) -> 44 | O115: =IF(千円単!O115="","",ROUND(千円単!O115/1000,0)) -> 281 | P115: =IF(千円単!P115="","",ROUND(千円単!P115/1000,0)) -> 19 | Q115: =IF(千円単!Q115="","",ROUND(千円単!Q115/1000,0)) -> -25 | R115: =IF(千円単!R115="","",ROUND(千円単!R115/1000,0)) -> 244 | S115: =IF(千円単!S115="","",ROUND(千円単!S115/1000,0)) -> 103 | T115: =IF(千円単!T115="","",ROUND(千円単!T115/1000,0)) -> 30 | U115: =IF(千円単!U115="","",ROUND(千円単!U115/1000,0)) -> 373 | V115: =IF(千円単!V115="","",ROUND(千円単!V115/1000,0)) -> 24 | W115: =IF(千円単!W115="","",ROUND(千円単!W115/1000,0)) -> 349 | X115: =IF(千円単!X115="","",ROUND(千円単!X115/1000,0)) -> -129 | Y115: =IF(千円単!Y115="","",ROUND(千円単!Y115/1000,0)) -> -25
A116: 2022 | B116: 46 | C116: 17 | D116: 1 | E116: 115 | F116: 公共 | G116: 053619 | H116: 秋田県 | I116: 五城目町 | J116: =IF(千円単!J116="","",ROUND(千円単!J116/1000,0)) -> 233 | K116: =IF(千円単!K116="","",ROUND(千円単!K116/1000,0)) -> 58 | L116: =IF(千円単!L116="","",ROUND(千円単!L116/1000,0)) -> 117 | M116: =IF(千円単!M116="","",ROUND(千円単!M116/1000,0)) -> 229 | N116: =IF(千円単!N116="","",ROUND(千円単!N116/1000,0)) -> 26 | O116: =IF(千円単!O116="","",ROUND(千円単!O116/1000,0)) -> 139 | P116: =IF(千円単!P116="","",ROUND(千円単!P116/1000,0)) -> 14 | Q116: =IF(千円単!Q116="","",ROUND(千円単!Q116/1000,0)) -> 4 | R116: =IF(千円単!R116="","",ROUND(千円単!R116/1000,0)) -> 86 | S116: =IF(千円単!S116="","",ROUND(千円単!S116/1000,0)) -> 62 | T116: =IF(千円単!T116="","",ROUND(千円単!T116/1000,0)) -> 0 | U116: =IF(千円単!U116="","",ROUND(千円単!U116/1000,0)) -> 181 | V116: =IF(千円単!V116="","",ROUND(千円単!V116/1000,0)) -> 5 | W116: =IF(千円単!W116="","",ROUND(千円単!W116/1000,0)) -> 176 | X116: =IF(千円単!X116="","",ROUND(千円単!X116/1000,0)) -> -96 | Y116: =IF(千円単!Y116="","",ROUND(千円単!Y116/1000,0)) -> 4
A117: 2022 | B117: 46 | C117: 17 | D117: 1 | E117: 116 | F117: 公共 | G117: 062014 | H117: 山形県 | I117: 山形市 | J117: =IF(千円単!J117="","",ROUND(千円単!J117/1000,0)) -> 6699 | K117: =IF(千円単!K117="","",ROUND(千円単!K117/1000,0)) -> 3759 | L117: =IF(千円単!L117="","",ROUND(千円単!L117/1000,0)) -> 1151 | M117: =IF(千円単!M117="","",ROUND(千円単!M117/1000,0)) -> 6571 | N117: =IF(千円単!N117="","",ROUND(千円単!N117/1000,0)) -> 890 | O117: =IF(千円単!O117="","",ROUND(千円単!O117/1000,0)) -> 4150 | P117: =IF(千円単!P117="","",ROUND(千円単!P117/1000,0)) -> 230 | Q117: =IF(千円単!Q117="","",ROUND(千円単!Q117/1000,0)) -> 128 | R117: =IF(千円単!R117="","",ROUND(千円単!R117/1000,0)) -> 5314 | S117: =IF(千円単!S117="","",ROUND(千円単!S117/1000,0)) -> 3002 | T117: =IF(千円単!T117="","",ROUND(千円単!T117/1000,0)) -> 1719 | U117: =IF(千円単!U117="","",ROUND(千円単!U117/1000,0)) -> 7677 | V117: =IF(千円単!V117="","",ROUND(千円単!V117/1000,0)) -> 1719 | W117: =IF(千円単!W117="","",ROUND(千円単!W117/1000,0)) -> 5958 | X117: =IF(千円単!X117="","",ROUND(千円単!X117/1000,0)) -> -2363 | Y117: =IF(千円単!Y117="","",ROUND(千円単!Y117/1000,0)) -> 128
A118: 2022 | B118: 46 | C118: 17 | D118: 1 | E118: 117 | F118: 公共 | G118: 062022 | H118: 山形県 | I118: 米沢市 | J118: =IF(千円単!J118="","",ROUND(千円単!J118/1000,0)) -> 2119 | K118: =IF(千円単!K118="","",ROUND(千円単!K118/1000,0)) -> 1099 | L118: =IF(千円単!L118="","",ROUND(千円単!L118/1000,0)) -> 193 | M118: =IF(千円単!M118="","",ROUND(千円単!M118/1000,0)) -> 2211 | N118: =IF(千円単!N118="","",ROUND(千円単!N118/1000,0)) -> 197 | O118: =IF(千円単!O118="","",ROUND(千円単!O118/1000,0)) -> 1281 | P118: =IF(千円単!P118="","",ROUND(千円単!P118/1000,0)) -> 139 | Q118: =IF(千円単!Q118="","",ROUND(千円単!Q118/1000,0)) -> -93 | R118: =IF(千円単!R118="","",ROUND(千円単!R118/1000,0)) -> 1474 | S118: =IF(千円単!S118="","",ROUND(千円単!S118/1000,0)) -> 911 | T118: =IF(千円単!T118="","",ROUND(千円単!T118/1000,0)) -> 189 | U118: =IF(千円単!U118="","",ROUND(千円単!U118/1000,0)) -> 2037 | V118: =IF(千円単!V118="","",ROUND(千円単!V118/1000,0)) -> 761 | W118: =IF(千円単!W118="","",ROUND(千円単!W118/1000,0)) -> 1275 | X118: =IF(千円単!X118="","",ROUND(千円単!X118/1000,0)) -> -563 | Y118: =IF(千円単!Y118="","",ROUND(千円単!Y118/1000,0)) -> -93
A119: 2022 | B119: 46 | C119: 17 | D119: 1 | E119: 118 | F119: 公共 | G119: 062031 | H119: 山形県 | I119: 鶴岡市 | J119: =IF(千円単!J119="","",ROUND(千円単!J119/1000,0)) -> 3717 | K119: =IF(千円単!K119="","",ROUND(千円単!K119/1000,0)) -> 2153 | L119: =IF(千円単!L119="","",ROUND(千円単!L119/1000,0)) -> 528 | M119: =IF(千円単!M119="","",ROUND(千円単!M119/1000,0)) -> 3741 | N119: =IF(千円単!N119="","",ROUND(千円単!N119/1000,0)) -> 332 | O119: =IF(千円単!O119="","",ROUND(千円単!O119/1000,0)) -> 2367 | P119: =IF(千円単!P119="","",ROUND(千円単!P119/1000,0)) -> 159 | Q119: =IF(千円単!Q119="","",ROUND(千円単!Q119/1000,0)) -> -24 | R119: =IF(千円単!R119="","",ROUND(千円単!R119/1000,0)) -> 3561 | S119: =IF(千円単!S119="","",ROUND(千円単!S119/1000,0)) -> 1457 | T119: =IF(千円単!T119="","",ROUND(千円単!T119/1000,0)) -> 996 | U119: =IF(千円単!U119="","",ROUND(千円単!U119/1000,0)) -> 5224 | V119: =IF(千円単!V119="","",ROUND(千円単!V119/1000,0)) -> 2713 | W119: =IF(千円単!W119="","",ROUND(千円単!W119/1000,0)) -> 2510 | X119: =IF(千円単!X119="","",ROUND(千円単!X119/1000,0)) -> -1663 | Y119: =IF(千円単!Y119="","",ROUND(千円単!Y119/1000,0)) -> -24
A120: 2022 | B120: 46 | C120: 17 | D120: 1 | E120: 119 | F120: 公共 | G120: 062049 | H120: 山形県 | I120: 酒田市 | J120: =IF(千円単!J120="","",ROUND(千円単!J120/1000,0)) -> 3526 | K120: =IF(千円単!K120="","",ROUND(千円単!K120/1000,0)) -> 1475 | L120: =IF(千円単!L120="","",ROUND(千円単!L120/1000,0)) -> 1625 | M120: =IF(千円単!M120="","",ROUND(千円単!M120/1000,0)) -> 3440 | N120: =IF(千円単!N120="","",ROUND(千円単!N120/1000,0)) -> 354 | O120: =IF(千円単!O120="","",ROUND(千円単!O120/1000,0)) -> 2074 | P120: =IF(千円単!P120="","",ROUND(千円単!P120/1000,0)) -> 122 | Q120: =IF(千円単!Q120="","",ROUND(千円単!Q120/1000,0)) -> 85 | R120: =IF(千円単!R120="","",ROUND(千円単!R120/1000,0)) -> 147 | S120: =IF(千円単!S120="","",ROUND(千円単!S120/1000,0)) -> 51 | T120: =IF(千円単!T120="","",ROUND(千円単!T120/1000,0)) -> 67 | U120: =IF(千円単!U120="","",ROUND(千円単!U120/1000,0)) -> 1905 | V120: =IF(千円単!V120="","",ROUND(千円単!V120/1000,0)) -> 73 | W120: =IF(千円単!W120="","",ROUND(千円単!W120/1000,0)) -> 1832 | X120: =IF(千円単!X120="","",ROUND(千円単!X120/1000,0)) -> -1758 | Y120: =IF(千円単!Y120="","",ROUND(千円単!Y120/1000,0)) -> 85
A121: 2022 | B121: 46 | C121: 17 | D121: 1 | E121: 120 | F121: 公共 | G121: 062057 | H121: 山形県 | I121: 新庄市 | J121: =IF(千円単!J121="","",ROUND(千円単!J121/1000,0)) -> 873 | K121: =IF(千円単!K121="","",ROUND(千円単!K121/1000,0)) -> 340 | L121: =IF(千円単!L121="","",ROUND(千円単!L121/1000,0)) -> 253 | M121: =IF(千円単!M121="","",ROUND(千円単!M121/1000,0)) -> 841 | N121: =IF(千円単!N121="","",ROUND(千円単!N121/1000,0)) -> 67 | O121: =IF(千円単!O121="","",ROUND(千円単!O121/1000,0)) -> 505 | P121: =IF(千円単!P121="","",ROUND(千円単!P121/1000,0)) -> 37 | Q121: =IF(千円単!Q121="","",ROUND(千円単!Q121/1000,0)) -> 32 | R121: =IF(千円単!R121="","",ROUND(千円単!R121/1000,0)) -> 543 | S121: =IF(千円単!S121="","",ROUND(千円単!S121/1000,0)) -> 253 | T121: =IF(千円単!T121="","",ROUND(千円単!T121/1000,0)) -> 0 | U121: =IF(千円単!U121="","",ROUND(千円単!U121/1000,0)) -> 795 | V121: =IF(千円単!V121="","",ROUND(千円単!V121/1000,0)) -> 218 | W121: =IF(千円単!W121="","",ROUND(千円単!W121/1000,0)) -> 577 | X121: =IF(千円単!X121="","",ROUND(千円単!X121/1000,0)) -> -252 | Y121: =IF(千円単!Y121="","",ROUND(千円単!Y121/1000,0)) -> 32
A122: 2022 | B122: 46 | C122: 17 | D122: 1 | E122: 121 | F122: 公共 | G122: 062065 | H122: 山形県 | I122: 寒河江市 | J122: =IF(千円単!J122="","",ROUND(千円単!J122/1000,0)) -> 1264 | K122: =IF(千円単!K122="","",ROUND(千円単!K122/1000,0)) -> 518 | L122: =IF(千円単!L122="","",ROUND(千円単!L122/1000,0)) -> 319 | M122: =IF(千円単!M122="","",ROUND(千円単!M122/1000,0)) -> 1250 | N122: =IF(千円単!N122="","",ROUND(千円単!N122/1000,0)) -> 103 | O122: =IF(千円単!O122="","",ROUND(千円単!O122/1000,0)) -> 806 | P122: =IF(千円単!P122="","",ROUND(千円単!P122/1000,0)) -> 53 | Q122: =IF(千円単!Q122="","",ROUND(千円単!Q122/1000,0)) -> 14 | R122: =IF(千円単!R122="","",ROUND(千円単!R122/1000,0)) -> 440 | S122: =IF(千円単!S122="","",ROUND(千円単!S122/1000,0)) -> 238 | T122: =IF(千円単!T122="","",ROUND(千円単!T122/1000,0)) -> 76 | U122: =IF(千円単!U122="","",ROUND(千円単!U122/1000,0)) -> 890 | V122: =IF(千円単!V122="","",ROUND(千円単!V122/1000,0)) -> 338 | W122: =IF(千円単!W122="","",ROUND(千円単!W122/1000,0)) -> 552 | X122: =IF(千円単!X122="","",ROUND(千円単!X122/1000,0)) -> -451 | Y122: =IF(千円単!Y122="","",ROUND(千円単!Y122/1000,0)) -> 14
A123: 2022 | B123: 46 | C123: 17 | D123: 1 | E123: 122 | F123: 公共 | G123: 062073 | H123: 山形県 | I123: 上山市 | J123: =IF(千円単!J123="","",ROUND(千円単!J123/1000,0)) -> 986 | K123: =IF(千円単!K123="","",ROUND(千円単!K123/1000,0)) -> 458 | L123: =IF(千円単!L123="","",ROUND(千円単!L123/1000,0)) -> 250 | M123: =IF(千円単!M123="","",ROUND(千円単!M123/1000,0)) -> 935 | N123: =IF(千円単!N123="","",ROUND(千円単!N123/1000,0)) -> 70 | O123: =IF(千円単!O123="","",ROUND(千円単!O123/1000,0)) -> 570 | P123: =IF(千円単!P123="","",ROUND(千円単!P123/1000,0)) -> 25 | Q123: =IF(千円単!Q123="","",ROUND(千円単!Q123/1000,0)) -> 51 | R123: =IF(千円単!R123="","",ROUND(千円単!R123/1000,0)) -> 401 | S123: =IF(千円単!S123="","",ROUND(千円単!S123/1000,0)) -> 232 | T123: =IF(千円単!T123="","",ROUND(千円単!T123/1000,0)) -> 53 | U123: =IF(千円単!U123="","",ROUND(千円単!U123/1000,0)) -> 728 | V123: =IF(千円単!V123="","",ROUND(千円単!V123/1000,0)) -> 322 | W123: =IF(千円単!W123="","",ROUND(千円単!W123/1000,0)) -> 406 | X123: =IF(千円単!X123="","",ROUND(千円単!X123/1000,0)) -> -327 | Y123: =IF(千円単!Y123="","",ROUND(千円単!Y123/1000,0)) -> 51
A124: 2022 | B124: 46 | C124: 17 | D124: 1 | E124: 123 | F124: 公共 | G124: 062081 | H124: 山形県 | I124: 村山市 | J124: =IF(千円単!J124="","",ROUND(千円単!J124/1000,0)) -> 545 | K124: =IF(千円単!K124="","",ROUND(千円単!K124/1000,0)) -> 199 | L124: =IF(千円単!L124="","",ROUND(千円単!L124/1000,0)) -> 97 | M124: =IF(千円単!M124="","",ROUND(千円単!M124/1000,0)) -> 538 | N124: =IF(千円単!N124="","",ROUND(千円単!N124/1000,0)) -> 44 | O124: =IF(千円単!O124="","",ROUND(千円単!O124/1000,0)) -> 344 | P124: =IF(千円単!P124="","",ROUND(千円単!P124/1000,0)) -> 18 | Q124: =IF(千円単!Q124="","",ROUND(千円単!Q124/1000,0)) -> 7 | R124: =IF(千円単!R124="","",ROUND(千円単!R124/1000,0)) -> 408 | S124: =IF(千円単!S124="","",ROUND(千円単!S124/1000,0)) -> 64 | T124: =IF(千円単!T124="","",ROUND(千円単!T124/1000,0)) -> 0 | U124: =IF(千円単!U124="","",ROUND(千円単!U124/1000,0)) -> 487 | V124: =IF(千円単!V124="","",ROUND(千円単!V124/1000,0)) -> 41 | W124: =IF(千円単!W124="","",ROUND(千円単!W124/1000,0)) -> 446 | X124: =IF(千円単!X124="","",ROUND(千円単!X124/1000,0)) -> -78 | Y124: =IF(千円単!Y124="","",ROUND(千円単!Y124/1000,0)) -> 7
A125: 2022 | B125: 46 | C125: 17 | D125: 1 | E125: 124 | F125: 公共 | G125: 062090 | H125: 山形県 | I125: 長井市 | J125: =IF(千円単!J125="","",ROUND(千円単!J125/1000,0)) -> 609 | K125: =IF(千円単!K125="","",ROUND(千円単!K125/1000,0)) -> 274 | L125: =IF(千円単!L125="","",ROUND(千円単!L125/1000,0)) -> 181 | M125: =IF(千円単!M125="","",ROUND(千円単!M125/1000,0)) -> 605 | N125: =IF(千円単!N125="","",ROUND(千円単!N125/1000,0)) -> 42 | O125: =IF(千円単!O125="","",ROUND(千円単!O125/1000,0)) -> 443 | P125: =IF(千円単!P125="","",ROUND(千円単!P125/1000,0)) -> 8 | Q125: =IF(千円単!Q125="","",ROUND(千円単!Q125/1000,0)) -> 4 | R125: =IF(千円単!R125="","",ROUND(千円単!R125/1000,0)) -> 257 | S125: =IF(千円単!S125="","",ROUND(千円単!S125/1000,0)) -> 41 | T125: =IF(千円単!T125="","",ROUND(千円単!T125/1000,0)) -> 213 | U125: =IF(千円単!U125="","",ROUND(千円単!U125/1000,0)) -> 554 | V125: =IF(千円単!V125="","",ROUND(千円単!V125/1000,0)) -> 60 | W125: =IF(千円単!W125="","",ROUND(千円単!W125/1000,0)) -> 494 | X125: =IF(千円単!X125="","",ROUND(千円単!X125/1000,0)) -> -297 | Y125: =IF(千円単!Y125="","",ROUND(千円単!Y125/1000,0)) -> 4
A126: 2022 | B126: 46 | C126: 17 | D126: 1 | E126: 125 | F126: 公共 | G126: 062103 | H126: 山形県 | I126: 天童市 | J126: =IF(千円単!J126="","",ROUND(千円単!J126/1000,0)) -> 1117 | K126: =IF(千円単!K126="","",ROUND(千円単!K126/1000,0)) -> 865 | L126: =IF(千円単!L126="","",ROUND(千円単!L126/1000,0)) -> 73 | M126: =IF(千円単!M126="","",ROUND(千円単!M126/1000,0)) -> 994 | N126: =IF(千円単!N126="","",ROUND(千円単!N126/1000,0)) -> 111 | O126: =IF(千円単!O126="","",ROUND(千円単!O126/1000,0)) -> 562 | P126: =IF(千円単!P126="","",ROUND(千円単!P126/1000,0)) -> 17 | Q126: =IF(千円単!Q126="","",ROUND(千円単!Q126/1000,0)) -> 123 | R126: =IF(千円単!R126="","",ROUND(千円単!R126/1000,0)) -> 481 | S126: =IF(千円単!S126="","",ROUND(千円単!S126/1000,0)) -> 205 | T126: =IF(千円単!T126="","",ROUND(千円単!T126/1000,0)) -> 134 | U126: =IF(千円単!U126="","",ROUND(千円単!U126/1000,0)) -> 876 | V126: =IF(千円単!V126="","",ROUND(千円単!V126/1000,0)) -> 270 | W126: =IF(千円単!W126="","",ROUND(千円単!W126/1000,0)) -> 606 | X126: =IF(千円単!X126="","",ROUND(千円単!X126/1000,0)) -> -396 | Y126: =IF(千円単!Y126="","",ROUND(千円単!Y126/1000,0)) -> 123
A127: 2022 | B127: 46 | C127: 17 | D127: 1 | E127: 126 | F127: 公共 | G127: 062111 | H127: 山形県 | I127: 東根市 | J127: =IF(千円単!J127="","",ROUND(千円単!J127/1000,0)) -> 1371 | K127: =IF(千円単!K127="","",ROUND(千円単!K127/1000,0)) -> 672 | L127: =IF(千円単!L127="","",ROUND(千円単!L127/1000,0)) -> 254 | M127: =IF(千円単!M127="","",ROUND(千円単!M127/1000,0)) -> 1361 | N127: =IF(千円単!N127="","",ROUND(千円単!N127/1000,0)) -> 115 | O127: =IF(千円単!O127="","",ROUND(千円単!O127/1000,0)) -> 804 | P127: =IF(千円単!P127="","",ROUND(千円単!P127/1000,0)) -> 45 | Q127: =IF(千円単!Q127="","",ROUND(千円単!Q127/1000,0)) -> 11 | R127: =IF(千円単!R127="","",ROUND(千円単!R127/1000,0)) -> 875 | S127: =IF(千円単!S127="","",ROUND(千円単!S127/1000,0)) -> 395 | T127: =IF(千円単!T127="","",ROUND(千円単!T127/1000,0)) -> 94 | U127: =IF(千円単!U127="","",ROUND(千円単!U127/1000,0)) -> 1263 | V127: =IF(千円単!V127="","",ROUND(千円単!V127/1000,0)) -> 696 | W127: =IF(千円単!W127="","",ROUND(千円単!W127/1000,0)) -> 567 | X127: =IF(千円単!X127="","",ROUND(千円単!X127/1000,0)) -> -388 | Y127: =IF(千円単!Y127="","",ROUND(千円単!Y127/1000,0)) -> 11
A128: 2022 | B128: 46 | C128: 17 | D128: 1 | E128: 127 | F128: 公共 | G128: 062138 | H128: 山形県 | I128: 南陽市 | J128: =IF(千円単!J128="","",ROUND(千円単!J128/1000,0)) -> 936 | K128: =IF(千円単!K128="","",ROUND(千円単!K128/1000,0)) -> 343 | L128: =IF(千円単!L128="","",ROUND(千円単!L128/1000,0)) -> 373 | M128: =IF(千円単!M128="","",ROUND(千円単!M128/1000,0)) -> 935 | N128: =IF(千円単!N128="","",ROUND(千円単!N128/1000,0)) -> 96 | O128: =IF(千円単!O128="","",ROUND(千円単!O128/1000,0)) -> 566 | P128: =IF(千円単!P128="","",ROUND(千円単!P128/1000,0)) -> 36 | Q128: =IF(千円単!Q128="","",ROUND(千円単!Q128/1000,0)) -> 0 | R128: =IF(千円単!R128="","",ROUND(千円単!R128/1000,0)) -> 854 | S128: =IF(千円単!S128="","",ROUND(千円単!S128/1000,0)) -> 379 | T128: =IF(千円単!T128="","",ROUND(千円単!T128/1000,0)) -> 255 | U128: =IF(千円単!U128="","",ROUND(千円単!U128/1000,0)) -> 1223 | V128: =IF(千円単!V128="","",ROUND(千円単!V128/1000,0)) -> 514 | W128: =IF(千円単!W128="","",ROUND(千円単!W128/1000,0)) -> 709 | X128: =IF(千円単!X128="","",ROUND(千円単!X128/1000,0)) -> -369 | Y128: =IF(千円単!Y128="","",ROUND(千円単!Y128/1000,0)) -> 0
A129: 2022 | B129: 46 | C129: 17 | D129: 1 | E129: 128 | F129: 公共 | G129: 063011 | H129: 山形県 | I129: 山辺町 | J129: =IF(千円単!J129="","",ROUND(千円単!J129/1000,0)) -> 331 | K129: =IF(千円単!K129="","",ROUND(千円単!K129/1000,0)) -> 166 | L129: =IF(千円単!L129="","",ROUND(千円単!L129/1000,0)) -> 47 | M129: =IF(千円単!M129="","",ROUND(千円単!M129/1000,0)) -> 313 | N129: =IF(千円単!N129="","",ROUND(千円単!N129/1000,0)) -> 38 | O129: =IF(千円単!O129="","",ROUND(千円単!O129/1000,0)) -> 195 | P129: =IF(千円単!P129="","",ROUND(千円単!P129/1000,0)) -> 27 | Q129: =IF(千円単!Q129="","",ROUND(千円単!Q129/1000,0)) -> 18 | R129: =IF(千円単!R129="","",ROUND(千円単!R129/1000,0)) -> 255 | S129: =IF(千円単!S129="","",ROUND(千円単!S129/1000,0)) -> 128 | T129: =IF(千円単!T129="","",ROUND(千円単!T129/1000,0)) -> 121 | U129: =IF(千円単!U129="","",ROUND(千円単!U129/1000,0)) -> 330 | V129: =IF(千円単!V129="","",ROUND(千円単!V129/1000,0)) -> 13 | W129: =IF(千円単!W129="","",ROUND(千円単!W129/1000,0)) -> 317 | X129: =IF(千円単!X129="","",ROUND(千円単!X129/1000,0)) -> -75 | Y129: =IF(千円単!Y129="","",ROUND(千円単!Y129/1000,0)) -> 18
A130: 2022 | B130: 46 | C130: 17 | D130: 1 | E130: 129 | F130: 公共 | G130: 064289 | H130: 山形県 | I130: 庄内町 | J130: =IF(千円単!J130="","",ROUND(千円単!J130/1000,0)) -> 456 | K130: =IF(千円単!K130="","",ROUND(千円単!K130/1000,0)) -> 138 | L130: =IF(千円単!L130="","",ROUND(千円単!L130/1000,0)) -> 51 | M130: =IF(千円単!M130="","",ROUND(千円単!M130/1000,0)) -> 442 | N130: =IF(千円単!N130="","",ROUND(千円単!N130/1000,0)) -> 49 | O130: =IF(千円単!O130="","",ROUND(千円単!O130/1000,0)) -> 267 | P130: =IF(千円単!P130="","",ROUND(千円単!P130/1000,0)) -> 15 | Q130: =IF(千円単!Q130="","",ROUND(千円単!Q130/1000,0)) -> 14 | R130: =IF(千円単!R130="","",ROUND(千円単!R130/1000,0)) -> 338 | S130: =IF(千円単!S130="","",ROUND(千円単!S130/1000,0)) -> 32 | T130: =IF(千円単!T130="","",ROUND(千円単!T130/1000,0)) -> 302 | U130: =IF(千円単!U130="","",ROUND(千円単!U130/1000,0)) -> 340 | V130: =IF(千円単!V130="","",ROUND(千円単!V130/1000,0)) -> 38 | W130: =IF(千円単!W130="","",ROUND(千円単!W130/1000,0)) -> 302 | X130: =IF(千円単!X130="","",ROUND(千円単!X130/1000,0)) -> -2 | Y130: =IF(千円単!Y130="","",ROUND(千円単!Y130/1000,0)) -> 14
A131: 2022 | B131: 46 | C131: 17 | D131: 1 | E131: 130 | F131: 公共 | G131: 069663 | H131: 山形県 | I131: 尾花沢市大石田町環境衛生事業組合（事業会計分） | J131: =IF(千円単!J131="","",ROUND(千円単!J131/1000,0)) -> 399 | K131: =IF(千円単!K131="","",ROUND(千円単!K131/1000,0)) -> 117 | L131: =IF(千円単!L131="","",ROUND(千円単!L131/1000,0)) -> 118 | M131: =IF(千円単!M131="","",ROUND(千円単!M131/1000,0)) -> 374 | N131: =IF(千円単!N131="","",ROUND(千円単!N131/1000,0)) -> 60 | O131: =IF(千円単!O131="","",ROUND(千円単!O131/1000,0)) -> 208 | P131: =IF(千円単!P131="","",ROUND(千円単!P131/1000,0)) -> 21 | Q131: =IF(千円単!Q131="","",ROUND(千円単!Q131/1000,0)) -> 25 | R131: =IF(千円単!R131="","",ROUND(千円単!R131/1000,0)) -> 315 | S131: =IF(千円単!S131="","",ROUND(千円単!S131/1000,0)) -> 154 | T131: =IF(千円単!T131="","",ROUND(千円単!T131/1000,0)) -> 115 | U131: =IF(千円単!U131="","",ROUND(千円単!U131/1000,0)) -> 413 | V131: =IF(千円単!V131="","",ROUND(千円単!V131/1000,0)) -> 147 | W131: =IF(千円単!W131="","",ROUND(千円単!W131/1000,0)) -> 266 | X131: =IF(千円単!X131="","",ROUND(千円単!X131/1000,0)) -> -98 | Y131: =IF(千円単!Y131="","",ROUND(千円単!Y131/1000,0)) -> 25
A132: 2022 | B132: 46 | C132: 17 | D132: 1 | E132: 131 | F132: 公共 | G132: 072010 | H132: 福島県 | I132: 福島市 | J132: =IF(千円単!J132="","",ROUND(千円単!J132/1000,0)) -> 7648 | K132: =IF(千円単!K132="","",ROUND(千円単!K132/1000,0)) -> 3146 | L132: =IF(千円単!L132="","",ROUND(千円単!L132/1000,0)) -> 2313 | M132: =IF(千円単!M132="","",ROUND(千円単!M132/1000,0)) -> 6506 | N132: =IF(千円単!N132="","",ROUND(千円単!N132/1000,0)) -> 680 | O132: =IF(千円単!O132="","",ROUND(千円単!O132/1000,0)) -> 3815 | P132: =IF(千円単!P132="","",ROUND(千円単!P132/1000,0)) -> 138 | Q132: =IF(千円単!Q132="","",ROUND(千円単!Q132/1000,0)) -> 1143 | R132: =IF(千円単!R132="","",ROUND(千円単!R132/1000,0)) -> 3074 | S132: =IF(千円単!S132="","",ROUND(千円単!S132/1000,0)) -> 2144 | T132: =IF(千円単!T132="","",ROUND(千円単!T132/1000,0)) -> 0 | U132: =IF(千円単!U132="","",ROUND(千円単!U132/1000,0)) -> 5724 | V132: =IF(千円単!V132="","",ROUND(千円単!V132/1000,0)) -> 2086 | W132: =IF(千円単!W132="","",ROUND(千円単!W132/1000,0)) -> 3637 | X132: =IF(千円単!X132="","",ROUND(千円単!X132/1000,0)) -> -2650 | Y132: =IF(千円単!Y132="","",ROUND(千円単!Y132/1000,0)) -> 1143
A133: 2022 | B133: 46 | C133: 17 | D133: 1 | E133: 132 | F133: 公共 | G133: 072028 | H133: 福島県 | I133: 会津若松市 | J133: =IF(千円単!J133="","",ROUND(千円単!J133/1000,0)) -> 2926 | K133: =IF(千円単!K133="","",ROUND(千円単!K133/1000,0)) -> 1516 | L133: =IF(千円単!L133="","",ROUND(千円単!L133/1000,0)) -> 531 | M133: =IF(千円単!M133="","",ROUND(千円単!M133/1000,0)) -> 2787 | N133: =IF(千円単!N133="","",ROUND(千円単!N133/1000,0)) -> 216 | O133: =IF(千円単!O133="","",ROUND(千円単!O133/1000,0)) -> 1927 | P133: =IF(千円単!P133="","",ROUND(千円単!P133/1000,0)) -> 160 | Q133: =IF(千円単!Q133="","",ROUND(千円単!Q133/1000,0)) -> 140 | R133: =IF(千円単!R133="","",ROUND(千円単!R133/1000,0)) -> 1076 | S133: =IF(千円単!S133="","",ROUND(千円単!S133/1000,0)) -> 579 | T133: =IF(千円単!T133="","",ROUND(千円単!T133/1000,0)) -> 48 | U133: =IF(千円単!U133="","",ROUND(千円単!U133/1000,0)) -> 2154 | V133: =IF(千円単!V133="","",ROUND(千円単!V133/1000,0)) -> 1002 | W133: =IF(千円単!W133="","",ROUND(千円単!W133/1000,0)) -> 1152 | X133: =IF(千円単!X133="","",ROUND(千円単!X133/1000,0)) -> -1077 | Y133: =IF(千円単!Y133="","",ROUND(千円単!Y133/1000,0)) -> 140
A134: 2022 | B134: 46 | C134: 17 | D134: 1 | E134: 133 | F134: 公共 | G134: 072036 | H134: 福島県 | I134: 郡山市 | J134: =IF(千円単!J134="","",ROUND(千円単!J134/1000,0)) -> 7943 | K134: =IF(千円単!K134="","",ROUND(千円単!K134/1000,0)) -> 3832 | L134: =IF(千円単!L134="","",ROUND(千円単!L134/1000,0)) -> 2664 | M134: =IF(千円単!M134="","",ROUND(千円単!M134/1000,0)) -> 7839 | N134: =IF(千円単!N134="","",ROUND(千円単!N134/1000,0)) -> 789 | O134: =IF(千円単!O134="","",ROUND(千円単!O134/1000,0)) -> 4165 | P134: =IF(千円単!P134="","",ROUND(千円単!P134/1000,0)) -> 338 | Q134: =IF(千円単!Q134="","",ROUND(千円単!Q134/1000,0)) -> 105 | R134: =IF(千円単!R134="","",ROUND(千円単!R134/1000,0)) -> 8388 | S134: =IF(千円単!S134="","",ROUND(千円単!S134/1000,0)) -> 3820 | T134: =IF(千円単!T134="","",ROUND(千円単!T134/1000,0)) -> 0 | U134: =IF(千円単!U134="","",ROUND(千円単!U134/1000,0)) -> 11747 | V134: =IF(千円単!V134="","",ROUND(千円単!V134/1000,0)) -> 6696 | W134: =IF(千円単!W134="","",ROUND(千円単!W134/1000,0)) -> 5051 | X134: =IF(千円単!X134="","",ROUND(千円単!X134/1000,0)) -> -3359 | Y134: =IF(千円単!Y134="","",ROUND(千円単!Y134/1000,0)) -> 105
A135: 2022 | B135: 46 | C135: 17 | D135: 1 | E135: 134 | F135: 公共 | G135: 072044 | H135: 福島県 | I135: いわき市 | J135: =IF(千円単!J135="","",ROUND(千円単!J135/1000,0)) -> 9024 | K135: =IF(千円単!K135="","",ROUND(千円単!K135/1000,0)) -> 3386 | L135: =IF(千円単!L135="","",ROUND(千円単!L135/1000,0)) -> 2978 | M135: =IF(千円単!M135="","",ROUND(千円単!M135/1000,0)) -> 8133 | N135: =IF(千円単!N135="","",ROUND(千円単!N135/1000,0)) -> 703 | O135: =IF(千円単!O135="","",ROUND(千円単!O135/1000,0)) -> 4396 | P135: =IF(千円単!P135="","",ROUND(千円単!P135/1000,0)) -> 217 | Q135: =IF(千円単!Q135="","",ROUND(千円単!Q135/1000,0)) -> 892 | R135: =IF(千円単!R135="","",ROUND(千円単!R135/1000,0)) -> 5405 | S135: =IF(千円単!S135="","",ROUND(千円単!S135/1000,0)) -> 2948 | T135: =IF(千円単!T135="","",ROUND(千円単!T135/1000,0)) -> 874 | U135: =IF(千円単!U135="","",ROUND(千円単!U135/1000,0)) -> 8624 | V135: =IF(千円単!V135="","",ROUND(千円単!V135/1000,0)) -> 4521 | W135: =IF(千円単!W135="","",ROUND(千円単!W135/1000,0)) -> 4099 | X135: =IF(千円単!X135="","",ROUND(千円単!X135/1000,0)) -> -3219 | Y135: =IF(千円単!Y135="","",ROUND(千円単!Y135/1000,0)) -> 892
A136: 2022 | B136: 46 | C136: 17 | D136: 1 | E136: 135 | F136: 公共 | G136: 072052 | H136: 福島県 | I136: 白河市 | J136: =IF(千円単!J136="","",ROUND(千円単!J136/1000,0)) -> 1438 | K136: =IF(千円単!K136="","",ROUND(千円単!K136/1000,0)) -> 397 | L136: =IF(千円単!L136="","",ROUND(千円単!L136/1000,0)) -> 261 | M136: =IF(千円単!M136="","",ROUND(千円単!M136/1000,0)) -> 1362 | N136: =IF(千円単!N136="","",ROUND(千円単!N136/1000,0)) -> 121 | O136: =IF(千円単!O136="","",ROUND(千円単!O136/1000,0)) -> 759 | P136: =IF(千円単!P136="","",ROUND(千円単!P136/1000,0)) -> 46 | Q136: =IF(千円単!Q136="","",ROUND(千円単!Q136/1000,0)) -> 76 | R136: =IF(千円単!R136="","",ROUND(千円単!R136/1000,0)) -> 1165 | S136: =IF(千円単!S136="","",ROUND(千円単!S136/1000,0)) -> 432 | T136: =IF(千円単!T136="","",ROUND(千円単!T136/1000,0)) -> 472 | U136: =IF(千円単!U136="","",ROUND(千円単!U136/1000,0)) -> 1276 | V136: =IF(千円単!V136="","",ROUND(千円単!V136/1000,0)) -> 557 | W136: =IF(千円単!W136="","",ROUND(千円単!W136/1000,0)) -> 719 | X136: =IF(千円単!X136="","",ROUND(千円単!X136/1000,0)) -> -111 | Y136: =IF(千円単!Y136="","",ROUND(千円単!Y136/1000,0)) -> 76
A137: 2022 | B137: 46 | C137: 17 | D137: 1 | E137: 136 | F137: 公共 | G137: 072079 | H137: 福島県 | I137: 須賀川市 | J137: =IF(千円単!J137="","",ROUND(千円単!J137/1000,0)) -> 1309 | K137: =IF(千円単!K137="","",ROUND(千円単!K137/1000,0)) -> 534 | L137: =IF(千円単!L137="","",ROUND(千円単!L137/1000,0)) -> 437 | M137: =IF(千円単!M137="","",ROUND(千円単!M137/1000,0)) -> 1166 | N137: =IF(千円単!N137="","",ROUND(千円単!N137/1000,0)) -> 118 | O137: =IF(千円単!O137="","",ROUND(千円単!O137/1000,0)) -> 627 | P137: =IF(千円単!P137="","",ROUND(千円単!P137/1000,0)) -> 115 | Q137: =IF(千円単!Q137="","",ROUND(千円単!Q137/1000,0)) -> 143 | R137: =IF(千円単!R137="","",ROUND(千円単!R137/1000,0)) -> 1075 | S137: =IF(千円単!S137="","",ROUND(千円単!S137/1000,0)) -> 489 | T137: =IF(千円単!T137="","",ROUND(千円単!T137/1000,0)) -> 118 | U137: =IF(千円単!U137="","",ROUND(千円単!U137/1000,0)) -> 1471 | V137: =IF(千円単!V137="","",ROUND(千円単!V137/1000,0)) -> 798 | W137: =IF(千円単!W137="","",ROUND(千円単!W137/1000,0)) -> 674 | X137: =IF(千円単!X137="","",ROUND(千円単!X137/1000,0)) -> -396 | Y137: =IF(千円単!Y137="","",ROUND(千円単!Y137/1000,0)) -> 143
A138: 2022 | B138: 46 | C138: 17 | D138: 1 | E138: 137 | F138: 公共 | G138: 072087 | H138: 福島県 | I138: 喜多方市 | J138: =IF(千円単!J138="","",ROUND(千円単!J138/1000,0)) -> 819 | K138: =IF(千円単!K138="","",ROUND(千円単!K138/1000,0)) -> 208 | L138: =IF(千円単!L138="","",ROUND(千円単!L138/1000,0)) -> 357 | M138: =IF(千円単!M138="","",ROUND(千円単!M138/1000,0)) -> 794 | N138: =IF(千円単!N138="","",ROUND(千円単!N138/1000,0)) -> 73 | O138: =IF(千円単!O138="","",ROUND(千円単!O138/1000,0)) -> 432 | P138: =IF(千円単!P138="","",ROUND(千円単!P138/1000,0)) -> 50 | Q138: =IF(千円単!Q138="","",ROUND(千円単!Q138/1000,0)) -> 25 | R138: =IF(千円単!R138="","",ROUND(千円単!R138/1000,0)) -> 660 | S138: =IF(千円単!S138="","",ROUND(千円単!S138/1000,0)) -> 291 | T138: =IF(千円単!T138="","",ROUND(千円単!T138/1000,0)) -> 38 | U138: =IF(千円単!U138="","",ROUND(千円単!U138/1000,0)) -> 866 | V138: =IF(千円単!V138="","",ROUND(千円単!V138/1000,0)) -> 424 | W138: =IF(千円単!W138="","",ROUND(千円単!W138/1000,0)) -> 442 | X138: =IF(千円単!X138="","",ROUND(千円単!X138/1000,0)) -> -206 | Y138: =IF(千円単!Y138="","",ROUND(千円単!Y138/1000,0)) -> 25
A139: 2022 | B139: 46 | C139: 17 | D139: 1 | E139: 138 | F139: 公共 | G139: 072095 | H139: 福島県 | I139: 相馬市 | J139: =IF(千円単!J139="","",ROUND(千円単!J139/1000,0)) -> 1193 | K139: =IF(千円単!K139="","",ROUND(千円単!K139/1000,0)) -> 247 | L139: =IF(千円単!L139="","",ROUND(千円単!L139/1000,0)) -> 438 | M139: =IF(千円単!M139="","",ROUND(千円単!M139/1000,0)) -> 1171 | N139: =IF(千円単!N139="","",ROUND(千円単!N139/1000,0)) -> 36 | O139: =IF(千円単!O139="","",ROUND(千円単!O139/1000,0)) -> 857 | P139: =IF(千円単!P139="","",ROUND(千円単!P139/1000,0)) -> 31 | Q139: =IF(千円単!Q139="","",ROUND(千円単!Q139/1000,0)) -> 22 | R139: =IF(千円単!R139="","",ROUND(千円単!R139/1000,0)) -> 481 | S139: =IF(千円単!S139="","",ROUND(千円単!S139/1000,0)) -> 139 | T139: =IF(千円単!T139="","",ROUND(千円単!T139/1000,0)) -> 58 | U139: =IF(千円単!U139="","",ROUND(千円単!U139/1000,0)) -> 856 | V139: =IF(千円単!V139="","",ROUND(千円単!V139/1000,0)) -> 292 | W139: =IF(千円単!W139="","",ROUND(千円単!W139/1000,0)) -> 564 | X139: =IF(千円単!X139="","",ROUND(千円単!X139/1000,0)) -> -374 | Y139: =IF(千円単!Y139="","",ROUND(千円単!Y139/1000,0)) -> 22
A140: 2022 | B140: 46 | C140: 17 | D140: 1 | E140: 139 | F140: 公共 | G140: 072109 | H140: 福島県 | I140: 二本松市 | J140: =IF(千円単!J140="","",ROUND(千円単!J140/1000,0)) -> 786 | K140: =IF(千円単!K140="","",ROUND(千円単!K140/1000,0)) -> 218 | L140: =IF(千円単!L140="","",ROUND(千円単!L140/1000,0)) -> 391 | M140: =IF(千円単!M140="","",ROUND(千円単!M140/1000,0)) -> 786 | N140: =IF(千円単!N140="","",ROUND(千円単!N140/1000,0)) -> 73 | O140: =IF(千円単!O140="","",ROUND(千円単!O140/1000,0)) -> 339 | P140: =IF(千円単!P140="","",ROUND(千円単!P140/1000,0)) -> 30 | Q140: =IF(千円単!Q140="","",ROUND(千円単!Q140/1000,0)) -> 0 | R140: =IF(千円単!R140="","",ROUND(千円単!R140/1000,0)) -> 95 | S140: =IF(千円単!S140="","",ROUND(千円単!S140/1000,0)) -> 23 | T140: =IF(千円単!T140="","",ROUND(千円単!T140/1000,0)) -> 61 | U140: =IF(千円単!U140="","",ROUND(千円単!U140/1000,0)) -> 440 | V140: =IF(千円単!V140="","",ROUND(千円単!V140/1000,0)) -> 27 | W140: =IF(千円単!W140="","",ROUND(千円単!W140/1000,0)) -> 413 | X140: =IF(千円単!X140="","",ROUND(千円単!X140/1000,0)) -> -345 | Y140: =IF(千円単!Y140="","",ROUND(千円単!Y140/1000,0)) -> 0
A141: 2022 | B141: 46 | C141: 17 | D141: 1 | E141: 140 | F141: 公共 | G141: 072117 | H141: 福島県 | I141: 田村市 | J141: =IF(千円単!J141="","",ROUND(千円単!J141/1000,0)) -> 595 | K141: =IF(千円単!K141="","",ROUND(千円単!K141/1000,0)) -> 169 | L141: =IF(千円単!L141="","",ROUND(千円単!L141/1000,0)) -> 255 | M141: =IF(千円単!M141="","",ROUND(千円単!M141/1000,0)) -> 588 | N141: =IF(千円単!N141="","",ROUND(千円単!N141/1000,0)) -> 77 | O141: =IF(千円単!O141="","",ROUND(千円単!O141/1000,0)) -> 344 | P141: =IF(千円単!P141="","",ROUND(千円単!P141/1000,0)) -> 15 | Q141: =IF(千円単!Q141="","",ROUND(千円単!Q141/1000,0)) -> 7 | R141: =IF(千円単!R141="","",ROUND(千円単!R141/1000,0)) -> 318 | S141: =IF(千円単!S141="","",ROUND(千円単!S141/1000,0)) -> 63 | T141: =IF(千円単!T141="","",ROUND(千円単!T141/1000,0)) -> 0 | U141: =IF(千円単!U141="","",ROUND(千円単!U141/1000,0)) -> 494 | V141: =IF(千円単!V141="","",ROUND(千円単!V141/1000,0)) -> 125 | W141: =IF(千円単!W141="","",ROUND(千円単!W141/1000,0)) -> 368 | X141: =IF(千円単!X141="","",ROUND(千円単!X141/1000,0)) -> -175 | Y141: =IF(千円単!Y141="","",ROUND(千円単!Y141/1000,0)) -> 7
A142: 2022 | B142: 46 | C142: 17 | D142: 1 | E142: 141 | F142: 公共 | G142: 072125 | H142: 福島県 | I142: 南相馬市 | J142: =IF(千円単!J142="","",ROUND(千円単!J142/1000,0)) -> 1563 | K142: =IF(千円単!K142="","",ROUND(千円単!K142/1000,0)) -> 453 | L142: =IF(千円単!L142="","",ROUND(千円単!L142/1000,0)) -> 575 | M142: =IF(千円単!M142="","",ROUND(千円単!M142/1000,0)) -> 1431 | N142: =IF(千円単!N142="","",ROUND(千円単!N142/1000,0)) -> 127 | O142: =IF(千円単!O142="","",ROUND(千円単!O142/1000,0)) -> 838 | P142: =IF(千円単!P142="","",ROUND(千円単!P142/1000,0)) -> 53 | Q142: =IF(千円単!Q142="","",ROUND(千円単!Q142/1000,0)) -> 132 | R142: =IF(千円単!R142="","",ROUND(千円単!R142/1000,0)) -> 936 | S142: =IF(千円単!S142="","",ROUND(千円単!S142/1000,0)) -> 524 | T142: =IF(千円単!T142="","",ROUND(千円単!T142/1000,0)) -> 0 | U142: =IF(千円単!U142="","",ROUND(千円単!U142/1000,0)) -> 1624 | V142: =IF(千円単!V142="","",ROUND(千円単!V142/1000,0)) -> 804 | W142: =IF(千円単!W142="","",ROUND(千円単!W142/1000,0)) -> 820 | X142: =IF(千円単!X142="","",ROUND(千円単!X142/1000,0)) -> -688 | Y142: =IF(千円単!Y142="","",ROUND(千円単!Y142/1000,0)) -> 132
A143: 2022 | B143: 46 | C143: 17 | D143: 1 | E143: 142 | F143: 公共 | G143: 072133 | H143: 福島県 | I143: 伊達市 | J143: =IF(千円単!J143="","",ROUND(千円単!J143/1000,0)) -> 802 | K143: =IF(千円単!K143="","",ROUND(千円単!K143/1000,0)) -> 278 | L143: =IF(千円単!L143="","",ROUND(千円単!L143/1000,0)) -> 255 | M143: =IF(千円単!M143="","",ROUND(千円単!M143/1000,0)) -> 686 | N143: =IF(千円単!N143="","",ROUND(千円単!N143/1000,0)) -> 84 | O143: =IF(千円単!O143="","",ROUND(千円単!O143/1000,0)) -> 367 | P143: =IF(千円単!P143="","",ROUND(千円単!P143/1000,0)) -> 30 | Q143: =IF(千円単!Q143="","",ROUND(千円単!Q143/1000,0)) -> 117 | R143: =IF(千円単!R143="","",ROUND(千円単!R143/1000,0)) -> 420 | S143: =IF(千円単!S143="","",ROUND(千円単!S143/1000,0)) -> 348 | T143: =IF(千円単!T143="","",ROUND(千円単!T143/1000,0)) -> 41 | U143: =IF(千円単!U143="","",ROUND(千円単!U143/1000,0)) -> 760 | V143: =IF(千円単!V143="","",ROUND(千円単!V143/1000,0)) -> 104 | W143: =IF(千円単!W143="","",ROUND(千円単!W143/1000,0)) -> 655 | X143: =IF(千円単!X143="","",ROUND(千円単!X143/1000,0)) -> -339 | Y143: =IF(千円単!Y143="","",ROUND(千円単!Y143/1000,0)) -> 117
A144: 2022 | B144: 46 | C144: 17 | D144: 1 | E144: 143 | F144: 公共 | G144: 072141 | H144: 福島県 | I144: 本宮市 | J144: =IF(千円単!J144="","",ROUND(千円単!J144/1000,0)) -> 744 | K144: =IF(千円単!K144="","",ROUND(千円単!K144/1000,0)) -> 231 | L144: =IF(千円単!L144="","",ROUND(千円単!L144/1000,0)) -> 285 | M144: =IF(千円単!M144="","",ROUND(千円単!M144/1000,0)) -> 620 | N144: =IF(千円単!N144="","",ROUND(千円単!N144/1000,0)) -> 41 | O144: =IF(千円単!O144="","",ROUND(千円単!O144/1000,0)) -> 385 | P144: =IF(千円単!P144="","",ROUND(千円単!P144/1000,0)) -> 12 | Q144: =IF(千円単!Q144="","",ROUND(千円単!Q144/1000,0)) -> 124 | R144: =IF(千円単!R144="","",ROUND(千円単!R144/1000,0)) -> 297 | S144: =IF(千円単!S144="","",ROUND(千円単!S144/1000,0)) -> 174 | T144: =IF(千円単!T144="","",ROUND(千円単!T144/1000,0)) -> 0 | U144: =IF(千円単!U144="","",ROUND(千円単!U144/1000,0)) -> 551 | V144: =IF(千円単!V144="","",ROUND(千円単!V144/1000,0)) -> 127 | W144: =IF(千円単!W144="","",ROUND(千円単!W144/1000,0)) -> 424 | X144: =IF(千円単!X144="","",ROUND(千円単!X144/1000,0)) -> -254 | Y144: =IF(千円単!Y144="","",ROUND(千円単!Y144/1000,0)) -> 124
A145: 2022 | B145: 46 | C145: 17 | D145: 1 | E145: 144 | F145: 公共 | G145: 073687 | H145: 福島県 | I145: 南会津町 | J145: =IF(千円単!J145="","",ROUND(千円単!J145/1000,0)) -> 252 | K145: =IF(千円単!K145="","",ROUND(千円単!K145/1000,0)) -> 56 | L145: =IF(千円単!L145="","",ROUND(千円単!L145/1000,0)) -> 116 | M145: =IF(千円単!M145="","",ROUND(千円単!M145/1000,0)) -> 255 | N145: =IF(千円単!N145="","",ROUND(千円単!N145/1000,0)) -> 13 | O145: =IF(千円単!O145="","",ROUND(千円単!O145/1000,0)) -> 171 | P145: =IF(千円単!P145="","",ROUND(千円単!P145/1000,0)) -> 29 | Q145: =IF(千円単!Q145="","",ROUND(千円単!Q145/1000,0)) -> -3 | R145: =IF(千円単!R145="","",ROUND(千円単!R145/1000,0)) -> 166 | S145: =IF(千円単!S145="","",ROUND(千円単!S145/1000,0)) -> 34 | T145: =IF(千円単!T145="","",ROUND(千円単!T145/1000,0)) -> 0 | U145: =IF(千円単!U145="","",ROUND(千円単!U145/1000,0)) -> 176 | V145: =IF(千円単!V145="","",ROUND(千円単!V145/1000,0)) -> 82 | W145: =IF(千円単!W145="","",ROUND(千円単!W145/1000,0)) -> 93 | X145: =IF(千円単!X145="","",ROUND(千円単!X145/1000,0)) -> -10 | Y145: =IF(千円単!Y145="","",ROUND(千円単!Y145/1000,0)) -> -3
A146: 2022 | B146: 46 | C146: 17 | D146: 1 | E146: 145 | F146: 公共 | G146: 074080 | H146: 福島県 | I146: 猪苗代町 | J146: =IF(千円単!J146="","",ROUND(千円単!J146/1000,0)) -> 401 | K146: =IF(千円単!K146="","",ROUND(千円単!K146/1000,0)) -> 133 | L146: =IF(千円単!L146="","",ROUND(千円単!L146/1000,0)) -> 155 | M146: =IF(千円単!M146="","",ROUND(千円単!M146/1000,0)) -> 412 | N146: =IF(千円単!N146="","",ROUND(千円単!N146/1000,0)) -> 27 | O146: =IF(千円単!O146="","",ROUND(千円単!O146/1000,0)) -> 258 | P146: =IF(千円単!P146="","",ROUND(千円単!P146/1000,0)) -> 32 | Q146: =IF(千円単!Q146="","",ROUND(千円単!Q146/1000,0)) -> -11 | R146: =IF(千円単!R146="","",ROUND(千円単!R146/1000,0)) -> 118 | S146: =IF(千円単!S146="","",ROUND(千円単!S146/1000,0)) -> 43 | T146: =IF(千円単!T146="","",ROUND(千円単!T146/1000,0)) -> 70 | U146: =IF(千円単!U146="","",ROUND(千円単!U146/1000,0)) -> 256 | V146: =IF(千円単!V146="","",ROUND(千円単!V146/1000,0)) -> 9 | W146: =IF(千円単!W146="","",ROUND(千円単!W146/1000,0)) -> 247 | X146: =IF(千円単!X146="","",ROUND(千円単!X146/1000,0)) -> -138 | Y146: =IF(千円単!Y146="","",ROUND(千円単!Y146/1000,0)) -> -11
A147: 2022 | B147: 46 | C147: 17 | D147: 1 | E147: 146 | F147: 公共 | G147: 074471 | H147: 福島県 | I147: 会津美里町 | J147: =IF(千円単!J147="","",ROUND(千円単!J147/1000,0)) -> 440 | K147: =IF(千円単!K147="","",ROUND(千円単!K147/1000,0)) -> 102 | L147: =IF(千円単!L147="","",ROUND(千円単!L147/1000,0)) -> 166 | M147: =IF(千円単!M147="","",ROUND(千円単!M147/1000,0)) -> 435 | N147: =IF(千円単!N147="","",ROUND(千円単!N147/1000,0)) -> 33 | O147: =IF(千円単!O147="","",ROUND(千円単!O147/1000,0)) -> 286 | P147: =IF(千円単!P147="","",ROUND(千円単!P147/1000,0)) -> 20 | Q147: =IF(千円単!Q147="","",ROUND(千円単!Q147/1000,0)) -> 5 | R147: =IF(千円単!R147="","",ROUND(千円単!R147/1000,0)) -> 291 | S147: =IF(千円単!S147="","",ROUND(千円単!S147/1000,0)) -> 116 | T147: =IF(千円単!T147="","",ROUND(千円単!T147/1000,0)) -> 0 | U147: =IF(千円単!U147="","",ROUND(千円単!U147/1000,0)) -> 441 | V147: =IF(千円単!V147="","",ROUND(千円単!V147/1000,0)) -> 226 | W147: =IF(千円単!W147="","",ROUND(千円単!W147/1000,0)) -> 215 | X147: =IF(千円単!X147="","",ROUND(千円単!X147/1000,0)) -> -150 | Y147: =IF(千円単!Y147="","",ROUND(千円単!Y147/1000,0)) -> 5
A148: 2022 | B148: 46 | C148: 17 | D148: 1 | E148: 147 | F148: 公共 | G148: 074616 | H148: 福島県 | I148: 西郷村 | J148: =IF(千円単!J148="","",ROUND(千円単!J148/1000,0)) -> 827 | K148: =IF(千円単!K148="","",ROUND(千円単!K148/1000,0)) -> 218 | L148: =IF(千円単!L148="","",ROUND(千円単!L148/1000,0)) -> 400 | M148: =IF(千円単!M148="","",ROUND(千円単!M148/1000,0)) -> 597 | N148: =IF(千円単!N148="","",ROUND(千円単!N148/1000,0)) -> 53 | O148: =IF(千円単!O148="","",ROUND(千円単!O148/1000,0)) -> 337 | P148: =IF(千円単!P148="","",ROUND(千円単!P148/1000,0)) -> 19 | Q148: =IF(千円単!Q148="","",ROUND(千円単!Q148/1000,0)) -> 230 | R148: =IF(千円単!R148="","",ROUND(千円単!R148/1000,0)) -> 48 | S148: =IF(千円単!S148="","",ROUND(千円単!S148/1000,0)) -> 12 | T148: =IF(千円単!T148="","",ROUND(千円単!T148/1000,0)) -> 9 | U148: =IF(千円単!U148="","",ROUND(千円単!U148/1000,0)) -> 392 | V148: =IF(千円単!V148="","",ROUND(千円単!V148/1000,0)) -> 83 | W148: =IF(千円単!W148="","",ROUND(千円単!W148/1000,0)) -> 309 | X148: =IF(千円単!X148="","",ROUND(千円単!X148/1000,0)) -> -344 | Y148: =IF(千円単!Y148="","",ROUND(千円単!Y148/1000,0)) -> 230
A149: 2022 | B149: 46 | C149: 17 | D149: 1 | E149: 148 | F149: 公共 | G149: 074667 | H149: 福島県 | I149: 矢吹町 | J149: =IF(千円単!J149="","",ROUND(千円単!J149/1000,0)) -> 451 | K149: =IF(千円単!K149="","",ROUND(千円単!K149/1000,0)) -> 126 | L149: =IF(千円単!L149="","",ROUND(千円単!L149/1000,0)) -> 213 | M149: =IF(千円単!M149="","",ROUND(千円単!M149/1000,0)) -> 389 | N149: =IF(千円単!N149="","",ROUND(千円単!N149/1000,0)) -> 32 | O149: =IF(千円単!O149="","",ROUND(千円単!O149/1000,0)) -> 206 | P149: =IF(千円単!P149="","",ROUND(千円単!P149/1000,0)) -> 22 | Q149: =IF(千円単!Q149="","",ROUND(千円単!Q149/1000,0)) -> 62 | R149: =IF(千円単!R149="","",ROUND(千円単!R149/1000,0)) -> 323 | S149: =IF(千円単!S149="","",ROUND(千円単!S149/1000,0)) -> 157 | T149: =IF(千円単!T149="","",ROUND(千円単!T149/1000,0)) -> 36 | U149: =IF(千円単!U149="","",ROUND(千円単!U149/1000,0)) -> 430 | V149: =IF(千円単!V149="","",ROUND(千円単!V149/1000,0)) -> 176 | W149: =IF(千円単!W149="","",ROUND(千円単!W149/1000,0)) -> 255 | X149: =IF(千円単!X149="","",ROUND(千円単!X149/1000,0)) -> -107 | Y149: =IF(千円単!Y149="","",ROUND(千円単!Y149/1000,0)) -> 62
A150: 2022 | B150: 46 | C150: 17 | D150: 1 | E150: 149 | F150: 公共 | G150: 075213 | H150: 福島県 | I150: 三春町 | J150: =IF(千円単!J150="","",ROUND(千円単!J150/1000,0)) -> 160 | K150: =IF(千円単!K150="","",ROUND(千円単!K150/1000,0)) -> 87 | L150: =IF(千円単!L150="","",ROUND(千円単!L150/1000,0)) -> 0 | M150: =IF(千円単!M150="","",ROUND(千円単!M150/1000,0)) -> 195 | N150: =IF(千円単!N150="","",ROUND(千円単!N150/1000,0)) -> 14 | O150: =IF(千円単!O150="","",ROUND(千円単!O150/1000,0)) -> 116 | P150: =IF(千円単!P150="","",ROUND(千円単!P150/1000,0)) -> 10 | Q150: =IF(千円単!Q150="","",ROUND(千円単!Q150/1000,0)) -> -34 | R150: =IF(千円単!R150="","",ROUND(千円単!R150/1000,0)) -> 168 | S150: =IF(千円単!S150="","",ROUND(千円単!S150/1000,0)) -> 21 | T150: =IF(千円単!T150="","",ROUND(千円単!T150/1000,0)) -> 0 | U150: =IF(千円単!U150="","",ROUND(千円単!U150/1000,0)) -> 170 | V150: =IF(千円単!V150="","",ROUND(千円単!V150/1000,0)) -> 46 | W150: =IF(千円単!W150="","",ROUND(千円単!W150/1000,0)) -> 124 | X150: =IF(千円単!X150="","",ROUND(千円単!X150/1000,0)) -> -3 | Y150: =IF(千円単!Y150="","",ROUND(千円単!Y150/1000,0)) -> -34
A151: 2022 | B151: 46 | C151: 17 | D151: 1 | E151: 150 | F151: 公共 | G151: 082015 | H151: 茨城県 | I151: 水戸市 | J151: =IF(千円単!J151="","",ROUND(千円単!J151/1000,0)) -> 8584 | K151: =IF(千円単!K151="","",ROUND(千円単!K151/1000,0)) -> 3280 | L151: =IF(千円単!L151="","",ROUND(千円単!L151/1000,0)) -> 3319 | M151: =IF(千円単!M151="","",ROUND(千円単!M151/1000,0)) -> 8312 | N151: =IF(千円単!N151="","",ROUND(千円単!N151/1000,0)) -> 1013 | O151: =IF(千円単!O151="","",ROUND(千円単!O151/1000,0)) -> 5395 | P151: =IF(千円単!P151="","",ROUND(千円単!P151/1000,0)) -> 215 | Q151: =IF(千円単!Q151="","",ROUND(千円単!Q151/1000,0)) -> 273 | R151: =IF(千円単!R151="","",ROUND(千円単!R151/1000,0)) -> 4647 | S151: =IF(千円単!S151="","",ROUND(千円単!S151/1000,0)) -> 2272 | T151: =IF(千円単!T151="","",ROUND(千円単!T151/1000,0)) -> 683 | U151: =IF(千円単!U151="","",ROUND(千円単!U151/1000,0)) -> 8776 | V151: =IF(千円単!V151="","",ROUND(千円単!V151/1000,0)) -> 3144 | W151: =IF(千円単!W151="","",ROUND(千円単!W151/1000,0)) -> 5630 | X151: =IF(千円単!X151="","",ROUND(千円単!X151/1000,0)) -> -4129 | Y151: =IF(千円単!Y151="","",ROUND(千円単!Y151/1000,0)) -> 273
A152: 2022 | B152: 46 | C152: 17 | D152: 1 | E152: 151 | F152: 公共 | G152: 082023 | H152: 茨城県 | I152: 日立市 | J152: =IF(千円単!J152="","",ROUND(千円単!J152/1000,0)) -> 3790 | K152: =IF(千円単!K152="","",ROUND(千円単!K152/1000,0)) -> 2407 | L152: =IF(千円単!L152="","",ROUND(千円単!L152/1000,0)) -> 107 | M152: =IF(千円単!M152="","",ROUND(千円単!M152/1000,0)) -> 3523 | N152: =IF(千円単!N152="","",ROUND(千円単!N152/1000,0)) -> 139 | O152: =IF(千円単!O152="","",ROUND(千円単!O152/1000,0)) -> 2120 | P152: =IF(千円単!P152="","",ROUND(千円単!P152/1000,0)) -> 99 | Q152: =IF(千円単!Q152="","",ROUND(千円単!Q152/1000,0)) -> 267 | R152: =IF(千円単!R152="","",ROUND(千円単!R152/1000,0)) -> 1036 | S152: =IF(千円単!S152="","",ROUND(千円単!S152/1000,0)) -> 435 | T152: =IF(千円単!T152="","",ROUND(千円単!T152/1000,0)) -> 160 | U152: =IF(千円単!U152="","",ROUND(千円単!U152/1000,0)) -> 2366 | V152: =IF(千円単!V152="","",ROUND(千円単!V152/1000,0)) -> 1280 | W152: =IF(千円単!W152="","",ROUND(千円単!W152/1000,0)) -> 1086 | X152: =IF(千円単!X152="","",ROUND(千円単!X152/1000,0)) -> -1330 | Y152: =IF(千円単!Y152="","",ROUND(千円単!Y152/1000,0)) -> 267
A153: 2022 | B153: 46 | C153: 17 | D153: 1 | E153: 152 | F153: 公共 | G153: 082031 | H153: 茨城県 | I153: 土浦市 | J153: =IF(千円単!J153="","",ROUND(千円単!J153/1000,0)) -> 3975 | K153: =IF(千円単!K153="","",ROUND(千円単!K153/1000,0)) -> 1934 | L153: =IF(千円単!L153="","",ROUND(千円単!L153/1000,0)) -> 953 | M153: =IF(千円単!M153="","",ROUND(千円単!M153/1000,0)) -> 3842 | N153: =IF(千円単!N153="","",ROUND(千円単!N153/1000,0)) -> 224 | O153: =IF(千円単!O153="","",ROUND(千円単!O153/1000,0)) -> 2184 | P153: =IF(千円単!P153="","",ROUND(千円単!P153/1000,0)) -> 104 | Q153: =IF(千円単!Q153="","",ROUND(千円単!Q153/1000,0)) -> 133 | R153: =IF(千円単!R153="","",ROUND(千円単!R153/1000,0)) -> 1048 | S153: =IF(千円単!S153="","",ROUND(千円単!S153/1000,0)) -> 635 | T153: =IF(千円単!T153="","",ROUND(千円単!T153/1000,0)) -> 142 | U153: =IF(千円単!U153="","",ROUND(千円単!U153/1000,0)) -> 2355 | V153: =IF(千円単!V153="","",ROUND(千円単!V153/1000,0)) -> 1012 | W153: =IF(千円単!W153="","",ROUND(千円単!W153/1000,0)) -> 1342 | X153: =IF(千円単!X153="","",ROUND(千円単!X153/1000,0)) -> -1307 | Y153: =IF(千円単!Y153="","",ROUND(千円単!Y153/1000,0)) -> 133
A154: 2022 | B154: 46 | C154: 17 | D154: 1 | E154: 153 | F154: 公共 | G154: 082040 | H154: 茨城県 | I154: 古河市 | J154: =IF(千円単!J154="","",ROUND(千円単!J154/1000,0)) -> 3048 | K154: =IF(千円単!K154="","",ROUND(千円単!K154/1000,0)) -> 1276 | L154: =IF(千円単!L154="","",ROUND(千円単!L154/1000,0)) -> 816 | M154: =IF(千円単!M154="","",ROUND(千円単!M154/1000,0)) -> 3017 | N154: =IF(千円単!N154="","",ROUND(千円単!N154/1000,0)) -> 178 | O154: =IF(千円単!O154="","",ROUND(千円単!O154/1000,0)) -> 1713 | P154: =IF(千円単!P154="","",ROUND(千円単!P154/1000,0)) -> 103 | Q154: =IF(千円単!Q154="","",ROUND(千円単!Q154/1000,0)) -> 31 | R154: =IF(千円単!R154="","",ROUND(千円単!R154/1000,0)) -> 1524 | S154: =IF(千円単!S154="","",ROUND(千円単!S154/1000,0)) -> 754 | T154: =IF(千円単!T154="","",ROUND(千円単!T154/1000,0)) -> 187 | U154: =IF(千円単!U154="","",ROUND(千円単!U154/1000,0)) -> 2410 | V154: =IF(千円単!V154="","",ROUND(千円単!V154/1000,0)) -> 1247 | W154: =IF(千円単!W154="","",ROUND(千円単!W154/1000,0)) -> 1164 | X154: =IF(千円単!X154="","",ROUND(千円単!X154/1000,0)) -> -886 | Y154: =IF(千円単!Y154="","",ROUND(千円単!Y154/1000,0)) -> 31
A155: 2022 | B155: 46 | C155: 17 | D155: 1 | E155: 154 | F155: 公共 | G155: 082058 | H155: 茨城県 | I155: 石岡市 | J155: =IF(千円単!J155="","",ROUND(千円単!J155/1000,0)) -> 1338 | K155: =IF(千円単!K155="","",ROUND(千円単!K155/1000,0)) -> 473 | L155: =IF(千円単!L155="","",ROUND(千円単!L155/1000,0)) -> 518 | M155: =IF(千円単!M155="","",ROUND(千円単!M155/1000,0)) -> 1328 | N155: =IF(千円単!N155="","",ROUND(千円単!N155/1000,0)) -> 123 | O155: =IF(千円単!O155="","",ROUND(千円単!O155/1000,0)) -> 824 | P155: =IF(千円単!P155="","",ROUND(千円単!P155/1000,0)) -> 21 | Q155: =IF(千円単!Q155="","",ROUND(千円単!Q155/1000,0)) -> 11 | R155: =IF(千円単!R155="","",ROUND(千円単!R155/1000,0)) -> 379 | S155: =IF(千円単!S155="","",ROUND(千円単!S155/1000,0)) -> 266 | T155: =IF(千円単!T155="","",ROUND(千円単!T155/1000,0)) -> 0 | U155: =IF(千円単!U155="","",ROUND(千円単!U155/1000,0)) -> 1119 | V155: =IF(千円単!V155="","",ROUND(千円単!V155/1000,0)) -> 406 | W155: =IF(千円単!W155="","",ROUND(千円単!W155/1000,0)) -> 713 | X155: =IF(千円単!X155="","",ROUND(千円単!X155/1000,0)) -> -740 | Y155: =IF(千円単!Y155="","",ROUND(千円単!Y155/1000,0)) -> 11
A156: 2022 | B156: 46 | C156: 17 | D156: 1 | E156: 155 | F156: 公共 | G156: 082074 | H156: 茨城県 | I156: 結城市 | J156: =IF(千円単!J156="","",ROUND(千円単!J156/1000,0)) -> 1218 | K156: =IF(千円単!K156="","",ROUND(千円単!K156/1000,0)) -> 492 | L156: =IF(千円単!L156="","",ROUND(千円単!L156/1000,0)) -> 375 | M156: =IF(千円単!M156="","",ROUND(千円単!M156/1000,0)) -> 1215 | N156: =IF(千円単!N156="","",ROUND(千円単!N156/1000,0)) -> 81 | O156: =IF(千円単!O156="","",ROUND(千円単!O156/1000,0)) -> 714 | P156: =IF(千円単!P156="","",ROUND(千円単!P156/1000,0)) -> 39 | Q156: =IF(千円単!Q156="","",ROUND(千円単!Q156/1000,0)) -> 3 | R156: =IF(千円単!R156="","",ROUND(千円単!R156/1000,0)) -> 619 | S156: =IF(千円単!S156="","",ROUND(千円単!S156/1000,0)) -> 286 | T156: =IF(千円単!T156="","",ROUND(千円単!T156/1000,0)) -> 151 | U156: =IF(千円単!U156="","",ROUND(千円単!U156/1000,0)) -> 1014 | V156: =IF(千円単!V156="","",ROUND(千円単!V156/1000,0)) -> 544 | W156: =IF(千円単!W156="","",ROUND(千円単!W156/1000,0)) -> 470 | X156: =IF(千円単!X156="","",ROUND(千円単!X156/1000,0)) -> -395 | Y156: =IF(千円単!Y156="","",ROUND(千円単!Y156/1000,0)) -> 3
A157: 2022 | B157: 46 | C157: 17 | D157: 1 | E157: 156 | F157: 公共 | G157: 082082 | H157: 茨城県 | I157: 龍ケ崎市 | J157: =IF(千円単!J157="","",ROUND(千円単!J157/1000,0)) -> 2513 | K157: =IF(千円単!K157="","",ROUND(千円単!K157/1000,0)) -> 1149 | L157: =IF(千円単!L157="","",ROUND(千円単!L157/1000,0)) -> 273 | M157: =IF(千円単!M157="","",ROUND(千円単!M157/1000,0)) -> 2175 | N157: =IF(千円単!N157="","",ROUND(千円単!N157/1000,0)) -> 109 | O157: =IF(千円単!O157="","",ROUND(千円単!O157/1000,0)) -> 1522 | P157: =IF(千円単!P157="","",ROUND(千円単!P157/1000,0)) -> 39 | Q157: =IF(千円単!Q157="","",ROUND(千円単!Q157/1000,0)) -> 338 | R157: =IF(千円単!R157="","",ROUND(千円単!R157/1000,0)) -> 577 | S157: =IF(千円単!S157="","",ROUND(千円単!S157/1000,0)) -> 415 | T157: =IF(千円単!T157="","",ROUND(千円単!T157/1000,0)) -> 130 | U157: =IF(千円単!U157="","",ROUND(千円単!U157/1000,0)) -> 1395 | V157: =IF(千円単!V157="","",ROUND(千円単!V157/1000,0)) -> 177 | W157: =IF(千円単!W157="","",ROUND(千円単!W157/1000,0)) -> 1218 | X157: =IF(千円単!X157="","",ROUND(千円単!X157/1000,0)) -> -818 | Y157: =IF(千円単!Y157="","",ROUND(千円単!Y157/1000,0)) -> 338
A158: 2022 | B158: 46 | C158: 17 | D158: 1 | E158: 157 | F158: 公共 | G158: 082104 | H158: 茨城県 | I158: 下妻市 | J158: =IF(千円単!J158="","",ROUND(千円単!J158/1000,0)) -> 764 | K158: =IF(千円単!K158="","",ROUND(千円単!K158/1000,0)) -> 160 | L158: =IF(千円単!L158="","",ROUND(千円単!L158/1000,0)) -> 415 | M158: =IF(千円単!M158="","",ROUND(千円単!M158/1000,0)) -> 729 | N158: =IF(千円単!N158="","",ROUND(千円単!N158/1000,0)) -> 73 | O158: =IF(千円単!O158="","",ROUND(千円単!O158/1000,0)) -> 362 | P158: =IF(千円単!P158="","",ROUND(千円単!P158/1000,0)) -> 33 | Q158: =IF(千円単!Q158="","",ROUND(千円単!Q158/1000,0)) -> 35 | R158: =IF(千円単!R158="","",ROUND(千円単!R158/1000,0)) -> 500 | S158: =IF(千円単!S158="","",ROUND(千円単!S158/1000,0)) -> 268 | T158: =IF(千円単!T158="","",ROUND(千円単!T158/1000,0)) -> 80 | U158: =IF(千円単!U158="","",ROUND(千円単!U158/1000,0)) -> 708 | V158: =IF(千円単!V158="","",ROUND(千円単!V158/1000,0)) -> 285 | W158: =IF(千円単!W158="","",ROUND(千円単!W158/1000,0)) -> 423 | X158: =IF(千円単!X158="","",ROUND(千円単!X158/1000,0)) -> -208 | Y158: =IF(千円単!Y158="","",ROUND(千円単!Y158/1000,0)) -> 35
A159: 2022 | B159: 46 | C159: 17 | D159: 1 | E159: 158 | F159: 公共 | G159: 082112 | H159: 茨城県 | I159: 常総市 | J159: =IF(千円単!J159="","",ROUND(千円単!J159/1000,0)) -> 953 | K159: =IF(千円単!K159="","",ROUND(千円単!K159/1000,0)) -> 225 | L159: =IF(千円単!L159="","",ROUND(千円単!L159/1000,0)) -> 441 | M159: =IF(千円単!M159="","",ROUND(千円単!M159/1000,0)) -> 919 | N159: =IF(千円単!N159="","",ROUND(千円単!N159/1000,0)) -> 108 | O159: =IF(千円単!O159="","",ROUND(千円単!O159/1000,0)) -> 528 | P159: =IF(千円単!P159="","",ROUND(千円単!P159/1000,0)) -> 34 | Q159: =IF(千円単!Q159="","",ROUND(千円単!Q159/1000,0)) -> 33 | R159: =IF(千円単!R159="","",ROUND(千円単!R159/1000,0)) -> 1349 | S159: =IF(千円単!S159="","",ROUND(千円単!S159/1000,0)) -> 909 | T159: =IF(千円単!T159="","",ROUND(千円単!T159/1000,0)) -> 0 | U159: =IF(千円単!U159="","",ROUND(千円単!U159/1000,0)) -> 1674 | V159: =IF(千円単!V159="","",ROUND(千円単!V159/1000,0)) -> 1163 | W159: =IF(千円単!W159="","",ROUND(千円単!W159/1000,0)) -> 511 | X159: =IF(千円単!X159="","",ROUND(千円単!X159/1000,0)) -> -324 | Y159: =IF(千円単!Y159="","",ROUND(千円単!Y159/1000,0)) -> 33
A160: 2022 | B160: 46 | C160: 17 | D160: 1 | E160: 159 | F160: 公共 | G160: 082121 | H160: 茨城県 | I160: 常陸太田市 | J160: =IF(千円単!J160="","",ROUND(千円単!J160/1000,0)) -> 1011 | K160: =IF(千円単!K160="","",ROUND(千円単!K160/1000,0)) -> 252 | L160: =IF(千円単!L160="","",ROUND(千円単!L160/1000,0)) -> 336 | M160: =IF(千円単!M160="","",ROUND(千円単!M160/1000,0)) -> 796 | N160: =IF(千円単!N160="","",ROUND(千円単!N160/1000,0)) -> 57 | O160: =IF(千円単!O160="","",ROUND(千円単!O160/1000,0)) -> 444 | P160: =IF(千円単!P160="","",ROUND(千円単!P160/1000,0)) -> 55 | Q160: =IF(千円単!Q160="","",ROUND(千円単!Q160/1000,0)) -> 215 | R160: =IF(千円単!R160="","",ROUND(千円単!R160/1000,0)) -> 672 | S160: =IF(千円単!S160="","",ROUND(千円単!S160/1000,0)) -> 258 | T160: =IF(千円単!T160="","",ROUND(千円単!T160/1000,0)) -> 170 | U160: =IF(千円単!U160="","",ROUND(千円単!U160/1000,0)) -> 767 | V160: =IF(千円単!V160="","",ROUND(千円単!V160/1000,0)) -> 446 | W160: =IF(千円単!W160="","",ROUND(千円単!W160/1000,0)) -> 321 | X160: =IF(千円単!X160="","",ROUND(千円単!X160/1000,0)) -> -95 | Y160: =IF(千円単!Y160="","",ROUND(千円単!Y160/1000,0)) -> 215
A161: 2022 | B161: 46 | C161: 17 | D161: 1 | E161: 160 | F161: 公共 | G161: 082155 | H161: 茨城県 | I161: 北茨城市 | J161: =IF(千円単!J161="","",ROUND(千円単!J161/1000,0)) -> 355 | K161: =IF(千円単!K161="","",ROUND(千円単!K161/1000,0)) -> 69 | L161: =IF(千円単!L161="","",ROUND(千円単!L161/1000,0)) -> 123 | M161: =IF(千円単!M161="","",ROUND(千円単!M161/1000,0)) -> 454 | N161: =IF(千円単!N161="","",ROUND(千円単!N161/1000,0)) -> 47 | O161: =IF(千円単!O161="","",ROUND(千円単!O161/1000,0)) -> 312 | P161: =IF(千円単!P161="","",ROUND(千円単!P161/1000,0)) -> 30 | Q161: =IF(千円単!Q161="","",ROUND(千円単!Q161/1000,0)) -> -100 | R161: =IF(千円単!R161="","",ROUND(千円単!R161/1000,0)) -> 367 | S161: =IF(千円単!S161="","",ROUND(千円単!S161/1000,0)) -> 114 | T161: =IF(千円単!T161="","",ROUND(千円単!T161/1000,0)) -> 0 | U161: =IF(千円単!U161="","",ROUND(千円単!U161/1000,0)) -> 384 | V161: =IF(千円単!V161="","",ROUND(千円単!V161/1000,0)) -> 164 | W161: =IF(千円単!W161="","",ROUND(千円単!W161/1000,0)) -> 220 | X161: =IF(千円単!X161="","",ROUND(千円単!X161/1000,0)) -> -17 | Y161: =IF(千円単!Y161="","",ROUND(千円単!Y161/1000,0)) -> -100
A162: 2022 | B162: 46 | C162: 17 | D162: 1 | E162: 161 | F162: 公共 | G162: 082163 | H162: 茨城県 | I162: 笠間市 | J162: =IF(千円単!J162="","",ROUND(千円単!J162/1000,0)) -> 1743 | K162: =IF(千円単!K162="","",ROUND(千円単!K162/1000,0)) -> 692 | L162: =IF(千円単!L162="","",ROUND(千円単!L162/1000,0)) -> 495 | M162: =IF(千円単!M162="","",ROUND(千円単!M162/1000,0)) -> 1724 | N162: =IF(千円単!N162="","",ROUND(千円単!N162/1000,0)) -> 177 | O162: =IF(千円単!O162="","",ROUND(千円単!O162/1000,0)) -> 1088 | P162: =IF(千円単!P162="","",ROUND(千円単!P162/1000,0)) -> 63 | Q162: =IF(千円単!Q162="","",ROUND(千円単!Q162/1000,0)) -> 19 | R162: =IF(千円単!R162="","",ROUND(千円単!R162/1000,0)) -> 1003 | S162: =IF(千円単!S162="","",ROUND(千円単!S162/1000,0)) -> 518 | T162: =IF(千円単!T162="","",ROUND(千円単!T162/1000,0)) -> 0 | U162: =IF(千円単!U162="","",ROUND(千円単!U162/1000,0)) -> 1552 | V162: =IF(千円単!V162="","",ROUND(千円単!V162/1000,0)) -> 383 | W162: =IF(千円単!W162="","",ROUND(千円単!W162/1000,0)) -> 1169 | X162: =IF(千円単!X162="","",ROUND(千円単!X162/1000,0)) -> -549 | Y162: =IF(千円単!Y162="","",ROUND(千円単!Y162/1000,0)) -> 19
A163: 2022 | B163: 46 | C163: 17 | D163: 1 | E163: 162 | F163: 公共 | G163: 082198 | H163: 茨城県 | I163: 牛久市 | J163: =IF(千円単!J163="","",ROUND(千円単!J163/1000,0)) -> 1577 | K163: =IF(千円単!K163="","",ROUND(千円単!K163/1000,0)) -> 809 | L163: =IF(千円単!L163="","",ROUND(千円単!L163/1000,0)) -> 237 | M163: =IF(千円単!M163="","",ROUND(千円単!M163/1000,0)) -> 1488 | N163: =IF(千円単!N163="","",ROUND(千円単!N163/1000,0)) -> 92 | O163: =IF(千円単!O163="","",ROUND(千円単!O163/1000,0)) -> 842 | P163: =IF(千円単!P163="","",ROUND(千円単!P163/1000,0)) -> 46 | Q163: =IF(千円単!Q163="","",ROUND(千円単!Q163/1000,0)) -> 89 | R163: =IF(千円単!R163="","",ROUND(千円単!R163/1000,0)) -> 737 | S163: =IF(千円単!S163="","",ROUND(千円単!S163/1000,0)) -> 239 | T163: =IF(千円単!T163="","",ROUND(千円単!T163/1000,0)) -> 321 | U163: =IF(千円単!U163="","",ROUND(千円単!U163/1000,0)) -> 1203 | V163: =IF(千円単!V163="","",ROUND(千円単!V163/1000,0)) -> 585 | W163: =IF(千円単!W163="","",ROUND(千円単!W163/1000,0)) -> 617 | X163: =IF(千円単!X163="","",ROUND(千円単!X163/1000,0)) -> -466 | Y163: =IF(千円単!Y163="","",ROUND(千円単!Y163/1000,0)) -> 89
A164: 2022 | B164: 46 | C164: 17 | D164: 1 | E164: 163 | F164: 公共 | G164: 082201 | H164: 茨城県 | I164: つくば市 | J164: =IF(千円単!J164="","",ROUND(千円単!J164/1000,0)) -> 9023 | K164: =IF(千円単!K164="","",ROUND(千円単!K164/1000,0)) -> 3413 | L164: =IF(千円単!L164="","",ROUND(千円単!L164/1000,0)) -> 905 | M164: =IF(千円単!M164="","",ROUND(千円単!M164/1000,0)) -> 8769 | N164: =IF(千円単!N164="","",ROUND(千円単!N164/1000,0)) -> 349 | O164: =IF(千円単!O164="","",ROUND(千円単!O164/1000,0)) -> 6093 | P164: =IF(千円単!P164="","",ROUND(千円単!P164/1000,0)) -> 134 | Q164: =IF(千円単!Q164="","",ROUND(千円単!Q164/1000,0)) -> 254 | R164: =IF(千円単!R164="","",ROUND(千円単!R164/1000,0)) -> 2592 | S164: =IF(千円単!S164="","",ROUND(千円単!S164/1000,0)) -> 1113 | T164: =IF(千円単!T164="","",ROUND(千円単!T164/1000,0)) -> 649 | U164: =IF(千円単!U164="","",ROUND(千円単!U164/1000,0)) -> 3528 | V164: =IF(千円単!V164="","",ROUND(千円単!V164/1000,0)) -> 2021 | W164: =IF(千円単!W164="","",ROUND(千円単!W164/1000,0)) -> 1506 | X164: =IF(千円単!X164="","",ROUND(千円単!X164/1000,0)) -> -935 | Y164: =IF(千円単!Y164="","",ROUND(千円単!Y164/1000,0)) -> 254
A165: 2022 | B165: 46 | C165: 17 | D165: 1 | E165: 164 | F165: 公共 | G165: 082210 | H165: 茨城県 | I165: ひたちなか市 | J165: =IF(千円単!J165="","",ROUND(千円単!J165/1000,0)) -> 3997 | K165: =IF(千円単!K165="","",ROUND(千円単!K165/1000,0)) -> 1322 | L165: =IF(千円単!L165="","",ROUND(千円単!L165/1000,0)) -> 1693 | M165: =IF(千円単!M165="","",ROUND(千円単!M165/1000,0)) -> 3285 | N165: =IF(千円単!N165="","",ROUND(千円単!N165/1000,0)) -> 348 | O165: =IF(千円単!O165="","",ROUND(千円単!O165/1000,0)) -> 2061 | P165: =IF(千円単!P165="","",ROUND(千円単!P165/1000,0)) -> 96 | Q165: =IF(千円単!Q165="","",ROUND(千円単!Q165/1000,0)) -> 713 | R165: =IF(千円単!R165="","",ROUND(千円単!R165/1000,0)) -> 2553 | S165: =IF(千円単!S165="","",ROUND(千円単!S165/1000,0)) -> 1788 | T165: =IF(千円単!T165="","",ROUND(千円単!T165/1000,0)) -> 0 | U165: =IF(千円単!U165="","",ROUND(千円単!U165/1000,0)) -> 4463 | V165: =IF(千円単!V165="","",ROUND(千円単!V165/1000,0)) -> 2231 | W165: =IF(千円単!W165="","",ROUND(千円単!W165/1000,0)) -> 2232 | X165: =IF(千円単!X165="","",ROUND(千円単!X165/1000,0)) -> -1909 | Y165: =IF(千円単!Y165="","",ROUND(千円単!Y165/1000,0)) -> 713
A166: 2022 | B166: 46 | C166: 17 | D166: 1 | E166: 165 | F166: 公共 | G166: 082228 | H166: 茨城県 | I166: 鹿嶋市 | J166: =IF(千円単!J166="","",ROUND(千円単!J166/1000,0)) -> 1396 | K166: =IF(千円単!K166="","",ROUND(千円単!K166/1000,0)) -> 528 | L166: =IF(千円単!L166="","",ROUND(千円単!L166/1000,0)) -> 394 | M166: =IF(千円単!M166="","",ROUND(千円単!M166/1000,0)) -> 1369 | N166: =IF(千円単!N166="","",ROUND(千円単!N166/1000,0)) -> 110 | O166: =IF(千円単!O166="","",ROUND(千円単!O166/1000,0)) -> 873 | P166: =IF(千円単!P166="","",ROUND(千円単!P166/1000,0)) -> 36 | Q166: =IF(千円単!Q166="","",ROUND(千円単!Q166/1000,0)) -> 27 | R166: =IF(千円単!R166="","",ROUND(千円単!R166/1000,0)) -> 366 | S166: =IF(千円単!S166="","",ROUND(千円単!S166/1000,0)) -> 181 | T166: =IF(千円単!T166="","",ROUND(千円単!T166/1000,0)) -> 0 | U166: =IF(千円単!U166="","",ROUND(千円単!U166/1000,0)) -> 913 | V166: =IF(千円単!V166="","",ROUND(千円単!V166/1000,0)) -> 408 | W166: =IF(千円単!W166="","",ROUND(千円単!W166/1000,0)) -> 505 | X166: =IF(千円単!X166="","",ROUND(千円単!X166/1000,0)) -> -547 | Y166: =IF(千円単!Y166="","",ROUND(千円単!Y166/1000,0)) -> 27
A167: 2022 | B167: 46 | C167: 17 | D167: 1 | E167: 166 | F167: 公共 | G167: 082236 | H167: 茨城県 | I167: 潮来市 | J167: =IF(千円単!J167="","",ROUND(千円単!J167/1000,0)) -> 1215 | K167: =IF(千円単!K167="","",ROUND(千円単!K167/1000,0)) -> 323 | L167: =IF(千円単!L167="","",ROUND(千円単!L167/1000,0)) -> 418 | M167: =IF(千円単!M167="","",ROUND(千円単!M167/1000,0)) -> 1176 | N167: =IF(千円単!N167="","",ROUND(千円単!N167/1000,0)) -> 72 | O167: =IF(千円単!O167="","",ROUND(千円単!O167/1000,0)) -> 613 | P167: =IF(千円単!P167="","",ROUND(千円単!P167/1000,0)) -> 28 | Q167: =IF(千円単!Q167="","",ROUND(千円単!Q167/1000,0)) -> 39 | R167: =IF(千円単!R167="","",ROUND(千円単!R167/1000,0)) -> 1018 | S167: =IF(千円単!S167="","",ROUND(千円単!S167/1000,0)) -> 587 | T167: =IF(千円単!T167="","",ROUND(千円単!T167/1000,0)) -> 77 | U167: =IF(千円単!U167="","",ROUND(千円単!U167/1000,0)) -> 1209 | V167: =IF(千円単!V167="","",ROUND(千円単!V167/1000,0)) -> 592 | W167: =IF(千円単!W167="","",ROUND(千円単!W167/1000,0)) -> 617 | X167: =IF(千円単!X167="","",ROUND(千円単!X167/1000,0)) -> -191 | Y167: =IF(千円単!Y167="","",ROUND(千円単!Y167/1000,0)) -> 39
A168: 2022 | B168: 46 | C168: 17 | D168: 1 | E168: 167 | F168: 公共 | G168: 082244 | H168: 茨城県 | I168: 守谷市 | J168: =IF(千円単!J168="","",ROUND(千円単!J168/1000,0)) -> 2261 | K168: =IF(千円単!K168="","",ROUND(千円単!K168/1000,0)) -> 1303 | L168: =IF(千円単!L168="","",ROUND(千円単!L168/1000,0)) -> 26 | M168: =IF(千円単!M168="","",ROUND(千円単!M168/1000,0)) -> 1948 | N168: =IF(千円単!N168="","",ROUND(千円単!N168/1000,0)) -> 44 | O168: =IF(千円単!O168="","",ROUND(千円単!O168/1000,0)) -> 1089 | P168: =IF(千円単!P168="","",ROUND(千円単!P168/1000,0)) -> 64 | Q168: =IF(千円単!Q168="","",ROUND(千円単!Q168/1000,0)) -> 314 | R168: =IF(千円単!R168="","",ROUND(千円単!R168/1000,0)) -> 252 | S168: =IF(千円単!S168="","",ROUND(千円単!S168/1000,0)) -> 0 | T168: =IF(千円単!T168="","",ROUND(千円単!T168/1000,0)) -> 28 | U168: =IF(千円単!U168="","",ROUND(千円単!U168/1000,0)) -> 774 | V168: =IF(千円単!V168="","",ROUND(千円単!V168/1000,0)) -> 524 | W168: =IF(千円単!W168="","",ROUND(千円単!W168/1000,0)) -> 251 | X168: =IF(千円単!X168="","",ROUND(千円単!X168/1000,0)) -> -522 | Y168: =IF(千円単!Y168="","",ROUND(千円単!Y168/1000,0)) -> 314
A169: 2022 | B169: 46 | C169: 17 | D169: 1 | E169: 168 | F169: 公共 | G169: 082252 | H169: 茨城県 | I169: 常陸大宮市 | J169: =IF(千円単!J169="","",ROUND(千円単!J169/1000,0)) -> 569 | K169: =IF(千円単!K169="","",ROUND(千円単!K169/1000,0)) -> 159 | L169: =IF(千円単!L169="","",ROUND(千円単!L169/1000,0)) -> 263 | M169: =IF(千円単!M169="","",ROUND(千円単!M169/1000,0)) -> 458 | N169: =IF(千円単!N169="","",ROUND(千円単!N169/1000,0)) -> 45 | O169: =IF(千円単!O169="","",ROUND(千円単!O169/1000,0)) -> 256 | P169: =IF(千円単!P169="","",ROUND(千円単!P169/1000,0)) -> 28 | Q169: =IF(千円単!Q169="","",ROUND(千円単!Q169/1000,0)) -> 111 | R169: =IF(千円単!R169="","",ROUND(千円単!R169/1000,0)) -> 668 | S169: =IF(千円単!S169="","",ROUND(千円単!S169/1000,0)) -> 389 | T169: =IF(千円単!T169="","",ROUND(千円単!T169/1000,0)) -> 7 | U169: =IF(千円単!U169="","",ROUND(千円単!U169/1000,0)) -> 1029 | V169: =IF(千円単!V169="","",ROUND(千円単!V169/1000,0)) -> 811 | W169: =IF(千円単!W169="","",ROUND(千円単!W169/1000,0)) -> 218 | X169: =IF(千円単!X169="","",ROUND(千円単!X169/1000,0)) -> -361 | Y169: =IF(千円単!Y169="","",ROUND(千円単!Y169/1000,0)) -> 111
A170: 2022 | B170: 46 | C170: 17 | D170: 1 | E170: 169 | F170: 公共 | G170: 082261 | H170: 茨城県 | I170: 那珂市 | J170: =IF(千円単!J170="","",ROUND(千円単!J170/1000,0)) -> 1165 | K170: =IF(千円単!K170="","",ROUND(千円単!K170/1000,0)) -> 471 | L170: =IF(千円単!L170="","",ROUND(千円単!L170/1000,0)) -> 399 | M170: =IF(千円単!M170="","",ROUND(千円単!M170/1000,0)) -> 1121 | N170: =IF(千円単!N170="","",ROUND(千円単!N170/1000,0)) -> 123 | O170: =IF(千円単!O170="","",ROUND(千円単!O170/1000,0)) -> 642 | P170: =IF(千円単!P170="","",ROUND(千円単!P170/1000,0)) -> 63 | Q170: =IF(千円単!Q170="","",ROUND(千円単!Q170/1000,0)) -> 44 | R170: =IF(千円単!R170="","",ROUND(千円単!R170/1000,0)) -> 967 | S170: =IF(千円単!S170="","",ROUND(千円単!S170/1000,0)) -> 559 | T170: =IF(千円単!T170="","",ROUND(千円単!T170/1000,0)) -> 199 | U170: =IF(千円単!U170="","",ROUND(千円単!U170/1000,0)) -> 1482 | V170: =IF(千円単!V170="","",ROUND(千円単!V170/1000,0)) -> 757 | W170: =IF(千円単!W170="","",ROUND(千円単!W170/1000,0)) -> 725 | X170: =IF(千円単!X170="","",ROUND(千円単!X170/1000,0)) -> -516 | Y170: =IF(千円単!Y170="","",ROUND(千円単!Y170/1000,0)) -> 44
A171: 2022 | B171: 46 | C171: 17 | D171: 1 | E171: 170 | F171: 公共 | G171: 082279 | H171: 茨城県 | I171: 筑西市 | J171: =IF(千円単!J171="","",ROUND(千円単!J171/1000,0)) -> 1699 | K171: =IF(千円単!K171="","",ROUND(千円単!K171/1000,0)) -> 524 | L171: =IF(千円単!L171="","",ROUND(千円単!L171/1000,0)) -> 805 | M171: =IF(千円単!M171="","",ROUND(千円単!M171/1000,0)) -> 1563 | N171: =IF(千円単!N171="","",ROUND(千円単!N171/1000,0)) -> 125 | O171: =IF(千円単!O171="","",ROUND(千円単!O171/1000,0)) -> 866 | P171: =IF(千円単!P171="","",ROUND(千円単!P171/1000,0)) -> 52 | Q171: =IF(千円単!Q171="","",ROUND(千円単!Q171/1000,0)) -> 136 | R171: =IF(千円単!R171="","",ROUND(千円単!R171/1000,0)) -> 703 | S171: =IF(千円単!S171="","",ROUND(千円単!S171/1000,0)) -> 255 | T171: =IF(千円単!T171="","",ROUND(千円単!T171/1000,0)) -> 246 | U171: =IF(千円単!U171="","",ROUND(千円単!U171/1000,0)) -> 1201 | V171: =IF(千円単!V171="","",ROUND(千円単!V171/1000,0)) -> 356 | W171: =IF(千円単!W171="","",ROUND(千円単!W171/1000,0)) -> 845 | X171: =IF(千円単!X171="","",ROUND(千円単!X171/1000,0)) -> -498 | Y171: =IF(千円単!Y171="","",ROUND(千円単!Y171/1000,0)) -> 136
A172: 2022 | B172: 46 | C172: 17 | D172: 1 | E172: 171 | F172: 公共 | G172: 082287 | H172: 茨城県 | I172: 坂東市 | J172: =IF(千円単!J172="","",ROUND(千円単!J172/1000,0)) -> 876 | K172: =IF(千円単!K172="","",ROUND(千円単!K172/1000,0)) -> 312 | L172: =IF(千円単!L172="","",ROUND(千円単!L172/1000,0)) -> 242 | M172: =IF(千円単!M172="","",ROUND(千円単!M172/1000,0)) -> 798 | N172: =IF(千円単!N172="","",ROUND(千円単!N172/1000,0)) -> 46 | O172: =IF(千円単!O172="","",ROUND(千円単!O172/1000,0)) -> 454 | P172: =IF(千円単!P172="","",ROUND(千円単!P172/1000,0)) -> 28 | Q172: =IF(千円単!Q172="","",ROUND(千円単!Q172/1000,0)) -> 78 | R172: =IF(千円単!R172="","",ROUND(千円単!R172/1000,0)) -> 430 | S172: =IF(千円単!S172="","",ROUND(千円単!S172/1000,0)) -> 162 | T172: =IF(千円単!T172="","",ROUND(千円単!T172/1000,0)) -> 93 | U172: =IF(千円単!U172="","",ROUND(千円単!U172/1000,0)) -> 660 | V172: =IF(千円単!V172="","",ROUND(千円単!V172/1000,0)) -> 356 | W172: =IF(千円単!W172="","",ROUND(千円単!W172/1000,0)) -> 305 | X172: =IF(千円単!X172="","",ROUND(千円単!X172/1000,0)) -> -230 | Y172: =IF(千円単!Y172="","",ROUND(千円単!Y172/1000,0)) -> 78
A173: 2022 | B173: 46 | C173: 17 | D173: 1 | E173: 172 | F173: 公共 | G173: 082295 | H173: 茨城県 | I173: 稲敷市 | J173: =IF(千円単!J173="","",ROUND(千円単!J173/1000,0)) -> 442 | K173: =IF(千円単!K173="","",ROUND(千円単!K173/1000,0)) -> 36 | L173: =IF(千円単!L173="","",ROUND(千円単!L173/1000,0)) -> 270 | M173: =IF(千円単!M173="","",ROUND(千円単!M173/1000,0)) -> 352 | N173: =IF(千円単!N173="","",ROUND(千円単!N173/1000,0)) -> 48 | O173: =IF(千円単!O173="","",ROUND(千円単!O173/1000,0)) -> 237 | P173: =IF(千円単!P173="","",ROUND(千円単!P173/1000,0)) -> 9 | Q173: =IF(千円単!Q173="","",ROUND(千円単!Q173/1000,0)) -> 90 | R173: =IF(千円単!R173="","",ROUND(千円単!R173/1000,0)) -> 18 | S173: =IF(千円単!S173="","",ROUND(千円単!S173/1000,0)) -> 12 | T173: =IF(千円単!T173="","",ROUND(千円単!T173/1000,0)) -> 5 | U173: =IF(千円単!U173="","",ROUND(千円単!U173/1000,0)) -> 217 | V173: =IF(千円単!V173="","",ROUND(千円単!V173/1000,0)) -> 14 | W173: =IF(千円単!W173="","",ROUND(千円単!W173/1000,0)) -> 203 | X173: =IF(千円単!X173="","",ROUND(千円単!X173/1000,0)) -> -199 | Y173: =IF(千円単!Y173="","",ROUND(千円単!Y173/1000,0)) -> 90
A174: 2022 | B174: 46 | C174: 17 | D174: 1 | E174: 173 | F174: 公共 | G174: 082309 | H174: 茨城県 | I174: かすみがうら市 | J174: =IF(千円単!J174="","",ROUND(千円単!J174/1000,0)) -> 574 | K174: =IF(千円単!K174="","",ROUND(千円単!K174/1000,0)) -> 245 | L174: =IF(千円単!L174="","",ROUND(千円単!L174/1000,0)) -> 125 | M174: =IF(千円単!M174="","",ROUND(千円単!M174/1000,0)) -> 564 | N174: =IF(千円単!N174="","",ROUND(千円単!N174/1000,0)) -> 41 | O174: =IF(千円単!O174="","",ROUND(千円単!O174/1000,0)) -> 244 | P174: =IF(千円単!P174="","",ROUND(千円単!P174/1000,0)) -> 31 | Q174: =IF(千円単!Q174="","",ROUND(千円単!Q174/1000,0)) -> 10 | R174: =IF(千円単!R174="","",ROUND(千円単!R174/1000,0)) -> 378 | S174: =IF(千円単!S174="","",ROUND(千円単!S174/1000,0)) -> 98 | T174: =IF(千円単!T174="","",ROUND(千円単!T174/1000,0)) -> 203 | U174: =IF(千円単!U174="","",ROUND(千円単!U174/1000,0)) -> 454 | V174: =IF(千円単!V174="","",ROUND(千円単!V174/1000,0)) -> 177 | W174: =IF(千円単!W174="","",ROUND(千円単!W174/1000,0)) -> 277 | X174: =IF(千円単!X174="","",ROUND(千円単!X174/1000,0)) -> -76 | Y174: =IF(千円単!Y174="","",ROUND(千円単!Y174/1000,0)) -> 10
A175: 2022 | B175: 46 | C175: 17 | D175: 1 | E175: 174 | F175: 公共 | G175: 082317 | H175: 茨城県 | I175: 桜川市 | J175: =IF(千円単!J175="","",ROUND(千円単!J175/1000,0)) -> 533 | K175: =IF(千円単!K175="","",ROUND(千円単!K175/1000,0)) -> 90 | L175: =IF(千円単!L175="","",ROUND(千円単!L175/1000,0)) -> 358 | M175: =IF(千円単!M175="","",ROUND(千円単!M175/1000,0)) -> 527 | N175: =IF(千円単!N175="","",ROUND(千円単!N175/1000,0)) -> 73 | O175: =IF(千円単!O175="","",ROUND(千円単!O175/1000,0)) -> 238 | P175: =IF(千円単!P175="","",ROUND(千円単!P175/1000,0)) -> 29 | Q175: =IF(千円単!Q175="","",ROUND(千円単!Q175/1000,0)) -> 6 | R175: =IF(千円単!R175="","",ROUND(千円単!R175/1000,0)) -> 282 | S175: =IF(千円単!S175="","",ROUND(千円単!S175/1000,0)) -> 61 | T175: =IF(千円単!T175="","",ROUND(千円単!T175/1000,0)) -> 166 | U175: =IF(千円単!U175="","",ROUND(千円単!U175/1000,0)) -> 362 | V175: =IF(千円単!V175="","",ROUND(千円単!V175/1000,0)) -> 83 | W175: =IF(千円単!W175="","",ROUND(千円単!W175/1000,0)) -> 278 | X175: =IF(千円単!X175="","",ROUND(千円単!X175/1000,0)) -> -79 | Y175: =IF(千円単!Y175="","",ROUND(千円単!Y175/1000,0)) -> 6
A176: 2022 | B176: 46 | C176: 17 | D176: 1 | E176: 175 | F176: 公共 | G176: 082325 | H176: 茨城県 | I176: 神栖市 | J176: =IF(千円単!J176="","",ROUND(千円単!J176/1000,0)) -> 1725 | K176: =IF(千円単!K176="","",ROUND(千円単!K176/1000,0)) -> 679 | L176: =IF(千円単!L176="","",ROUND(千円単!L176/1000,0)) -> 430 | M176: =IF(千円単!M176="","",ROUND(千円単!M176/1000,0)) -> 1608 | N176: =IF(千円単!N176="","",ROUND(千円単!N176/1000,0)) -> 87 | O176: =IF(千円単!O176="","",ROUND(千円単!O176/1000,0)) -> 890 | P176: =IF(千円単!P176="","",ROUND(千円単!P176/1000,0)) -> 71 | Q176: =IF(千円単!Q176="","",ROUND(千円単!Q176/1000,0)) -> 117 | R176: =IF(千円単!R176="","",ROUND(千円単!R176/1000,0)) -> 1676 | S176: =IF(千円単!S176="","",ROUND(千円単!S176/1000,0)) -> 864 | T176: =IF(千円単!T176="","",ROUND(千円単!T176/1000,0)) -> 302 | U176: =IF(千円単!U176="","",ROUND(千円単!U176/1000,0)) -> 1998 | V176: =IF(千円単!V176="","",ROUND(千円単!V176/1000,0)) -> 1623 | W176: =IF(千円単!W176="","",ROUND(千円単!W176/1000,0)) -> 375 | X176: =IF(千円単!X176="","",ROUND(千円単!X176/1000,0)) -> -321 | Y176: =IF(千円単!Y176="","",ROUND(千円単!Y176/1000,0)) -> 117
A177: 2022 | B177: 46 | C177: 17 | D177: 1 | E177: 176 | F177: 公共 | G177: 082333 | H177: 茨城県 | I177: 行方市 | J177: =IF(千円単!J177="","",ROUND(千円単!J177/1000,0)) -> 245 | K177: =IF(千円単!K177="","",ROUND(千円単!K177/1000,0)) -> 46 | L177: =IF(千円単!L177="","",ROUND(千円単!L177/1000,0)) -> 150 | M177: =IF(千円単!M177="","",ROUND(千円単!M177/1000,0)) -> 244 | N177: =IF(千円単!N177="","",ROUND(千円単!N177/1000,0)) -> 26 | O177: =IF(千円単!O177="","",ROUND(千円単!O177/1000,0)) -> 143 | P177: =IF(千円単!P177="","",ROUND(千円単!P177/1000,0)) -> 12 | Q177: =IF(千円単!Q177="","",ROUND(千円単!Q177/1000,0)) -> 1 | R177: =IF(千円単!R177="","",ROUND(千円単!R177/1000,0)) -> 127 | S177: =IF(千円単!S177="","",ROUND(千円単!S177/1000,0)) -> 48 | T177: =IF(千円単!T177="","",ROUND(千円単!T177/1000,0)) -> 69 | U177: =IF(千円単!U177="","",ROUND(千円単!U177/1000,0)) -> 221 | V177: =IF(千円単!V177="","",ROUND(千円単!V177/1000,0)) -> 58 | W177: =IF(千円単!W177="","",ROUND(千円単!W177/1000,0)) -> 162 | X177: =IF(千円単!X177="","",ROUND(千円単!X177/1000,0)) -> -93 | Y177: =IF(千円単!Y177="","",ROUND(千円単!Y177/1000,0)) -> 1
A178: 2022 | B178: 46 | C178: 17 | D178: 1 | E178: 177 | F178: 公共 | G178: 082341 | H178: 茨城県 | I178: 鉾田市 | J178: =IF(千円単!J178="","",ROUND(千円単!J178/1000,0)) -> 266 | K178: =IF(千円単!K178="","",ROUND(千円単!K178/1000,0)) -> 29 | L178: =IF(千円単!L178="","",ROUND(千円単!L178/1000,0)) -> 156 | M178: =IF(千円単!M178="","",ROUND(千円単!M178/1000,0)) -> 265 | N178: =IF(千円単!N178="","",ROUND(千円単!N178/1000,0)) -> 36 | O178: =IF(千円単!O178="","",ROUND(千円単!O178/1000,0)) -> 166 | P178: =IF(千円単!P178="","",ROUND(千円単!P178/1000,0)) -> 16 | Q178: =IF(千円単!Q178="","",ROUND(千円単!Q178/1000,0)) -> 1 | R178: =IF(千円単!R178="","",ROUND(千円単!R178/1000,0)) -> 273 | S178: =IF(千円単!S178="","",ROUND(千円単!S178/1000,0)) -> 158 | T178: =IF(千円単!T178="","",ROUND(千円単!T178/1000,0)) -> 0 | U178: =IF(千円単!U178="","",ROUND(千円単!U178/1000,0)) -> 376 | V178: =IF(千円単!V178="","",ROUND(千円単!V178/1000,0)) -> 285 | W178: =IF(千円単!W178="","",ROUND(千円単!W178/1000,0)) -> 91 | X178: =IF(千円単!X178="","",ROUND(千円単!X178/1000,0)) -> -103 | Y178: =IF(千円単!Y178="","",ROUND(千円単!Y178/1000,0)) -> 1
A179: 2022 | B179: 46 | C179: 17 | D179: 1 | E179: 178 | F179: 公共 | G179: 082350 | H179: 茨城県 | I179: つくばみらい市 | J179: =IF(千円単!J179="","",ROUND(千円単!J179/1000,0)) -> 1365 | K179: =IF(千円単!K179="","",ROUND(千円単!K179/1000,0)) -> 358 | L179: =IF(千円単!L179="","",ROUND(千円単!L179/1000,0)) -> 469 | M179: =IF(千円単!M179="","",ROUND(千円単!M179/1000,0)) -> 1063 | N179: =IF(千円単!N179="","",ROUND(千円単!N179/1000,0)) -> 58 | O179: =IF(千円単!O179="","",ROUND(千円単!O179/1000,0)) -> 654 | P179: =IF(千円単!P179="","",ROUND(千円単!P179/1000,0)) -> 48 | Q179: =IF(千円単!Q179="","",ROUND(千円単!Q179/1000,0)) -> 302 | R179: =IF(千円単!R179="","",ROUND(千円単!R179/1000,0)) -> 341 | S179: =IF(千円単!S179="","",ROUND(千円単!S179/1000,0)) -> 165 | T179: =IF(千円単!T179="","",ROUND(千円単!T179/1000,0)) -> 10 | U179: =IF(千円単!U179="","",ROUND(千円単!U179/1000,0)) -> 605 | V179: =IF(千円単!V179="","",ROUND(千円単!V179/1000,0)) -> 301 | W179: =IF(千円単!W179="","",ROUND(千円単!W179/1000,0)) -> 304 | X179: =IF(千円単!X179="","",ROUND(千円単!X179/1000,0)) -> -264 | Y179: =IF(千円単!Y179="","",ROUND(千円単!Y179/1000,0)) -> 302
A180: 2022 | B180: 46 | C180: 17 | D180: 1 | E180: 179 | F180: 公共 | G180: 082368 | H180: 茨城県 | I180: 小美玉市 | J180: =IF(千円単!J180="","",ROUND(千円単!J180/1000,0)) -> 914 | K180: =IF(千円単!K180="","",ROUND(千円単!K180/1000,0)) -> 231 | L180: =IF(千円単!L180="","",ROUND(千円単!L180/1000,0)) -> 429 | M180: =IF(千円単!M180="","",ROUND(千円単!M180/1000,0)) -> 857 | N180: =IF(千円単!N180="","",ROUND(千円単!N180/1000,0)) -> 98 | O180: =IF(千円単!O180="","",ROUND(千円単!O180/1000,0)) -> 490 | P180: =IF(千円単!P180="","",ROUND(千円単!P180/1000,0)) -> 70 | Q180: =IF(千円単!Q180="","",ROUND(千円単!Q180/1000,0)) -> 57 | R180: =IF(千円単!R180="","",ROUND(千円単!R180/1000,0)) -> 351 | S180: =IF(千円単!S180="","",ROUND(千円単!S180/1000,0)) -> 141 | T180: =IF(千円単!T180="","",ROUND(千円単!T180/1000,0)) -> 0 | U180: =IF(千円単!U180="","",ROUND(千円単!U180/1000,0)) -> 666 | V180: =IF(千円単!V180="","",ROUND(千円単!V180/1000,0)) -> 235 | W180: =IF(千円単!W180="","",ROUND(千円単!W180/1000,0)) -> 431 | X180: =IF(千円単!X180="","",ROUND(千円単!X180/1000,0)) -> -315 | Y180: =IF(千円単!Y180="","",ROUND(千円単!Y180/1000,0)) -> 57
A181: 2022 | B181: 46 | C181: 17 | D181: 1 | E181: 180 | F181: 公共 | G181: 083020 | H181: 茨城県 | I181: 茨城町 | J181: =IF(千円単!J181="","",ROUND(千円単!J181/1000,0)) -> 635 | K181: =IF(千円単!K181="","",ROUND(千円単!K181/1000,0)) -> 133 | L181: =IF(千円単!L181="","",ROUND(千円単!L181/1000,0)) -> 322 | M181: =IF(千円単!M181="","",ROUND(千円単!M181/1000,0)) -> 626 | N181: =IF(千円単!N181="","",ROUND(千円単!N181/1000,0)) -> 66 | O181: =IF(千円単!O181="","",ROUND(千円単!O181/1000,0)) -> 320 | P181: =IF(千円単!P181="","",ROUND(千円単!P181/1000,0)) -> 44 | Q181: =IF(千円単!Q181="","",ROUND(千円単!Q181/1000,0)) -> 9 | R181: =IF(千円単!R181="","",ROUND(千円単!R181/1000,0)) -> 272 | S181: =IF(千円単!S181="","",ROUND(千円単!S181/1000,0)) -> 43 | T181: =IF(千円単!T181="","",ROUND(千円単!T181/1000,0)) -> 0 | U181: =IF(千円単!U181="","",ROUND(千円単!U181/1000,0)) -> 420 | V181: =IF(千円単!V181="","",ROUND(千円単!V181/1000,0)) -> 124 | W181: =IF(千円単!W181="","",ROUND(千円単!W181/1000,0)) -> 296 | X181: =IF(千円単!X181="","",ROUND(千円単!X181/1000,0)) -> -148 | Y181: =IF(千円単!Y181="","",ROUND(千円単!Y181/1000,0)) -> 9
A182: 2022 | B182: 46 | C182: 17 | D182: 1 | E182: 181 | F182: 公共 | G182: 083101 | H182: 茨城県 | I182: 城里町 | J182: =IF(千円単!J182="","",ROUND(千円単!J182/1000,0)) -> 436 | K182: =IF(千円単!K182="","",ROUND(千円単!K182/1000,0)) -> 84 | L182: =IF(千円単!L182="","",ROUND(千円単!L182/1000,0)) -> 236 | M182: =IF(千円単!M182="","",ROUND(千円単!M182/1000,0)) -> 410 | N182: =IF(千円単!N182="","",ROUND(千円単!N182/1000,0)) -> 49 | O182: =IF(千円単!O182="","",ROUND(千円単!O182/1000,0)) -> 250 | P182: =IF(千円単!P182="","",ROUND(千円単!P182/1000,0)) -> 35 | Q182: =IF(千円単!Q182="","",ROUND(千円単!Q182/1000,0)) -> 26 | R182: =IF(千円単!R182="","",ROUND(千円単!R182/1000,0)) -> 308 | S182: =IF(千円単!S182="","",ROUND(千円単!S182/1000,0)) -> 110 | T182: =IF(千円単!T182="","",ROUND(千円単!T182/1000,0)) -> 13 | U182: =IF(千円単!U182="","",ROUND(千円単!U182/1000,0)) -> 443 | V182: =IF(千円単!V182="","",ROUND(千円単!V182/1000,0)) -> 203 | W182: =IF(千円単!W182="","",ROUND(千円単!W182/1000,0)) -> 241 | X182: =IF(千円単!X182="","",ROUND(千円単!X182/1000,0)) -> -135 | Y182: =IF(千円単!Y182="","",ROUND(千円単!Y182/1000,0)) -> 26
A183: 2022 | B183: 46 | C183: 17 | D183: 1 | E183: 182 | F183: 公共 | G183: 083411 | H183: 茨城県 | I183: 東海村 | J183: =IF(千円単!J183="","",ROUND(千円単!J183/1000,0)) -> 800 | K183: =IF(千円単!K183="","",ROUND(千円単!K183/1000,0)) -> 334 | L183: =IF(千円単!L183="","",ROUND(千円単!L183/1000,0)) -> 208 | M183: =IF(千円単!M183="","",ROUND(千円単!M183/1000,0)) -> 780 | N183: =IF(千円単!N183="","",ROUND(千円単!N183/1000,0)) -> 45 | O183: =IF(千円単!O183="","",ROUND(千円単!O183/1000,0)) -> 481 | P183: =IF(千円単!P183="","",ROUND(千円単!P183/1000,0)) -> 20 | Q183: =IF(千円単!Q183="","",ROUND(千円単!Q183/1000,0)) -> 20 | R183: =IF(千円単!R183="","",ROUND(千円単!R183/1000,0)) -> 372 | S183: =IF(千円単!S183="","",ROUND(千円単!S183/1000,0)) -> 68 | T183: =IF(千円単!T183="","",ROUND(千円単!T183/1000,0)) -> 0 | U183: =IF(千円単!U183="","",ROUND(千円単!U183/1000,0)) -> 550 | V183: =IF(千円単!V183="","",ROUND(千円単!V183/1000,0)) -> 277 | W183: =IF(千円単!W183="","",ROUND(千円単!W183/1000,0)) -> 273 | X183: =IF(千円単!X183="","",ROUND(千円単!X183/1000,0)) -> -178 | Y183: =IF(千円単!Y183="","",ROUND(千円単!Y183/1000,0)) -> 20
A184: 2022 | B184: 46 | C184: 17 | D184: 1 | E184: 183 | F184: 公共 | G184: 084425 | H184: 茨城県 | I184: 美浦村 | J184: =IF(千円単!J184="","",ROUND(千円単!J184/1000,0)) -> 409 | K184: =IF(千円単!K184="","",ROUND(千円単!K184/1000,0)) -> 221 | L184: =IF(千円単!L184="","",ROUND(千円単!L184/1000,0)) -> 37 | M184: =IF(千円単!M184="","",ROUND(千円単!M184/1000,0)) -> 482 | N184: =IF(千円単!N184="","",ROUND(千円単!N184/1000,0)) -> 61 | O184: =IF(千円単!O184="","",ROUND(千円単!O184/1000,0)) -> 280 | P184: =IF(千円単!P184="","",ROUND(千円単!P184/1000,0)) -> 9 | Q184: =IF(千円単!Q184="","",ROUND(千円単!Q184/1000,0)) -> -73 | R184: =IF(千円単!R184="","",ROUND(千円単!R184/1000,0)) -> 851 | S184: =IF(千円単!S184="","",ROUND(千円単!S184/1000,0)) -> 343 | T184: =IF(千円単!T184="","",ROUND(千円単!T184/1000,0)) -> 141 | U184: =IF(千円単!U184="","",ROUND(千円単!U184/1000,0)) -> 932 | V184: =IF(千円単!V184="","",ROUND(千円単!V184/1000,0)) -> 714 | W184: =IF(千円単!W184="","",ROUND(千円単!W184/1000,0)) -> 218 | X184: =IF(千円単!X184="","",ROUND(千円単!X184/1000,0)) -> -81 | Y184: =IF(千円単!Y184="","",ROUND(千円単!Y184/1000,0)) -> -73
A185: 2022 | B185: 46 | C185: 17 | D185: 1 | E185: 184 | F185: 公共 | G185: 084433 | H185: 茨城県 | I185: 阿見町 | J185: =IF(千円単!J185="","",ROUND(千円単!J185/1000,0)) -> 1486 | K185: =IF(千円単!K185="","",ROUND(千円単!K185/1000,0)) -> 749 | L185: =IF(千円単!L185="","",ROUND(千円単!L185/1000,0)) -> 234 | M185: =IF(千円単!M185="","",ROUND(千円単!M185/1000,0)) -> 1338 | N185: =IF(千円単!N185="","",ROUND(千円単!N185/1000,0)) -> 74 | O185: =IF(千円単!O185="","",ROUND(千円単!O185/1000,0)) -> 671 | P185: =IF(千円単!P185="","",ROUND(千円単!P185/1000,0)) -> 34 | Q185: =IF(千円単!Q185="","",ROUND(千円単!Q185/1000,0)) -> 148 | R185: =IF(千円単!R185="","",ROUND(千円単!R185/1000,0)) -> 673 | S185: =IF(千円単!S185="","",ROUND(千円単!S185/1000,0)) -> 275 | T185: =IF(千円単!T185="","",ROUND(千円単!T185/1000,0)) -> 190 | U185: =IF(千円単!U185="","",ROUND(千円単!U185/1000,0)) -> 1058 | V185: =IF(千円単!V185="","",ROUND(千円単!V185/1000,0)) -> 549 | W185: =IF(千円単!W185="","",ROUND(千円単!W185/1000,0)) -> 509 | X185: =IF(千円単!X185="","",ROUND(千円単!X185/1000,0)) -> -384 | Y185: =IF(千円単!Y185="","",ROUND(千円単!Y185/1000,0)) -> 148
A186: 2022 | B186: 46 | C186: 17 | D186: 1 | E186: 185 | F186: 公共 | G186: 089192 | H186: 茨城県 | I186: 取手地方広域下水道組合 | J186: =IF(千円単!J186="","",ROUND(千円単!J186/1000,0)) -> 4047 | K186: =IF(千円単!K186="","",ROUND(千円単!K186/1000,0)) -> 1106 | L186: =IF(千円単!L186="","",ROUND(千円単!L186/1000,0)) -> 1658 | M186: =IF(千円単!M186="","",ROUND(千円単!M186/1000,0)) -> 3893 | N186: =IF(千円単!N186="","",ROUND(千円単!N186/1000,0)) -> 310 | O186: =IF(千円単!O186="","",ROUND(千円単!O186/1000,0)) -> 2427 | P186: =IF(千円単!P186="","",ROUND(千円単!P186/1000,0)) -> 277 | Q186: =IF(千円単!Q186="","",ROUND(千円単!Q186/1000,0)) -> 154 | R186: =IF(千円単!R186="","",ROUND(千円単!R186/1000,0)) -> 1516 | S186: =IF(千円単!S186="","",ROUND(千円単!S186/1000,0)) -> 679 | T186: =IF(千円単!T186="","",ROUND(千円単!T186/1000,0)) -> 187 | U186: =IF(千円単!U186="","",ROUND(千円単!U186/1000,0)) -> 2794 | V186: =IF(千円単!V186="","",ROUND(千円単!V186/1000,0)) -> 1289 | W186: =IF(千円単!W186="","",ROUND(千円単!W186/1000,0)) -> 1499 | X186: =IF(千円単!X186="","",ROUND(千円単!X186/1000,0)) -> -1278 | Y186: =IF(千円単!Y186="","",ROUND(千円単!Y186/1000,0)) -> 154
A187: 2022 | B187: 46 | C187: 17 | D187: 1 | E187: 186 | F187: 公共 | G187: 089222 | H187: 茨城県 | I187: 日立・高萩広域下水道組合 | J187: =IF(千円単!J187="","",ROUND(千円単!J187/1000,0)) -> 2180 | K187: =IF(千円単!K187="","",ROUND(千円単!K187/1000,0)) -> 1151 | L187: =IF(千円単!L187="","",ROUND(千円単!L187/1000,0)) -> 471 | M187: =IF(千円単!M187="","",ROUND(千円単!M187/1000,0)) -> 2179 | N187: =IF(千円単!N187="","",ROUND(千円単!N187/1000,0)) -> 124 | O187: =IF(千円単!O187="","",ROUND(千円単!O187/1000,0)) -> 1305 | P187: =IF(千円単!P187="","",ROUND(千円単!P187/1000,0)) -> 180 | Q187: =IF(千円単!Q187="","",ROUND(千円単!Q187/1000,0)) -> 2 | R187: =IF(千円単!R187="","",ROUND(千円単!R187/1000,0)) -> 1345 | S187: =IF(千円単!S187="","",ROUND(千円単!S187/1000,0)) -> 527 | T187: =IF(千円単!T187="","",ROUND(千円単!T187/1000,0)) -> 0 | U187: =IF(千円単!U187="","",ROUND(千円単!U187/1000,0)) -> 2298 | V187: =IF(千円単!V187="","",ROUND(千円単!V187/1000,0)) -> 1268 | W187: =IF(千円単!W187="","",ROUND(千円単!W187/1000,0)) -> 1030 | X187: =IF(千円単!X187="","",ROUND(千円単!X187/1000,0)) -> -952 | Y187: =IF(千円単!Y187="","",ROUND(千円単!Y187/1000,0)) -> 2
A188: 2022 | B188: 46 | C188: 17 | D188: 1 | E188: 187 | F188: 公共 | G188: 089354 | H188: 茨城県 | I188: ひたちなか・東海広域事務組合 | J188: =IF(千円単!J188="","",ROUND(千円単!J188/1000,0)) -> 590 | K188: =IF(千円単!K188="","",ROUND(千円単!K188/1000,0)) -> 93 | L188: =IF(千円単!L188="","",ROUND(千円単!L188/1000,0)) -> 0 | M188: =IF(千円単!M188="","",ROUND(千円単!M188/1000,0)) -> 608 | N188: =IF(千円単!N188="","",ROUND(千円単!N188/1000,0)) -> 0 | O188: =IF(千円単!O188="","",ROUND(千円単!O188/1000,0)) -> 469 | P188: =IF(千円単!P188="","",ROUND(千円単!P188/1000,0)) -> 19 | Q188: =IF(千円単!Q188="","",ROUND(千円単!Q188/1000,0)) -> -18 | R188: =IF(千円単!R188="","",ROUND(千円単!R188/1000,0)) -> 0 | S188: =IF(千円単!S188="","",ROUND(千円単!S188/1000,0)) -> 0 | T188: =IF(千円単!T188="","",ROUND(千円単!T188/1000,0)) -> 0 | U188: =IF(千円単!U188="","",ROUND(千円単!U188/1000,0)) -> 3 | V188: =IF(千円単!V188="","",ROUND(千円単!V188/1000,0)) -> 0 | W188: =IF(千円単!W188="","",ROUND(千円単!W188/1000,0)) -> 3 | X188: =IF(千円単!X188="","",ROUND(千円単!X188/1000,0)) -> -3 | Y188: =IF(千円単!Y188="","",ROUND(千円単!Y188/1000,0)) -> -18
A189: 2022 | B189: 46 | C189: 17 | D189: 1 | E189: 188 | F189: 公共 | G189: 092011 | H189: 栃木県 | I189: 宇都宮市 | J189: =IF(千円単!J189="","",ROUND(千円単!J189/1000,0)) -> 11739 | K189: =IF(千円単!K189="","",ROUND(千円単!K189/1000,0)) -> 6640 | L189: =IF(千円単!L189="","",ROUND(千円単!L189/1000,0)) -> 2642 | M189: =IF(千円単!M189="","",ROUND(千円単!M189/1000,0)) -> 11476 | N189: =IF(千円単!N189="","",ROUND(千円単!N189/1000,0)) -> 564 | O189: =IF(千円単!O189="","",ROUND(千円単!O189/1000,0)) -> 6029 | P189: =IF(千円単!P189="","",ROUND(千円単!P189/1000,0)) -> 543 | Q189: =IF(千円単!Q189="","",ROUND(千円単!Q189/1000,0)) -> 263 | R189: =IF(千円単!R189="","",ROUND(千円単!R189/1000,0)) -> 4474 | S189: =IF(千円単!S189="","",ROUND(千円単!S189/1000,0)) -> 1940 | T189: =IF(千円単!T189="","",ROUND(千円単!T189/1000,0)) -> 62 | U189: =IF(千円単!U189="","",ROUND(千円単!U189/1000,0)) -> 8083 | V189: =IF(千円単!V189="","",ROUND(千円単!V189/1000,0)) -> 3973 | W189: =IF(千円単!W189="","",ROUND(千円単!W189/1000,0)) -> 4110 | X189: =IF(千円単!X189="","",ROUND(千円単!X189/1000,0)) -> -3608 | Y189: =IF(千円単!Y189="","",ROUND(千円単!Y189/1000,0)) -> 263
A190: 2022 | B190: 46 | C190: 17 | D190: 1 | E190: 189 | F190: 公共 | G190: 092029 | H190: 栃木県 | I190: 足利市 | J190: =IF(千円単!J190="","",ROUND(千円単!J190/1000,0)) -> 3940 | K190: =IF(千円単!K190="","",ROUND(千円単!K190/1000,0)) -> 1598 | L190: =IF(千円単!L190="","",ROUND(千円単!L190/1000,0)) -> 1409 | M190: =IF(千円単!M190="","",ROUND(千円単!M190/1000,0)) -> 3705 | N190: =IF(千円単!N190="","",ROUND(千円単!N190/1000,0)) -> 385 | O190: =IF(千円単!O190="","",ROUND(千円単!O190/1000,0)) -> 2380 | P190: =IF(千円単!P190="","",ROUND(千円単!P190/1000,0)) -> 148 | Q190: =IF(千円単!Q190="","",ROUND(千円単!Q190/1000,0)) -> 235 | R190: =IF(千円単!R190="","",ROUND(千円単!R190/1000,0)) -> 2784 | S190: =IF(千円単!S190="","",ROUND(千円単!S190/1000,0)) -> 1560 | T190: =IF(千円単!T190="","",ROUND(千円単!T190/1000,0)) -> 441 | U190: =IF(千円単!U190="","",ROUND(千円単!U190/1000,0)) -> 4169 | V190: =IF(千円単!V190="","",ROUND(千円単!V190/1000,0)) -> 763 | W190: =IF(千円単!W190="","",ROUND(千円単!W190/1000,0)) -> 3406 | X190: =IF(千円単!X190="","",ROUND(千円単!X190/1000,0)) -> -1385 | Y190: =IF(千円単!Y190="","",ROUND(千円単!Y190/1000,0)) -> 235
A191: 2022 | B191: 46 | C191: 17 | D191: 1 | E191: 190 | F191: 公共 | G191: 092037 | H191: 栃木県 | I191: 栃木市 | J191: =IF(千円単!J191="","",ROUND(千円単!J191/1000,0)) -> 3413 | K191: =IF(千円単!K191="","",ROUND(千円単!K191/1000,0)) -> 1230 | L191: =IF(千円単!L191="","",ROUND(千円単!L191/1000,0)) -> 1537 | M191: =IF(千円単!M191="","",ROUND(千円単!M191/1000,0)) -> 3086 | N191: =IF(千円単!N191="","",ROUND(千円単!N191/1000,0)) -> 304 | O191: =IF(千円単!O191="","",ROUND(千円単!O191/1000,0)) -> 1722 | P191: =IF(千円単!P191="","",ROUND(千円単!P191/1000,0)) -> 105 | Q191: =IF(千円単!Q191="","",ROUND(千円単!Q191/1000,0)) -> 326 | R191: =IF(千円単!R191="","",ROUND(千円単!R191/1000,0)) -> 1416 | S191: =IF(千円単!S191="","",ROUND(千円単!S191/1000,0)) -> 821 | T191: =IF(千円単!T191="","",ROUND(千円単!T191/1000,0)) -> 160 | U191: =IF(千円単!U191="","",ROUND(千円単!U191/1000,0)) -> 2934 | V191: =IF(千円単!V191="","",ROUND(千円単!V191/1000,0)) -> 1273 | W191: =IF(千円単!W191="","",ROUND(千円単!W191/1000,0)) -> 1661 | X191: =IF(千円単!X191="","",ROUND(千円単!X191/1000,0)) -> -1518 | Y191: =IF(千円単!Y191="","",ROUND(千円単!Y191/1000,0)) -> 326
A192: 2022 | B192: 46 | C192: 17 | D192: 1 | E192: 191 | F192: 公共 | G192: 092045 | H192: 栃木県 | I192: 佐野市 | J192: =IF(千円単!J192="","",ROUND(千円単!J192/1000,0)) -> 4006 | K192: =IF(千円単!K192="","",ROUND(千円単!K192/1000,0)) -> 1166 | L192: =IF(千円単!L192="","",ROUND(千円単!L192/1000,0)) -> 1560 | M192: =IF(千円単!M192="","",ROUND(千円単!M192/1000,0)) -> 3501 | N192: =IF(千円単!N192="","",ROUND(千円単!N192/1000,0)) -> 245 | O192: =IF(千円単!O192="","",ROUND(千円単!O192/1000,0)) -> 2279 | P192: =IF(千円単!P192="","",ROUND(千円単!P192/1000,0)) -> 110 | Q192: =IF(千円単!Q192="","",ROUND(千円単!Q192/1000,0)) -> 505 | R192: =IF(千円単!R192="","",ROUND(千円単!R192/1000,0)) -> 1302 | S192: =IF(千円単!S192="","",ROUND(千円単!S192/1000,0)) -> 781 | T192: =IF(千円単!T192="","",ROUND(千円単!T192/1000,0)) -> 89 | U192: =IF(千円単!U192="","",ROUND(千円単!U192/1000,0)) -> 2722 | V192: =IF(千円単!V192="","",ROUND(千円単!V192/1000,0)) -> 1353 | W192: =IF(千円単!W192="","",ROUND(千円単!W192/1000,0)) -> 1369 | X192: =IF(千円単!X192="","",ROUND(千円単!X192/1000,0)) -> -1420 | Y192: =IF(千円単!Y192="","",ROUND(千円単!Y192/1000,0)) -> 505
A193: 2022 | B193: 46 | C193: 17 | D193: 1 | E193: 192 | F193: 公共 | G193: 092053 | H193: 栃木県 | I193: 鹿沼市 | J193: =IF(千円単!J193="","",ROUND(千円単!J193/1000,0)) -> 2336 | K193: =IF(千円単!K193="","",ROUND(千円単!K193/1000,0)) -> 871 | L193: =IF(千円単!L193="","",ROUND(千円単!L193/1000,0)) -> 840 | M193: =IF(千円単!M193="","",ROUND(千円単!M193/1000,0)) -> 1869 | N193: =IF(千円単!N193="","",ROUND(千円単!N193/1000,0)) -> 154 | O193: =IF(千円単!O193="","",ROUND(千円単!O193/1000,0)) -> 1070 | P193: =IF(千円単!P193="","",ROUND(千円単!P193/1000,0)) -> 101 | Q193: =IF(千円単!Q193="","",ROUND(千円単!Q193/1000,0)) -> 467 | R193: =IF(千円単!R193="","",ROUND(千円単!R193/1000,0)) -> 551 | S193: =IF(千円単!S193="","",ROUND(千円単!S193/1000,0)) -> 219 | T193: =IF(千円単!T193="","",ROUND(千円単!T193/1000,0)) -> 0 | U193: =IF(千円単!U193="","",ROUND(千円単!U193/1000,0)) -> 1447 | V193: =IF(千円単!V193="","",ROUND(千円単!V193/1000,0)) -> 554 | W193: =IF(千円単!W193="","",ROUND(千円単!W193/1000,0)) -> 893 | X193: =IF(千円単!X193="","",ROUND(千円単!X193/1000,0)) -> -896 | Y193: =IF(千円単!Y193="","",ROUND(千円単!Y193/1000,0)) -> 467
A194: 2022 | B194: 46 | C194: 17 | D194: 1 | E194: 193 | F194: 公共 | G194: 092061 | H194: 栃木県 | I194: 日光市 | J194: =IF(千円単!J194="","",ROUND(千円単!J194/1000,0)) -> 2314 | K194: =IF(千円単!K194="","",ROUND(千円単!K194/1000,0)) -> 1223 | L194: =IF(千円単!L194="","",ROUND(千円単!L194/1000,0)) -> 500 | M194: =IF(千円単!M194="","",ROUND(千円単!M194/1000,0)) -> 1933 | N194: =IF(千円単!N194="","",ROUND(千円単!N194/1000,0)) -> 133 | O194: =IF(千円単!O194="","",ROUND(千円単!O194/1000,0)) -> 1067 | P194: =IF(千円単!P194="","",ROUND(千円単!P194/1000,0)) -> 53 | Q194: =IF(千円単!Q194="","",ROUND(千円単!Q194/1000,0)) -> 380 | R194: =IF(千円単!R194="","",ROUND(千円単!R194/1000,0)) -> 869 | S194: =IF(千円単!S194="","",ROUND(千円単!S194/1000,0)) -> 498 | T194: =IF(千円単!T194="","",ROUND(千円単!T194/1000,0)) -> 283 | U194: =IF(千円単!U194="","",ROUND(千円単!U194/1000,0)) -> 1661 | V194: =IF(千円単!V194="","",ROUND(千円単!V194/1000,0)) -> 412 | W194: =IF(千円単!W194="","",ROUND(千円単!W194/1000,0)) -> 1249 | X194: =IF(千円単!X194="","",ROUND(千円単!X194/1000,0)) -> -792 | Y194: =IF(千円単!Y194="","",ROUND(千円単!Y194/1000,0)) -> 380
A195: 2022 | B195: 46 | C195: 17 | D195: 1 | E195: 194 | F195: 公共 | G195: 092088 | H195: 栃木県 | I195: 小山市 | J195: =IF(千円単!J195="","",ROUND(千円単!J195/1000,0)) -> 3869 | K195: =IF(千円単!K195="","",ROUND(千円単!K195/1000,0)) -> 1376 | L195: =IF(千円単!L195="","",ROUND(千円単!L195/1000,0)) -> 1374 | M195: =IF(千円単!M195="","",ROUND(千円単!M195/1000,0)) -> 3555 | N195: =IF(千円単!N195="","",ROUND(千円単!N195/1000,0)) -> 312 | O195: =IF(千円単!O195="","",ROUND(千円単!O195/1000,0)) -> 2200 | P195: =IF(千円単!P195="","",ROUND(千円単!P195/1000,0)) -> 60 | Q195: =IF(千円単!Q195="","",ROUND(千円単!Q195/1000,0)) -> 314 | R195: =IF(千円単!R195="","",ROUND(千円単!R195/1000,0)) -> 3417 | S195: =IF(千円単!S195="","",ROUND(千円単!S195/1000,0)) -> 1948 | T195: =IF(千円単!T195="","",ROUND(千円単!T195/1000,0)) -> 194 | U195: =IF(千円単!U195="","",ROUND(千円単!U195/1000,0)) -> 4804 | V195: =IF(千円単!V195="","",ROUND(千円単!V195/1000,0)) -> 2532 | W195: =IF(千円単!W195="","",ROUND(千円単!W195/1000,0)) -> 2272 | X195: =IF(千円単!X195="","",ROUND(千円単!X195/1000,0)) -> -1387 | Y195: =IF(千円単!Y195="","",ROUND(千円単!Y195/1000,0)) -> 314
A196: 2022 | B196: 46 | C196: 17 | D196: 1 | E196: 195 | F196: 公共 | G196: 092096 | H196: 栃木県 | I196: 真岡市 | J196: =IF(千円単!J196="","",ROUND(千円単!J196/1000,0)) -> 1815 | K196: =IF(千円単!K196="","",ROUND(千円単!K196/1000,0)) -> 694 | L196: =IF(千円単!L196="","",ROUND(千円単!L196/1000,0)) -> 604 | M196: =IF(千円単!M196="","",ROUND(千円単!M196/1000,0)) -> 1436 | N196: =IF(千円単!N196="","",ROUND(千円単!N196/1000,0)) -> 118 | O196: =IF(千円単!O196="","",ROUND(千円単!O196/1000,0)) -> 848 | P196: =IF(千円単!P196="","",ROUND(千円単!P196/1000,0)) -> 78 | Q196: =IF(千円単!Q196="","",ROUND(千円単!Q196/1000,0)) -> 378 | R196: =IF(千円単!R196="","",ROUND(千円単!R196/1000,0)) -> 686 | S196: =IF(千円単!S196="","",ROUND(千円単!S196/1000,0)) -> 336 | T196: =IF(千円単!T196="","",ROUND(千円単!T196/1000,0)) -> 189 | U196: =IF(千円単!U196="","",ROUND(千円単!U196/1000,0)) -> 1430 | V196: =IF(千円単!V196="","",ROUND(千円単!V196/1000,0)) -> 444 | W196: =IF(千円単!W196="","",ROUND(千円単!W196/1000,0)) -> 987 | X196: =IF(千円単!X196="","",ROUND(千円単!X196/1000,0)) -> -745 | Y196: =IF(千円単!Y196="","",ROUND(千円単!Y196/1000,0)) -> 378
A197: 2022 | B197: 46 | C197: 17 | D197: 1 | E197: 196 | F197: 公共 | G197: 092100 | H197: 栃木県 | I197: 大田原市 | J197: =IF(千円単!J197="","",ROUND(千円単!J197/1000,0)) -> 1026 | K197: =IF(千円単!K197="","",ROUND(千円単!K197/1000,0)) -> 479 | L197: =IF(千円単!L197="","",ROUND(千円単!L197/1000,0)) -> 287 | M197: =IF(千円単!M197="","",ROUND(千円単!M197/1000,0)) -> 899 | N197: =IF(千円単!N197="","",ROUND(千円単!N197/1000,0)) -> 62 | O197: =IF(千円単!O197="","",ROUND(千円単!O197/1000,0)) -> 494 | P197: =IF(千円単!P197="","",ROUND(千円単!P197/1000,0)) -> 32 | Q197: =IF(千円単!Q197="","",ROUND(千円単!Q197/1000,0)) -> 126 | R197: =IF(千円単!R197="","",ROUND(千円単!R197/1000,0)) -> 111 | S197: =IF(千円単!S197="","",ROUND(千円単!S197/1000,0)) -> 65 | T197: =IF(千円単!T197="","",ROUND(千円単!T197/1000,0)) -> 18 | U197: =IF(千円単!U197="","",ROUND(千円単!U197/1000,0)) -> 489 | V197: =IF(千円単!V197="","",ROUND(千円単!V197/1000,0)) -> 107 | W197: =IF(千円単!W197="","",ROUND(千円単!W197/1000,0)) -> 382 | X197: =IF(千円単!X197="","",ROUND(千円単!X197/1000,0)) -> -378 | Y197: =IF(千円単!Y197="","",ROUND(千円単!Y197/1000,0)) -> 126
A198: 2022 | B198: 46 | C198: 17 | D198: 1 | E198: 197 | F198: 公共 | G198: 092118 | H198: 栃木県 | I198: 矢板市 | J198: =IF(千円単!J198="","",ROUND(千円単!J198/1000,0)) -> 725 | K198: =IF(千円単!K198="","",ROUND(千円単!K198/1000,0)) -> 217 | L198: =IF(千円単!L198="","",ROUND(千円単!L198/1000,0)) -> 240 | M198: =IF(千円単!M198="","",ROUND(千円単!M198/1000,0)) -> 561 | N198: =IF(千円単!N198="","",ROUND(千円単!N198/1000,0)) -> 42 | O198: =IF(千円単!O198="","",ROUND(千円単!O198/1000,0)) -> 321 | P198: =IF(千円単!P198="","",ROUND(千円単!P198/1000,0)) -> 22 | Q198: =IF(千円単!Q198="","",ROUND(千円単!Q198/1000,0)) -> 164 | R198: =IF(千円単!R198="","",ROUND(千円単!R198/1000,0)) -> 208 | S198: =IF(千円単!S198="","",ROUND(千円単!S198/1000,0)) -> 121 | T198: =IF(千円単!T198="","",ROUND(千円単!T198/1000,0)) -> 0 | U198: =IF(千円単!U198="","",ROUND(千円単!U198/1000,0)) -> 443 | V198: =IF(千円単!V198="","",ROUND(千円単!V198/1000,0)) -> 245 | W198: =IF(千円単!W198="","",ROUND(千円単!W198/1000,0)) -> 198 | X198: =IF(千円単!X198="","",ROUND(千円単!X198/1000,0)) -> -236 | Y198: =IF(千円単!Y198="","",ROUND(千円単!Y198/1000,0)) -> 164
A199: 2022 | B199: 46 | C199: 17 | D199: 1 | E199: 198 | F199: 公共 | G199: 092134 | H199: 栃木県 | I199: 那須塩原市 | J199: =IF(千円単!J199="","",ROUND(千円単!J199/1000,0)) -> 2310 | K199: =IF(千円単!K199="","",ROUND(千円単!K199/1000,0)) -> 904 | L199: =IF(千円単!L199="","",ROUND(千円単!L199/1000,0)) -> 644 | M199: =IF(千円単!M199="","",ROUND(千円単!M199/1000,0)) -> 2084 | N199: =IF(千円単!N199="","",ROUND(千円単!N199/1000,0)) -> 140 | O199: =IF(千円単!O199="","",ROUND(千円単!O199/1000,0)) -> 1303 | P199: =IF(千円単!P199="","",ROUND(千円単!P199/1000,0)) -> 66 | Q199: =IF(千円単!Q199="","",ROUND(千円単!Q199/1000,0)) -> 226 | R199: =IF(千円単!R199="","",ROUND(千円単!R199/1000,0)) -> 469 | S199: =IF(千円単!S199="","",ROUND(千円単!S199/1000,0)) -> 272 | T199: =IF(千円単!T199="","",ROUND(千円単!T199/1000,0)) -> 72 | U199: =IF(千円単!U199="","",ROUND(千円単!U199/1000,0)) -> 1287 | V199: =IF(千円単!V199="","",ROUND(千円単!V199/1000,0)) -> 436 | W199: =IF(千円単!W199="","",ROUND(千円単!W199/1000,0)) -> 850 | X199: =IF(千円単!X199="","",ROUND(千円単!X199/1000,0)) -> -818 | Y199: =IF(千円単!Y199="","",ROUND(千円単!Y199/1000,0)) -> 226
A200: 2022 | B200: 46 | C200: 17 | D200: 1 | E200: 199 | F200: 公共 | G200: 092142 | H200: 栃木県 | I200: さくら市 | J200: =IF(千円単!J200="","",ROUND(千円単!J200/1000,0)) -> 721 | K200: =IF(千円単!K200="","",ROUND(千円単!K200/1000,0)) -> 203 | L200: =IF(千円単!L200="","",ROUND(千円単!L200/1000,0)) -> 362 | M200: =IF(千円単!M200="","",ROUND(千円単!M200/1000,0)) -> 593 | N200: =IF(千円単!N200="","",ROUND(千円単!N200/1000,0)) -> 62 | O200: =IF(千円単!O200="","",ROUND(千円単!O200/1000,0)) -> 313 | P200: =IF(千円単!P200="","",ROUND(千円単!P200/1000,0)) -> 29 | Q200: =IF(千円単!Q200="","",ROUND(千円単!Q200/1000,0)) -> 127 | R200: =IF(千円単!R200="","",ROUND(千円単!R200/1000,0)) -> 115 | S200: =IF(千円単!S200="","",ROUND(千円単!S200/1000,0)) -> 57 | T200: =IF(千円単!T200="","",ROUND(千円単!T200/1000,0)) -> 11 | U200: =IF(千円単!U200="","",ROUND(千円単!U200/1000,0)) -> 481 | V200: =IF(千円単!V200="","",ROUND(千円単!V200/1000,0)) -> 159 | W200: =IF(千円単!W200="","",ROUND(千円単!W200/1000,0)) -> 322 | X200: =IF(千円単!X200="","",ROUND(千円単!X200/1000,0)) -> -366 | Y200: =IF(千円単!Y200="","",ROUND(千円単!Y200/1000,0)) -> 127
... 3401 more rows

Sheet R4公共
A13: 団体 コード | B13: 都道府県名 | C13: 団体名 | D13: 事業 コード | E13: 類型区分 | F13: 処理区域内人口別区分 | G13: 有収水量密度別 区分 | H13: 供用開始後年数別区分 | I13: 処理区域内 人口 | J13: 有収水量 密度 | K13: 供用開始 後年 | L13: 事業別 普及率 | M13: 進捗率 | N13: 一般家庭使用料 （1ヶ月20m3あたり） | O13: 処理区域内 人口密度 | P13: 施設利用率 | Q13: 有収率 | R13: 水洗化率 | S13: 使用料単価 | T13: 汚水処理原価 | U13: 汚水処理原価（分流式下水道等に要する経費控除前） | V13: 汚水処理原価（維持管理費） | W13: 汚水処理原価（資本費） | X13: 経費回収率 | Y13: 経費回収率 （分流式下水道等に要する経費控除前） | Z13: 経費回収率 （維持管理費） | AA13: 処理区域１人 あたりの管理運営費（汚水分） | AB13: 処理区域１人 あたりの維持管理費（汚水分） | AC13: 処理区域１人 あたりの資本費（汚水分） | AD13: 職員1人あたりの処理区域内人口 | AE13: 職員給与費 対営業収益比率 | AF13: 総収支比率 | AG13: 経常収支比率 | AH13: 事業別 資金不足比率 | AI13: 利子負担率 | AJ13: 自己資本 構成比率 | AK13: 固定資産対 長期資本比率 | AL13: 処理区域内人口 1人あたり企業債（地方債）残高
I14: 人 | J14: 千㎥/ｈa | K14: 年 | L14: ％ | M14: ％ | N14: 円/月 | O14: 人/ha | P14: ％ | Q14: ％ | R14: ％ | S14: 円/m3 | T14: 円/m3 | U14: 円/m3 | V14: 円/m3 | W14: 円/m3 | X14: ％ | Y14: ％ | Z14: ％ | AA14: 円/人 | AB14: 円/人 | AC14: 円/人 | AD14: 人/人 | AE14: ％ | AF14: ％ | AG14: ％ | AH14: ％ | AI14: ％ | AJ14: ％ | AK14: ％ | AL14: 千円/人
A16: 011002 | B16: 北海道 | C16: 札幌市 | D16: 1171 | E16: 政令市等 | F16: 政令市等 | G16: 政令市等 | H16: 政令市等 | I16: 1944358 | J16: 8.2 | K16: 62 | L16: 99.3 | M16: 105.5 | N16: 1371 | O16: 79 | P16: 67.1 | Q16: 71.8 | R16: 100 | S16: 90.98 | T16: 103.08 | U16: 103.08 | V16: 60.22 | W16: 42.86 | X16: 88.3 | Y16: 88.3 | Z16: 151.1 | AA16: 10630 | AB16: 6210 | AC16: 4420 | AD16: 3820 | AE16: 7.6 | AF16: 101.2 | AG16: 101.2 | AH16: 0 | AI16: 0.9 | AJ16: 57.1 | AK16: 101.7 | AL16: 120
A17: 041009 | B17: 宮城県 | C17: 仙台市 | D17: 1171 | E17: 政令市等 | F17: 政令市等 | G17: 政令市等 | H17: 政令市等 | I17: 1047783 | J17: 6.3 | K17: 59 | L17: 98.5 | M17: 107.2 | N17: 1917 | O17: 61 | P17: 70.3 | Q17: 84.8 | R17: 99.7 | S17: 144.14 | T17: 122.49 | U17: 122.49 | V17: 63.37 | W17: 59.12 | X17: 117.7 | Y17: 117.7 | Z17: 227.5 | AA17: 12702 | AB17: 6571 | AC17: 6131 | AD17: 4421 | AE17: 5.3 | AF17: 108.6 | AG17: 108.8 | AH17: 0 | AI17: 1.2 | AJ17: 71.7 | AK17: 102.2 | AL17: 156
A18: 111007 | B18: 埼玉県 | C18: さいたま市 | D18: 1171 | E18: 政令市等 | F18: 政令市等 | G18: 政令市等 | H18: 政令市等 | I18: 1270831 | J18: 9.6 | K18: 58 | L18: 94.8 | M18: 115.1 | N18: 2459 | O18: 101 | P18: 48.4 | Q18: 83.6 | R18: 97.8 | S18: 140.94 | T18: 133.25 | U18: 133.25 | V18: 58.14 | W18: 75.1 | X18: 105.8 | Y18: 105.8 | Z18: 242.4 | AA18: 12598 | AB18: 5497 | AC18: 7101 | AD18: 7564 | AE18: 2.7 | AF18: 104.3 | AG18: 104.3 | AH18: 0 | AI18: 1.2 | AJ18: 56.6 | AK18: 101.2 | AL18: 138
A19: 121002 | B19: 千葉県 | C19: 千葉市 | D19: 1171 | E19: 政令市等 | F19: 政令市等 | G19: 政令市等 | H19: 政令市等 | I19: 883197 | J19: 8 | K19: 60 | L19: 90.4 | M19: 97.1 | N19: 2035 | O19: 77 | P19: 56.4 | Q19: 77.3 | R19: 99.8 | S19: 125.17 | T19: 114.28 | U19: 114.28 | V19: 55.65 | W19: 58.63 | X19: 109.5 | Y19: 109.5 | Z19: 224.9 | AA19: 11852 | AB19: 5772 | AC19: 6081 | AD19: 6133 | AE19: 4 | AF19: 103.5 | AG19: 102.7 | AH19: 0 | AI19: 1.3 | AJ19: 53 | AK19: 103.5 | AL19: 226
A20: 130001 | B20: 東京都 | C20: 東京都 | D20: 1171 | E20: 政令市等 | F20: 政令市等 | G20: 政令市等 | H20: 政令市等 | I20: 9590662 | J20: 21 | K20: 71 | L20: 99.9 | M20: 110.3 | N20: 2068 | O20: 171 | P20: 58.2 | Q20: 92.5 | R20: 100 | S20: 124.11 | T20: 128.41 | U20: 128.41 | V20: 77.54 | W20: 50.87 | X20: 96.7 | Y20: 96.7 | Z20: 160.1 | AA20: 15810 | AB20: 9547 | AC20: 6263 | AD20: 3907 | AE20: 5.3 | AF20: 103 | AG20: 102.8 | AH20: 0 | AI20: 1 | AJ20: 76.1 | AK20: 101.5 | AL20: 120
A21: 141003 | B21: 神奈川県 | C21: 横浜市 | D21: 1171 | E21: 政令市等 | F21: 政令市等 | G21: 政令市等 | H21: 政令市等 | I21: 3756448 | J21: 11.9 | K21: 61 | L21: 100 | M21: 101.5 | N21: 2035 | O21: 119 | P21: 61.1 | Q21: 72.6 | R21: 99.8 | S21: 141.84 | T21: 141.63 | U21: 141.63 | V21: 60.77 | W21: 80.86 | X21: 100.1 | Y21: 100.1 | Z21: 233.4 | AA21: 14191 | AB21: 6089 | AC21: 8102 | AD21: 3917 | AE21: 6 | AF21: 108.7 | AG21: 109.7 | AH21: 0 | AI21: 0.7 | AJ21: 67.8 | AK21: 99.6 | AL21: 161
A22: 141305 | B22: 神奈川県 | C22: 川崎市 | D22: 1171 | E22: 政令市等 | F22: 政令市等 | G22: 政令市等 | H22: 政令市等 | I22: 1534852 | J22: 14.1 | K22: 92 | L22: 99.6 | M22: 104.7 | N22: 2156 | O22: 143 | P22: 49.2 | Q22: 85.9 | R22: 99 | S22: 142.99 | T22: 135.63 | U22: 135.63 | V22: 70.79 | W22: 64.84 | X22: 105.4 | Y22: 105.4 | Z22: 202 | AA22: 13399 | AB22: 6994 | AC22: 6406 | AD22: 3396 | AE22: 8.8 | AF22: 105.2 | AG22: 103.8 | AH22: 0 | AI22: 0.8 | AJ22: 55 | AK22: 103.3 | AL22: 181
A23: 141500 | B23: 神奈川県 | C23: 相模原市 | D23: 1171 | E23: 政令市等 | F23: 政令市等 | G23: 政令市等 | H23: 政令市等 | I23: 699144 | J23: 9.5 | K23: 55 | L23: 97.4 | M23: 103.3 | N23: 2036 | O23: 90 | P23: 0 | Q23: 94.2 | R23: 99.2 | S23: 116.34 | T23: 115.67 | U23: 141.32 | V23: 56.79 | W23: 58.88 | X23: 100.6 | Y23: 82.3 | Z23: 204.9 | AA23: 12142 | AB23: 5961 | AC23: 6180 | AD23: 7283 | AE23: 3.6 | AF23: 101.5 | AG23: 101.5 | AH23: 0 | AI23: 1.4 | AJ23: 69.5 | AK23: 99.8 | AL23: 104
A24: 151009 | B24: 新潟県 | C24: 新潟市 | D24: 1171 | E24: 政令市等 | F24: 政令市等 | G24: 政令市等 | H24: 政令市等 | I24: 650616 | J24: 5.7 | K24: 56 | L24: 84.4 | M24: 99.7 | N24: 3047 | O24: 54 | P24: 92.7 | Q24: 63.1 | R24: 92.8 | S24: 170.18 | T24: 165.44 | U24: 186.85 | V24: 62.34 | W24: 103.11 | X24: 102.9 | Y24: 91.1 | Z24: 273 | AA24: 17520 | AB24: 6601 | AC24: 10918 | AD24: 3113 | AE24: 4.5 | AF24: 104.3 | AG24: 104.3 | AH24: 0 | AI24: 1.3 | AJ24: 47 | AK24: 103.6 | AL24: 438
A25: 221007 | B25: 静岡県 | C25: 静岡市 | D25: 1171 | E25: 政令市等 | F25: 政令市等 | G25: 政令市等 | H25: 政令市等 | I25: 600039 | J25: 7 | K25: 63 | L25: 88.1 | M25: 105.5 | N25: 2770 | O25: 67 | P25: 71.7 | Q25: 49.4 | R25: 90.9 | S25: 150.01 | T25: 150.02 | U25: 177.31 | V25: 77.78 | W25: 72.24 | X25: 100 | Y25: 84.6 | Z25: 192.9 | AA25: 15706 | AB25: 8143 | AC25: 7563 | AD25: 2804 | AE25: 6.2 | AF25: 104.1 | AG25: 104.1 | AH25: 0 | AI25: 1.3 | AJ25: 60.8 | AK25: 100.3 | AL25: 231
A26: 221309 | B26: 静岡県 | C26: 浜松市 | D26: 1171 | E26: 政令市等 | F26: 政令市等 | G26: 政令市等 | H26: 政令市等 | I26: 572795 | J26: 5.6 | K26: 57 | L26: 72.5 | M26: 115.6 | N26: 2948 | O26: 49 | P26: 69.4 | Q26: 84.2 | R26: 98.6 | S26: 133.2 | T26: 119.04 | U26: 119.04 | V26: 31.8 | W26: 87.24 | X26: 111.9 | Y26: 111.9 | Z26: 418.9 | AA26: 13669 | AB26: 3651 | AC26: 10018 | AD26: 5728 | AE26: 3.4 | AF26: 115.4 | AG26: 115.5 | AH26: 0 | AI26: 1.6 | AJ26: 62.5 | AK26: 101.3 | AL26: 180
A27: 231002 | B27: 愛知県 | C27: 名古屋市 | D27: 1171 | E27: 政令市等 | F27: 政令市等 | G27: 政令市等 | H27: 政令市等 | I27: 2275300 | J27: 8.9 | K27: 111 | L27: 99.4 | M27: 99.8 | N27: 1804 | O27: 80 | P27: 53.1 | Q27: 65.3 | R27: 99.8 | S27: 116.84 | T27: 127.07 | U27: 127.07 | V27: 68.81 | W27: 58.26 | X27: 92 | Y27: 92 | Z27: 169.8 | AA27: 14144 | AB27: 7659 | AC27: 6484 | AD27: 2353 | AE27: 10.1 | AF27: 100.2 | AG27: 100.2 | AH27: 0 | AI27: 1.1 | AJ27: 58.3 | AK27: 100.1 | AL27: 187
A28: 261009 | B28: 京都府 | C28: 京都市 | D28: 1171 | E28: 政令市等 | F28: 政令市等 | G28: 政令市等 | H28: 政令市等 | I28: 1369700 | J28: 11.2 | K28: 89 | L28: 99.1 | M28: 104.6 | N28: 2013 | O28: 89 | P28: 58.8 | Q28: 59.8 | R28: 99.4 | S28: 119.27 | T28: 105.88 | U28: 105.88 | V28: 51.04 | W28: 54.85 | X28: 112.6 | Y28: 112.6 | Z28: 233.7 | AA28: 13224 | AB28: 6374 | AC28: 6850 | AD28: 2670 | AE28: 8.4 | AF28: 107.8 | AG28: 107.8 | AH28: 0 | AI28: 1.2 | AJ28: 61.6 | AK28: 102 | AL28: 176
A29: 271004 | B29: 大阪府 | C29: 大阪市 | D29: 1171 | E29: 政令市等 | F29: 政令市等 | G29: 政令市等 | H29: 政令市等 | I29: 2744591 | J29: 20.7 | K29: 83 | L29: 100 | M29: 99.9 | N29: 1276 | O29: 144 | P29: 52.9 | Q29: 75.2 | R29: 100 | S29: 84.07 | T29: 92.58 | U29: 92.58 | V29: 58.61 | W29: 33.97 | X29: 90.8 | Y29: 90.8 | Z29: 143.4 | AA29: 13346 | AB29: 8449 | AC29: 4897 | AD29: 6383 | AE29: 3.9 | AF29: 104.2 | AG29: 104.1 | AH29: 0 | AI29: 0.8 | AJ29: 58.4 | AK29: 99.9 | AL29: 162
A30: 271403 | B30: 大阪府 | C30: 堺市 | D30: 1171 | E30: 政令市等 | F30: 政令市等 | G30: 政令市等 | H30: 政令市等 | I30: 807008 | J30: 8 | K30: 63 | L30: 98.5 | M30: 102.5 | N30: 2821 | O30: 79 | P30: 63 | Q30: 87.2 | R30: 96.1 | S30: 174.57 | T30: 151.54 | U30: 151.54 | V30: 61.56 | W30: 89.97 | X30: 115.2 | Y30: 115.2 | Z30: 283.6 | AA30: 15360 | AB30: 6240 | AC30: 9120 | AD30: 2842 | AE30: 7.6 | AF30: 106.4 | AG30: 106 | AH30: 0 | AI30: 1.4 | AJ30: 49.7 | AK30: 102.8 | AL30: 286
A31: 281000 | B31: 兵庫県 | C31: 神戸市 | D31: 1171 | E31: 政令市等 | F31: 政令市等 | G31: 政令市等 | H31: 政令市等 | I31: 1468950 | J31: 9.8 | K31: 65 | L31: 97.7 | M31: 98.8 | N31: 1760 | O31: 86 | P31: 66.3 | Q31: 98.1 | R31: 99.9 | S31: 114.36 | T31: 115.91 | U31: 115.91 | V31: 50.11 | W31: 65.8 | X31: 98.7 | Y31: 98.7 | Z31: 228.2 | AA31: 13195 | AB31: 5704 | AC31: 7491 | AD31: 4025 | AE31: 9.9 | AF31: 101.3 | AG31: 101.5 | AH31: 0 | AI31: 1.2 | AJ31: 74.5 | AK31: 96.6 | AL31: 100
A32: 331007 | B32: 岡山県 | C32: 岡山市 | D32: 1171 | E32: 政令市等 | F32: 政令市等 | G32: 政令市等 | H32: 政令市等 | I32: 474124 | J32: 6.6 | K32: 61 | L32: 67.8 | M32: 84.6 | N32: 3011 | O32: 61 | P32: 58.7 | Q32: 88 | R32: 93.1 | S32: 178.09 | T32: 191.2 | U32: 210.41 | V32: 74.09 | W32: 117.11 | X32: 93.1 | Y32: 84.6 | Z32: 240.4 | AA32: 20579 | AB32: 7975 | AC32: 12605 | AD32: 3619 | AE32: 4.3 | AF32: 100 | AG32: 98.4 | AH32: 0 | AI32: 1.3 | AJ32: 43.6 | AK32: 104.6 | AL32: 396
A33: 341002 | B33: 広島県 | C33: 広島市 | D33: 1171 | E33: 政令市等 | F33: 政令市等 | G33: 政令市等 | H33: 政令市等 | I33: 1127230 | J33: 8 | K33: 62 | L33: 95.4 | M33: 106.2 | N33: 2260 | O33: 79 | P33: 63 | Q33: 84.2 | R33: 98.9 | S33: 159.7 | T33: 148.2 | U33: 148.2 | V33: 58.33 | W33: 89.87 | X33: 107.8 | Y33: 107.8 | Z33: 273.8 | AA33: 15039 | AB33: 5919 | AC33: 9119 | AD33: 2825 | AE33: 7.8 | AF33: 101.1 | AG33: 101.1 | AH33: 0 | AI33: 1.2 | AJ33: 51.1 | AK33: 106.1 | AL33: 317
A34: 401005 | B34: 福岡県 | C34: 北九州市 | D34: 1171 | E34: 政令市等 | F34: 政令市等 | G34: 政令市等 | H34: 政令市等 | I34: 911706 | J34: 5.7 | K34: 60 | L34: 98.7 | M34: 71.5 | N34: 2207 | O34: 56 | P34: 58.1 | Q34: 75.8 | R34: 99.8 | S34: 141.93 | T34: 138.24 | U34: 138.24 | V34: 66.93 | W34: 71.31 | X34: 102.7 | Y34: 102.7 | Z34: 212.1 | AA34: 13860 | AB34: 6710 | AC34: 7149 | AD34: 5844 | AE34: 4.6 | AF34: 101.5 | AG34: 101.5 | AH34: 0 | AI34: 1 | AJ34: 65.6 | AK34: 101.1 | AL34: 148
A35: 401307 | B35: 福岡県 | C35: 福岡市 | D35: 1171 | E35: 政令市等 | F35: 政令市等 | G35: 政令市等 | H35: 政令市等 | I35: 1577860 | J35: 9.1 | K35: 61 | L35: 99.7 | M35: 98.6 | N35: 2651 | O35: 92 | P35: 58 | Q35: 84.1 | R35: 99.7 | S35: 155.27 | T35: 145.07 | U35: 145.07 | V35: 73.15 | W35: 71.92 | X35: 107 | Y35: 107 | Z35: 212.3 | AA35: 14429 | AB35: 7276 | AC35: 7153 | AD35: 4796 | AE35: 3.5 | AF35: 111.4 | AG35: 111.2 | AH35: 0 | AI35: 1.2 | AJ35: 57.2 | AK35: 101.9 | AL35: 204
A36: 431001 | B36: 熊本県 | C36: 熊本市 | D36: 1171 | E36: 政令市等 | F36: 政令市等 | G36: 政令市等 | H36: 政令市等 | I36: 662609 | J36: 5.8 | K36: 63 | L36: 90.8 | M36: 98.8 | N36: 2346 | O36: 54 | P36: 67.8 | Q36: 85.2 | R36: 97.6 | S36: 142.94 | T36: 148.6 | U36: 148.6 | V36: 62.84 | W36: 85.76 | X36: 96.2 | Y36: 96.2 | Z36: 227.5 | AA36: 16091 | AB36: 6804 | AC36: 9287 | AD36: 3487 | AE36: 7.3 | AF36: 114.1 | AG36: 114 | AH36: 0.6 | AI36: 1.2 | AJ36: 54.9 | AK36: 100.4 | AL36: 195
B37: 団体数 | C37: 21 | E37: 政令市等 計 | M37: 103.2 | N37: 2238 | O37: 99 | P37: 59 | Q37: 79.8 | R37: 99.2 | S37: 126.75 | T37: 126.89 | U37: 128.39 | V37: 65.84 | W37: 61.06 | X37: 99.9 | Y37: 98.7 | Z37: 192.5 | AA37: 14306 | AB37: 7422 | AC37: 6883 | AD37: 3865 | AE37: 6 | AF37: 104.5 | AG37: 104.5 | AH37: 0 | AI37: 1.1 | AJ37: 64.6 | AK37: 101.4 | AL37: 168
A38: 112011 | B38: 埼玉県 | C38: 川越市 | D38: 1171 | E38: Aa1 | F38: A | G38: a | H38: 1 | I38: 314204 | J38: 8.7 | K38: 59 | L38: 89 | M38: 101.1 | N38: 1595 | O38: 82 | P38: 0 | Q38: 75.3 | R38: 98.3 | S38: 96.26 | T38: 105.16 | U38: 105.16 | V38: 51.57 | W38: 53.59 | X38: 91.5 | Y38: 91.5 | Z38: 186.7 | AA38: 11083 | AB38: 5435 | AC38: 5648 | AD38: 4987 | AE38: 8.2 | AF38: 102.8 | AG38: 102.8 | AH38: 0.2 | AI38: 1.7 | AJ38: 81 | AK38: 94.4 | AL38: 45
A39: 112038 | B39: 埼玉県 | C39: 川口市 | D39: 1171 | E39: Aa1 | F39: A | G39: a | H39: 1 | I39: 535288 | J39: 11.8 | K39: 64 | L39: 88.5 | M39: 105.3 | N39: 1998 | O39: 123 | P39: 0 | Q39: 91.2 | R39: 94.3 | S39: 112.88 | T39: 122.11 | U39: 122.11 | V39: 63.74 | W39: 58.38 | X39: 92.4 | Y39: 92.4 | Z39: 177.1 | AA39: 11729 | AB39: 6122 | AC39: 5607 | AD39: 6776 | AE39: 6.9 | AF39: 115.1 | AG39: 115.2 | AH39: 0 | AI39: 1.2 | AJ39: 60.7 | AK39: 100.6 | AL39: 99
A40: 112089 | B40: 埼玉県 | C40: 所沢市 | D40: 1171 | E40: Aa1 | F40: A | G40: a | H40: 1 | I40: 327050 | J40: 9.9 | K40: 55 | L40: 95.1 | M40: 102.7 | N40: 1639 | O40: 98 | P40: 0 | Q40: 95.2 | R40: 98.7 | S40: 98.01 | T40: 98.83 | U40: 98.83 | V40: 50.44 | W40: 48.39 | X40: 99.2 | Y40: 99.2 | Z40: 194.3 | AA40: 9967 | AB40: 5087 | AC40: 4880 | AD40: 4810 | AE40: 7.9 | AF40: 103.1 | AG40: 103.1 | AH40: 0 | AI40: 1.3 | AJ40: 75.9 | AK40: 97 | AL40: 62
A41: 112143 | B41: 埼玉県 | C41: 春日部市 | D41: 1171 | E41: Aa1 | F41: A | G41: a | H41: 1 | I41: 208308 | J41: 8.6 | K41: 36 | L41: 90.1 | M41: 95.2 | N41: 2376 | O41: 92 | P41: 0 | Q41: 89.6 | R41: 96.9 | S41: 125.64 | T41: 142.15 | U41: 142.15 | V41: 60.89 | W41: 81.25 | X41: 88.4 | Y41: 88.4 | Z41: 206.3 | AA41: 13303 | AB41: 5699 | AC41: 7604 | AD41: 16024 | AE41: 2.7 | AF41: 116.2 | AG41: 116.2 | AH41: 0 | AI41: 1.2 | AJ41: 48.7 | AK41: 103 | AL41: 153
A42: 112151 | B42: 埼玉県 | C42: 狭山市 | D42: 1171 | E42: Aa1 | F42: A | G42: a | H42: 1 | I42: 144542 | J42: 8 | K42: 49 | L42: 96.9 | M42: 97.9 | N42: 1727 | O42: 73 | P42: 0 | Q42: 85.6 | R42: 98.9 | S42: 105.31 | T42: 108.21 | U42: 108.21 | V42: 42.3 | W42: 65.91 | X42: 97.3 | Y42: 97.3 | Z42: 249 | AA42: 11837 | AB42: 4627 | AC42: 7210 | AD42: 6570 | AE42: 3.8 | AF42: 112.9 | AG42: 112.9 | AH42: 0 | AI42: 1.7 | AJ42: 80 | AK42: 95.4 | AL42: 71
A43: 112194 | B43: 埼玉県 | C43: 上尾市 | D43: 1171 | E43: Aa1 | F43: A | G43: a | H43: 1 | I43: 195849 | J43: 7.5 | K43: 48 | L43: 85.1 | M43: 108.5 | N43: 2156 | O43: 79 | P43: 0 | Q43: 94.1 | R43: 97.6 | S43: 119.97 | T43: 132.27 | U43: 132.27 | V43: 60.72 | W43: 71.55 | X43: 90.7 | Y43: 90.7 | Z43: 197.6 | AA43: 12583 | AB43: 5777 | AC43: 6807 | AD43: 7533 | AE43: 3.7 | AF43: 101.7 | AG43: 101.7 | AH43: 0 | AI43: 1.2 | AJ43: 67.2 | AK43: 97.8 | AL43: 89
A44: 112216 | B44: 埼玉県 | C44: 草加市 | D44: 1171 | E44: Aa1 | F44: A | G44: a | H44: 1 | I44: 246132 | J44: 9.9 | K44: 40 | L44: 98.1 | M44: 109.1 | N44: 1947 | O44: 101 | P44: 0 | Q44: 88.6 | R44: 94.8 | S44: 100.71 | T44: 116.72 | U44: 116.72 | V44: 59.35 | W44: 57.37 | X44: 86.3 | Y44: 86.3 | Z44: 169.7 | AA44: 11547 | AB44: 5872 | AC44: 5676 | AD44: 11721 | AE44: 3.1 | AF44: 106.8 | AG44: 106.8 | AH44: 0 | AI44: 1.8 | AJ44: 71.4 | AK44: 101.8 | AL44: 100
A45: 112224 | B45: 埼玉県 | C45: 越谷市 | D45: 1171 | E45: Aa1 | F45: A | G45: a | H45: 1 | I45: 289678 | J45: 9.9 | K45: 40 | L45: 84.3 | M45: 101.7 | N45: 2574 | O45: 104 | P45: 0 | Q45: 87.2 | R45: 96.5 | S45: 125.49 | T45: 113.77 | U45: 113.77 | V45: 66.4 | W45: 47.36 | X45: 110.3 | Y45: 110.3 | Z45: 189 | AA45: 10824 | AB45: 6318 | AC45: 4506 | AD45: 10729 | AE45: 2.9 | AF45: 112.6 | AG45: 112.6 | AH45: 0 | AI45: 1.6 | AJ45: 70.6 | AK45: 102.5 | AL45: 79
A46: 112241 | B46: 埼玉県 | C46: 戸田市 | D46: 1171 | E46: Aa1 | F46: A | G46: a | H46: 1 | I46: 135617 | J46: 11.9 | K46: 50 | L46: 95.6 | M46: 118.1 | N46: 1023 | O46: 107 | P46: 0 | Q46: 94.2 | R46: 98.1 | S46: 74.17 | T46: 79.79 | U46: 79.79 | V46: 57.3 | W46: 22.49 | X46: 93 | Y46: 93 | Z46: 129.4 | AA46: 8861 | AB46: 6363 | AC46: 2498 | AD46: 10432 | AE46: 3.8 | AF46: 103.3 | AG46: 103.3 | AH46: 0 | AI46: 1.1 | AJ46: 52 | AK46: 98.1 | AL46: 74
A47: 112259 | B47: 埼玉県 | C47: 入間市 | D47: 1171 | E47: Aa1 | F47: A | G47: a | H47: 1 | I47: 128824 | J47: 8.2 | K47: 37 | L47: 88.6 | M47: 91.4 | N47: 1815 | O47: 80 | P47: 0 | Q47: 93.4 | R47: 97.9 | S47: 101.31 | T47: 106.92 | U47: 106.92 | V47: 45.09 | W47: 61.84 | X47: 94.8 | Y47: 94.8 | Z47: 224.7 | AA47: 11003 | AB47: 4639 | AC47: 6364 | AD47: 6441 | AE47: 4.7 | AF47: 109.4 | AG47: 109.4 | AH47: 0 | AI47: 1.8 | AJ47: 82.9 | AK47: 98.9 | AL47: 39
A48: 112275 | B48: 埼玉県 | C48: 朝霞市 | D48: 1171 | E48: Aa1 | F48: A | G48: a | H48: 1 | I48: 141112 | J48: 13 | K48: 41 | L48: 97.8 | M48: 118.9 | N48: 1155 | O48: 128 | P48: 0 | Q48: 83.8 | R48: 99.1 | S48: 61.74 | T48: 67.73 | U48: 67.73 | V48: 49.11 | W48: 18.62 | X48: 91.2 | Y48: 91.2 | Z48: 125.7 | AA48: 6858 | AB48: 4972 | AC48: 1886 | AD48: 10079 | AE48: 6 | AF48: 113.6 | AG48: 113.1 | AH48: 0 | AI48: 1 | AJ48: 81.7 | AK48: 94.3 | AL48: 25
A49: 112305 | B49: 埼玉県 | C49: 新座市 | D49: 1171 | E49: Aa1 | F49: A | G49: a | H49: 1 | I49: 158855 | J49: 10.7 | K49: 41 | L49: 95.9 | M49: 112.2 | N49: 1639 | O49: 109 | P49: 0 | Q49: 100 | R49: 98.6 | S49: 89.38 | T49: 88.58 | U49: 88.58 | V49: 40.68 | W49: 47.91 | X49: 100.9 | Y49: 100.9 | Z49: 219.7 | AA49: 8747 | AB49: 4017 | AC49: 4731 | AD49: 8825 | AE49: 3.2 | AF49: 113.4 | AG49: 113.5 | AH49: 0 | AI49: 1.4 | AJ49: 76.7 | AK49: 100.3 | AL49: 76
A50: 112356 | B50: 埼玉県 | C50: 富士見市 | D50: 1171 | E50: Aa1 | F50: A | G50: a | H50: 1 | I50: 107308 | J50: 11.8 | K50: 41 | L50: 94.9 | M50: 108.5 | N50: 1650 | O50: 126 | P50: 0 | Q50: 87.5 | R50: 99.4 | S50: 88.3 | T50: 82.25 | U50: 82.25 | V50: 47.57 | W50: 34.69 | X50: 107.4 | Y50: 107.4 | Z50: 185.6 | AA50: 7694 | AB50: 4449 | AC50: 3244 | AD50: 10731 | AE50: 3.1 | AF50: 112.9 | AG50: 112.9 | AH50: 0 | AI50: 1.5 | AJ50: 77.3 | AK50: 98.6 | AL50: 42
A51: 112372 | B51: 埼玉県 | C51: 三郷市 | D51: 1171 | E51: Aa1 | F51: A | G51: a | H51: 1 | I51: 124177 | J51: 8.3 | K51: 40 | L51: 87.3 | M51: 101.1 | N51: 2214 | O51: 91 | P51: 0 | Q51: 84.8 | R51: 89.9 | S51: 117.71 | T51: 150 | U51: 173.64 | V51: 59.2 | W51: 90.8 | X51: 78.5 | Y51: 67.8 | Z51: 198.8 | AA51: 13687 | AB51: 5402 | AC51: 8285 | AD51: 7761 | AE51: 3.9 | AF51: 111.4 | AG51: 111.2 | AH51: 0 | AI51: 1.2 | AJ51: 49.2 | AK51: 102.3 | AL51: 215
A52: 112453 | B52: 埼玉県 | C52: ふじみ野市 | D52: 1171 | E52: Aa1 | F52: A | G52: a | H52: 1 | I52: 107461 | J52: 13.7 | K52: 41 | L52: 94.2 | M52: 112.4 | N52: 1367 | O52: 114 | P52: 0 | Q52: 88.3 | R52: 97.3 | S52: 70.88 | T52: 65.9 | U52: 65.9 | V52: 44.05 | W52: 21.85 | X52: 107.6 | Y52: 107.6 | Z52: 160.9 | AA52: 7951 | AB52: 5314 | AC52: 2636 | AD52: 9769 | AE52: 5.6 | AF52: 109.6 | AG52: 109.6 | AH52: 0 | AI52: 1.3 | AJ52: 82.6 | AK52: 87.7 | AL52: 27
A53: 122033 | B53: 千葉県 | C53: 市川市 | D53: 1171 | E53: Aa1 | F53: A | G53: a | H53: 1 | I53: 381900 | J53: 14 | K53: 51 | L53: 77.5 | M53: 81.3 | N53: 2563 | O53: 155 | P53: 85.1 | Q53: 83.9 | R53: 92.2 | S53: 139.88 | T53: 145.52 | U53: 145.52 | V53: 95.97 | W53: 49.56 | X53: 96.1 | Y53: 96.1 | Z53: 145.8 | AA53: 13126 | AB53: 8656 | AC53: 4470 | AD53: 5786 | AE53: 5.6 | AF53: 99.1 | AG53: 97.5 | AH53: 0.5 | AI53: 1 | AJ53: 59.1 | AK53: 100.2 | AL53: 126
A54: 122041 | B54: 千葉県 | C54: 船橋市 | D54: 1171 | E54: Aa1 | F54: A | G54: a | H54: 1 | I54: 588625 | J54: 10.6 | K54: 62 | L54: 90.9 | M54: 105.9 | N54: 2211 | O54: 115 | P54: 92.6 | Q54: 81.4 | R54: 94.6 | S54: 139.4 | T54: 150 | U54: 157.49 | V54: 67.1 | W54: 82.9 | X54: 92.9 | Y54: 88.5 | Z54: 207.7 | AA54: 13872 | AB54: 6206 | AC54: 7666 | AD54: 5606 | AE54: 3.7 | AF54: 102.7 | AG54: 102.6 | AH54: 0 | AI54: 1.4 | AJ54: 57.2 | AK54: 103 | AL54: 201
A55: 122076 | B55: 千葉県 | C55: 松戸市 | D55: 1171 | E55: Aa1 | F55: A | G55: a | H55: 1 | I55: 439612 | J55: 10.3 | K55: 63 | L55: 88.4 | M55: 92.2 | N55: 2468 | O55: 108 | P55: 1131.4 | Q55: 79.4 | R55: 96.8 | S55: 149.73 | T55: 150 | U55: 186.35 | V55: 85.96 | W55: 64.04 | X55: 99.8 | Y55: 80.3 | Z55: 174.2 | AA55: 14246 | AB55: 8164 | AC55: 6082 | AD55: 8620 | AE55: 3.5 | AF55: 105.7 | AG55: 104.2 | AH55: 0 | AI55: 1.5 | AJ55: 66.9 | AK55: 100.9 | AL55: 103
A56: 122165 | B56: 千葉県 | C56: 習志野市 | D56: 1171 | E56: Aa1 | F56: A | G56: a | H56: 1 | I56: 167297 | J56: 11.6 | K56: 56 | L56: 95.6 | M56: 103.3 | N56: 2192 | O56: 109 | P56: 91.5 | Q56: 76.4 | R56: 98 | S56: 156.03 | T56: 135.45 | U56: 135.45 | V56: 77.39 | W56: 58.06 | X56: 115.2 | Y56: 115.2 | Z56: 201.6 | AA56: 14395 | AB56: 8224 | AC56: 6171 | AD56: 4647 | AE56: 5.3 | AF56: 111.4 | AG56: 111.4 | AH56: 6.2 | AI56: 1.4 | AJ56: 72.5 | AK56: 99.4 | AL56: 131
A57: 122173 | B57: 千葉県 | C57: 柏市 | D57: 1171 | E57: Aa1 | F57: A | G57: a | H57: 1 | I57: 392523 | J57: 8.3 | K57: 50 | L57: 90.4 | M57: 100.2 | N57: 2357 | O57: 84 | P57: 0 | Q57: 77 | R57: 91.2 | S57: 144.83 | T57: 141.34 | U57: 141.34 | V57: 83.47 | W57: 57.87 | X57: 102.5 | Y57: 102.5 | Z57: 173.5 | AA57: 14019 | AB57: 8279 | AC57: 5740 | AD57: 7697 | AE57: 3.2 | AF57: 105.7 | AG57: 104.6 | AH57: 0 | AI57: 1.6 | AJ57: 77.4 | AK57: 98.6 | AL57: 76
A58: 122203 | B58: 千葉県 | C58: 流山市 | D58: 1171 | E58: Aa1 | F58: A | G58: a | H58: 1 | I58: 195221 | J58: 9.6 | K58: 37 | L58: 93.3 | M58: 117.6 | N58: 2200 | O58: 102 | P58: 0 | Q58: 79.8 | R58: 93.5 | S58: 123.83 | T58: 133.51 | U58: 133.51 | V58: 83.41 | W58: 50.09 | X58: 92.8 | Y58: 92.8 | Z58: 148.5 | AA58: 12595 | AB58: 7869 | AC58: 4726 | AD58: 9761 | AE58: 3.5 | AF58: 104.4 | AG58: 100.8 | AH58: 0 | AI58: 1.5 | AJ58: 70.7 | AK58: 99.2 | AL58: 82
A59: 122211 | B59: 千葉県 | C59: 八千代市 | D59: 1171 | E59: Aa1 | F59: A | G59: a | H59: 1 | I59: 189580 | J59: 8.6 | K59: 55 | L59: 92.6 | M59: 88.3 | N59: 2101 | O59: 93 | P59: 0 | Q59: 83.4 | R59: 99.2 | S59: 124.83 | T59: 120.65 | U59: 120.65 | V59: 82.94 | W59: 37.71 | X59: 103.5 | Y59: 103.5 | Z59: 150.5 | AA59: 11226 | AB59: 7718 | AC59: 3509 | AD59: 7583 | AE59: 5.1 | AF59: 102.8 | AG59: 101.8 | AH59: 0 | AI59: 1.3 | AJ59: 79.8 | AK59: 97.2 | AL59: 43
A60: 122220 | B60: 千葉県 | C60: 我孫子市 | D60: 1171 | E60: Aa1 | F60: A | G60: a | H60: 1 | I60: 110722 | J60: 7.9 | K60: 53 | L60: 84.5 | M60: 83.2 | N60: 2453 | O60: 83 | P60: 0 | Q60: 74.2 | R60: 99.2 | S60: 139.57 | T60: 150.07 | U60: 164.48 | V60: 88.53 | W60: 61.54 | X60: 93 | Y60: 84.9 | Z60: 157.7 | AA60: 14284 | AB60: 8426 | AC60: 5857 | AD60: 5827 | AE60: 5.1 | AF60: 109 | AG60: 113.2 | AH60: 0 | AI60: 1.2 | AJ60: 67.2 | AK60: 101.8 | AL60: 101
A61: 122271 | B61: 千葉県 | C61: 浦安市 | D61: 1171 | E61: Aa1 | F61: A | G61: a | H61: 1 | I61: 170137 | J61: 13.3 | K61: 39 | L61: 99.8 | M61: 100.7 | N61: 1848 | O61: 107 | P61: 0 | Q61: 82.8 | R61: 98 | S61: 116.21 | T61: 105.24 | U61: 105.24 | V61: 78.04 | W61: 27.2 | X61: 110.4 | Y61: 110.4 | Z61: 148.9 | AA61: 13045 | AB61: 9673 | AC61: 3372 | AD61: 15467 | AE61: 2.2 | AF61: 111.4 | AG61: 104.6 | AH61: 7.8 | AI61: 1.3 | AJ61: 83.6 | AK61: 100.8 | AL61: 47
A62: 132021 | B62: 東京都 | C62: 立川市 | D62: 1171 | E62: Aa1 | F62: A | G62: a | H62: 1 | I62: 185552 | J62: 9.6 | K62: 63 | L62: 100 | M62: 106 | N62: 1408 | O62: 85 | P62: 54.7 | Q62: 87.1 | R62: 99.8 | S62: 110.09 | T62: 89.3 | U62: 89.3 | V62: 67.29 | W62: 22.01 | X62: 123.3 | Y62: 123.3 | Z62: 163.6 | AA62: 10002 | AB62: 7537 | AC62: 2465 | AD62: 4418 | AE62: 6.2 | AF62: 112.5 | AG62: 112.8 | AH62: 0 | AI62: 1 | AJ62: 72.2 | AK62: 98.1 | AL62: 83
A63: 132039 | B63: 東京都 | C63: 武蔵野市 | D63: 1171 | E63: Aa1 | F63: A | G63: a | H63: 1 | I63: 148196 | J63: 15.6 | K63: 54 | L63: 100 | M63: 112.9 | N63: 1199 | O63: 138 | P63: 0 | Q63: 99.7 | R63: 100 | S63: 77.36 | T63: 75.5 | U63: 75.5 | V63: 66.45 | W63: 9.05 | X63: 102.5 | Y63: 102.5 | Z63: 116.4 | AA63: 8521 | AB63: 7499 | AC63: 1021 | AD63: 6736 | AE63: 5.4 | AF63: 102.4 | AG63: 102.4 | AH63: 0 | AI63: 1.4 | AJ63: 66.1 | AK63: 99.3 | AL63: 52
A64: 132047 | B64: 東京都 | C64: 三鷹市 | D64: 1171 | E64: Aa1 | F64: A | G64: a | H64: 1 | I64: 190173 | J64: 12 | K64: 55 | L64: 100 | M64: 110 | N64: 1258 | O64: 115 | P64: 62.2 | Q64: 93.7 | R64: 100 | S64: 83.87 | T64: 86.5 | U64: 86.5 | V64: 73.05 | W64: 13.45 | X64: 97 | Y64: 97 | Z64: 114.8 | AA64: 8973 | AB64: 7578 | AC64: 1395 | AD64: 8268 | AE64: 6.3 | AF64: 107 | AG64: 107 | AH64: 0 | AI64: 1.4 | AJ64: 47 | AK64: 103.3 | AL64: 52
A65: 132063 | B65: 東京都 | C65: 府中市 | D65: 1171 | E65: Aa1 | F65: A | G65: a | H65: 1 | I65: 259572 | J65: 10.2 | K65: 50 | L65: 100 | M65: 103.1 | N65: 908 | O65: 95 | P65: 0 | Q65: 99.2 | R65: 100 | S65: 64.26 | T65: 59.13 | U65: 59.13 | V65: 52.49 | W65: 6.64 | X65: 108.7 | Y65: 108.7 | Z65: 122.4 | AA65: 6339 | AB65: 5627 | AC65: 712 | AD65: 17305 | AE65: 2.3 | AF65: 110.8 | AG65: 110.8 | AH65: 0 | AI65: 1.2 | AJ65: 87.7 | AK65: 98.1 | AL65: 18
A66: 132071 | B66: 東京都 | C66: 昭島市 | D66: 1171 | E66: Aa1 | F66: A | G66: a | H66: 1 | I66: 114199 | J66: 9.2 | K66: 45 | L66: 99.9 | M66: 111.3 | N66: 1347 | O66: 79 | P66: 0 | Q66: 86.2 | R66: 99.5 | S66: 100.9 | T66: 97.32 | U66: 97.32 | V66: 63.42 | W66: 33.9 | X66: 103.7 | Y66: 103.7 | Z66: 159.1 | AA66: 11283 | AB66: 7352 | AC66: 3930 | AD66: 7613 | AE66: 3.8 | AF66: 113.6 | AG66: 113.6 | AH66: 0 | AI66: 1 | AJ66: 87.7 | AK66: 97.8 | AL66: 28
A67: 132080 | B67: 東京都 | C67: 調布市 | D67: 1171 | E67: Aa1 | F67: A | G67: a | H67: 1 | I67: 238952 | J67: 12.5 | K67: 51 | L67: 100 | M67: 111.6 | N67: 1276 | O67: 122 | P67: 0 | Q67: 80 | R67: 100 | S67: 74.56 | T67: 81.31 | U67: 81.31 | V67: 60.51 | W67: 20.8 | X67: 91.7 | Y67: 91.7 | Z67: 123.2 | AA67: 8288 | AB67: 6168 | AC67: 2120 | AD67: 12576 | AE67: 4.1 | AF67: 100.3 | AG67: 100.3 | AH67: 272.5 | AI67: 1.2 | AJ67: 71.6 | AK67: 98.5 | AL67: 33
A68: 132098 | B68: 東京都 | C68: 町田市 | D68: 1171 | E68: Aa1 | F68: A | G68: a | H68: 1 | I68: 426923 | J68: 8.3 | K68: 56 | L68: 99 | M68: 100 | N68: 2068 | O68: 85 | P68: 71.4 | Q68: 92.5 | R68: 99.4 | S68: 120.53 | T68: 124.65 | U68: 124.65 | V68: 76.18 | W68: 48.48 | X68: 96.7 | Y68: 96.7 | Z68: 158.2 | AA68: 12182 | AB68: 7445 | AC68: 4737 | AD68: 4356 | AE68: 11.3 | AF68: 105.3 | AG68: 105.9 | AH68: 0 | AI68: 1.6 | AJ68: 74.7 | AK68: 101.8 | AL68: 98
A69: 132101 | B69: 東京都 | C69: 小金井市 | D69: 1171 | E69: Aa1 | F69: A | G69: a | H69: 1 | I69: 124713 | J69: 10.9 | K69: 50 | L69: 100 | M69: 113.3 | N69: 1309 | O69: 110 | P69: 0 | Q69: 99.6 | R69: 100 | S69: 79.08 | T69: 64.05 | U69: 64.05 | V69: 53.9 | W69: 10.15 | X69: 123.5 | Y69: 123.5 | Z69: 146.7 | AA69: 6350 | AB69: 5344 | AC69: 1006 | AD69: 9593 | AE69: 3.4 | AF69: 105.6 | AG69: 105.6 | AH69: 0 | AI69: 2.3 | AJ69: 89.6 | AK69: 93.8 | AL69: 7
A70: 132110 | B70: 東京都 | C70: 小平市 | D70: 1171 | E70: Aa1 | F70: A | G70: a | H70: 1 | I70: 196543 | J70: 9.7 | K70: 48 | L70: 100 | M70: 110.4 | N70: 1655 | O70: 96 | P70: 0 | Q70: 95.9 | R70: 99.9 | S70: 99.27 | T70: 78.83 | U70: 78.83 | V70: 59.32 | W70: 19.51 | X70: 125.9 | Y70: 125.9 | Z70: 167.4 | AA70: 7947 | AB70: 5980 | AC70: 1967 | AD70: 7862 | AE70: 3.1 | AF70: 112 | AG70: 112 | AH70: 0 | AI70: 1.2 | AJ70: 81.1 | AK70: 96.5 | AL70: 38
A71: 132128 | B71: 東京都 | C71: 日野市 | D71: 1171 | E71: Aa1 | F71: A | G71: a | H71: 1 | I71: 180073 | J71: 7.7 | K71: 65 | L71: 96.2 | M71: 101.1 | N71: 2068 | O71: 80 | P71: 0 | Q71: 87.3 | R71: 98.1 | S71: 118.52 | T71: 99.54 | U71: 125.02 | V71: 55.81 | W71: 43.73 | X71: 119.1 | Y71: 94.8 | Z71: 212.4 | AA71: 9663 | AB71: 5418 | AC71: 4245 | AD71: 16370 | AE71: 2.6 | AF71: 110.7 | AG71: 110.7 | AH71: 0 | AI71: 1.8 | AJ71: 75.6 | AK71: 101.4 | AL71: 75
A72: 132136 | B72: 東京都 | C72: 東村山市 | D72: 1171 | E72: Aa1 | F72: A | G72: a | H72: 1 | I72: 151598 | J72: 8.9 | K72: 44 | L72: 100 | M72: 109.9 | N72: 1936 | O72: 89 | P72: 0 | Q72: 87.4 | R72: 99.3 | S72: 119.21 | T72: 113.82 | U72: 124.29 | V72: 61.13 | W72: 52.69 | X72: 104.7 | Y72: 95.9 | Z72: 195 | AA72: 11273 | AB72: 6055 | AC72: 5218 | AD72: 25266 | AE72: 2 | AF72: 108.9 | AG72: 109.2 | AH72: 0 | AI72: 1.4 | AJ72: 67.9 | AK72: 103.1 | AL72: 63
A73: 132144 | B73: 東京都 | C73: 国分寺市 | D73: 1171 | E73: Aa1 | F73: A | G73: a | H73: 1 | I73: 128688 | J73: 11.2 | K73: 47 | L73: 100 | M73: 108.8 | N73: 1699 | O73: 113 | P73: 0 | Q73: 100 | R73: 99.4 | S73: 99.77 | T73: 85.87 | U73: 85.87 | V73: 51.14 | W73: 34.73 | X73: 116.2 | Y73: 116.2 | Z73: 195.1 | AA73: 8506 | AB73: 5066 | AC73: 3440 | AD73: 8579 | AE73: 4.2 | AF73: 91 | AG73: 91 | AH73: 0 | AI73: 1.7 | AJ73: 87.7 | AK73: 99.2 | AL73: 26
A74: 132225 | B74: 東京都 | C74: 東久留米市 | D74: 1171 | E74: Aa1 | F74: A | G74: a | H74: 1 | I74: 116760 | J74: 8.8 | K74: 55 | L74: 100 | M74: 107 | N74: 2134 | O74: 90 | P74: 0 | Q74: 87.1 | R74: 99.7 | S74: 128.72 | T74: 124.78 | U74: 124.78 | V74: 70.42 | W74: 54.36 | X74: 103.2 | Y74: 103.2 | Z74: 182.8 | AA74: 12158 | AB74: 6862 | AC74: 5297 | AD74: 12973 | AE74: 3.5 | AF74: 103.4 | AG74: 103.4 | AH74: 0 | AI74: 1.8 | AJ74: 77.8 | AK74: 101.6 | AL74: 44
A75: 132241 | B75: 東京都 | C75: 多摩市 | D75: 1171 | E75: Aa1 | F75: A | G75: a | H75: 1 | I75: 148102 | J75: 7.8 | K75: 57 | L75: 100 | M75: 105.2 | N75: 2068 | O75: 73 | P75: 0 | Q75: 95.8 | R75: 99.8 | S75: 129.96 | T75: 88.93 | U75: 88.93 | V75: 69.69 | W75: 19.25 | X75: 146.1 | Y75: 146.1 | Z75: 186.5 | AA75: 9386 | AB75: 7354 | AC75: 2031 | AD75: 7795 | AE75: 5 | AF75: 121.2 | AG75: 121.2 | AH75: 0 | AI75: 2.6 | AJ75: 97.8 | AK75: 67.7 | AL75: 2
A76: 132292 | B76: 東京都 | C76: 西東京市 | D76: 1171 | E76: Aa1 | F76: A | G76: a | H76: 1 | I76: 205942 | J76: 12.3 | K76: 40 | L76: 100 | M76: 106.5 | N76: 1612 | O76: 130 | P76: 0 | Q76: 87 | R76: 97.6 | S76: 94.4 | T76: 91.21 | U76: 91.21 | V76: 62.84 | W76: 28.37 | X76: 103.5 | Y76: 103.5 | Z76: 150.2 | AA76: 8624 | AB76: 5942 | AC76: 2682 | AD76: 17162 | AE76: 3.3 | AF76: 103 | AG76: 103 | AH76: 1.4 | AI76: 1.4 | AJ76: 79.5 | AK76: 98.5 | AL76: 29
A77: 142034 | B77: 神奈川県 | C77: 平塚市 | D77: 1171 | E77: Aa1 | F77: A | G77: a | H77: 1 | I77: 250844 | J77: 7.8 | K77: 50 | L77: 97.8 | M77: 99.5 | N77: 2035 | O77: 70 | P77: 0 | Q77: 85.4 | R77: 97.9 | S77: 115.91 | T77: 105.72 | U77: 126.99 | V77: 62.29 | W77: 43.44 | X77: 109.6 | Y77: 91.3 | Z77: 186.1 | AA77: 11806 | AB77: 6956 | AC77: 4850 | AD77: 5972 | AE77: 3.9 | AF77: 104.4 | AG77: 104.3 | AH77: 0 | AI77: 1.7 | AJ77: 70.8 | AK77: 99.8 | AL77: 125
A78: 142051 | B78: 神奈川県 | C78: 藤沢市 | D78: 1171 | E78: Aa1 | F78: A | G78: a | H78: 1 | I78: 427192 | J78: 9.3 | K78: 64 | L78: 96 | M78: 96.2 | N78: 2203 | O78: 89 | P78: 60.9 | Q78: 84.1 | R78: 98.6 | S78: 129.15 | T78: 136.92 | U78: 136.92 | V78: 88.54 | W78: 48.38 | X78: 94.3 | Y78: 94.3 | Z78: 145.9 | AA78: 14342 | AB78: 9274 | AC78: 5068 | AD78: 4747 | AE78: 6.4 | AF78: 104.3 | AG78: 104.3 | AH78: 0 | AI78: 1.5 | AJ78: 71.5 | AK78: 100.9 | AL78: 99
A79: 142069 | B79: 神奈川県 | C79: 小田原市 | D79: 1171 | E79: Aa1 | F79: A | G79: a | H79: 1 | I79: 156500 | J79: 7.5 | K79: 57 | L79: 83.5 | M79: 99.9 | N79: 2636 | O79: 61 | P79: 0 | Q79: 71.4 | R79: 94.2 | S79: 166 | T79: 173.56 | U79: 220.07 | V79: 109.59 | W79: 63.97 | X79: 95.6 | Y79: 75.4 | Z79: 151.5 | AA79: 21425 | AB79: 13529 | AC79: 7897 | AD79: 3010 | AE79: 5.2 | AF79: 99.2 | AG79: 99.2 | AH79: 0 | AI79: 1.5 | AJ79: 57.2 | AK79: 100.8 | AL79: 233
A80: 142077 | B80: 神奈川県 | C80: 茅ヶ崎市 | D80: 1171 | E80: Aa1 | F80: A | G80: a | H80: 1 | I80: 236266 | J80: 10.6 | K80: 46 | L80: 95.8 | M80: 98.1 | N80: 1878 | O80: 105 | P80: 0 | Q80: 86.9 | R80: 99 | S80: 111.55 | T80: 101.56 | U80: 101.56 | V80: 67.86 | W80: 33.71 | X80: 109.8 | Y80: 109.8 | Z80: 164.4 | AA80: 10234 | AB80: 6837 | AC80: 3396 | AD80: 6949 | AE80: 3.5 | AF80: 105.5 | AG80: 105.3 | AH80: 0 | AI80: 1.5 | AJ80: 61.7 | AK80: 100.2 | AL80: 110
A81: 142123 | B81: 神奈川県 | C81: 厚木市 | D81: 1171 | E81: Aa1 | F81: A | G81: a | H81: 1 | I81: 200437 | J81: 7.7 | K81: 50 | L81: 89.6 | M81: 94.1 | N81: 1974 | O81: 60 | P81: 0 | Q81: 85.9 | R81: 99.4 | S81: 111.83 | T81: 105.32 | U81: 105.32 | V81: 61.59 | W81: 43.72 | X81: 106.2 | Y81: 106.2 | Z81: 181.6 | AA81: 13525 | AB81: 7910 | AC81: 5615 | AD81: 8715 | AE81: 3.8 | AF81: 102.9 | AG81: 102.9 | AH81: 0 | AI81: 1.4 | AJ81: 76.8 | AK81: 100.2 | AL81: 93
A82: 142131 | B82: 神奈川県 | C82: 大和市 | D82: 1171 | E82: Aa1 | F82: A | G82: a | H82: 1 | I82: 233398 | J82: 12.4 | K82: 54 | L82: 95.5 | M82: 101.5 | N82: 2292 | O82: 119 | P82: 63.6 | Q82: 97 | R82: 99.8 | S82: 127.17 | T82: 145.4 | U82: 145.4 | V82: 82.16 | W82: 63.24 | X82: 87.5 | Y82: 87.5 | Z82: 154.8 | AA82: 15170 | AB82: 8571 | AC82: 6599 | AD82: 5305 | AE82: 5.6 | AF82: 107.9 | AG82: 107.9 | AH82: 0 | AI82: 1.3 | AJ82: 69.9 | AK82: 101 | AL82: 112
A83: 142158 | B83: 神奈川県 | C83: 海老名市 | D83: 1171 | E83: Aa1 | F83: A | G83: a | H83: 1 | I83: 134110 | J83: 12.2 | K83: 45 | L83: 96.4 | M83: 95.8 | N83: 1973 | O83: 99 | P83: 0 | Q83: 87.4 | R83: 98.4 | S83: 113.79 | T83: 102.27 | U83: 102.27 | V83: 63.36 | W83: 38.92 | X83: 111.3 | Y83: 111.3 | Z83: 179.6 | AA83: 12497 | AB83: 7742 | AC83: 4755 | AD83: 8941 | AE83: 3.5 | AF83: 108.7 | AG83: 108.7 | AH83: 1.6 | AI83: 1.3 | AJ83: 71.6 | AK83: 101.4 | AL83: 86
A84: 142166 | B84: 神奈川県 | C84: 座間市 | D84: 1171 | E84: Aa1 | F84: A | G84: a | H84: 1 | I84: 128563 | J84: 10.2 | K84: 45 | L84: 97.8 | M84: 106.4 | N84: 2634 | O84: 105 | P84: 0 | Q84: 94 | R84: 97.9 | S84: 137.82 | T84: 127.29 | U84: 127.29 | V84: 57.82 | W84: 69.47 | X84: 108.3 | Y84: 108.3 | Z84: 238.3 | AA84: 12380 | AB84: 5623 | AC84: 6756 | AD84: 8035 | AE84: 3.8 | AF84: 113.7 | AG84: 113.7 | AH84: 0 | AI84: 1.7 | AJ84: 70 | AK84: 102.5 | AL84: 84
A85: 262048 | B85: 京都府 | C85: 宇治市 | D85: 1171 | E85: Aa1 | F85: A | G85: a | H85: 1 | I85: 177572 | J85: 8.5 | K85: 37 | L85: 97.8 | M85: 98.4 | N85: 3082 | O85: 91 | P85: 66.6 | Q85: 89.8 | R85: 89.3 | S85: 162.49 | T85: 167.82 | U85: 205.63 | V85: 85.05 | W85: 82.77 | X85: 96.8 | Y85: 79 | Z85: 191.1 | AA85: 15744 | AB85: 7979 | AC85: 7765 | AD85: 3699 | AE85: 7.4 | AF85: 100 | AG85: 100.1 | AH85: 0 | AI85: 1.3 | AJ85: 54.5 | AK85: 102.5 | AL85: 236
A86: 272035 | B86: 大阪府 | C86: 豊中市 | D86: 1171 | E86: Aa1 | F86: A | G86: a | H86: 1 | I86: 406913 | J86: 13 | K86: 58 | L86: 100 | M86: 84.4 | N86: 1421 | O86: 121 | P86: 63.8 | Q86: 71.1 | R86: 99.9 | S86: 82.79 | T86: 91.51 | U86: 91.51 | V86: 58.2 | W86: 33.31 | X86: 90.5 | Y86: 90.5 | Z86: 142.3 | AA86: 9844 | AB86: 6261 | AC86: 3584 | AD86: 3699 | AE86: 11.1 | AF86: 102.9 | AG86: 102.9 | AH86: 0 | AI86: 1.3 | AJ86: 69.7 | AK86: 96.2 | AL86: 65
A87: 272051 | B87: 大阪府 | C87: 吹田市 | D87: 1171 | E87: Aa1 | F87: A | G87: a | H87: 1 | I87: 380969 | J87: 12.3 | K87: 61 | L87: 99.9 | M87: 108.3 | N87: 1609 | O87: 110 | P87: 55.5 | Q87: 79.4 | R87: 99.6 | S87: 104.82 | T87: 88.54 | U87: 88.54 | V87: 58.29 | W87: 30.25 | X87: 118.4 | Y87: 118.4 | Z87: 179.8 | AA87: 9905 | AB87: 6521 | AC87: 3384 | AD87: 3628 | AE87: 9 | AF87: 113.2 | AG87: 111.6 | AH87: 0 | AI87: 1.5 | AJ87: 66.9 | AK87: 99 | AL87: 79
A88: 272078 | B88: 大阪府 | C88: 高槻市 | D88: 1171 | E88: Aa1 | F88: A | G88: a | H88: 1 | I88: 346411 | J88: 10.9 | K88: 54 | L88: 99.5 | M88: 112.8 | N88: 1965 | O88: 107 | P88: 0 | Q88: 80.7 | R88: 98.1 | S88: 124.56 | T88: 119.43 | U88: 119.43 | V88: 57.82 | W88: 61.61 | X88: 104.3 | Y88: 104.3 | Z88: 215.4 | AA88: 12120 | AB88: 5868 | AC88: 6252 | AD88: 7370 | AE88: 2.4 | AF88: 106.5 | AG88: 106.6 | AH88: 0 | AI88: 1.8 | AJ88: 73.5 | AK88: 101.5 | AL88: 88
A89: 272094 | B89: 大阪府 | C89: 守口市 | D89: 1171 | E89: Aa1 | F89: A | G89: a | H89: 1 | I89: 141607 | J89: 13.4 | K89: 57 | L89: 100 | M89: 102.6 | N89: 2055 | O89: 124 | P89: 50.9 | Q89: 66.4 | R89: 100 | S89: 130.75 | T89: 95.58 | U89: 95.58 | V89: 65.09 | W89: 30.49 | X89: 136.8 | Y89: 136.8 | Z89: 200.9 | AA89: 10365 | AB89: 7059 | AC89: 3306 | AD89: 4720 | AE89: 4.3 | AF89: 116.1 | AG89: 115.7 | AH89: 0 | AI89: 1.1 | AJ89: 63.5 | AK89: 91.6 | AL89: 104
A90: 272108 | B90: 大阪府 | C90: 枚方市 | D90: 1171 | E90: Aa1 | F90: A | G90: a | H90: 1 | I90: 385795 | J90: 11.3 | K90: 65 | L90: 97.6 | M90: 101.5 | N90: 2618 | O90: 111 | P90: 0 | Q90: 89.1 | R90: 97.7 | S90: 148.9 | T90: 152.02 | U90: 175.64 | V90: 57.69 | W90: 94.33 | X90: 98 | Y90: 84.8 | Z90: 258.1 | AA90: 15463 | AB90: 5868 | AC90: 9595 | AD90: 3445 | AE90: 7.9 | AF90: 114.9 | AG90: 113.3 | AH90: 0 | AI90: 1.6 | AJ90: 74.5 | AK90: 100.9 | AL90: 130
A91: 272116 | B91: 大阪府 | C91: 茨木市 | D91: 1171 | E91: Aa1 | F91: A | G91: a | H91: 1 | I91: 283124 | J91: 10.8 | K91: 53 | L91: 99.3 | M91: 96 | N91: 2035 | O91: 101 | P91: 0 | Q91: 73.4 | R91: 99.1 | S91: 118.31 | T91: 92.02 | U91: 92.02 | V91: 51.72 | W91: 40.3 | X91: 128.6 | Y91: 128.6 | Z91: 228.8 | AA91: 9845 | AB91: 5534 | AC91: 4311 | AD91: 11325 | AE91: 2.4 | AF91: 117.9 | AG91: 118.1 | AH91: 0 | AI91: 1.6 | AJ91: 74.9 | AK91: 99.9 | AL91: 72
A92: 272124 | B92: 大阪府 | C92: 八尾市 | D92: 1171 | E92: Aa1 | F92: A | G92: a | H92: 1 | I92: 247276 | J92: 9.5 | K92: 50 | L92: 94.7 | M92: 98.5 | N92: 2563 | O92: 87 | P92: 0 | Q92: 61.3 | R92: 92.5 | S92: 147.64 | T92: 128.05 | U92: 128.05 | V92: 60.91 | W92: 67.14 | X92: 115.3 | Y92: 115.3 | Z92: 242.4 | AA92: 14063 | AB92: 6689 | AC92: 7374 | AD92: 5888 | AE92: 3 | AF92: 107.4 | AG92: 106.9 | AH92: 0 | AI92: 1.5 | AJ92: 54.7 | AK92: 102.4 | AL92: 308
A93: 272159 | B93: 大阪府 | C93: 寝屋川市 | D93: 1171 | E93: Aa1 | F93: A | G93: a | H93: 1 | I93: 226096 | J93: 12.6 | K93: 51 | L93: 99.7 | M93: 115 | N93: 2406 | O93: 125 | P93: 0 | Q93: 71.2 | R93: 98.7 | S93: 135.32 | T93: 129.34 | U93: 129.34 | V93: 49.09 | W93: 80.25 | X93: 104.6 | Y93: 104.6 | Z93: 275.7 | AA93: 13060 | AB93: 4957 | AC93: 8104 | AD93: 14131 | AE93: 1.3 | AF93: 107.9 | AG93: 107.9 | AH93: 0 | AI93: 1.2 | AJ93: 47.7 | AK93: 104.5 | AL93: 183
A94: 272175 | B94: 大阪府 | C94: 松原市 | D94: 1171 | E94: Aa1 | F94: A | G94: a | H94: 1 | I94: 114995 | J94: 9.5 | K94: 38 | L94: 98.4 | M94: 109.3 | N94: 2868 | O94: 110 | P94: 0 | Q94: 94.3 | R94: 93.2 | S94: 156.84 | T94: 167.13 | U94: 173.86 | V94: 48.91 | W94: 118.22 | X94: 93.8 | Y94: 90.2 | Z94: 320.7 | AA94: 14425 | AB94: 4221 | AC94: 10204 | AD94: 11500 | AE94: 2 | AF94: 98 | AG94: 97.6 | AH94: 0 | AI94: 1.3 | AJ94: 41.3 | AK94: 105.6 | AL94: 291
A95: 272183 | B95: 大阪府 | C95: 大東市 | D95: 1171 | E95: Aa1 | F95: A | G95: a | H95: 1 | I95: 116015 | J95: 10 | K95: 51 | L95: 99.2 | M95: 99.6 | N95: 1970 | O95: 96 | P95: 0 | Q95: 66.9 | R95: 97.8 | S95: 118.43 | T95: 109.92 | U95: 109.92 | V95: 56.26 | W95: 53.66 | X95: 107.7 | Y95: 107.7 | Z95: 210.5 | AA95: 11450 | AB95: 5860 | AC95: 5590 | AD95: 6106 | AE95: 4 | AF95: 103.1 | AG95: 103.1 | AH95: 0 | AI95: 1.7 | AJ95: 62.2 | AK95: 101.9 | AL95: 175
A96: 272230 | B96: 大阪府 | C96: 門真市 | D96: 1171 | E96: Aa1 | F96: A | G96: a | H96: 1 | I96: 114618 | J96: 11.7 | K96: 51 | L96: 97.5 | M96: 105.3 | N96: 2420 | O96: 111 | P96: 0 | Q96: 71.2 | R96: 99.6 | S96: 136.54 | T96: 126.16 | U96: 126.16 | V96: 64.68 | W96: 61.48 | X96: 108.2 | Y96: 108.2 | Z96: 211.1 | AA96: 13283 | AB96: 6810 | AC96: 6474 | AD96: 5210 | AE96: 3.6 | AF96: 113.5 | AG96: 112.7 | AH96: 0 | AI96: 1.2 | AJ96: 39.9 | AK96: 104.7 | AL96: 339
A97: 272272 | B97: 大阪府 | C97: 東大阪市 | D97: 1171 | E97: Aa1 | F97: A | G97: a | H97: 1 | I97: 474599 | J97: 10.3 | K97: 55 | L97: 99 | M97: 99 | N97: 2087 | O97: 96 | P97: 0 | Q97: 57.9 | R97: 97.9 | S97: 124.34 | T97: 94.44 | U97: 94.44 | V97: 48.75 | W97: 45.69 | X97: 131.7 | Y97: 131.7 | Z97: 255.1 | AA97: 10077 | AB97: 5201 | AC97: 4875 | AD97: 5932 | AE97: 3.7 | AF97: 107.5 | AG97: 107.5 | AH97: 0 | AI97: 1.4 | AJ97: 42.1 | AK97: 102.2 | AL97: 255
A98: 282022 | B98: 兵庫県 | C98: 尼崎市 | D98: 1171 | E98: Aa1 | F98: A | G98: a | H98: 1 | I98: 458275 | J98: 13.4 | K98: 64 | L98: 100 | M98: 100.1 | N98: 1714 | O98: 113 | P98: 49.1 | Q98: 76.7 | R98: 99.6 | S98: 93.79 | T98: 82 | U98: 82 | V98: 57.41 | W98: 24.6 | X98: 114.4 | Y98: 114.4 | Z98: 163.4 | AA98: 9750 | AB98: 6825 | AC98: 2924 | AD98: 6193 | AE98: 3.8 | AF98: 124.1 | AG98: 110.1 | AH98: 0 | AI98: 1.4 | AJ98: 80.6 | AK98: 90.2 | AL98: 60
A99: 282031 | B99: 兵庫県 | C99: 明石市 | D99: 1171 | E99: Aa1 | F99: A | G99: a | H99: 1 | I99: 304586 | J99: 8.1 | K99: 55 | L99: 99.7 | M99: 110 | N99: 2197 | O99: 79 | P99: 66.8 | Q99: 83.2 | R99: 98.9 | S99: 145.24 | T99: 121.47 | U99: 141.78 | V99: 68.3 | W99: 53.17 | X99: 119.6 | Y99: 102.4 | Z99: 212.6 | AA99: 12428 | AB99: 6988 | AC99: 5440 | AD99: 3856 | AE99: 7.9 | AF99: 110.1 | AG99: 112 | AH99: 0 | AI99: 1.8 | AJ99: 66.6 | AK99: 99.4 | AL99: 113
A100: 282049 | B100: 兵庫県 | C100: 西宮市 | D100: 1171 | E100: Aa1 | F100: A | G100: a | H100: 1 | I100: 481954 | J100: 10.9 | K100: 63 | L100: 99.9 | M100: 92.7 | N100: 1777 | O100: 100 | P100: 57 | Q100: 91.3 | R100: 99.8 | S100: 100.21 | T100: 100.08 | U100: 108.17 | V100: 57.88 | W100: 42.2 | X100: 100.1 | Y100: 92.6 | Z100: 173.1 | AA100: 10910 | AB100: 6310 | AC100: 4601 | AD100: 5807 | AE100: 6.9 | AF100: 101.1 | AG100: 101.1 | AH100: 0 | AI100: 1.3 | AJ100: 69.6 | AK100: 101.1 | AL100: 113
A101: 282073 | B101: 兵庫県 | C101: 伊丹市 | D101: 1171 | E101: Aa1 | F101: A | G101: a | H101: 1 | I101: 201855 | J101: 11.9 | K101: 54 | L101: 100 | M101: 102.8 | N101: 1727 | O101: 100 | P101: 0 | Q101: 76.5 | R101: 99.7 | S101: 87.45 | T101: 82.14 | U101: 82.14 | V101: 41.16 | W101: 40.98 | X101: 106.5 | Y101: 106.5 | Z101: 212.4 | AA101: 9819 | AB101: 4920 | AC101: 4898 | AD101: 9612 | AE101: 3.3 | AF101: 112 | AG101: 112.2 | AH101: 0 | AI101: 1.5 | AJ101: 58.5 | AK101: 102.7 | AL101: 117
A102: 282146 | B102: 兵庫県 | C102: 宝塚市 | D102: 1171 | E102: Aa1 | F102: A | G102: a | H102: 1 | I102: 227518 | J102: 9.3 | K102: 49 | L102: 98.9 | M102: 98.7 | N102: 1848 | O102: 92 | P102: 0 | Q102: 84.7 | R102: 99.5 | S102: 91.75 | T102: 114.41 | U102: 114.41 | V102: 54.63 | W102: 59.79 | X102: 80.2 | Y102: 80.2 | Z102: 168 | AA102: 11549 | AB102: 5514 | AC102: 6035 | AD102: 9101 | AE102: 4.9 | AF102: 103 | AG102: 102.2 | AH102: 0 | AI102: 1.4 | AJ102: 75.6 | AK102: 101.7 | AL102: 71
A103: 282171 | B103: 兵庫県 | C103: 川西市 | D103: 1171 | E103: Aa1 | F103: A | G103: a | H103: 1 | I103: 154073 | J103: 8.1 | K103: 49 | L103: 99.7 | M103: 97 | N103: 2145 | O103: 86 | P103: 0 | Q103: 80 | R103: 99.4 | S103: 117.08 | T103: 83.27 | U103: 94.47 | V103: 58.2 | W103: 25.07 | X103: 140.6 | Y103: 123.9 | Z103: 201.2 | AA103: 7874 | AB103: 5504 | AC103: 2371 | AD103: 4970 | AE103: 8.8 | AF103: 116.8 | AG103: 116.8 | AH103: 0 | AI103: 1.4 | AJ103: 72.6 | AK103: 96.2 | AL103: 65
A104: 472018 | B104: 沖縄県 | C104: 那覇市 | D104: 1171 | E104: Aa1 | F104: A | G104: a | H104: 1 | I104: 310130 | J104: 9.8 | K104: 54 | L104: 98.3 | M104: 103.7 | N104: 1489 | O104: 88 | P104: 0 | Q104: 100 | R104: 96.8 | S104: 93.04 | T104: 99.88 | U104: 99.88 | V104: 73.37 | W104: 26.51 | X104: 93.1 | Y104: 93.1 | Z104: 126.8 | AA104: 11132 | AB104: 8177 | AC104: 2955 | AD104: 4430 | AE104: 9.5 | AF104: 102.3 | AG104: 102.2 | AH104: 0 | AI104: 1.5 | AJ104: 74.8 | AK104: 92.5 | AL104: 39
B105: 団体数 | C105: 67 | E105: Aa1 計 | M105: 101.3 | N105: 1953 | O105: 98 | P105: 75.6 | Q105: 82.7 | R105: 97.6 | S105: 115.16 | T105: 111.97 | U105: 116.4 | V105: 64.26 | W105: 47.71 | X105: 102.8 | Y105: 98.9 | Z105: 179.2 | AA105: 11567 | AB105: 6638 | AC105: 4928 | AD105: 6340 | AE105: 5 | AF105: 107.6 | AG105: 106.9 | AH105: 4.3 | AI105: 1.4 | AJ105: 67.4 | AK105: 99.8 | AL105: 102
A106: 012025 | B106: 北海道 | C106: 函館市 | D106: 1171 | E106: Ab1 | F106: A | G106: b | H106: 1 | I106: 218312 | J106: 5.5 | K106: 74 | L106: 90 | M106: 106.6 | N106: 3014 | O106: 47 | P106: 86.9 | Q106: 72.5 | R106: 96.6 | S106: 156.88 | T106: 110.28 | U106: 110.28 | V106: 70.24 | W106: 40.04 | X106: 142.3 | Y106: 142.3 | Z106: 223.4 | AA106: 12942 | AB106: 8243 | AC106: 4699 | AD106: 3764 | AE106: 7 | AF106: 119.7 | AG106: 119.7 | AH106: 0 | AI106: 1.2 | AJ106: 51.2 | AK106: 101.9 | AL106: 204
A107: 032018 | B107: 岩手県 | C107: 盛岡市 | D107: 1171 | E107: Ab1 | F107: A | G107: b | H107: 1 | I107: 253790 | J107: 5.4 | K107: 68 | L107: 90.1 | M107: 97 | N107: 2455 | O107: 50 | P107: 0 | Q107: 84.5 | R107: 97.8 | S107: 150.71 | T107: 150.66 | U107: 219.61 | V107: 84.81 | W107: 65.85 | X107: 100 | Y107: 68.6 | Z107: 177.7 | AA107: 16181 | AB107: 9109 | AC107: 7073 | AD107: 3172 | AE107: 6.6 | AF107: 102.1 | AG107: 102.1 | AH107: 0 | AI107: 1.6 | AJ107: 72.3 | AK107: 97 | AL107: 115
A108: 092011 | B108: 栃木県 | C108: 宇都宮市 | D108: 1171 | E108: Ab1 | F108: A | G108: b | H108: 1 | I108: 436944 | J108: 5.5 | K108: 58 | L108: 84.7 | M108: 99.4 | N108: 2695 | O108: 54 | P108: 80.2 | Q108: 65.2 | R108: 96.8 | S108: 149.45 | T108: 150.53 | U108: 183 | V108: 90.74 | W108: 59.79 | X108: 99.3 | Y108: 81.7 | Z108: 164.7 | AA108: 15307 | AB108: 9227 | AC108: 6080 | AD108: 4855 | AE108: 7.1 | AF108: 102.3 | AG108: 102.1 | AH108: 0 | AI108: 1.8 | AJ108: 76.5 | AK108: 101.2 | AL108: 70
A109: 112321 | B109: 埼玉県 | C109: 久喜市 | D109: 1171 | E109: Ab1 | F109: A | G109: b | H109: 1 | I109: 105602 | J109: 6.1 | K109: 49 | L109: 70.1 | M109: 87.3 | N109: 1870 | O109: 55 | P109: 0 | Q109: 81 | R109: 93.3 | S109: 108.12 | T109: 150 | U109: 204.99 | V109: 104.1 | W109: 45.9 | X109: 72.1 | Y109: 52.7 | Z109: 103.9 | AA109: 16610 | AB109: 11527 | AC109: 5083 | AD109: 6212 | AE109: 5.5 | AF109: 102.8 | AG109: 102.8 | AH109: 0 | AI109: 1.1 | AJ109: 58.6 | AK109: 104 | AL109: 169
A110: 118541 | B110: 埼玉県 | C110: 坂戸、鶴ケ島下水道組合 | D110: 1171 | E110: Ab1 | F110: A | G110: b | H110: 1 | I110: 124297 | J110: 7.1 | K110: 50 | L110: 76.6 | M110: 101.6 | N110: 2343 | O110: 69 | P110: 56 | Q110: 79 | R110: 98.1 | S110: 141.21 | T110: 148.2 | U110: 169.95 | V110: 102.78 | W110: 45.42 | X110: 95.3 | Y110: 83.1 | Z110: 137.4 | AA110: 15225 | AB110: 10559 | AC110: 4666 | AD110: 2825 | AE110: 11.8 | AF110: 101.8 | AG110: 101.8 | AH110: 0.4 | AI110: 1.3 | AJ110: 78.3 | AK110: 100.4 | AL110: 106
A111: 122084 | B111: 千葉県 | C111: 野田市 | D111: 1171 | E111: Ab1 | F111: A | G111: b | H111: 1 | I111: 109481 | J111: 5.1 | K111: 36 | L111: 71.3 | M111: 82.9 | N111: 2310 | O111: 59 | P111: 0 | Q111: 80.5 | R111: 93.5 | S111: 141.28 | T111: 150 | U111: 187.18 | V111: 97.96 | W111: 52.04 | X111: 94.2 | Y111: 75.5 | Z111: 144.2 | AA111: 13054 | AB111: 8525 | AC111: 4529 | AD111: 4562 | AE111: 6.9 | AF111: 101.4 | AG111: 99.9 | AH111: 0 | AI111: 1.6 | AJ111: 80.4 | AK111: 101.1 | AL111: 114
A112: 122114 | B112: 千葉県 | C112: 成田市 | D112: 1171 | E112: Ab1 | F112: A | G112: b | H112: 1 | I112: 101790 | J112: 5.5 | K112: 49 | L112: 77.6 | M112: 106.7 | N112: 1980 | O112: 55 | P112: 0 | Q112: 82.9 | R112: 97.6 | S112: 96.02 | T112: 206.5 | U112: 206.5 | V112: 103.36 | W112: 103.14 | X112: 46.5 | Y112: 46.5 | Z112: 92.9 | AA112: 20803 | AB112: 10412 | AC112: 10391 | AD112: 9254 | AE112: 6.3 | AF112: 99.6 | AG112: 98.6 | AH112: 0 | AI112: 1.4 | AJ112: 90.7 | AK112: 100.6 | AL112: 47
A113: 122122 | B113: 千葉県 | C113: 佐倉市 | D113: 1171 | E113: Ab1 | F113: A | G113: b | H113: 1 | I113: 157572 | J113: 6.4 | K113: 56 | L113: 92.1 | M113: 85.2 | N113: 2472 | O113: 63 | P113: 0 | Q113: 82.4 | R113: 98.7 | S113: 135.24 | T113: 118 | U113: 118 | V113: 88 | W113: 30 | X113: 114.6 | Y113: 114.6 | Z113: 153.7 | AA113: 12102 | AB113: 9025 | AC113: 3077 | AD113: 7503 | AE113: 5.8 | AF113: 115.9 | AG113: 114.4 | AH113: 0 | AI113: 1.6 | AJ113: 92.7 | AK113: 91.5 | AL113: 16
A114: 122190 | B114: 千葉県 | C114: 市原市 | D114: 1171 | E114: Ab1 | F114: A | G114: b | H114: 1 | I114: 177242 | J114: 5.4 | K114: 51 | L114: 65.7 | M114: 102.5 | N114: 2140 | O114: 56 | P114: 55.7 | Q114: 87.8 | R114: 95.3 | S114: 122.21 | T114: 134.44 | U114: 134.44 | V114: 78.37 | W114: 56.07 | X114: 90.9 | Y114: 90.9 | Z114: 155.9 | AA114: 12967 | AB114: 7559 | AC114: 5408 | AD114: 3409 | AE114: 7.7 | AF114: 100 | AG114: 99.9 | AH114: 0 | AI114: 1.2 | AJ114: 76.6 | AK114: 101 | AL114: 109
A115: 132012 | B115: 東京都 | C115: 八王子市 | D115: 1171 | E115: Ab1 | F115: A | G115: b | H115: 1 | I115: 557440 | J115: 6.9 | K115: 62 | L115: 99.4 | M115: 98.7 | N115: 2068 | O115: 66 | P115: 0 | Q115: 87 | R115: 98.7 | S115: 127.7 | T115: 122.08 | U115: 122.08 | V115: 59.4 | W115: 62.68 | X115: 104.6 | Y115: 104.6 | Z115: 215 | AA115: 12831 | AB115: 6243 | AC115: 6588 | AD115: 14669 | AE115: 2.6 | AF115: 112 | AG115: 110.9 | AH115: 0 | AI115: 1.2 | AJ115: 70.6 | AK115: 101.7 | AL115: 87
A116: 132055 | B116: 東京都 | C116: 青梅市 | D116: 1171 | E116: Ab1 | F116: A | G116: b | H116: 1 | I116: 127574 | J116: 6.2 | K116: 45 | L116: 98.2 | M116: 96.7 | N116: 2126 | O116: 59 | P116: 0 | Q116: 86.2 | R116: 99.3 | S116: 131.06 | T116: 182.21 | U116: 215.99 | V116: 102.73 | W116: 79.48 | X116: 71.9 | Y116: 60.7 | Z116: 127.6 | AA116: 19317 | AB116: 10891 | AC116: 8426 | AD116: 4907 | AE116: 6.6 | AF116: 99.2 | AG116: 99.1 | AH116: 0 | AI116: 1.5 | AJ116: 65.4 | AK116: 102.4 | AL116: 116
A117: 142018 | B117: 神奈川県 | C117: 横須賀市 | D117: 1171 | E117: Ab1 | F117: A | G117: b | H117: 1 | I117: 379091 | J117: 6.9 | K117: 57 | L117: 98.3 | M117: 102.7 | N117: 2443 | O117: 64 | P117: 62.2 | Q117: 78.5 | R117: 96.8 | S117: 163.94 | T117: 151.77 | U117: 160.16 | V117: 99.2 | W117: 52.57 | X117: 108 | Y117: 102.4 | Z117: 165.3 | AA117: 16194 | AB117: 10584 | AC117: 5609 | AD117: 2727 | AE117: 9.1 | AF117: 102 | AG117: 101.7 | AH117: 0 | AI117: 0.7 | AJ117: 67.5 | AK117: 102.7 | AL117: 188
A118: 142042 | B118: 神奈川県 | C118: 鎌倉市 | D118: 1171 | E118: Ab1 | F118: A | G118: b | H118: 1 | I118: 172318 | J118: 7.5 | K118: 52 | L118: 97.8 | M118: 104.8 | N118: 2302 | O118: 71 | P118: 54.3 | Q118: 87.4 | R118: 93.7 | S118: 130.68 | T118: 167.28 | U118: 219.33 | V118: 112.06 | W118: 55.22 | X118: 78.1 | Y118: 59.6 | Z118: 116.6 | AA118: 17520 | AB118: 11737 | AC118: 5783 | AD118: 3133 | AE118: 9.2 | AF118: 106.8 | AG118: 104.4 | AH118: 0 | AI118: 1.4 | AJ118: 62.4 | AK118: 102.4 | AL118: 174
A119: 142115 | B119: 神奈川県 | C119: 秦野市 | D119: 1171 | E119: Ab1 | F119: A | G119: b | H119: 1 | I119: 140463 | J119: 6.7 | K119: 43 | L119: 88.2 | M119: 98.9 | N119: 2469 | O119: 64 | P119: 63.4 | Q119: 99.4 | R119: 92.9 | S119: 140.89 | T119: 152.8 | U119: 221.31 | V119: 95.61 | W119: 57.19 | X119: 92.2 | Y119: 63.7 | Z119: 147.4 | AA119: 15909 | AB119: 9955 | AC119: 5954 | AD119: 3696 | AE119: 8.2 | AF119: 109.4 | AG119: 109.5 | AH119: 0 | AI119: 1.5 | AJ119: 60.6 | AK119: 101.8 | AL119: 191
A120: 172014 | B120: 石川県 | C120: 金沢市 | D120: 1171 | E120: Ab1 | F120: A | G120: b | H120: 1 | I120: 437196 | J120: 5.7 | K120: 54 | L120: 98.1 | M120: 99.2 | N120: 2651 | O120: 49 | P120: 56.4 | Q120: 85.3 | R120: 97.8 | S120: 135.74 | T120: 153.1 | U120: 164.3 | V120: 59.53 | W120: 93.57 | X120: 88.7 | Y120: 82.6 | Z120: 228 | AA120: 17790 | AB120: 6918 | AC120: 10873 | AD120: 4804 | AE120: 5.5 | AF120: 108.5 | AG120: 109 | AH120: 0 | AI120: 1.4 | AJ120: 51.8 | AK120: 103 | AL120: 255
A121: 182010 | B121: 福井県 | C121: 福井市 | D121: 1171 | E121: Ab1 | F121: A | G121: b | H121: 1 | I121: 224064 | J121: 5.3 | K121: 64 | L121: 87.4 | M121: 101.9 | N121: 2618 | O121: 44 | P121: 58.6 | Q121: 74.8 | R121: 95.9 | S121: 152.47 | T121: 132.02 | U121: 154.9 | V121: 64.82 | W121: 67.2 | X121: 115.5 | Y121: 98.4 | Z121: 235.2 | AA121: 15897 | AB121: 7805 | AC121: 8092 | AD121: 2384 | AE121: 7.8 | AF121: 113.7 | AG121: 113.7 | AH121: 0 | AI121: 1.2 | AJ121: 51.4 | AK121: 98.9 | AL121: 287
A122: 192015 | B122: 山梨県 | C122: 甲府市 | D122: 1171 | E122: Ab1 | F122: A | G122: b | H122: 1 | I122: 153376 | J122: 5.9 | K122: 61 | L122: 82.6 | M122: 98.3 | N122: 2431 | O122: 48 | P122: 79.7 | Q122: 63.4 | R122: 99.7 | S122: 145.06 | T122: 150 | U122: 193.46 | V122: 59.53 | W122: 90.47 | X122: 96.7 | Y122: 75 | Z122: 243.7 | AA122: 18594 | AB122: 7379 | AC122: 11215 | AD122: 3486 | AE122: 7.2 | AF122: 126.6 | AG122: 126.2 | AH122: 0 | AI122: 1.4 | AJ122: 68.1 | AK122: 100.7 | AL122: 157
A123: 202029 | B123: 長野県 | C123: 松本市 | D123: 1171 | E123: Ab1 | F123: A | G123: b | H123: 1 | I123: 192289 | J123: 5.1 | K123: 64 | L123: 81.6 | M123: 109.3 | N123: 3140 | O123: 41 | P123: 79.4 | Q123: 80.8 | R123: 99.4 | S123: 172.5 | T123: 133.86 | U123: 134.17 | V123: 75.02 | W123: 58.83 | X123: 128.9 | Y123: 128.6 | Z123: 229.9 | AA123: 16865 | AB123: 9453 | AC123: 7413 | AD123: 5060 | AE123: 7.2 | AF123: 119.2 | AG123: 119.1 | AH123: 0 | AI123: 1.5 | AJ123: 81.8 | AK123: 93.9 | AL123: 71
A124: 212016 | B124: 岐阜県 | C124: 岐阜市 | D124: 1171 | E124: Ab1 | F124: A | G124: b | H124: 1 | I124: 377800 | J124: 5.4 | K124: 86 | L124: 94.1 | M124: 99.9 | N124: 2739 | O124: 47 | P124: 65.1 | Q124: 76.6 | R124: 86.8 | S124: 137.29 | T124: 129.01 | U124: 129.01 | V124: 72.25 | W124: 56.76 | X124: 106.4 | Y124: 106.4 | Z124: 190 | AA124: 14661 | AB124: 8211 | AC124: 6451 | AD124: 3435 | AE124: 9.5 | AF124: 105.6 | AG124: 105.6 | AH124: 0 | AI124: 1.4 | AJ124: 53.2 | AK124: 102.2 | AL124: 141
A125: 222038 | B125: 静岡県 | C125: 沼津市 | D125: 1171 | E125: Ab1 | F125: A | G125: b | H125: 1 | I125: 108969 | J125: 7.1 | K125: 45 | L125: 57.8 | M125: 73.9 | N125: 2600 | O125: 62 | P125: 84.7 | Q125: 56.3 | R125: 88.9 | S125: 132.03 | T125: 194.46 | U125: 234.32 | V125: 108.46 | W125: 86 | X125: 67.9 | Y125: 56.3 | Z125: 121.7 | AA125: 22256 | AB125: 12414 | AC125: 9842 | AD125: 2868 | AE125: 8.4 | AF125: 105.8 | AG125: 105.8 | AH125: 0 | AI125: 1.4 | AJ125: 50.1 | AK125: 103.6 | AL125: 285
A126: 232017 | B126: 愛知県 | C126: 豊橋市 | D126: 1171 | E126: Ab1 | F126: A | G126: b | H126: 1 | I126: 263349 | J126: 6 | K126: 88 | L126: 71.3 | M126: 98 | N126: 2277 | O126: 59 | P126: 53.3 | Q126: 74.4 | R126: 97.5 | S126: 149.47 | T126: 138.04 | U126: 138.04 | V126: 65.66 | W126: 72.38 | X126: 108.3 | Y126: 108.3 | Z126: 227.7 | AA126: 14232 | AB126: 6769 | AC126: 7462 | AD126: 2484 | AE126: 8.3 | AF126: 106.7 | AG126: 106.7 | AH126: 0 | AI126: 1.4 | AJ126: 69.2 | AK126: 99.8 | AL126: 124
A127: 232025 | B127: 愛知県 | C127: 岡崎市 | D127: 1171 | E127: Ab1 | F127: A | G127: b | H127: 1 | I127: 337643 | J127: 5.6 | K127: 61 | L127: 88 | M127: 93.7 | N127: 1998 | O127: 59 | P127: 0 | Q127: 90.2 | R127: 95.7 | S127: 117.05 | T127: 150 | U127: 155.6 | V127: 62.03 | W127: 87.97 | X127: 78 | Y127: 75.2 | Z127: 188.7 | AA127: 14293 | AB127: 5910 | AC127: 8383 | AD127: 4823 | AE127: 5.1 | AF127: 104.1 | AG127: 104.1 | AH127: 0 | AI127: 1.5 | AJ127: 58.4 | AK127: 100.3 | AL127: 185
A128: 232033 | B128: 愛知県 | C128: 一宮市 | D128: 1171 | E128: Ab1 | F128: A | G128: b | H128: 1 | I128: 263211 | J128: 5.9 | K128: 63 | L128: 69.4 | M128: 100.4 | N128: 2019 | O128: 61 | P128: 42 | Q128: 75.2 | R128: 75.6 | S128: 99.27 | T128: 150 | U128: 219.39 | V128: 87.09 | W128: 62.91 | X128: 66.2 | Y128: 45.2 | Z128: 114 | AA128: 14469 | AB128: 8401 | AC128: 6068 | AD128: 2991 | AE128: 13.7 | AF128: 99 | AG128: 98.9 | AH128: 0 | AI128: 1.4 | AJ128: 46.8 | AK128: 100.1 | AL128: 275
A129: 232050 | B129: 愛知県 | C129: 半田市 | D129: 1171 | E129: Ab1 | F129: A | G129: b | H129: 1 | I129: 104663 | J129: 5.4 | K129: 32 | L129: 89.1 | M129: 97.4 | N129: 2030 | O129: 56 | P129: 0 | Q129: 83.5 | R129: 88.1 | S129: 117.14 | T129: 149.94 | U129: 157.54 | V129: 73.09 | W129: 76.86 | X129: 78.1 | Y129: 74.4 | Z129: 160.3 | AA129: 14391 | AB129: 7014 | AC129: 7376 | AD129: 6978 | AE129: 4.4 | AF129: 100.6 | AG129: 100.6 | AH129: 0 | AI129: 1.9 | AJ129: 71.2 | AK129: 102.9 | AL129: 138
A130: 232068 | B130: 愛知県 | C130: 春日井市 | D130: 1171 | E130: Ab1 | F130: A | G130: b | H130: 1 | I130: 213645 | J130: 6.6 | K130: 55 | L130: 69.4 | M130: 77.9 | N130: 2915 | O130: 66 | P130: 61.2 | Q130: 81 | R130: 96 | S130: 150.72 | T130: 150.9 | U130: 169.93 | V130: 81.33 | W130: 69.57 | X130: 99.9 | Y130: 88.7 | Z130: 185.3 | AA130: 15266 | AB130: 8228 | AC130: 7038 | AD130: 3684 | AE130: 6.4 | AF130: 100.1 | AG130: 100.1 | AH130: 0 | AI130: 1.1 | AJ130: 55 | AK130: 103.7 | AL130: 212
A131: 232106 | B131: 愛知県 | C131: 刈谷市 | D131: 1171 | E131: Ab1 | F131: A | G131: b | H131: 1 | I131: 142646 | J131: 6 | K131: 34 | L131: 93.6 | M131: 91 | N131: 1650 | O131: 63 | P131: 0 | Q131: 75.3 | R131: 92.3 | S131: 96.31 | T131: 115.59 | U131: 115.59 | V131: 61.98 | W131: 53.61 | X131: 83.3 | Y131: 83.3 | Z131: 155.4 | AA131: 10899 | AB131: 5844 | AC131: 5055 | AD131: 5283 | AE131: 5.9 | AF131: 100.6 | AG131: 94.4 | AH131: 0 | AI131: 1.8 | AJ131: 73.8 | AK131: 101.3 | AL131: 112
A132: 232114 | B132: 愛知県 | C132: 豊田市 | D132: 1171 | E132: Ab1 | F132: A | G132: b | H132: 1 | I132: 309624 | J132: 5.8 | K132: 35 | L132: 74.3 | M132: 87.7 | N132: 1980 | O132: 60 | P132: 0 | Q132: 92.3 | R132: 94.1 | S132: 119.74 | T132: 151.1 | U132: 158.92 | V132: 58.98 | W132: 92.12 | X132: 79.2 | Y132: 75.3 | Z132: 203 | AA132: 14761 | AB132: 5762 | AC132: 8999 | AD132: 5842 | AE132: 4.3 | AF132: 107.7 | AG132: 104.6 | AH132: 0 | AI132: 1.6 | AJ132: 76.6 | AK132: 99.5 | AL132: 102
A133: 232122 | B133: 愛知県 | C133: 安城市 | D133: 1171 | E133: Ab1 | F133: A | G133: b | H133: 1 | I133: 143146 | J133: 6.5 | K133: 30 | L133: 75.9 | M133: 86.1 | N133: 1650 | O133: 67 | P133: 0 | Q133: 97.1 | R133: 93.2 | S133: 96.42 | T133: 146.69 | U133: 146.69 | V133: 57.93 | W133: 88.76 | X133: 65.7 | Y133: 65.7 | Z133: 166.4 | AA133: 14331 | AB133: 5660 | AC133: 8671 | AD133: 6816 | AE133: 5.9 | AF133: 100 | AG133: 95.9 | AH133: 0 | AI133: 1.7 | AJ133: 70.2 | AK133: 101.9 | AL133: 91
A134: 232190 | B134: 愛知県 | C134: 小牧市 | D134: 1171 | E134: Ab1 | F134: A | G134: b | H134: 1 | I134: 115663 | J134: 5.6 | K134: 36 | L134: 78.3 | M134: 77.5 | N134: 1581 | O134: 51 | P134: 0 | Q134: 78.4 | R134: 92.8 | S134: 89.38 | T134: 150 | U134: 161.93 | V134: 86 | W134: 64 | X134: 59.6 | Y134: 55.2 | Z134: 103.9 | AA134: 16531 | AB134: 9478 | AC134: 7053 | AD134: 6426 | AE134: 5 | AF134: 99.8 | AG134: 99.7 | AH134: 0 | AI134: 1.7 | AJ134: 79.7 | AK134: 100.8 | AL134: 63
A135: 242021 | B135: 三重県 | C135: 四日市市 | D135: 1171 | E135: Ab1 | F135: A | G135: b | H135: 1 | I135: 250116 | J135: 5.3 | K135: 61 | L135: 81 | M135: 93.8 | N135: 3520 | O135: 52 | P135: 72.8 | Q135: 78.3 | R135: 93.9 | S135: 187.19 | T135: 187.19 | U135: 210.72 | V135: 88.89 | W135: 98.3 | X135: 100 | Y135: 88.8 | Z135: 210.6 | AA135: 18929 | AB135: 8989 | AC135: 9940 | AD135: 2526 | AE135: 4.1 | AF135: 108.3 | AG135: 108.3 | AH135: 0 | AI135: 1.4 | AJ135: 65.5 | AK135: 100.9 | AL135: 292
A136: 252018 | B136: 滋賀県 | C136: 大津市 | D136: 1171 | E136: Ab1 | F136: A | G136: b | H136: 1 | I136: 333568 | J136: 6.6 | K136: 54 | L136: 97 | M136: 99.1 | N136: 2931 | O136: 60 | P136: 63.8 | Q136: 81.7 | R136: 98.3 | S136: 178.68 | T136: 127.03 | U136: 148.19 | V136: 75.52 | W136: 51.51 | X136: 140.7 | Y136: 120.6 | Z136: 236.6 | AA136: 13945 | AB136: 8291 | AC136: 5654 | AD136: 4765 | AE136: 6.3 | AF136: 119.7 | AG136: 119.8 | AH136: 0 | AI136: 1.9 | AJ136: 75.3 | AK136: 97.8 | AL136: 84
A137: 252069 | B137: 滋賀県 | C137: 草津市 | D137: 1171 | E137: Ab1 | F137: A | G137: b | H137: 1 | I137: 114470 | J137: 7.4 | K137: 41 | L137: 82.6 | M137: 97.1 | N137: 2530 | O137: 62 | P137: 0 | Q137: 89.1 | R137: 98.9 | S137: 130.91 | T137: 119.32 | U137: 119.32 | V137: 67.41 | W137: 51.92 | X137: 109.7 | Y137: 109.7 | Z137: 194.2 | AA137: 14274 | AB137: 8063 | AC137: 6210 | AD137: 6025 | AE137: 4.3 | AF137: 110.4 | AG137: 110.4 | AH137: 0 | AI137: 1.5 | AJ137: 72.6 | AK137: 102 | AL137: 84
A138: 272027 | B138: 大阪府 | C138: 岸和田市 | D138: 1171 | E138: Ab1 | F138: A | G138: b | H138: 1 | I138: 181512 | J138: 6.8 | K138: 54 | L138: 96.1 | M138: 100 | N138: 2871 | O138: 64 | P138: 15.8 | Q138: 82.1 | R138: 93.3 | S138: 173.78 | T138: 126.01 | U138: 126.01 | V138: 59.15 | W138: 66.86 | X138: 137.9 | Y138: 137.9 | Z138: 293.8 | AA138: 13350 | AB138: 6266 | AC138: 7084 | AD138: 4906 | AE138: 6.2 | AF138: 116.5 | AG138: 115.8 | AH138: 0 | AI138: 1.3 | AJ138: 54.6 | AK138: 107.2 | AL138: 223
A139: 272141 | B139: 大阪府 | C139: 富田林市 | D139: 1171 | E139: Ab1 | F139: A | G139: b | H139: 1 | I139: 101584 | J139: 5.6 | K139: 56 | L139: 94.3 | M139: 89.3 | N139: 2382 | O139: 58 | P139: 0 | Q139: 94 | R139: 94.9 | S139: 134.08 | T139: 114.63 | U139: 146.76 | V139: 74.47 | W139: 40.16 | X139: 117 | Y139: 91.4 | Z139: 180 | AA139: 11069 | AB139: 7191 | AC139: 3878 | AD139: 6349 | AE139: 4.5 | AF139: 106.1 | AG139: 104.9 | AH139: 0 | AI139: 1.6 | AJ139: 69.5 | AK139: 101.8 | AL139: 129
A140: 272191 | B140: 大阪府 | C140: 和泉市 | D140: 1171 | E140: Ab1 | F140: A | G140: b | H140: 1 | I140: 163136 | J140: 7.3 | K140: 45 | L140: 89 | M140: 83 | N140: 2530 | O140: 73 | P140: 0 | Q140: 87.8 | R140: 90.7 | S140: 136.81 | T140: 109.17 | U140: 109.17 | V140: 49.5 | W140: 59.67 | X140: 125.3 | Y140: 125.3 | Z140: 276.4 | AA140: 10808 | AB140: 4900 | AC140: 5908 | AD140: 9596 | AE140: 2.8 | AF140: 113.7 | AG140: 112.7 | AH140: 0 | AI140: 1.4 | AJ140: 66.1 | AK140: 101.3 | AL140: 135
A141: 272205 | B141: 大阪府 | C141: 箕面市 | D141: 1171 | E141: Ab1 | F141: A | G141: b | H141: 1 | I141: 138723 | J141: 7.3 | K141: 54 | L141: 100 | M141: 91.9 | N141: 1863 | O141: 71 | P141: 0 | Q141: 77.1 | R141: 100 | S141: 102.55 | T141: 100.39 | U141: 100.39 | V141: 60.94 | W141: 39.45 | X141: 102.2 | Y141: 102.2 | Z141: 168.3 | AA141: 10276 | AB141: 6237 | AC141: 4039 | AD141: 9909 | AE141: 5.5 | AF141: 102.9 | AG141: 102.9 | AH141: 0 | AI141: 1.5 | AJ141: 90.3 | AK141: 87.7 | AL141: 25
A142: 282103 | B142: 兵庫県 | C142: 加古川市 | D142: 1171 | E142: Ab1 | F142: A | G142: b | H142: 1 | I142: 231099 | J142: 6 | K142: 56 | L142: 89.1 | M142: 99.2 | N142: 2530 | O142: 61 | P142: 0 | Q142: 87.6 | R142: 97.3 | S142: 154.99 | T142: 142.83 | U142: 162.65 | V142: 68.27 | W142: 74.56 | X142: 108.5 | Y142: 95.3 | Z142: 227 | AA142: 14015 | AB142: 6699 | AC142: 7316 | AD142: 5777 | AE142: 3.3 | AF142: 105.5 | AG142: 105.5 | AH142: 0 | AI142: 1.5 | AJ142: 55.7 | AK142: 100.4 | AL142: 168
A143: 292010 | B143: 奈良県 | C143: 奈良市 | D143: 1171 | E143: Ab1 | F143: A | G143: b | H143: 1 | I143: 308779 | J143: 7.2 | K143: 60 | L143: 88.1 | M143: 109.7 | N143: 2893 | O143: 65 | P143: 53.2 | Q143: 93.5 | R143: 97.8 | S143: 137.21 | T143: 117.11 | U143: 117.11 | V143: 83.94 | W143: 33.17 | X143: 117.2 | Y143: 117.2 | Z143: 163.5 | AA143: 12957 | AB143: 9287 | AC143: 3670 | AD143: 9649 | AE143: 3.6 | AF143: 111.7 | AG143: 111.7 | AH143: 0 | AI143: 0.7 | AJ143: 64.2 | AK143: 101.2 | AL143: 93
A144: 302015 | B144: 和歌山県 | C144: 和歌山市 | D144: 1171 | E144: Ab1 | F144: A | G144: b | H144: 1 | I144: 137126 | J144: 6.3 | K144: 42 | L144: 38.3 | M144: 41.8 | N144: 3139 | O144: 56 | P144: 40.4 | Q144: 70.2 | R144: 80 | S144: 177.58 | T144: 179.19 | U144: 260.8 | V144: 91.03 | W144: 88.16 | X144: 99.1 | Y144: 68.1 | Z144: 195.1 | AA144: 20099 | AB144: 10210 | AC144: 9889 | AD144: 1371 | AE144: 8.2 | AF144: 108 | AG144: 107.9 | AH144: 30.9 | AI144: 1.3 | AJ144: 51.3 | AK144: 104.9 | AL144: 648
A145: 372013 | B145: 香川県 | C145: 高松市 | D145: 1171 | E145: Ab1 | F145: A | G145: b | H145: 1 | I145: 260612 | J145: 5.1 | K145: 58 | L145: 61.8 | M145: 87.1 | N145: 2506 | O145: 51 | P145: 65.3 | Q145: 77.4 | R145: 93.7 | S145: 142.85 | T145: 159.77 | U145: 183.2 | V145: 72.33 | W145: 87.45 | X145: 89.4 | Y145: 78 | Z145: 197.5 | AA145: 15937 | AB145: 7214 | AC145: 8723 | AD145: 2606 | AE145: 9.4 | AF145: 100 | AG145: 100 | AH145: 0 | AI145: 1.2 | AJ145: 57.2 | AK145: 102.2 | AL145: 291
A146: 382019 | B146: 愛媛県 | C146: 松山市 | D146: 1171 | E146: Ab1 | F146: A | G146: b | H146: 1 | I146: 329545 | J146: 6.4 | K146: 61 | L146: 65.6 | M146: 77.2 | N146: 3385 | O146: 62 | P146: 53.3 | Q146: 79.9 | R146: 92.6 | S146: 178.42 | T146: 178.42 | U146: 193.37 | V146: 70.98 | W146: 107.44 | X146: 100 | Y146: 92.3 | Z146: 251.4 | AA146: 18264 | AB146: 7266 | AC146: 10998 | AD146: 3169 | AE146: 5.1 | AF146: 110.1 | AG146: 110.1 | AH146: 0 | AI146: 1.4 | AJ146: 56.6 | AK146: 100 | AL146: 338
A147: 392014 | B147: 高知県 | C147: 高知市 | D147: 1171 | E147: Ab1 | F147: A | G147: b | H147: 1 | I147: 209250 | J147: 6.8 | K147: 54 | L147: 65.9 | M147: 89.1 | N147: 2948 | O147: 66 | P147: 68 | Q147: 60.7 | R147: 85.3 | S147: 173.41 | T147: 157.23 | U147: 172.56 | V147: 64.89 | W147: 92.34 | X147: 110.3 | Y147: 100.5 | Z147: 267.2 | AA147: 16177 | AB147: 6677 | AC147: 9500 | AD147: 2114 | AE147: 9.4 | AF147: 110.6 | AG147: 110.6 | AH147: 0 | AI147: 1.2 | AJ147: 46.9 | AK147: 101.5 | AL147: 373
A148: 402184 | B148: 福岡県 | C148: 春日市 | D148: 1171 | E148: Ab1 | F148: A | G148: b | H148: 1 | I148: 112478 | J148: 6.8 | K148: 45 | L148: 100 | M148: 100.7 | N148: 3160 | O148: 82 | P148: 0 | Q148: 87.1 | R148: 99.5 | S148: 164.01 | T148: 135.45 | U148: 135.45 | V148: 73.02 | W148: 62.42 | X148: 121.1 | Y148: 121.1 | Z148: 224.6 | AA148: 11226 | AB148: 6052 | AC148: 5174 | AD148: 10225 | AE148: 3.7 | AF148: 123.9 | AG148: 122.5 | AH148: 0 | AI148: 1.2 | AJ148: 62.3 | AK148: 100.4 | AL148: 81
A149: 402192 | B149: 福岡県 | C149: 大野城市 | D149: 1171 | E149: Ab1 | F149: A | G149: b | H149: 1 | I149: 102338 | J149: 6.3 | K149: 46 | L149: 100 | M149: 95.9 | N149: 2953 | O149: 70 | P149: 0 | Q149: 88.6 | R149: 99.8 | S149: 139.47 | T149: 146.69 | U149: 146.69 | V149: 81.69 | W149: 64.99 | X149: 95.1 | Y149: 95.1 | Z149: 170.7 | AA149: 13144 | AB149: 7320 | AC149: 5824 | AD149: 7310 | AE149: 3.7 | AF149: 115.4 | AG149: 114.2 | AH149: 0 | AI149: 1.4 | AJ149: 70.9 | AK149: 98.6 | AL149: 73
A150: 422011 | B150: 長崎県 | C150: 長崎市 | D150: 1171 | E150: Ab1 | F150: A | G150: b | H150: 1 | I150: 371697 | J150: 6.7 | K150: 62 | L150: 93.2 | M150: 113 | N150: 3300 | O150: 69 | P150: 67.9 | Q150: 82.8 | R150: 97.4 | S150: 204.38 | T150: 177.65 | U150: 218.76 | V150: 98.01 | W150: 79.64 | X150: 115 | Y150: 93.4 | Z150: 208.5 | AA150: 17078 | AB150: 9422 | AC150: 7656 | AD150: 3832 | AE150: 6.4 | AF150: 109.5 | AG150: 109.7 | AH150: 0 | AI150: 1.3 | AJ150: 65.2 | AK150: 97 | AL150: 152
A151: 442011 | B151: 大分県 | C151: 大分市 | D151: 1171 | E151: Ab1 | F151: A | G151: b | H151: 1 | I151: 324055 | J151: 5.6 | K151: 54 | L151: 68.2 | M151: 71.9 | N151: 2791 | O151: 54 | P151: 61.9 | Q151: 81.3 | R151: 93.3 | S151: 153.3 | T151: 153.46 | U151: 161.93 | V151: 69.41 | W151: 84.05 | X151: 99.9 | Y151: 94.7 | Z151: 220.9 | AA151: 15935 | AB151: 7207 | AC151: 8728 | AD151: 3341 | AE151: 3.5 | AF151: 100 | AG151: 100 | AH151: 0 | AI151: 1.2 | AJ151: 62 | AK151: 102.6 | AL151: 239
A152: 462012 | B152: 鹿児島県 | C152: 鹿児島市 | D152: 1171 | E152: Ab1 | F152: A | G152: b | H152: 1 | I152: 468400 | J152: 7.5 | K152: 68 | L152: 78.6 | M152: 97.8 | N152: 1837 | O152: 66 | P152: 80 | Q152: 89.9 | R152: 98.4 | S152: 105.73 | T152: 116.11 | U152: 124.65 | V152: 67.54 | W152: 48.57 | X152: 91.1 | Y152: 84.8 | Z152: 156.5 | AA152: 13206 | AB152: 7682 | AC152: 5524 | AD152: 2588 | AE152: 15.5 | AF152: 101 | AG152: 100.9 | AH152: 0 | AI152: 1.6 | AJ152: 66.3 | AK152: 97.3 | AL152: 86
A153: 472085 | B153: 沖縄県 | C153: 浦添市 | D153: 1171 | E153: Ab1 | F153: A | G153: b | H153: 1 | I153: 111564 | J153: 7.5 | K153: 51 | L153: 97.1 | M153: 95.6 | N153: 1408 | O153: 70 | P153: 0 | Q153: 100 | R153: 95 | S153: 82.87 | T153: 91.2 | U153: 91.2 | V153: 74.71 | W153: 16.5 | X153: 90.9 | Y153: 90.9 | Z153: 110.9 | AA153: 9779 | AB153: 8011 | AC153: 1769 | AD153: 4851 | AE153: 10.1 | AF153: 102.3 | AG153: 103.2 | AH153: 0 | AI153: 0.7 | AJ153: 74.7 | AK153: 98.1 | AL153: 41
A154: 472115 | B154: 沖縄県 | C154: 沖縄市 | D154: 1171 | E154: Ab1 | F154: A | G154: b | H154: 1 | I154: 138134 | J154: 5.2 | K154: 53 | L154: 97.3 | M154: 92 | N154: 1584 | O154: 50 | P154: 0 | Q154: 100 | R154: 89.5 | S154: 91.84 | T154: 110 | U154: 110 | V154: 68.83 | W154: 41.17 | X154: 83.5 | Y154: 83.5 | Z154: 133.4 | AA154: 11508 | AB154: 7201 | AC154: 4307 | AD154: 4763 | AE154: 6.3 | AF154: 101 | AG154: 100.9 | AH154: 0 | AI154: 1.5 | AJ154: 70.6 | AK154: 98.7 | AL154: 69
B155: 団体数 | C155: 49 | E155: Ab1 計 | M155: 93.2 | N155: 2450 | O155: 58 | P155: 62.9 | Q155: 80.8 | R155: 94.8 | S155: 141.69 | T155: 143.03 | U155: 160.34 | V155: 76.03 | W155: 67 | X155: 99.1 | Y155: 88.4 | Z155: 186.4 | AA155: 15037 | AB155: 7993 | AC155: 7044 | AD155: 3922 | AE155: 6.7 | AF155: 107 | AG155: 106.7 | AH155: 0.6 | AI155: 1.3 | AJ155: 63.6 | AK155: 100.9 | AL155: 164
A156: 012033 | B156: 北海道 | C156: 小樽市 | D156: 1171 | E156: Ac1 | F156: A | G156: c | H156: 1 | I156: 106961 | J156: 4 | K156: 67 | L156: 99.1 | M156: 120.3 | N156: 2750 | O156: 39 | P156: 61.2 | Q156: 56 | R156: 98 | S156: 158.83 | T156: 151.78 | U156: 192.29 | V156: 110.3 | W156: 41.48 | X156: 104.6 | Y156: 82.6 | Z156: 144 | AA156: 15725 | AB156: 11428 | AC156: 4297 | AD156: 4862 | AE156: 5.1 | AF156: 101.5 | AG156: 101.4 | AH156: 0 | AI156: 1 | AJ156: 76.2 | AK156: 102.6 | AL156: 91
A157: 012041 | B157: 北海道 | C157: 旭川市 | D157: 1171 | E157: Ac1 | F157: A | G157: c | H157: 1 | I157: 313805 | J157: 4.2 | K157: 59 | L157: 97.3 | M157: 106.1 | N157: 3275 | O157: 39 | P157: 67.6 | Q157: 81.8 | R157: 97.1 | S157: 157.32 | T157: 149.23 | U157: 149.23 | V157: 80.22 | W157: 69.01 | X157: 105.4 | Y157: 105.4 | Z157: 196.1 | AA157: 16027 | AB157: 8616 | AC157: 7411 | AD157: 4420 | AE157: 6.7 | AF157: 105.6 | AG157: 105.5 | AH157: 0 | AI157: 1.1 | AJ157: 74.5 | AK157: 102.6 | AL157: 86
A158: 012068 | B158: 北海道 | C158: 釧路市 | D158: 1171 | E158: Ac1 | F158: A | G158: c | H158: 1 | I158: 152120 | J158: 3.4 | K158: 63 | L158: 95.7 | M158: 108.3 | N158: 4389 | O158: 36 | P158: 59 | Q158: 65.7 | R158: 96.1 | S158: 215.04 | T158: 194.83 | U158: 194.83 | V158: 108.92 | W158: 85.91 | X158: 110.4 | Y158: 110.4 | Z158: 197.4 | AA158: 18073 | AB158: 10104 | AC158: 7969 | AD158: 2925 | AE158: 4.9 | AF158: 113.7 | AG158: 119.7 | AH158: 0 | AI158: 1.2 | AJ158: 68.3 | AK158: 101.3 | AL158: 140
A159: 012076 | B159: 北海道 | C159: 帯広市 | D159: 1171 | E159: Ac1 | F159: A | G159: c | H159: 1 | I159: 156682 | J159: 3.8 | K159: 63 | L159: 96 | M159: 100.4 | N159: 2970 | O159: 37 | P159: 96.1 | Q159: 70.5 | R159: 99.1 | S159: 162.55 | T159: 145.43 | U159: 145.43 | V159: 84.89 | W159: 60.54 | X159: 111.8 | Y159: 111.8 | Z159: 191.5 | AA159: 14753 | AB159: 8612 | AC159: 6141 | AD159: 6812 | AE159: 3 | AF159: 112.9 | AG159: 112.9 | AH159: 15.8 | AI159: 1.5 | AJ159: 68.1 | AK159: 100.7 | AL159: 104
A160: 012084 | B160: 北海道 | C160: 北見市 | D160: 1171 | E160: Ac1 | F160: A | G160: c | H160: 1 | I160: 101084 | J160: 3 | K160: 60 | L160: 90 | M160: 105.8 | N160: 3620 | O160: 32 | P160: 59.6 | Q160: 62.8 | R160: 99.3 | S160: 172.52 | T160: 172.52 | U160: 177.61 | V160: 80.41 | W160: 92.11 | X160: 100 | Y160: 97.1 | Z160: 214.5 | AA160: 16367 | AB160: 7629 | AC160: 8738 | AD160: 3063 | AE160: 8 | AF160: 107.5 | AG160: 107.5 | AH160: 0.3 | AI160: 1.1 | AJ160: 51.3 | AK160: 101.6 | AL160: 288
A161: 012131 | B161: 北海道 | C161: 苫小牧市 | D161: 1171 | E161: Ac1 | F161: A | G161: c | H161: 1 | I161: 166374 | J161: 3.5 | K161: 64 | L161: 99.3 | M161: 107.1 | N161: 2295 | O161: 37 | P161: 77.6 | Q161: 72.5 | R161: 99.8 | S161: 148.94 | T161: 138.73 | U161: 138.73 | V161: 72.79 | W161: 65.93 | X161: 107.4 | Y161: 107.4 | Z161: 204.6 | AA161: 12909 | AB161: 6774 | AC161: 6135 | AD161: 3961 | AE161: 4.1 | AF161: 111.3 | AG161: 111.3 | AH161: 0 | AI161: 1.5 | AJ161: 61.8 | AK161: 100.2 | AL161: 167
A162: 012173 | B162: 北海道 | C162: 江別市 | D162: 1171 | E162: Ac1 | F162: A | G162: c | H162: 1 | I162: 115994 | J162: 4.6 | K162: 58 | L162: 97.7 | M162: 103.6 | N162: 2343 | O162: 47 | P162: 74.9 | Q162: 81.2 | R162: 99.5 | S162: 110.19 | T162: 114 | U162: 114 | V162: 80.4 | W162: 33.6 | X162: 96.6 | Y162: 96.6 | Z162: 137 | AA162: 11186 | AB162: 7889 | AC162: 3297 | AD162: 3866 | AE162: 6.2 | AF162: 102.2 | AG162: 102.2 | AH162: 0 | AI162: 1.2 | AJ162: 80.1 | AK162: 99.9 | AL162: 83
A163: 022012 | B163: 青森県 | C163: 青森市 | D163: 1171 | E163: Ac1 | F163: A | G163: c | H163: 1 | I163: 219492 | J163: 4.8 | K163: 57 | L163: 81.6 | M163: 103.6 | N163: 3108 | O163: 49 | P163: 64.6 | Q163: 73 | R163: 90 | S163: 181.07 | T163: 187.15 | U163: 202.26 | V163: 73.55 | W163: 113.61 | X163: 96.7 | Y163: 89.5 | Z163: 246.2 | AA163: 18359 | AB163: 7215 | AC163: 11145 | AD163: 2131 | AE163: 9.6 | AF163: 107.7 | AG163: 105.5 | AH163: 14.7 | AI163: 1.1 | AJ163: 40.8 | AK163: 107.7 | AL163: 292
A164: 022021 | B164: 青森県 | C164: 弘前市 | D164: 1171 | E164: Ac1 | F164: A | G164: c | H164: 1 | I164: 137343 | J164: 4.1 | K164: 50 | L164: 84.4 | M164: 114.3 | N164: 3145 | O164: 39 | P164: 0 | Q164: 78.3 | R164: 94.5 | S164: 183.51 | T164: 156.28 | U164: 205.35 | V164: 106.34 | W164: 49.95 | X164: 117.4 | Y164: 89.4 | Z164: 172.6 | AA164: 16419 | AB164: 11171 | AC164: 5247 | AD164: 3815 | AE164: 6.9 | AF164: 111.7 | AG164: 111.8 | AH164: 0 | AI164: 1.3 | AJ164: 50.3 | AK164: 98.7 | AL164: 174
A165: 022039 | B165: 青森県 | C165: 八戸市 | D165: 1171 | E165: Ac1 | F165: A | G165: c | H165: 1 | I165: 148906 | J165: 3.3 | K165: 45 | L165: 67.8 | M165: 92.5 | N165: 3383 | O165: 39 | P165: 90.9 | Q165: 70.6 | R165: 83.1 | S165: 189.08 | T165: 191.12 | U165: 237.76 | V165: 97.4 | W165: 93.72 | X165: 98.9 | Y165: 79.5 | Z165: 194.1 | AA165: 16374 | AB165: 8345 | AC165: 8029 | AD165: 2068 | AE165: 5.9 | AF165: 102.9 | AG165: 102.9 | AH165: 1.3 | AI165: 0.5 | AJ165: 50.8 | AK165: 102.6 | AL165: 397
A166: 052019 | B166: 秋田県 | C166: 秋田市 | D166: 1171 | E166: Ac1 | F166: A | G166: c | H166: 1 | I166: 278480 | J166: 4.7 | K166: 91 | L166: 93.3 | M166: 102.2 | N166: 3113 | O166: 48 | P166: 0 | Q166: 79.9 | R166: 90.9 | S166: 173.65 | T166: 173.65 | U166: 188.21 | V166: 89.97 | W166: 83.68 | X166: 100 | Y166: 92.3 | Z166: 193 | AA166: 16911 | AB166: 8762 | AC166: 8149 | AD166: 3763 | AE166: 5 | AF166: 107.1 | AG166: 105.7 | AH166: 0 | AI166: 1.1 | AJ166: 62.5 | AK166: 100.5 | AL166: 204
A167: 062014 | B167: 山形県 | C167: 山形市 | D167: 1171 | E167: Ac1 | F167: A | G167: c | H167: 1 | I167: 208707 | J167: 4 | K167: 58 | L167: 87.2 | M167: 98.8 | N167: 3355 | O167: 41 | P167: 96.4 | Q167: 76.4 | R167: 95 | S167: 181.4 | T167: 181.35 | U167: 198.38 | V167: 65.28 | W167: 116.07 | X167: 100 | Y167: 91.4 | Z167: 277.9 | AA167: 18005 | AB167: 6481 | AC167: 11524 | AD167: 4743 | AE167: 5.3 | AF167: 101.9 | AG167: 102 | AH167: 0 | AI167: 1.4 | AJ167: 47.7 | AK167: 102.3 | AL167: 309
A168: 072010 | B168: 福島県 | C168: 福島市 | D168: 1171 | E168: Ac1 | F168: A | G168: c | H168: 1 | I168: 180989 | J168: 4.6 | K168: 52 | L168: 67.2 | M168: 78.4 | N168: 2860 | O168: 46 | P168: 63.1 | Q168: 90.8 | R168: 93.5 | S168: 174.4 | T168: 174.4 | U168: 270.36 | V168: 93.64 | W168: 80.76 | X168: 100 | Y168: 64.5 | Z168: 186.2 | AA168: 17381 | AB168: 9332 | AC168: 8049 | AD168: 5485 | AE168: 3.8 | AF168: 117.6 | AG168: 112.2 | AH168: 0 | AI168: 1.6 | AJ168: 63.5 | AK168: 101.2 | AL168: 228
A169: 072036 | B169: 福島県 | C169: 郡山市 | D169: 1171 | E169: Ac1 | F169: A | G169: c | H169: 1 | I169: 235267 | J169: 4.7 | K169: 53 | L169: 74.4 | M169: 94.8 | N169: 3066 | O169: 50 | P169: 0 | Q169: 79.3 | R169: 93.3 | S169: 173.38 | T169: 173.38 | U169: 227.29 | V169: 109.63 | W169: 63.75 | X169: 100 | Y169: 76.3 | Z169: 158.1 | AA169: 16289 | AB169: 10300 | AC169: 5989 | AD169: 3096 | AE169: 6.5 | AF169: 101.3 | AG169: 99.2 | AH169: 0 | AI169: 1.4 | AJ169: 57.9 | AK169: 102.5 | AL169: 237
A170: 072044 | B170: 福島県 | C170: いわき市 | D170: 1171 | E170: Ac1 | F170: A | G170: c | H170: 1 | I170: 169472 | J170: 4 | K170: 54 | L170: 54.9 | M170: 104.1 | N170: 3500 | O170: 40 | P170: 65.8 | Q170: 70.5 | R170: 94.7 | S170: 197.5 | T170: 196.65 | U170: 258.15 | V170: 124.14 | W170: 72.51 | X170: 100.4 | Y170: 76.5 | Z170: 159.1 | AA170: 19895 | AB170: 12559 | AC170: 7336 | AD170: 2607 | AE170: 4.1 | AF170: 111 | AG170: 103.9 | AH170: 0 | AI170: 1.2 | AJ170: 48 | AK170: 102.2 | AL170: 339
A171: 082015 | B171: 茨城県 | C171: 水戸市 | D171: 1171 | E171: Ac1 | F171: A | G171: c | H171: 1 | I171: 216123 | J171: 4.1 | K171: 49 | L171: 80.5 | M171: 93.3 | N171: 2989 | O171: 44 | P171: 63.1 | Q171: 68.2 | R171: 87.9 | S171: 160.83 | T171: 160.77 | U171: 259.26 | V171: 79.29 | W171: 81.49 | X171: 100 | Y171: 62 | Z171: 202.8 | AA171: 15170 | AB171: 7481 | AC171: 7689 | AD171: 3543 | AE171: 5.3 | AF171: 103.3 | AG171: 103.5 | AH171: 0 | AI171: 1.5 | AJ171: 55.4 | AK171: 103.2 | AL171: 310
A172: 082023 | B172: 茨城県 | C172: 日立市 | D172: 1171 | E172: Ac1 | F172: A | G172: c | H172: 1 | I172: 125386 | J172: 3.9 | K172: 50 | L172: 74.2 | M172: 98.3 | N172: 2805 | O172: 33 | P172: 61.7 | Q172: 78.4 | R172: 99.6 | S172: 162.33 | T172: 161.95 | U172: 161.95 | V172: 78.26 | W172: 83.69 | X172: 100.2 | Y172: 100.2 | Z172: 207.4 | AA172: 19151 | AB172: 9254 | AC172: 9897 | AD172: 5452 | AE172: 4.1 | AF172: 107.6 | AG172: 107.6 | AH172: 0 | AI172: 1.5 | AJ172: 77.8 | AK172: 101.9 | AL172: 72
A173: 082031 | B173: 茨城県 | C173: 土浦市 | D173: 1171 | E173: Ac1 | F173: A | G173: c | H173: 1 | I173: 120480 | J173: 3.8 | K173: 45 | L173: 85.3 | M173: 99.4 | N173: 2750 | O173: 35 | P173: 0 | Q173: 92.4 | R173: 95.4 | S173: 147.79 | T173: 150 | U173: 173.71 | V173: 94.78 | W173: 55.22 | X173: 98.5 | Y173: 85.1 | Z173: 155.9 | AA173: 16292 | AB173: 10295 | AC173: 5997 | AD173: 5737 | AE173: 4.5 | AF173: 103.5 | AG173: 103.6 | AH173: 0 | AI173: 1.5 | AJ173: 70 | AK173: 101.6 | AL173: 127
A174: 082201 | B174: 茨城県 | C174: つくば市 | D174: 1171 | E174: Ac1 | F174: A | G174: c | H174: 1 | I174: 181919 | J174: 3.5 | K174: 43 | L174: 72.1 | M174: 100.3 | N174: 3135 | O174: 28 | P174: 0 | Q174: 88.8 | R174: 99.8 | S174: 148.47 | T174: 150 | U174: 155.68 | V174: 96.43 | W174: 53.57 | X174: 99 | Y174: 95.4 | Z174: 154 | AA174: 18957 | AB174: 12186 | AC174: 6771 | AD174: 6738 | AE174: 3.2 | AF174: 102.9 | AG174: 102.9 | AH174: 0 | AI174: 1.6 | AJ174: 83 | AK174: 100.2 | AL174: 121
A175: 092029 | B175: 栃木県 | C175: 足利市 | D175: 1171 | E175: Ac1 | F175: A | G175: c | H175: 1 | I175: 110524 | J175: 3.8 | K175: 46 | L175: 78 | M175: 105.3 | N175: 3040 | O175: 38 | P175: 91.3 | Q175: 46.9 | R175: 82.1 | S175: 147 | T175: 150 | U175: 202.73 | V175: 46.04 | W175: 103.96 | X175: 98 | Y175: 72.5 | Z175: 319.3 | AA175: 14754 | AB175: 4529 | AC175: 10226 | AD175: 3947 | AE175: 8 | AF175: 106.3 | AG175: 106.3 | AH175: 0 | AI175: 1.4 | AJ175: 54.8 | AK175: 102.9 | AL175: 255
A176: 092088 | B176: 栃木県 | C176: 小山市 | D176: 1171 | E176: Ac1 | F176: A | G176: c | H176: 1 | I176: 107609 | J176: 4.7 | K176: 47 | L176: 64.4 | M176: 73.9 | N176: 2299 | O176: 44 | P176: 98.4 | Q176: 75.2 | R176: 90.8 | S176: 118.87 | T176: 150 | U176: 162.57 | V176: 83.44 | W176: 66.56 | X176: 79.2 | Y176: 73.1 | Z176: 142.5 | AA176: 16135 | AB176: 8975 | AC176: 7159 | AD176: 5124 | AE176: 3.1 | AF176: 108.8 | AG176: 107.9 | AH176: 0 | AI176: 1.2 | AJ176: 55 | AK176: 103.3 | AL176: 235
A177: 102016 | B177: 群馬県 | C177: 前橋市 | D177: 1171 | E177: Ac1 | F177: A | G177: c | H177: 1 | I177: 236273 | J177: 4.3 | K177: 61 | L177: 71.5 | M177: 100.2 | N177: 2156 | O177: 38 | P177: 112.9 | Q177: 82.5 | R177: 96.5 | S177: 110.81 | T177: 137.16 | U177: 137.16 | V177: 59.57 | W177: 77.59 | X177: 80.8 | Y177: 80.8 | Z177: 186 | AA177: 15592 | AB177: 6772 | AC177: 8820 | AD177: 4145 | AE177: 7 | AF177: 103.5 | AG177: 103.5 | AH177: 0 | AI177: 1.5 | AJ177: 62.3 | AK177: 100.8 | AL177: 147
A178: 102024 | B178: 群馬県 | C178: 高崎市 | D178: 1171 | E178: Ac1 | F178: A | G178: c | H178: 1 | I178: 271591 | J178: 4.6 | K178: 91 | L178: 73.8 | M178: 93.6 | N178: 2173 | O178: 41 | P178: 68.1 | Q178: 87 | R178: 94.6 | S178: 122.51 | T178: 97.33 | U178: 97.33 | V178: 58.47 | W178: 38.86 | X178: 125.9 | Y178: 125.9 | Z178: 209.5 | AA178: 10933 | AB178: 6568 | AC178: 4365 | AD178: 4381 | AE178: 7.2 | AF178: 113 | AG178: 113 | AH178: 0 | AI178: 1.5 | AJ178: 68.3 | AK178: 97.3 | AL178: 132
A179: 102059 | B179: 群馬県 | C179: 太田市 | D179: 1171 | E179: Ac1 | F179: A | G179: c | H179: 1 | I179: 108372 | J179: 4.2 | K179: 51 | L179: 48.8 | M179: 78.2 | N179: 2222 | O179: 55 | P179: 67.8 | Q179: 79.8 | R179: 76.4 | S179: 100.97 | T179: 150 | U179: 240.87 | V179: 121.97 | W179: 28.03 | X179: 67.3 | Y179: 41.9 | Z179: 82.8 | AA179: 11327 | AB179: 9210 | AC179: 2117 | AD179: 6375 | AE179: 5.9 | AF179: 101.3 | AG179: 101.3 | AH179: 0 | AI179: 1.4 | AJ179: 55.3 | AK179: 102 | AL179: 207
A180: 152021 | B180: 新潟県 | C180: 長岡市 | D180: 1171 | E180: Ac1 | F180: A | G180: c | H180: 1 | I180: 220347 | J180: 4 | K180: 96 | L180: 84.8 | M180: 106.2 | N180: 2288 | O180: 34 | P180: 72.6 | Q180: 79 | R180: 98.3 | S180: 123.84 | T180: 151.59 | U180: 155.06 | V180: 73.67 | W180: 77.93 | X180: 81.7 | Y180: 79.9 | Z180: 168.1 | AA180: 17447 | AB180: 8478 | AC180: 8968 | AD180: 6677 | AE180: 3.5 | AF180: 100.4 | AG180: 99.5 | AH180: 0 | AI180: 1.7 | AJ180: 76 | AK180: 102.2 | AL180: 135
A181: 152226 | B181: 新潟県 | C181: 上越市 | D181: 1171 | E181: Ac1 | F181: A | G181: c | H181: 1 | I181: 108384 | J181: 3.4 | K181: 35 | L181: 58.9 | M181: 86.7 | N181: 3941 | O181: 32 | P181: 62.5 | Q181: 97.5 | R181: 95.5 | S181: 210.03 | T181: 211.92 | U181: 223.72 | V181: 71.57 | W181: 140.36 | X181: 99.1 | Y181: 93.9 | Z181: 293.5 | AA181: 22204 | AB181: 7498 | AC181: 14706 | AD181: 2521 | AE181: 5.2 | AF181: 101.7 | AG181: 101.7 | AH181: 0 | AI181: 1.2 | AJ181: 46.5 | AK181: 104.6 | AL181: 658
A182: 162019 | B182: 富山県 | C182: 富山市 | D182: 1171 | E182: Ac1 | F182: A | G182: c | H182: 1 | I182: 303878 | J182: 4.6 | K182: 61 | L182: 74.6 | M182: 104.6 | N182: 3080 | O182: 41 | P182: 64.3 | Q182: 81.4 | R182: 97.7 | S182: 179.44 | T182: 181.52 | U182: 188.93 | V182: 71.76 | W182: 109.76 | X182: 98.9 | Y182: 95 | Z182: 250.1 | AA182: 20053 | AB182: 7927 | AC182: 12125 | AD182: 4901 | AE182: 3.7 | AF182: 114.9 | AG182: 115.1 | AH182: 0 | AI182: 1.6 | AJ182: 64.7 | AK182: 102.5 | AL182: 211
A183: 162027 | B183: 富山県 | C183: 高岡市 | D183: 1171 | E183: Ac1 | F183: A | G183: c | H183: 1 | I183: 124162 | J183: 4 | K183: 58 | L183: 75.2 | M183: 125.5 | N183: 3476 | O183: 38 | P183: 49.2 | Q183: 58.1 | R183: 97.2 | S183: 191.22 | T183: 185.14 | U183: 185.14 | V183: 89.33 | W183: 95.81 | X183: 103.3 | Y183: 103.3 | Z183: 214.1 | AA183: 19134 | AB183: 9233 | AC183: 9902 | AD183: 7304 | AE183: 1.8 | AF183: 117.7 | AG183: 116.3 | AH183: 0 | AI183: 1.2 | AJ183: 48.2 | AK183: 104.1 | AL183: 208
A184: 172103 | B184: 石川県 | C184: 白山市 | D184: 1171 | E184: Ac1 | F184: A | G184: c | H184: 1 | I184: 102520 | J184: 4.1 | K184: 45 | L184: 91 | M184: 97.2 | N184: 2662 | O184: 38 | P184: 59.6 | Q184: 91.3 | R184: 97 | S184: 133.66 | T184: 133.66 | U184: 216.14 | V184: 82.75 | W184: 50.91 | X184: 100 | Y184: 61.8 | Z184: 161.5 | AA184: 14625 | AB184: 9054 | AC184: 5570 | AD184: 6835 | AE184: 4.5 | AF184: 100.3 | AG184: 100.4 | AH184: 0 | AI184: 1.2 | AJ184: 39.9 | AK184: 102.8 | AL184: 329
A185: 202011 | B185: 長野県 | C185: 長野市 | D185: 1171 | E185: Ac1 | F185: A | G185: c | H185: 1 | I185: 333872 | J185: 4.1 | K185: 64 | L185: 91.1 | M185: 114.6 | N185: 3534 | O185: 40 | P185: 65.2 | Q185: 86.9 | R185: 98.1 | S185: 191.13 | T185: 174.2 | U185: 223.8 | V185: 91.43 | W185: 82.77 | X185: 109.7 | Y185: 85.4 | Z185: 209.1 | AA185: 18068 | AB185: 9483 | AC185: 8585 | AD185: 5962 | AE185: 4.2 | AF185: 120.2 | AG185: 120.2 | AH185: 0 | AI185: 1.7 | AJ185: 65.6 | AK185: 98.8 | AL185: 186
A186: 212024 | B186: 岐阜県 | C186: 大垣市 | D186: 1171 | E186: Ac1 | F186: A | G186: c | H186: 1 | I186: 140331 | J186: 4.4 | K186: 61 | L186: 88.4 | M186: 97.3 | N186: 2560 | O186: 40 | P186: 72.4 | Q186: 65.2 | R186: 89.3 | S186: 128 | T186: 155.46 | U186: 179.37 | V186: 55.95 | W186: 99.51 | X186: 82.3 | Y186: 71.4 | Z186: 228.8 | AA186: 17157 | AB186: 6175 | AC186: 10982 | AD186: 3793 | AE186: 9.1 | AF186: 100 | AG186: 100 | AH186: 0 | AI186: 1.4 | AJ186: 56.9 | AK186: 102.9 | AL186: 200
A187: 212041 | B187: 岐阜県 | C187: 多治見市 | D187: 1171 | E187: Ac1 | F187: A | G187: c | H187: 1 | I187: 102369 | J187: 4 | K187: 51 | L187: 95.9 | M187: 113.1 | N187: 2750 | O187: 40 | P187: 76.4 | Q187: 50.7 | R187: 94 | S187: 150.02 | T187: 139.33 | U187: 139.33 | V187: 52.9 | W187: 86.43 | X187: 107.7 | Y187: 107.7 | Z187: 283.6 | AA187: 13849 | AB187: 5258 | AC187: 8591 | AD187: 3530 | AE187: 6.9 | AF187: 107 | AG187: 107 | AH187: 0 | AI187: 1.4 | AJ187: 62.1 | AK187: 99.9 | AL187: 144
A188: 212130 | B188: 岐阜県 | C188: 各務原市 | D188: 1171 | E188: Ac1 | F188: A | G188: c | H188: 1 | I188: 121479 | J188: 3.9 | K188: 32 | L188: 83.6 | M188: 94.3 | N188: 2942 | O188: 46 | P188: 0 | Q188: 80.8 | R188: 89.7 | S188: 144.38 | T188: 144.6 | U188: 178.3 | V188: 92.55 | W188: 52.05 | X188: 99.9 | Y188: 81 | Z188: 156 | AA188: 12427 | AB188: 7954 | AC188: 4473 | AD188: 7146 | AE188: 6.9 | AF188: 100 | AG188: 99.9 | AH188: 0 | AI188: 1.4 | AJ188: 60.1 | AK188: 101.5 | AL188: 151
A189: 222101 | B189: 静岡県 | C189: 富士市 | D189: 1171 | E189: Ac1 | F189: A | G189: c | H189: 1 | I189: 196543 | J189: 4.6 | K189: 58 | L189: 79.1 | M189: 97.2 | N189: 2640 | O189: 45 | P189: 63.8 | Q189: 77.5 | R189: 92.1 | S189: 138.09 | T189: 150.4 | U189: 199.81 | V189: 82.85 | W189: 67.55 | X189: 91.8 | Y189: 69.1 | Z189: 166.7 | AA189: 15420 | AB189: 8494 | AC189: 6926 | AD189: 3640 | AE189: 10.7 | AF189: 119.4 | AG189: 119.4 | AH189: 0 | AI189: 1.6 | AJ189: 68.2 | AK189: 101.2 | AL189: 123
A190: 232076 | B190: 愛知県 | C190: 豊川市 | D190: 1171 | E190: Ac1 | F190: A | G190: c | H190: 1 | I190: 154243 | J190: 4.9 | K190: 43 | L190: 82.8 | M190: 106.4 | N190: 1991 | O190: 48 | P190: 0 | Q190: 88.8 | R190: 93.8 | S190: 121.82 | T190: 140.57 | U190: 140.57 | V190: 68.02 | W190: 72.55 | X190: 86.7 | Y190: 86.7 | Z190: 179.1 | AA190: 14360 | AB190: 6949 | AC190: 7411 | AD190: 8569 | AE190: 4.2 | AF190: 107.9 | AG190: 103.3 | AH190: 0 | AI190: 0.6 | AJ190: 68 | AK190: 101.1 | AL190: 118
A191: 232131 | B191: 愛知県 | C191: 西尾市 | D191: 1171 | E191: Ac1 | F191: A | G191: c | H191: 1 | I191: 127681 | J191: 3.6 | K191: 31 | L191: 75 | M191: 104.8 | N191: 2090 | O191: 45 | P191: 0 | Q191: 89.7 | R191: 90 | S191: 114.72 | T191: 150 | U191: 151.49 | V191: 52.41 | W191: 97.59 | X191: 76.5 | Y191: 75.7 | Z191: 218.9 | AA191: 12156 | AB191: 4248 | AC191: 7909 | AD191: 5804 | AE191: 3.7 | AF191: 100 | AG191: 98.1 | AH191: 0 | AI191: 1.5 | AJ191: 67 | AK191: 102 | AL191: 155
A192: 242012 | B192: 三重県 | C192: 津市 | D192: 1171 | E192: Ac1 | F192: A | G192: c | H192: 1 | I192: 124369 | J192: 4.1 | K192: 57 | L192: 45.8 | M192: 77.5 | N192: 2519 | O192: 41 | P192: 35.2 | Q192: 78.8 | R192: 86.3 | S192: 150.06 | T192: 161.31 | U192: 294.98 | V192: 149.09 | W192: 12.22 | X192: 93 | Y192: 50.9 | Z192: 100.6 | AA192: 15873 | AB192: 14671 | AC192: 1202 | AD192: 2303 | AE192: 7.8 | AF192: 113.6 | AG192: 113.6 | AH192: 0 | AI192: 1.3 | AJ192: 62.1 | AK192: 102.4 | AL192: 437
A193: 242055 | B193: 三重県 | C193: 桑名市 | D193: 1171 | E193: Ac1 | F193: A | G193: c | H193: 1 | I193: 112310 | J193: 4.4 | K193: 44 | L193: 80.7 | M193: 87.1 | N193: 3496 | O193: 45 | P193: 68.5 | Q193: 85.7 | R193: 93.5 | S193: 195.83 | T193: 163.28 | U193: 163.28 | V193: 83.78 | W193: 79.5 | X193: 119.9 | Y193: 119.9 | Z193: 233.7 | AA193: 15825 | AB193: 8120 | AC193: 7705 | AD193: 4883 | AE193: 3.6 | AF193: 111.8 | AG193: 111.8 | AH193: 0 | AI193: 1.5 | AJ193: 67.1 | AK193: 102 | AL193: 222
A194: 242071 | B194: 三重県 | C194: 鈴鹿市 | D194: 1171 | E194: Ac1 | F194: A | G194: c | H194: 1 | I194: 122313 | J194: 4.8 | K194: 28 | L194: 62.4 | M194: 86.1 | N194: 3025 | O194: 53 | P194: 0 | Q194: 92.3 | R194: 88.3 | S194: 171.38 | T194: 189.66 | U194: 202.37 | V194: 93.53 | W194: 96.13 | X194: 90.4 | Y194: 84.7 | Z194: 183.2 | AA194: 17308 | AB194: 8536 | AC194: 8772 | AD194: 3219 | AE194: 6.3 | AF194: 104.6 | AG194: 104.7 | AH194: 0 | AI194: 1.3 | AJ194: 51.8 | AK194: 102.2 | AL194: 328
A195: 282014 | B195: 兵庫県 | C195: 姫路市 | D195: 1171 | E195: Ac1 | F195: A | G195: c | H195: 1 | I195: 478474 | J195: 4.8 | K195: 65 | L195: 90.8 | M195: 104.4 | N195: 2629 | O195: 46 | P195: 60.3 | Q195: 66 | R195: 98.2 | S195: 165.44 | T195: 223.98 | U195: 252.32 | V195: 89.89 | W195: 134.09 | X195: 73.9 | Y195: 65.6 | Z195: 184 | AA195: 23628 | AB195: 9483 | AC195: 14145 | AD195: 4933 | AE195: 5 | AF195: 100 | AG195: 100 | AH195: 0 | AI195: 1.7 | AJ195: 65.6 | AK195: 103.2 | AL195: 163
A196: 312011 | B196: 鳥取県 | C196: 鳥取市 | D196: 1171 | E196: Ac1 | F196: A | G196: c | H196: 1 | I196: 135177 | J196: 4.9 | K196: 55 | L196: 74.2 | M196: 102.6 | N196: 2767 | O196: 43 | P196: 61.4 | Q196: 85 | R196: 97.2 | S196: 166.77 | T196: 146.81 | U196: 178.27 | V196: 82.25 | W196: 64.56 | X196: 113.6 | Y196: 93.6 | Z196: 202.8 | AA196: 16519 | AB196: 9255 | AC196: 7264 | AD196: 3004 | AE196: 5.2 | AF196: 106.7 | AG196: 106.9 | AH196: 0 | AI196: 1.5 | AJ196: 54.1 | AK196: 99.3 | AL196: 282
A197: 312029 | B197: 鳥取県 | C197: 米子市 | D197: 1171 | E197: Ac1 | F197: A | G197: c | H197: 1 | I197: 106695 | J197: 4.6 | K197: 49 | L197: 73.4 | M197: 82.2 | N197: 3429 | O197: 44 | P197: 42.4 | Q197: 85 | R197: 90.8 | S197: 194.87 | T197: 195.26 | U197: 215.47 | V197: 80.76 | W197: 114.5 | X197: 99.8 | Y197: 90.4 | Z197: 241.3 | AA197: 20367 | AB197: 8423 | AC197: 11943 | AD197: 1905 | AE197: 10 | AF197: 103.4 | AG197: 103.5 | AH197: 0 | AI197: 1.1 | AJ197: 51.2 | AK197: 100.2 | AL197: 348
A198: 322016 | B198: 島根県 | C198: 松江市 | D198: 1171 | E198: Ac1 | F198: A | G198: c | H198: 1 | I198: 155249 | J198: 3.7 | K198: 42 | L198: 78.9 | M198: 96.2 | N198: 3080 | O198: 35 | P198: 0 | Q198: 93.4 | R198: 95.2 | S198: 178.43 | T198: 160.54 | U198: 189.26 | V198: 86.46 | W198: 74.08 | X198: 111.1 | Y198: 94.3 | Z198: 206.4 | AA198: 17051 | AB198: 9183 | AC198: 7868 | AD198: 6750 | AE198: 4.1 | AF198: 120.6 | AG198: 118.5 | AH198: 0 | AI198: 1.8 | AJ198: 64.9 | AK198: 102.6 | AL198: 169
A199: 332020 | B199: 岡山県 | C199: 倉敷市 | D199: 1171 | E199: Ac1 | F199: A | G199: c | H199: 1 | I199: 390756 | J199: 4.6 | K199: 63 | L199: 82 | M199: 83.4 | N199: 2967 | O199: 48 | P199: 45.5 | Q199: 96.4 | R199: 93.6 | S199: 181.48 | T199: 181.48 | U199: 264.24 | V199: 84.77 | W199: 96.71 | X199: 100 | Y199: 68.7 | Z199: 214.1 | AA199: 17461 | AB199: 8156 | AC199: 9305 | AD199: 3489 | AE199: 5.2 | AF199: 124.8 | AG199: 124.8 | AH199: 0 | AI199: 1.7 | AJ199: 59.3 | AK199: 103.3 | AL199: 284
A200: 342025 | B200: 広島県 | C200: 呉市 | D200: 1171 | E200: Ac1 | F200: A | G200: c | H200: 1 | I200: 177785 | J200: 4.9 | K200: 61 | L200: 85.4 | M200: 101.7 | N200: 3894 | O200: 50 | P200: 52.5 | Q200: 86 | R200: 98.6 | S200: 216.71 | T200: 195.17 | U200: 195.17 | V200: 126.91 | W200: 68.26 | X200: 111 | Y200: 111 | Z200: 170.8 | AA200: 19100 | AB200: 12419 | AC200: 6680 | AD200: 2915 | AE200: 6.5 | AF200: 103.5 | AG200: 103.4 | AH200: 1.6 | AI200: 1.4 | AJ200: 61.2 | AK200: 102.2 | AL200: 158
A201: 342076 | B201: 広島県 | C201: 福山市 | D201: 1171 | E201: Ac1 | F201: A | G201: c | H201: 1 | I201: 350209 | J201: 4.8 | K201: 62 | L201: 76.3 | M201: 94.7 | N201: 2926 | O201: 47 | P201: 87.5 | Q201: 94 | R201: 95.5 | S201: 165.95 | T201: 165.95 | U201: 180.82 | V201: 68.46 | W201: 97.49 | X201: 100 | Y201: 91.8 | Z201: 242.4 | AA201: 16737 | AB201: 6905 | AC201: 9833 | AD201: 4120 | AE201: 4.7 | AF201: 112.7 | AG201: 114.8 | AH201: 0 | AI201: 1.5 | AJ201: 53.6 | AK201: 102.7 | AL201: 217
A202: 352012 | B202: 山口県 | C202: 下関市 | D202: 1171 | E202: Ac1 | F202: A | G202: c | H202: 1 | I202: 195857 | J202: 4.3 | K202: 58 | L202: 78.7 | M202: 106 | N202: 3336 | O202: 43 | P202: 44.3 | Q202: 90.8 | R202: 96.9 | S202: 170.86 | T202: 170.86 | U202: 229.91 | V202: 102.67 | W202: 68.19 | X202: 100 | Y202: 74.3 | Z202: 166.4 | AA202: 17091 | AB202: 10270 | AC202: 6821 | AD202: 2683 | AE202: 11.5 | AF202: 107.4 | AG202: 107.4 | AH202: 0 | AI202: 0.8 | AJ202: 57.3 | AK202: 102.3 | AL202: 233
A203: 352021 | B203: 山口県 | C203: 宇部市 | D203: 1171 | E203: Ac1 | F203: A | G203: c | H203: 1 | I203: 126061 | J203: 3.6 | K203: 62 | L203: 79 | M203: 112.6 | N203: 3135 | O203: 36 | P203: 50.5 | Q203: 72.8 | R203: 96.6 | S203: 171.29 | T203: 171.29 | U203: 216.28 | V203: 88.52 | W203: 82.77 | X203: 100 | Y203: 79.2 | Z203: 193.5 | AA203: 17280 | AB203: 8930 | AC203: 8350 | AD203: 1776 | AE203: 15.4 | AF203: 106.1 | AG203: 106.1 | AH203: 0 | AI203: 0.8 | AJ203: 67.8 | AK203: 98.8 | AL203: 290
A204: 352039 | B204: 山口県 | C204: 山口市 | D204: 1171 | E204: Ac1 | F204: A | G204: c | H204: 1 | I204: 126345 | J204: 3.8 | K204: 56 | L204: 67.3 | M204: 100.9 | N204: 3080 | O204: 34 | P204: 61.4 | Q204: 84.5 | R204: 97.3 | S204: 160.34 | T204: 160.3 | U204: 200 | V204: 92.01 | W204: 68.29 | X204: 100 | Y204: 80.2 | Z204: 174.3 | AA204: 18019 | AB204: 10343 | AC204: 7676 | AD204: 2106 | AE204: 9.3 | AF204: 103.6 | AG204: 103.7 | AH204: 0 | AI204: 1.4 | AJ204: 61.4 | AK204: 101 | AL204: 265
A205: 352152 | B205: 山口県 | C205: 周南市 | D205: 1171 | E205: Ac1 | F205: A | G205: c | H205: 1 | I205: 118502 | J205: 4.1 | K205: 57 | L205: 86.3 | M205: 123.3 | N205: 3275 | O205: 40 | P205: 68.5 | Q205: 65.4 | R205: 94.8 | S205: 168.6 | T205: 168.51 | U205: 214.27 | V205: 105.16 | W205: 63.35 | X205: 100.1 | Y205: 78.7 | Z205: 160.3 | AA205: 17151 | AB205: 10703 | AC205: 6448 | AD205: 2693 | AE205: 12.1 | AF205: 102.8 | AG205: 102.8 | AH205: 0 | AI205: 1.5 | AJ205: 73.5 | AK205: 98.2 | AL205: 128
A206: 402036 | B206: 福岡県 | C206: 久留米市 | D206: 1171 | E206: Ac1 | F206: A | G206: c | H206: 1 | I206: 264225 | J206: 4.3 | K206: 51 | L206: 87.6 | M206: 93.5 | N206: 3091 | O206: 48 | P206: 60.1 | Q206: 88.7 | R206: 87.8 | S206: 177.78 | T206: 178.69 | U206: 203.93 | V206: 73.49 | W206: 105.2 | X206: 99.5 | Y206: 87.2 | Z206: 241.9 | AA206: 16193 | AB206: 6660 | AC206: 9534 | AD206: 4804 | AE206: 4.8 | AF206: 110.6 | AG206: 110.4 | AH206: 0 | AI206: 1.1 | AJ206: 44.9 | AK206: 99 | AL206: 270
A207: 412015 | B207: 佐賀県 | C207: 佐賀市 | D207: 1171 | E207: Ac1 | F207: A | G207: c | H207: 1 | I207: 185754 | J207: 4.2 | K207: 45 | L207: 81.3 | M207: 108.2 | N207: 3168 | O207: 43 | P207: 79.1 | Q207: 87.3 | R207: 92.4 | S207: 177.3 | T207: 140.59 | U207: 140.59 | V207: 80.65 | W207: 59.94 | X207: 126.1 | Y207: 126.1 | Z207: 219.8 | AA207: 13421 | AB207: 7699 | AC207: 5722 | AD207: 2692 | AE207: 10.6 | AF207: 101.9 | AG207: 101.9 | AH207: 0 | AI207: 1.4 | AJ207: 56.6 | AK207: 101.3 | AL207: 277
A208: 422029 | B208: 長崎県 | C208: 佐世保市 | D208: 1171 | E208: Ac1 | F208: A | G208: c | H208: 1 | I208: 144093 | J208: 4.2 | K208: 62 | L208: 60.6 | M208: 71.2 | N208: 2461 | O208: 43 | P208: 49.5 | Q208: 96.5 | R208: 92.7 | S208: 146.31 | T208: 153.35 | U208: 247.5 | V208: 120.87 | W208: 32.48 | X208: 95.4 | Y208: 59.1 | Z208: 121 | AA208: 14914 | AB208: 11755 | AC208: 3159 | AD208: 1847 | AE208: 15 | AF208: 102.3 | AG208: 102.3 | AH208: 0 | AI208: 1.2 | AJ208: 56.6 | AK208: 98.4 | AL208: 236
A209: 452017 | B209: 宮崎県 | C209: 宮崎市 | D209: 1171 | E209: Ac1 | F209: A | G209: c | H209: 1 | I209: 354910 | J209: 4.9 | K209: 49 | L209: 89.2 | M209: 100.5 | N209: 2386 | O209: 48 | P209: 69.2 | Q209: 76.6 | R209: 94.6 | S209: 133.04 | T209: 151.01 | U209: 161.35 | V209: 73.65 | W209: 77.36 | X209: 88.1 | Y209: 82.5 | Z209: 180.6 | AA209: 15257 | AB209: 7441 | AC209: 7816 | AD209: 3858 | AE209: 7.7 | AF209: 100.7 | AG209: 100.7 | AH209: 0 | AI209: 1.2 | AJ209: 56.1 | AK209: 101.7 | AL209: 191
B210: 団体数 | C210: 54 | E210: Ac1 計 | M210: 98.3 | N210: 2951 | O210: 42 | P210: 65.2 | Q210: 78.6 | R210: 94.3 | S210: 162.05 | T210: 165 | U210: 193.66 | V210: 84.71 | W210: 80.28 | X210: 98.2 | Y210: 83.7 | Z210: 191.3 | AA210: 16771 | AB210: 8611 | AC210: 8160 | AD210: 3752 | AE210: 6.1 | AF210: 107.9 | AG210: 107.5 | AH210: 0.6 | AI210: 1.3 | AJ210: 60.3 | AK210: 101.7 | AL210: 213
